Workbook

Sheet Instructions
A1: This file contains macros. These may have been disabled by the EXCEL installation on your computer. You will receve this message: | Z1: v1.2 20241020
A6: To unlock macros in a file, like one from the internet or an email attachment, remove the Mark of the Web on your local device.
A7: To remove, right-click on the file, choose Properties, and then select the Unblock checkbox on the General tab.
H9: Remark: All calculations will work without the makros. In case the makros are disabled, the steps in the makros have to be done manually.
H10: Meaning od the makros:
H11: In the individual countries
H17: Makro Name: Scenario 1/2, 3, 4, 5 switch to the respective scenarios by clicking on the respective button. | U17: Alt_EV_YES or _NO change cell AA1 to change the sales limit condition.
H18: Can also be chosen by inserting the respective number in cell D3. | U18: Can also be chosen by inserting YES or NO in cell AA1.
H21: In the aggregated file "30 Countries"
H27: Makro Name: All_Scenario 1/2, 3, 4, 5 switch to the respective scenarios by clicking on the respective button in all 30 countries. | U27: ALL_Alt_EV_YES or _NO change cells AA1 to change the sales limit condition in all 30 countries.
H28: Can not be chosen by inserting the respective number in cell D3. | U28: Can not be chosen by inserting YES or NO in filed AA1.
H29: In case, makros are deactivated, this must be done manually. | U29: In case, makros are deactivated, this must be done manually.
H31: The Makro Protect protects all filed in all folders except in the folder "Control".
H32: The Makro Protect_Off unprotects aall filed in all folders except in the folder "Control".
E40: Except for cells D3 (scenario selection) and AA1 (sales limit selection) in the country folders AU, AT, … , US, and 30 Countries, all other cells are protected to prevent accidental overwriting. In the forecasting files FAU ... FUS and EAU ... EUS all cells are locked. However, to be able to overwrite fields, the sheets can be unlocked without a password. Cells in Folder "Control" are unlocked. | U40: All sheets (except "Control") can be protected or unprotected with these buttons:
E43: "Unprotect Sheet" under "Review" unlocks the cells.
U47: Caution: Cells in unprotected folders may be altered unintentially.
B51: Country Codes used:
B52: ISO 3166-1 alpha-2 codes
B53: AU | C53: Australia | E53: Folders AU, AT, … , US calculate results of the forecast functions to yearly CO₂ emissions in the respective country. In "30 Countries", the totals for all countries are aggregated.
B54: AT | C54: Austria | E54: Folders FAU, FAT, …, FUS calculate the FORECASTS for Total Sales, Total Stock, EV Stock, EV Stock to achieve 100% EVs in 2050, and PHEV percentage.
B55: BE | C55: Belgium | E55: Folders EAU, EAT, …, EUS calculate the EFFICIENCIES for Annual Mileage per Vehicle, CO₂ emissions in gram per km (ICE), CO₂ emissions in grams per kWh of electricity (EVs), EV efficiency in kWh/km (EVs).
B56: BR | C56: Brazil | E56: Folder "Control "enables sensitivity analyses (see annotations in "Control").
B57: CA | C57: Canada
B58: CN | C58: China
B59: DK | C59: Denmark
B60: FI | C60: Finland
B61: FR | C61: France
B62: DE | C62: Germany
B63: HK | C63: Hong Kong
B64: IN | C64: India
B65: IE | C65: Ireland
B66: IT | C66: Italy
B67: JP | C67: Japan
B68: KR | C68: Korea
B69: LU | C69: Luxembourg
B70: NL | C70: Netherlands
B71: NZ | C71: New Zealand
B72: NO | C72: Norway
B73: PT | C73: Portugal
B74: RU | C74: Russia
B75: ZA | C75: South Africa
B76: ES | C76: Spain
B77: SE | C77: Sweden
B78: CH | C78: Switzerland
B79: TW | C79: Taiwan
B80: TH | C80: Thailand
B81: UK | C81: UK
B82: US | C82: USA
E84: Except for cells D3 (scenario selection) and AA1 (sales limit selection) in the country folders, all other cells are locked to prevent accidental overwriting. To be able to do this anyway, the sheet can be unlocked without a password.
E86: Chosing scenario 1-5 and sales limit with YES/NO in Folder "30 Countries" will automatically be applied to all 30 country folders AU … US by a macro.
B128: Note: All information, calculations and conclusions in this file were made to the best of our knowledge and belief. However, with almost 100 folders with 5,000 cells each, errors can occur. The authors are grateful for any advice and suggestions for improvement.
A200: © 2024 theo.lieven@unisg.ch

Sheet Control
A1: Calculations only refer to the years 2024 to 2050. | B1: Total Sales Forecast | C1: Total Stock | D1: Yearly Distance per vehicle | E1: ICE CO₂/km | F1: EV Stock Forecast | G1: Thereof PHEVs | H1: EV kWh/km | I1: Electricity CO₂/kWh | K1: To remove a country completely from the analyses, choose -3000% for Total Sales Forecast, Total Stock, Yearly Distance per Vehicle, and -100% for EV Stock Forecast. Example: To analyse only the Asian Countries, remove the others (Copy-Paste to left side):
A2: Australia | B2: 0 | C2: 0 | D2: 0 | E2: 0 | F2: 0 | G2: 0 | H2: 0 | I2: 0 | K2: Australia | L2: -30 | M2: -30 | N2: -30 | O2: 0 | P2: -1 | Q2: 0 | R2: 0 | S2: 0
A3: Austria | B3: 0 | C3: 0 | D3: 0 | E3: 0 | F3: 0 | G3: 0 | H3: 0 | I3: 0 | K3: Austria | L3: -30 | M3: -30 | N3: -30 | O3: 0 | P3: -1 | Q3: 0 | R3: 0 | S3: 0
A4: Belgium | B4: 0 | C4: 0 | D4: 0 | E4: 0 | F4: 0 | G4: 0 | H4: 0 | I4: 0 | K4: Belgium | L4: -30 | M4: -30 | N4: -30 | O4: 0 | P4: -1 | Q4: 0 | R4: 0 | S4: 0
A5: Brazil | B5: 0 | C5: 0 | D5: 0 | E5: 0 | F5: 0 | G5: 0 | H5: 0 | I5: 0 | K5: Brazil | L5: -30 | M5: -30 | N5: -30 | O5: 0 | P5: -1 | Q5: 0 | R5: 0 | S5: 0
A6: Canada | B6: 0 | C6: 0 | D6: 0 | E6: 0 | F6: 0 | G6: 0 | H6: 0 | I6: 0 | K6: Canada | L6: -30 | M6: -30 | N6: -30 | O6: 0 | P6: -1 | Q6: 0 | R6: 0 | S6: 0
A7: China | B7: 0 | C7: 0 | D7: 0 | E7: 0 | F7: 0 | G7: 0 | H7: 0 | I7: 0 | K7: China | L7: 0 | M7: 0 | N7: 0 | O7: 0 | P7: 0 | Q7: 0 | R7: 0 | S7: 0
A8: Denmark | B8: 0 | C8: 0 | D8: 0 | E8: 0 | F8: 0 | G8: 0 | H8: 0 | I8: 0 | K8: Denmark | L8: -30 | M8: -30 | N8: -30 | O8: 0 | P8: -1 | Q8: 0 | R8: 0 | S8: 0
A9: Finland | B9: 0 | C9: 0 | D9: 0 | E9: 0 | F9: 0 | G9: 0 | H9: 0 | I9: 0 | K9: Finland | L9: -30 | M9: -30 | N9: -30 | O9: 0 | P9: -1 | Q9: 0 | R9: 0 | S9: 0
A10: France | B10: 0 | C10: 0 | D10: 0 | E10: 0 | F10: 0 | G10: 0 | H10: 0 | I10: 0 | K10: France | L10: -30 | M10: -30 | N10: -30 | O10: 0 | P10: -1 | Q10: 0 | R10: 0 | S10: 0
A11: Germany | B11: 0 | C11: 0 | D11: 0 | E11: 0 | F11: 0 | G11: 0 | H11: 0 | I11: 0 | K11: Germany | L11: -30 | M11: -30 | N11: -30 | O11: 0 | P11: -1 | Q11: 0 | R11: 0 | S11: 0
A12: Hong Kong | B12: 0 | C12: 0 | D12: 0 | E12: 0 | F12: 0 | G12: 0 | H12: 0 | I12: 0 | K12: Hong Kong | L12: 0 | M12: 0 | N12: 0 | O12: 0 | P12: 0 | Q12: 0 | R12: 0 | S12: 0
A13: India | B13: 0 | C13: 0 | D13: 0 | E13: 0 | F13: 0 | G13: 0 | H13: 0 | I13: 0 | K13: India | L13: 0 | M13: 0 | N13: 0 | O13: 0 | P13: 0 | Q13: 0 | R13: 0 | S13: 0
A14: Ireland | B14: 0 | C14: 0 | D14: 0 | E14: 0 | F14: 0 | G14: 0 | H14: 0 | I14: 0 | K14: Ireland | L14: -30 | M14: -30 | N14: -30 | O14: 0 | P14: -1 | Q14: 0 | R14: 0 | S14: 0
A15: Italy | B15: 0 | C15: 0 | D15: 0 | E15: 0 | F15: 0 | G15: 0 | H15: 0 | I15: 0 | K15: Italy | L15: -30 | M15: -30 | N15: -30 | O15: 0 | P15: -1 | Q15: 0 | R15: 0 | S15: 0
A16: Japan | B16: 0 | C16: 0 | D16: 0 | E16: 0 | F16: 0 | G16: 0 | H16: 0 | I16: 0 | K16: Japan | L16: 0 | M16: 0 | N16: 0 | O16: 0 | P16: 0 | Q16: 0 | R16: 0 | S16: 0
A17: Korea | B17: 0 | C17: 0 | D17: 0 | E17: 0 | F17: 0 | G17: 0 | H17: 0 | I17: 0 | K17: Korea | L17: 0 | M17: 0 | N17: 0 | O17: 0 | P17: 0 | Q17: 0 | R17: 0 | S17: 0
A18: Luxembourg | B18: 0 | C18: 0 | D18: 0 | E18: 0 | F18: 0 | G18: 0 | H18: 0 | I18: 0 | K18: Luxembourg | L18: -30 | M18: -30 | N18: -30 | O18: 0 | P18: -1 | Q18: 0 | R18: 0 | S18: 0
A19: Netherlands | B19: 0 | C19: 0 | D19: 0 | E19: 0 | F19: 0 | G19: 0 | H19: 0 | I19: 0 | K19: Netherlands | L19: -30 | M19: -30 | N19: -30 | O19: 0 | P19: -1 | Q19: 0 | R19: 0 | S19: 0
A20: New Zealand | B20: 0 | C20: 0 | D20: 0 | E20: 0 | F20: 0 | G20: 0 | H20: 0 | I20: 0 | K20: New Zealand | L20: -30 | M20: -30 | N20: -30 | O20: 0 | P20: -1 | Q20: 0 | R20: 0 | S20: 0
A21: Norway | B21: 0 | C21: 0 | D21: 0 | E21: 0 | F21: 0 | G21: 0 | H21: 0 | I21: 0 | K21: Norway | L21: -30 | M21: -30 | N21: -30 | O21: 0 | P21: -1 | Q21: 0 | R21: 0 | S21: 0
A22: Portugal | B22: 0 | C22: 0 | D22: 0 | E22: 0 | F22: 0 | G22: 0 | H22: 0 | I22: 0 | K22: Portugal | L22: -30 | M22: -30 | N22: -30 | O22: 0 | P22: -1 | Q22: 0 | R22: 0 | S22: 0
A23: Russia | B23: 0 | C23: 0 | D23: 0 | E23: 0 | F23: 0 | G23: 0 | H23: 0 | I23: 0 | K23: Russia | L23: -30 | M23: -30 | N23: -30 | O23: 0 | P23: -1 | Q23: 0 | R23: 0 | S23: 0
A24: South Africa | B24: 0 | C24: 0 | D24: 0 | E24: 0 | F24: 0 | G24: 0 | H24: 0 | I24: 0 | K24: South Africa | L24: -30 | M24: -30 | N24: -30 | O24: 0 | P24: -1 | Q24: 0 | R24: 0 | S24: 0
A25: Spain | B25: 0 | C25: 0 | D25: 0 | E25: 0 | F25: 0 | G25: 0 | H25: 0 | I25: 0 | K25: Spain | L25: -30 | M25: -30 | N25: -30 | O25: 0 | P25: -1 | Q25: 0 | R25: 0 | S25: 0
A26: Sweden | B26: 0 | C26: 0 | D26: 0 | E26: 0 | F26: 0 | G26: 0 | H26: 0 | I26: 0 | K26: Sweden | L26: -30 | M26: -30 | N26: -30 | O26: 0 | P26: -1 | Q26: 0 | R26: 0 | S26: 0
A27: Switzerland | B27: 0 | C27: 0 | D27: 0 | E27: 0 | F27: 0 | G27: 0 | H27: 0 | I27: 0 | K27: Switzerland | L27: -30 | M27: -30 | N27: -30 | O27: 0 | P27: -1 | Q27: 0 | R27: 0 | S27: 0
A28: Taiwan | B28: 0 | C28: 0 | D28: 0 | E28: 0 | F28: 0 | G28: 0 | H28: 0 | I28: 0 | K28: Taiwan | L28: 0 | M28: 0 | N28: 0 | O28: 0 | P28: 0 | Q28: 0 | R28: 0 | S28: 0
A29: Thailand | B29: 0 | C29: 0 | D29: 0 | E29: 0 | F29: 0 | G29: 0 | H29: 0 | I29: 0 | K29: Thailand | L29: 0 | M29: 0 | N29: 0 | O29: 0 | P29: 0 | Q29: 0 | R29: 0 | S29: 0
A30: UK | B30: 0 | C30: 0 | D30: 0 | E30: 0 | F30: 0 | G30: 0 | H30: 0 | I30: 0 | K30: UK | L30: -30 | M30: -30 | N30: -30 | O30: 0 | P30: -1 | Q30: 0 | R30: 0 | S30: 0
A31: USA | B31: 0 | C31: 0 | D31: 0 | E31: 0 | F31: 0 | G31: 0 | H31: 0 | I31: 0 | K31: USA | L31: -30 | M31: -30 | N31: -30 | O31: 0 | P31: -1 | Q31: 0 | R31: 0 | S31: 0
I32: =SUM(B2:I31) -> 0

Sheet AU
B1: Australia | G1: Click → | H1: Scenario 1/2 | L1: Scenario 3 | Q1: Scenario 4 | V1: Scenario 5 | Y1: With Sales Limit → | AA1: NO | AE1: Limits forecasted EV sales to maximum total sales (column D)
A3: Or choose scenario (1-5): | D3: 1 | H3: Actual (2023) data and forecast 2050 | L3: Electricity: Reduce CO₂/kWh to zero in 2050 | Q3: Increase EV Stock to 100% in 2050 | V3: ZERO CARBON in 2050: Both zero CO₂/kWh and100% EVs | Z3: Population (thsd): | AB3: ='P1'!C30 -> 26439.111 | AC3: Vehicles per 1,000 in 2050: | AE3: =G91/AB3*1000 -> 695.4995702
B4: CO2 emission 2050 (Mt): | H4: =AA91 -> 6.554547759 | I4: Accrued CO₂ savings in 2050 since 2010 (Mt): | N4: =SUM(AH46:AH91) -> 145.0358407 | O4: 2050 EV Stock (thsd.) | U4: =R91 -> 16267.5462 | V4: =R91/G91 -> 0.8846639594 | W4: 2050 Average CO₂/km (gm) | Z4: =AB91 -> 33.94765024 | AA4: Equivalent reduction in distance travelled in 2050 (km): | AH4: =AE18 -> -10052.44208
AA5: Summary | AB5: Scenario: | AC5: 1 | AE5: =IF(Scen=1,2,IF(Scen=3,3,IF(Scen=4,4,5))) -> 2 | AG5: 5
AC6: Actual | AE6: =IF(Scen=1,"Forecast 2050",IF(Scen=3,"2050 Zero CO2/kWh",IF(Scen=4,"2050 100% EVs","Zero CO2 + 100% EVs"))) -> Forecast 2050
AA8: Yearly km per vehicle | AC8: =H64 -> 12729.79117 | AE8: =$H91 -> 10500 | AI8: =$H91 -> 10500
AA9: Stock EVs (thsd.) | AC9: =Q64 -> 187.7281466 | AE9: =$R91 -> 16267.5462 | AI9: =$R91 -> 16267.5462
AA10: Stock ICEs (thsd.) | AC10: =J64+K64 -> 15011.78237 | AE10: =$K91 -> 2120.844134 | AH10: =MIN(IF($O$65:$O$141>=$D$65:$D$141,ROW($P$65:$P$141))) -> 77 | AI10: =$K91 -> 2120.844134
AA11: ICE CO₂/km (gm) | AC11: =I64 -> 161.9204525 | AE11: =$I91 -> 85.35157876 | AH11: Year in which the EV share of total car sales reaches 100%. | AI11: =$I91 -> 85.35157876
AA12: EV kWh/km | AC12: =V64 -> 0.1914119191 | AE12: =$V91 -> 0.145921482 | AI12: =$V91 -> 0.145921482
AA13: EV CO₂/kWh (gm) | AC13: =X64 -> 548.69226 | AE13: =$X91 -> 186.6993259 | AI13: =$X91 -> 186.6993259
AA14: EV CO₂/km (gm) | AC14: =Y64 -> 105.0262385 | AE14: =$Y91 -> 27.24344232 | AI14: =$Y91 -> 27.24344232
AA15: Average CO₂/km (gm) | AC15: =AB64 -> 161.2991093 | AE15: =$AB91 -> 33.94765024 | AI15: =$AB91 -> 33.94765024
AA16: Total CO₂/year (Mt) | AC16: =AA64 -> 31.20921539 | AE16: =$AA$91 -> 6.554547759 | AI16: =$AA91 -> 6.554547759
AA17: CO₂ Reduction (Mt) | AC17: =SUM(AH46:AH64) -> 0.2390465092 | AE17: =SUM($AH46:$AH91) -> 145.0358407 | AI17: =SUM($AH46:$AH91) -> 145.0358407
AA18: ¹⁴ Equivalent km reduction | AE18: =AE16/((($J64+$R64*$T64*(2/3))*$I64+((Q64+$R64)*(1-$T64*(2/3))*$Y64))/1000000000)-AC8 -> -10052.44208 | AG18: -12555.25295 | AI18: =AI16/((($K91+$R91*$T91*(2/3))*$I91+($R91*(1-$T91*(2/3))*$Y91))/1000000000)-$AC8 -> -2229.79117
AA19: First zero carbon year (<= 3g/km) | AE19: =MIN(IF(AB$65:AB$141<=3,ROW(AB$65:AB$141))) -> 131 | AF19: =IF(AE19>0,INDIRECT("B"&AE19),">2100") -> 2090 | AH19: =IF(AH10>0,INDIRECT("B"&AH10),">2100") -> 2036 | AI19: =IF(AE19>0,INDIRECT("B"&AE19),">2100") -> 2090
AB21: =CONCATENATE("Total CO₂"&CHAR(10),"in 2023") -> Total CO₂ in 2023 | AC21: =AD21-AD20 -> 31.20921539 | AD21: =AA64 -> 31.20921539
AB22: =CONCATENATE("From ",TEXT($F$64/1000,"##0.0"),"m to"&CHAR(10),TEXT($G$91/1000,"##0.0"),"m total Stock") -> From 15.2m to 18.4m total Stock | AC22: 6.547739622 | AD22: =G91/F64*AD21 -> 37.75695501
AB23: =CONCATENATE("From ",TEXT($H$64,"###,0")," to"&CHAR(10),TEXT($H$91,"###,0")," yearly km") -> From 12,730 to 10,500 yearly km | AC23: -6.592825112 | AD23: =$H$91*(((($G$91-$Q$64)+$Q$64*$T$64*2/3)*$I$64)+((($Q$64*(1-$T$64*2/3)))*$V$64*$X$64))/1000000000 -> 31.1641299
AB24: =CONCATENATE("From ",TEXT($I$64,"###")," to ",TEXT($I$91,"###")&CHAR(10)," gm ","CO₂/km ICE") -> From 162 to 85 gm CO₂/km ICE | AC24: -14.65031762 | AD24: =$H$91*(((($G$91-$Q$64)+$Q$64*$T$64*2/3)*$I$91)+((($Q$64*(1-$T$64*2/3)))*$V$64*$X$64))/1000000000 -> 16.51381228
AB25: =CONCATENATE("From ",TEXT($Q$64/1000,"##0.0"),"m to"&CHAR(10),TEXT($R$91/1000,"##0.0"),"m EV Stock") -> From 0.2m to 16.3m EV Stock | AC25: =AD25-AD24 -> 2.937252907 | AD25: =$H$91*(((($G$91-$R$91)+$R$91*$T$64*2/3)*$I$91)+((($R$91*(1-$T$64*2/3)))*$V$64*$X$64))/1000000000 -> 19.45106519
AB26: =CONCATENATE("From ",TEXT($V$64,".####")," to"&CHAR(10),TEXT($V$91,".####")," kWh/km EV") -> From .1914 to .1459 kWh/km EV | AC26: -3.769849172 | AD26: =$H$91*(((($G$91-$R$91)+$R$91*$T$64*2/3)*$I$91)+((($R$91*(1-$T$64*2/3)))*$V$91*$X$64))/1000000000 -> 15.68121602
AB27: =IF($X$91=0,CONCATENATE("From ",TEXT($X$64,"###")," to zero"&CHAR(10),"gr CO₂/kWh EV"),CONCATENATE("From ",TEXT($X$64,"###")," to ",TEXT($X$91,"###")&CHAR(10)," gr CO₂/kWh EV")) -> From 549 to 187 gr CO₂/kWh EV | AC27: -7.978005949 | AD27: =$H$91*(((($G$91-$R$91)+$R$91*$T$64*2/3)*$I$91)+((($R$91*(1-$T$64*2/3)))*$V$91*$X$91))/1000000000 -> 7.703210068
AB28: =IF($T$91<0.01,CONCATENATE("From ",TEXT($T$64,"###.##%")&CHAR(10),"to "," zero % PHEV"),CONCATENATE("From ",TEXT($T$64,"###.##%")&CHAR(10),"to ",TEXT($T$91,"###.##%")," PHEV")) -> From 17.37% to zero % PHEV | AC28: -1.148662309 | AD28: =$H$91*(((($G$91-$R$91)+$R$91*$T$91*2/3)*$I$91)+((($R$91*(1-$T$91*2/3)))*$V$91*$X$91))/1000000000 -> 6.554547759
AB29: =CONCATENATE("Total CO₂"&CHAR(10),"in 2050") -> Total CO₂ in 2050 | AC29: =SUM(AC21:AC28) -> 6.554547759
A33: -0.458
A37: -0.1195
B38: Change by % in 2050¹² | D38: =Control!$B$2 -> 0 | G38: =Control!C$2 -> 0 | H38: =Control!D$2 -> 0 | I38: =Control!E$2 -> 0 | K38: Except for fields D3 (scenario selection) and AA1 (sales limit selection), all other fields are locked to prevent accidental overwriting. To be able to do this anyway, the sheet can be unlocked without a password. | R38: =Control!$F$2 -> 0 | T38: =Control!$G$2 -> 0 | V38: =Control!$H$2 -> 0 | X38: =Control!$I$2 -> 0
R39: Blue Background = Actual Data
B40: =B1 -> Australia | C40: Total Actual Sales (thsd)¹ | D40: Total Sales Fore-cast (tshd) | F40: Total Stock Actual (thsd)¹ | G40: Total Stock Forecast (thsd)² | H40: Yearly Distance per vehicle (km)³ | I40: ICE CO₂/km (gm)⁴ | J40: ICE Stock Actual = Total - EV (thsd) | K40: ICE Stock Forecast = Total - EV | L40: ICE Yearly Distance (million kM) | M40: ICE Yearly Mt CO₂ | N40: EV Sales Actual (thsd)⁵ | O40: EV Sales Forecast (thsd)⁶ | P40: EV % from Total Sales | Q40: EV Stock Actual (thsd)⁷ | R40: EV Stock Forecast (thsd)⁸ | S40: EV % from Total Stock | T40: Thereof PHEVs in %⁹ | U40: EV Yearly Distance (million km) | V40: EV kWh/km¹⁰ | W40: EV Total kWh (million) | X40: Elec-tricity CO₂/kWh (gm)¹¹ | Y40: EV CO₂/km (gm) | Z40: EV Yearly Mt CO₂ | AA40: Total Mt CO₂ (ICE + EV) | AB40: Average CO₂/km (gm) | AC40: Absolute CO₂ Reduction compared to 2005 | AD40: RelAUive CO₂ Re-duction (%) | AE40: CO₂ of ICE only | AF40: CO₂ of combined ICE + EV | AH40: CO₂ savings compared against pure ICE operation
A41: 0 | B41: 2000 | X41: =EAU!$J37 -> 805.977
A42: 1 | B42: 2001 | X42: =EAU!$J38 -> 803.1303
A43: 2 | B43: 2002 | X43: =EAU!$J39 -> 794.66644
A44: 3 | B44: 2003 | X44: =EAU!$J40 -> 792.1665
A45: 4 | B45: 2004 | X45: =EAU!$J41 -> 792.8281
A46: 5 | B46: 2005 | C46: =FAU!$B46 -> 789.096 | F46: =FAU!$H46 -> 11011 | H46: =EAU!$B42 -> 15252.27231 | I46: =EAU!$F$42 -> 244 | J46: =IF(AND(F46<>"",Q46<>""),F46-Q46,F46) -> 11011 | L46: =IF(J46<>"",(J46+Q46*T46*2/3)*H46/1000,0) -> 167942.7704 | M46: =I46*L46/1000000 -> 40.97803598 | X46: =EAU!$J42 -> 791.80023 | AA46: =M46+Z46 -> 40.97803598 | AB46: =IF(L46<>"",(M46+Z46)/(L46+U46)*1000000,0) -> 244 | AE46: =F46*H46*I46/1000000000 -> 40.97803598 | AF46: =Z46+M46 -> 40.97803598 | AG46: =AF46 -> 40.97803598
A47: 6 | B47: 2006 | C47: =FAU!$B47 -> 769.241 | F47: =FAU!$H47 -> 11273 | H47: =EAU!$B43 -> 14662.31855 | I47: =$M$150*$O$150*$R$150*EXP((-$O$150*(-$R$150*($B47-2000))-$R$150*($B47-2000))) -> 242.3343774 | J47: =IF(AND(F47<>"",Q47<>""),F47-Q47,F47) -> 11273 | L47: =IF(J47<>"",(J47+Q47*T47*2/3)*H47/1000,0) -> 165288.3171 | M47: 40.0550414 | X47: =EAU!$J43 -> 790.4954 | AA47: =M47+Z47 -> 40.0550414 | AB47: 242.3343774 | AC47: =Z47+M47-M$46 -> -0.9229945789 | AD47: =(AC47/M$46*100) -> -2.252412925 | AE47: 40.0550414 | AF47: =Z47+M47 -> 40.0550414 | AG47: 40.0550414
A48: 7 | B48: 2007 | C48: =FAU!$B48 -> 835.195 | F48: =FAU!$H48 -> 11519 | H48: =EAU!$B44 -> 14530.25154 | I48: =$M$150*$O$150*$R$150*EXP((-$O$150*(-$R$150*($B48-2000))-$R$150*($B48-2000))) -> 236.6550019 | J48: =IF(AND(F48<>"",Q48<>""),F48-Q48,F48) -> 11519 | L48: 167373.9675 | M48: 39.60988659 | X48: =EAU!$J44 -> 791.1509 | AA48: 39.60988659 | AB48: 236.6550019 | AC48: =Z48+M48-M$46 -> -1.368149393 | AD48: =(AC48/M$46*100) -> -3.338738327 | AE48: 39.60988659 | AF48: 39.60988659 | AG48: 39.60988659
A49: 8 | B49: 2008 | C49: =FAU!$B49 -> 791.225 | F49: =FAU!$H49 -> 11804 | H49: =EAU!$B45 -> 14270.86639 | I49: =EAU!$F$45 -> 231 | J49: =IF(AND(F49<>"",Q49<>""),F49-Q49,F49) -> 11804 | L49: 168453.3069 | M49: 38.9127139 | X49: =EAU!$J45 -> 791.507 | AA49: 38.9127139 | AB49: 231 | AC49: -2.065322084 | AD49: -5.040070941 | AE49: 38.9127139 | AF49: 38.9127139 | AG49: 38.9127139
A50: 9 | B50: 2009 | C50: =FAU!$B50 -> 728.715 | F50: =FAU!$H50 -> 12023 | H50: =EAU!$B46 -> 13970.55726 | I50: =$M$150*$O$150*$R$150*EXP((-$O$150*(-$R$150*($B50-2000))-$R$150*($B50-2000))) -> 225.692439 | J50: =IF(AND(F50<>"",Q50<>""),F50-Q50,F50) -> 12023 | L50: 167968.0099 | M50: 37.90910983 | X50: =EAU!$J46 -> 785.1141 | AA50: 37.90910983 | AB50: 225.692439 | AC50: -3.068926158 | AD50: -7.489197772 | AE50: 37.90910983 | AF50: 37.90910983 | AG50: 37.90910983
A51: 10 | B51: 2010 | C51: =FAU!$B51 -> 827.407 | F51: =FAU!$H51 -> 12269.305 | H51: =EAU!$B47 -> 13779.26883 | I51: =EAU!$F47 -> 225 | J51: =IF(AND(F51<>"",Q51<>""),F51-Q51,"") -> 12269.193 | L51: 169060.5086 | M51: 38.03861444 | N51: =FAU!$L51*(1+Control!$F$3) -> 0.112 | P51: =N51/C51 -> 0.000135362645 | Q51: =N51+N50*(1-F$165)+N49*(1-F$166)+N48*(1-F$167)+N47*(1-F$168)+N46*(1-F$169)+N45*(1-F$170)+N44*(1-F$171)+N43*(1-F$172)+N42*(1-F$173)+N41*(1-F$174) -> 0.112 | S51: =Q51/F51 -> 9.128471417e-06 | T51: =FAU!$W51 -> 0 | U51: =Q51*(1-2/3*T51)*H51/1000 -> 1.543278108 | V51: =$O$154 -> 0.1914119191 | W51: =V51*U51 -> 0.2954018245 | X51: =EAU!$J47 -> 775.6704 | Y51: =V51*X51 -> 148.4725599 | Z51: =W51*X51/1000000 -> 0.0002291344514 | AA51: 38.03884357 | AB51: 224.9993014 | AC51: -2.939192408 | AD51: -7.172604391 | AE51: 38.03896168 | AF51: 38.03884357 | AG51: 38.03884357 | AH51: =AE51-AF51 -> 0.000118103123
A52: 11 | B52: 2011 | C52: =FAU!$B52 -> 803.45 | F52: =FAU!$H52 -> 12474 | H52: =EAU!$B48 -> 13698.35489 | I52: =EAU!$F48 -> 220 | J52: 12473.83 | L52: 170870.9776 | M52: =I52*L52/1000000 -> 37.59161507 | N52: =FAU!$L52*(1+Control!$F$3) -> 0.058 | P52: =N52/C52 -> 7.218868629e-05 | Q52: =N52+N51*(1-F$165)+N50*(1-F$166)+N49*(1-F$167)+N48*(1-F$168)+N47*(1-F$169)+N46*(1-F$170)+N45*(1-F$171)+N44*(1-F$172)+N43*(1-F$173)+N42*(1-F$174)+N41*(1-F$175) -> 0.1699999981 | S52: =Q52/F52 -> 1.362834681e-05 | T52: =FAU!$W52 -> 0.01764705882 | U52: =Q52*(1-2/3*T52)*H52/1000 -> 2.301323596 | V52: 0.1914119191 | W52: =V52*U52 -> 0.440500766 | X52: =EAU!$J48 -> 749.4147 | Y52: =V52*X52 -> 143.4469059 | Z52: =W52*X52/1000000 -> 0.0003301177494 | AA52: 37.59194519 | AB52: 219.998969 | AC52: -3.386090794 | AD52: -8.263184686 | AE52: 37.59212136 | AF52: 37.59194519 | AG52: 37.59194519 | AH52: =AE52-AF52 -> 0.0001761734417
A53: 12 | B53: 2012 | C53: =FAU!$B53 -> 882.68 | F53: =FAU!$H53 -> 12714.235 | H53: =EAU!$B49 -> 13571.96248 | I53: =EAU!$F49 -> 214 | J53: 12713.807 | L53: 172552.0626 | M53: 36.9261414 | N53: =FAU!$L53*(1+Control!$F$3) -> 0.258 | P53: 0.0002922916572 | Q53: =N53+N52*(1-F$165)+N51*(1-F$166)+N50*(1-F$167)+N49*(1-F$168)+N48*(1-F$169)+N47*(1-F$170)+N46*(1-F$171)+N45*(1-F$172)+N44*(1-F$173)+N43*(1-F$174)+N42*(1-F$175)+N41*(1-F$176) -> 0.4279998251 | S53: 3.366304187e-05 | T53: =FAU!$W53 -> 0.1939252336 | U53: 5.057815952 | V53: 0.1914119191 | W53: 0.9681262581 | X53: =EAU!$J49 -> 746.988 | Y53: 142.9824066 | Z53: 0.0007231786973 | AA53: 36.92686458 | AB53: 213.9979184 | AC53: -4.051171404 | AD53: -9.886201978 | AE53: 36.92722377 | AF53: 36.92686458 | AG53: 36.92686458 | AH53: =AE53-AF53 -> 0.0003591939166
A54: 13 | B54: 2013 | C54: =FAU!$B54 -> 899.965 | F54: =FAU!$H54 -> 13000.021 | H54: =EAU!$B50 -> 13540.09977 | I54: =$M$150*$O$150*$R$150*EXP((-$O$150*(-$R$150*($B54-2000))-$R$150*($B54-2000))) -> 205.2672449 | J54: 12999.289 | L54: 176013.3309 | M54: 36.12977151 | N54: =FAU!$L54*(1+Control!$F$3) -> 0.304 | P54: 0.0003377909141 | Q54: =N54+N53*(1-F$165)+N52*(1-F$166)+N51*(1-F$167)+N50*(1-F$168)+N49*(1-F$169)+N48*(1-F$170)+N47*(1-F$171)+N46*(1-F$172)+N45*(1-F$173)+N44*(1-F$174)+N43*(1-F$175)+N42*(1-F$176)+N41*(1-F$177) -> 0.7319976285 | S54: 5.630741893e-05 | T54: =FAU!$W54 -> 0.2513661202 | U54: 8.250407396 | V54: 0.1914119191 | W54: 1.579226313 | X54: =EAU!$J50 -> 726.1581 | Y54: 138.9953155 | Z54: 0.001146767979 | AA54: 36.13091828 | AB54: 205.2641387 | AC54: -4.847117706 | AD54: -11.82857497 | AE54: 36.13146505 | AF54: 36.13091828 | AG54: 36.13091828 | AH54: 0.0005467704167
A55: 14 | B55: 2014 | C55: =FAU!$B55 -> 883.949 | F55: =FAU!$H55 -> 13297.26 | H55: =EAU!$B51 -> 13443.84779 | I55: =EAU!$F51 -> 195 | J55: 13295.30002 | L55: 178750.18 | M55: 34.8562851 | N55: =FAU!$L55*(1+Control!$F$3) -> 1.228 | P55: 0.001389220419 | Q55: 1.959984955 | S55: 0.000147397656 | T55: =FAU!$W55 -> 0.5801020408 | U55: 16.159381 | V55: 0.1914119191 | W55: 3.093098129 | X55: =EAU!$J51 -> 734.18134 | Y55: 140.5310593 | Z55: 0.002270894929 | AA55: 34.858556 | AB55: 194.9950763 | AC55: -6.119479983 | AD55: -14.93356096 | AE55: 34.85943618 | AF55: 34.858556 | AG55: 34.858556 | AH55: 0.0008801843659
A56: 15 | B56: 2015 | C56: =FAU!$B56 -> 924.154 | F56: =FAU!$H56 -> 13549.449 | H56: =EAU!$B52 -> 13348.64489 | I56: =EAU!$F52 -> 193 | J56: 13545.74906 | L56: 180835.0495 | M56: 34.90116456 | N56: =FAU!$L56*(1+Control!$F$3) -> 1.74 | P56: 0.001882803083 | Q56: 3.699935354 | S56: 0.0002730690638 | T56: =FAU!$W56 -> 0.5362162162 | U56: 31.733624 | V56: 0.1914119191 | W56: 6.07419387 | X56: =EAU!$J52 -> 729.71375 | Y56: 139.6759093 | Z56: 0.004432422787 | AA56: 34.90559698 | AB56: 192.9906441 | AC56: -6.072438999 | AD56: -14.81876535 | AE56: 34.90728915 | AF56: 34.90559698 | AG56: 34.90559698 | AH56: 0.001692166644
A57: 16 | B57: 2016 | C57: =FAU!$B57 -> 927.274 | F57: =FAU!$H57 -> 13768.2726 | H57: =EAU!$B53 -> 13227.36786 | I57: =EAU!$F53 -> 189 | J57: 13763.13982 | L57: 182075.0943 | M57: 34.41219283 | N57: =FAU!$L57*(1+Control!$F$3) -> 1.433 | P57: 0.001545390036 | Q57: 5.132780049 | S57: 0.0003727976775 | T57: =FAU!$W57 -> 0.5519189558 | U57: 42.91215157 | V57: 0.1914119191 | W57: 8.213897286 | X57: =EAU!$J53 -> 713.51117 | Y57: 136.5745424 | Z57: 0.005860707463 | AA57: 34.41805353 | AB57: 188.9876471 | AC57: -6.55998245 | AD57: -16.00853309 | AE57: 34.42030322 | AF57: 34.41805353 | AG57: 34.41805353 | AH57: 0.002249689184
A58: 17 | B58: 2017 | C58: =FAU!$B58 -> 915.658 | F58: =FAU!$H58 -> 13990.6302 | H58: =EAU!$B54 -> 13110.42398 | I58: =EAU!$F54 -> 188 | J58: 13983.07585 | L58: 183357.5602 | M58: 34.47122133 | N58: =FAU!$L58*(1+Control!$F$3) -> 2.422 | P58: 0.002645092382 | Q58: 7.554355168 | S58: 0.0005399581762 | T58: =FAU!$W58 -> 0.5074784911 | U58: 65.53341559 | V58: 0.1914119191 | W58: 12.54387685 | X58: =EAU!$J54 -> 718.0755 | Y58: 137.4482095 | Z58: 0.009007450638 | AA58: 34.48022878 | AB58: 187.9819389 | AC58: -6.497807206 | AD58: -15.85680487 | AE58: 34.48354161 | AF58: 34.48022878 | AG58: 34.48022878 | AH58: 0.003312831494
A59: 18 | B59: 2018 | C59: =FAU!$B59 -> 873.713 | F59: =FAU!$H59 -> 14216.57888 | H59: =EAU!$B55 -> 13001.74281 | I59: =$M$150*$O$150*$R$150*EXP((-$O$150*EXP(-$R$150*($B59-2000))-$R$150*($B59-2000))) -> 182.3053442 | J59: 14205.01959 | L59: 184742.3313 | M59: 33.67951429 | N59: =FAU!$L59*(1+Control!$F$3) -> 4.006 | P59: 0.004585029638 | Q59: 11.55929371 | S59: 0.0008130854693 | T59: =FAU!$W59 -> 0.5221866621 | U59: 97.97100606 | V59: 0.1914119191 | W59: 18.75281829 | X59: =EAU!$J55 -> 688.421 | Y59: 131.7719848 | Z59: 0.01290983392 | AA59: 33.69242412 | AB59: 182.27856 | AC59: -7.285611858 | AD59: -17.77930953 | AE59: 33.69737493 | AF59: 33.69242412 | AG59: 33.69242412 | AH59: 0.004950804063
A60: 19 | B60: 2019 | C60: =FAU!$B60 -> 799.263 | F60: =FAU!$H60 -> 14446.17663 | H60: =EAU!$B56 -> 12749.25927 | I60: 178.0327405 | J60: 14425.45379 | L60: 183989.5999 | M60: 32.75617269 | N60: =FAU!$L60*(1+Control!$F$3) -> 9.166 | P60: 0.01146806495 | Q60: 20.72284005 | S60: 0.001434486133 | T60: =FAU!$W60 -> 0.4300670623 | U60: 188.4514687 | V60: 0.1914119191 | W60: 36.07185728 | X60: =EAU!$J56 -> 670.1015 | Y60: 128.2654141 | Z60: 0.02417180567 | AA60: 32.78034449 | AB60: 177.9818184 | AC60: -8.197691492 | AD60: -20.00508637 | AE60: 32.78972322 | AF60: 32.78034449 | AG60: 32.78034449 | AH60: 0.009378725745
A61: 20 | B61: 2020 | C61: =FAU!$B61 -> 676.804 | F61: =FAU!$H61 -> 14679.48238 | H61: =IF(AC$147*AE$147*AH$147*EXP(-AE$147*EXP(-AH$147*(B61-2000))-AH$147*(B61-2000))*(1+H$38/27*($B61-$B$64))>=0,AC$147*AE$147*AH$147*EXP(-AE$147*EXP(-AH$147*(B61-2000))-AH$147*(B61-2000))*(1+H$38/27*($B61-$B$64)),0) -> 13005.10025 | I61: 173.8602686 | J61: 14652.21081 | L61: 190642.1173 | M61: 33.14508972 | N61: =FAU!$L61*(1+Control!$F$3) -> 6.554 | P61: 0.009683748914 | Q61: 27.27157156 | S61: 0.001857801988 | T61: =FAU!$W61 -> 0.3749129431 | U61: 266.0227258 | V61: 0.1914119191 | W61: 50.91992047 | X61: =EAU!$J57 -> 642.33466 | Y61: 122.95051 | Z61: 0.03270762981 | AA61: 33.17779735 | AB61: 173.7893279 | AC61: -7.800238638 | AD61: -19.03516958 | AE61: 33.1913405 | AF61: 33.17779735 | AG61: 33.17779735 | AH61: 0.01354315276
A62: 21 | B62: 2021 | C62: =FAU!$B62 -> 753.256 | F62: =FAU!$H62 -> 14843.492 | H62: 12912.67528 | I62: 169.7855821 | J62: 14794.73 | L62: 191164.2468 | M62: 32.45693291 | N62: =FAU!$L62*(1+Control!$F$3) -> 21.501 | P62: 0.02854408063 | Q62: 48.76200192 | S62: 0.003285076175 | T62: =FAU!$W62 -> 0.2970767906 | U62: 504.945379 | V62: 0.1914119191 | W62: 96.65256405 | X62: =EAU!$J58 -> 605.90765 | Y62: 115.9779461 | Z62: 0.05856252795 | AA62: 32.51549544 | AB62: 169.6438279 | AC62: -8.462540546 | AD62: -20.65140591 | AE62: 32.54266535 | AF62: 32.51549544 | AG62: 32.51549544 | AH62: 0.02716991714
A63: 22 | B63: 2022 | C63: =FAU!$B63 -> 777.688 | F63: =FAU!$H63 -> 15076 | H63: 12820.90714 | I63: 165.8063893 | J63: 14986.52198 | L63: 192326.6097 | M63: 31.88898072 | N63: =FAU!$L63*(1+Control!$F$3) -> 40.736 | P63: 0.0523809034 | Q63: 89.47802039 | S63: 0.005935130033 | T63: =FAU!$W63 -> 0.2429455528 | U63: 961.3863499 | V63: 0.1914119191 | W63: 184.0208062 | X63: =EAU!$J59 -> 570.35284 | Y63: =V63*X63 -> 109.1723317 | Z63: 0.1049567895 | AA63: 31.99393751 | AB63: 165.5246998 | AC63: -8.984098474 | AD63: -21.92418025 | AE63: 32.04838472 | AF63: 31.99393751 | AG63: 31.99393751 | AH63: 0.05444720995
A64: 23 | B64: 2023 | C64: =FAU!$B64 -> 890.823 | F64: =a*EXP(-b*EXP(-ze*(B64-2000))) -> 15199.51052 | H64: 12729.79117 | I64: 161.9204525 | J64: =IF(AND(F64<>"",Q64<>"",F64-Q64>0),F64-Q64,) -> 15011.78237 | L64: =IF(J64<>"",(J64+Q64*T64*2/3)*H64/1000,0) -> 191373.5225 | M64: =IF(L64<>"",I64*L64/1000000,0) -> 30.98728735 | N64: =FAU!$L64*(1+Control!$F$3) -> 98.286 | P64: =N64/C64 -> 0.1103316821 | Q64: =N64+N63*(1-F$165)+N62*(1-F$166)+N61*(1-F$167)+N60*(1-F$168)+N59*(1-F$169)+N58*(1-F$170)+N57*(1-F$171)+N56*(1-F$172)+N55*(1-F$173)+N54*(1-F$174)+N53*(1-F$175)+N52*(1-F$176)+N51*(1-F$177) -> 187.7281466 | S64: =Q64/F64 -> 0.0123509337 | T64: =FAU!$W64 -> 0.173659773 | U64: 2113.072287 | V64: 0.1914119191 | W64: =V64*U64 -> 404.4672217 | X64: =EAU!$J60 -> 548.69226 | Y64: 105.0262385 | Z64: 0.221928034 | AA64: 31.20921539 | AB64: =IF(L64<>0,(M64+Z64)/(L64+U64)*1000000,(M64+Z64)/(0.00000000001+U64)*1000000) -> 161.2991093 | AC64: -9.768820595 | AD64: -23.83916252 | AE64: =F64*H64*I64/1000000000 -> 31.32943697 | AF64: 31.20921539 | AG64: 31.20921539 | AH64: =AE64-AF64 -> 0.1202215869
A65: 24 | B65: 2024 | D65: =IF(FAU!$C65*(1+D$38/27*($B65-$B$64))>=0,FAU!$C65*(1+D$38/27*($B65-$B$64)),0) -> 893.7884463 | E65: =IF(D65<O65,1,0) -> 0 | G65: =IF(a*EXP(-b*EXP(-ze*(B65-2000)))*(1+G$38/27*($B65-$B$64))>=0,a*EXP(-b*EXP(-ze*(B65-2000)))*(1+G$38/27*($B65-$B$64)),0) -> 15379.53683 | H65: 12639.32274 | I65: =IF($M$150*$O$150*$R$150*EXP((-$O$150*EXP(-$R$150*($B65-2000))-$R$150*($B65-2000)))*(1+I$38/27*($B65-$B$64))>=0,$M$150*$O$150*$R$150*EXP((-$O$150*EXP(-$R$150*($B65-2000))-$R$150*($B65-2000)))*(1+I$38/27*($B65-$B$64)),0) -> 158.1255862 | K65: =IF(AND(G65<>"",R65<>"",G65-R65>0,J64>0.9),G65-R65,0) -> 15070.20822 | L65: =IF(K65<>"",(K65+R65*T65*2/3)*H65/1000,0) -> 190833.3242 | M65: =IF(L65>=0,I65*L65/1000000,0) -> 30.17563126 | O65: =FAU!$L$65*(1+Control!$F$3) -> 121.7379242 | P65: =O65/D65 -> 0.1362044057 | R65: =IF(AND(O65>D65,$AA$1="YES"),Q64+D65-(+(N64+O64)*F$165+(N63+O63)*F$166+(N62+O62)*F$167+(N61+O61)*F$168+(N60+O60)*F$169+(N59+O59)*F$170+(N58+O58)*F$171+(N57+O57)*F$172+(N56+O56)*F$173+(N55+O55)*F$174+(N54+O54)*F$175+(N53+O53)*F$176+(N52+O52)*F$177+(N51+O51)*F$178+(N50+O50)*F$179+(N49+O49)*F$180+(N48+O48)*F$181+(N47+O47)*F$182+(N46+O46)*F$183+(N45+O45)*F$184+(N44+O44)*F$185+(N43+O43)*F$186+(N42+O42)*F$187+(N41+O41)*F$188),Q64+O65-(+(N64+O64)*F$165+(N63+O63)*F$166+(N62+O62)*F$167+(N61+O61)*F$168+(N60+O60)*F$169+(N59+O59)*F$170+(N58+O58)*F$171+(N57+O57)*F$172+(N56+O56)*F$173+(N55+O55)*F$174+(N54+O54)*F$175+(N53+O53)*F$176+(N52+O52)*F$177+(N51+O51)*F$178+(N50+O50)*F$179+(N49+O49)*F$180+(N48+O48)*F$181+(N47+O47)*F$182+(N46+O46)*F$183+(N45+O45)*F$184+(N44+O44)*F$185+(N43+O43)*F$186+(N42+O42)*F$187+(N41+O41)*F$188)) -> 309.3286137 | S65: =R65/G65 -> 0.02011299932 | T65: =IF(Scen=5,IF($F$154*$I$154*$K$154*EXP((-$I$154*EXP(-$K$154*($B65-2000))-$K$154*($B65-2000)))*(1-2.8519/77*($B65-$B$64))>=0,$F$154*$I$154*$K$154*EXP((-$I$154*EXP(-$K$154*($B65-2000))-$K$154*($B65-2000)))*(1-2.8519/77*($B65-$B$64)),0),IF(Scen<>5,IF($F$154*$I$154*$K$154*EXP((-$I$154*EXP(-$K$154*($B65-2000))-$K$154*($B65-2000)))*(1+T$38/27*($B65-$B$64))>=0,$F$154*$I$154*$K$154*EXP((-$I$154*EXP(-$K$154*($B65-2000))-$K$154*($B65-2000)))*(1+T$38/27*($B65-$B$64)),0))) -> 0.1366211669 | U65: =R65*(1-2/3*T65)*H65/1000 -> 3553.605282 | V65: =IF(V$64*0.99^(B65-B$64)*(1+V$38/27*($B65-$B$64))>=0,V$64*0.99^(B65-B$64)*(1+V$38/27*($B65-$B$64)),0) -> 0.1894977999 | W65: =V65*U65 -> 673.4003828 | X65: =IF(OR(Scen=3,Scen=5),IF($V$154*$X$154*$Z$154*EXP((-$X$154*EXP(-$Z$154*($B65-2000))-$Z$154*($B65-2000)))*(1-2.8519/77*($B65-$B$64))>=0,$V$154*$X$154*$Z$154*EXP((-$X$154*EXP(-$Z$154*($B65-2000))-$Z$154*($B65-2000)))*(1-2.8519/77*($B65-$B$64)),0),IF(AND(Scen<>3,Scen<>5),IF($V$154*$X$154*$Z$154*EXP((-$X$154*EXP(-$Z$154*($B65-2000))-$Z$154*($B65-2000)))*(1+X$38/27*($B65-$B$64))>=0,$V$154*$X$154*$Z$154*EXP((-$X$154*EXP(-$Z$154*($B65-2000))-$Z$154*($B65-2000)))*(1+X$38/27*($B65-$B$64)),0))) -> 551.1557781 | Y65: 104.4428074 | Z65: 0.3711485119 | AA65: 30.54677978 | AB65: 157.1442064 | AC65: -10.43125621 | AD65: -25.45572514 | AE65: =G65*H65*I65/1000000000 -> 30.73754718 | AF65: 30.54677978 | AG65: 30.54677978 | AH65: 0.1907674065
A66: 25 | B66: 2025 | D66: =IF(FAU!$C66*(1+D$38/27*($B66-$B$64))>=0,FAU!$C66*(1+D$38/27*($B66-$B$64)),0) -> 895.6129091 | E66: =IF(D66<O66,1,0) -> 0 | G66: 15553.83676 | H66: 12549.49723 | I66: 154.4196563 | K66: =IF(AND(G66<>"",R66<>"",G66-R66>0,K65>0.9),G66-R66,0) -> 15058.91292 | L66: 189412.3145 | M66: 29.24898449 | O66: =FAU!$U66-FAU!$U65+(N65+O65)*F$165+(N64+O64)*F$166+(N63+O63)*F$167+(N62+O62)*F$168+(N61+O61)*F$169+(N60+O60)*F$170+(N59+O59)*F$171+(N58+O58)*F$172+(N57+O57)*F$173+(N56+O56)*F$174+(N55+O55)*F$175+(N54+O54)*F$176+(N53+O53)*F$177+(N52+O52)*F$178+(N51+O51)*F$179+(N50+O50)*F$180+(N49+O49)*F$181+(N48+O48)*F$182+(N47+O47)*F$183+(N46+O46)*F$184+(N45+O45)*F$185+(N44+O44)*F$186+(N43+O43)*F$187+(N42+O42)*F$188 -> 185.8348229 | P66: =O66/D66 -> 0.2074945783 | R66: =IF(AND(O66>D66,$AA$1="YES"),R65+D66-(+(N65+O65)*F$165+(N64+O64)*F$166+(N63+O63)*F$167+(N62+O62)*F$168+(N61+O61)*F$169+(N60+O60)*F$170+(N59+O59)*F$171+(N58+O58)*F$172+(N57+O57)*F$173+(N56+O56)*F$174+(N55+O55)*F$175+(N54+O54)*F$176+(N53+O53)*F$177+(N52+O52)*F$178+(N51+O51)*F$179+(N50+O50)*F$180+(N49+O49)*F$181+(N48+O48)*F$182+(N47+O47)*F$183+(N46+O46)*F$184+(N45+O45)*F$185+(N44+O44)*F$186+(N43+O43)*F$187+(N42+O42)*F$188+(N41+O41)*F$189),R65+O66-(+(N65+O65)*F$165+(N64+O64)*F$166+(N63+O63)*F$167+(N62+O62)*F$168+(N61+O61)*F$169+(N60+O60)*F$170+(N59+O59)*F$171+(N58+O58)*F$172+(N57+O57)*F$173+(N56+O56)*F$174+(N55+O55)*F$175+(N54+O54)*F$176+(N53+O53)*F$177+(N52+O52)*F$178+(N51+O51)*F$179+(N50+O50)*F$180+(N49+O49)*F$181+(N48+O48)*F$182+(N47+O47)*F$183+(N46+O46)*F$184+(N45+O45)*F$185+(N44+O44)*F$186+(N43+O43)*F$187+(N42+O42)*F$188+(N41+O41)*F$189)) -> 494.9238404 | S66: =R66/G66 -> 0.03182004851 | T66: 0.103974866 | U66: 5780.51696 | V66: =IF(V$64*0.99^(B66-B$64)*(1+V$38/27*($B66-$B$64))>=0,V$64*0.99^(B66-B$64)*(1+V$38/27*($B66-$B$64)),0) -> 0.1876028219 | W66: =V66*U66 -> 1084.441294 | X66: 532.9225426 | Y66: 99.97777286 | Z66: 0.5779232116 | AA66: 29.8269077 | AB66: 152.807393 | AC66: -11.15112828 | AD66: -27.21245177 | AE66: 30.14160993 | AF66: 29.8269077 | AG66: 29.8269077 | AH66: 0.3147022303
A67: 26 | B67: 2026 | D67: =IF(FAU!$C67*(1+D$38/27*($B67-$B$64))>=0,FAU!$C67*(1+D$38/27*($B67-$B$64)),0) -> 897.2478962 | E67: 0 | G67: 15722.50908 | H67: 12460.31009 | I67: 150.8005784 | K67: 14971.76473 | L67: 187043.2015 | M67: 28.20622297 | O67: =FAU!$U67-FAU!$U66+(N66+O66)*F$165+(N65+O65)*F$166+(N64+O64)*F$167+(N63+O63)*F$168+(N62+O62)*F$169+(N61+O61)*F$170+(N60+O60)*F$171+(N59+O59)*F$172+(N58+O58)*F$173+(N57+O57)*F$174+(N56+O56)*F$175+(N55+O55)*F$176+(N54+O54)*F$177+(N53+O53)*F$178+(N52+O52)*F$179+(N51+O51)*F$180+(N50+O50)*F$181+(N49+O49)*F$182+(N48+O48)*F$183+(N47+O47)*F$184+(N46+O46)*F$185+(N45+O45)*F$186+(N44+O44)*F$187+(N43+O43)*F$188 -> 256.2258377 | P67: 0.2855686135 | R67: =IF(AND(O67>D67,$AA$1="YES"),R66+D67-(+(N66+O66)*F$165+(N65+O65)*F$166+(N64+O64)*F$167+(N63+O63)*F$168+(N62+O62)*F$169+(N61+O61)*F$170+(N60+O60)*F$171+(N59+O59)*F$172+(N58+O58)*F$173+(N57+O57)*F$174+(N56+O56)*F$175+(N55+O55)*F$176+(N54+O54)*F$177+(N53+O53)*F$178+(N52+O52)*F$179+(N51+O51)*F$180+(N50+O50)*F$181+(N49+O49)*F$182+(N48+O48)*F$183+(N47+O47)*F$184+(N46+O46)*F$185+(N45+O45)*F$186+(N44+O44)*F$187+(N43+O43)*F$188+(N42+O42)*F$189),R66+O67-(+(N66+O66)*F$165+(N65+O65)*F$166+(N64+O64)*F$167+(N63+O63)*F$168+(N62+O62)*F$169+(N61+O61)*F$170+(N60+O60)*F$171+(N59+O59)*F$172+(N58+O58)*F$173+(N57+O57)*F$174+(N56+O56)*F$175+(N55+O55)*F$176+(N54+O54)*F$177+(N53+O53)*F$178+(N52+O52)*F$179+(N51+O51)*F$180+(N50+O50)*F$181+(N49+O49)*F$182+(N48+O48)*F$183+(N47+O47)*F$184+(N46+O46)*F$185+(N45+O45)*F$186+(N44+O44)*F$187+(N43+O43)*F$188+(N42+O42)*F$189)) -> 750.7443495 | S67: 0.04774965278 | T67: 0.07863112154 | U67: 8864.137124 | V67: 0.1857267937 | W67: 1646.307767 | X67: 514.8156519 | Y67: 95.61506039 | Z67: 0.8475450064 | AA67: 29.05376798 | AB67: 148.3036224 | AC67: -11.924268 | AD67: -29.09916915 | AE67: 29.54293998 | AF67: 29.05376798 | AG67: 29.05376798 | AH67: 0.4891719991
A68: 27 | B68: 2027 | D68: =IF(FAU!$C68*(1+D$38/27*($B68-$B$64))>=0,FAU!$C68*(1+D$38/27*($B68-$B$64)),0) -> 898.7048144 | E68: 0 | G68: 15885.65828 | H68: 12371.75678 | I68: 147.2663174 | K68: 14799.44185 | L68: 183625.3432 | M68: 27.04182807 | O68: =FAU!$U68-FAU!$U67+(N67+O67)*F$165+(N66+O66)*F$166+(N65+O65)*F$167+(N64+O64)*F$168+(N63+O63)*F$169+(N62+O62)*F$170+(N61+O61)*F$171+(N60+O60)*F$172+(N59+O59)*F$173+(N58+O58)*F$174+(N57+O57)*F$175+(N56+O56)*F$176+(N55+O55)*F$177+(N54+O54)*F$178+(N53+O53)*F$179+(N52+O52)*F$180+(N51+O51)*F$181+(N50+O50)*F$182+(N49+O49)*F$183+(N48+O48)*F$184+(N47+O47)*F$185+(N46+O46)*F$186+(N45+O45)*F$187+(N44+O44)*F$188 -> 336.1447322 | P68: 0.3740324151 | R68: 1086.216436 | S68: 0.068377175 | T68: 0.05918650527 | U68: 12908.15739 | V68: 0.1838695258 | W68: 2373.416777 | X68: 496.8870367 | Y68: 91.3623838 | Z68: 1.179320029 | AA68: 28.22114809 | AB68: 143.5945934 | AC68: -12.75688789 | AD68: -31.13103784 | AE68: 28.94276487 | AF68: 28.22114809 | AG68: 28.22114809 | AH68: 0.721616773
A69: 28 | B69: 2028 | D69: =IF(FAU!$C69*(1+D$38/27*($B69-$B$64))>=0,FAU!$C69*(1+D$38/27*($B69-$B$64)),0) -> 899.9944888 | E69: 0 | G69: 16043.39379 | H69: 12283.83279 | I69: 143.8148854 | K69: 14536.28922 | L69: 179109.2743 | M69: 25.75857977 | O69: =FAU!$U69-FAU!$U68+(N68+O68)*F$165+(N67+O67)*F$166+(N66+O66)*F$167+(N65+O65)*F$168+(N64+O64)*F$169+(N63+O63)*F$170+(N62+O62)*F$171+(N61+O61)*F$172+(N60+O60)*F$173+(N59+O59)*F$174+(N58+O58)*F$175+(N57+O57)*F$176+(N56+O56)*F$177+(N55+O55)*F$178+(N54+O54)*F$179+(N53+O53)*F$180+(N52+O52)*F$181+(N51+O51)*F$182+(N50+O50)*F$183+(N49+O49)*F$184+(N48+O48)*F$185+(N47+O47)*F$186+(N46+O46)*F$187+(N45+O45)*F$188 -> 421.9948666 | P69: 0.4688860564 | R69: 1507.10457 | S69: 0.09393926185 | T69: 0.04439536379 | U69: 17965.09235 | V69: 0.1820308305 | W69: 3270.20068 | X69: 479.1827581 | Y69: 87.22603544 | Z69: 1.567023782 | AA69: 27.32560355 | AB69: 138.6563053 | AC69: -13.65243244 | AD69: -33.31646358 | AE69: 28.34222746 | AF69: 27.32560355 | AG69: 27.32560355 | AH69: 1.016623916
A70: 29 | B70: 2029 | D70: =IF(FAU!$C70*(1+D$38/27*($B70-$B$64))>=0,FAU!$C70*(1+D$38/27*($B70-$B$64)),0) -> 901.1271789 | E70: 0 | G70: 16195.82917 | H70: 12196.53365 | I70: 140.4443415 | K70: 14180.99731 | L70: 173503.1535 | M70: 24.36753614 | O70: =FAU!$U70-FAU!$U69+(N69+O69)*F$165+(N68+O68)*F$166+(N67+O67)*F$167+(N66+O66)*F$168+(N65+O65)*F$169+(N64+O64)*F$170+(N63+O63)*F$171+(N62+O62)*F$172+(N61+O61)*F$173+(N60+O60)*F$174+(N59+O59)*F$175+(N58+O58)*F$176+(N57+O57)*F$177+(N56+O56)*F$178+(N55+O55)*F$179+(N54+O54)*F$180+(N53+O53)*F$181+(N52+O52)*F$182+(N51+O51)*F$183+(N50+O50)*F$184+(N49+O49)*F$185+(N48+O48)*F$186+(N47+O47)*F$187+(N46+O46)*F$188 -> 509.5481215 | P70: 0.5654563901 | R70: 2014.831858 | S70: 0.1244043659 | T70: 0.03321458075 | U70: 24029.82194 | V70: 0.1802105222 | W70: 4330.42676 | X70: 461.7433322 | Y70: 83.21100702 | Z70: 1.999545682 | AA70: 26.36708182 | AB70: 133.4819251 | AC70: -14.61095416 | AD70: -35.65557453 | AE70: 27.74238866 | AF70: 26.36708182 | AG70: 26.36708182 | AH70: 1.375306837
A71: 30 | B71: 2030 | D71: =IF(FAU!$C71*(1+D$38/27*($B71-$B$64))>=0,FAU!$C71*(1+D$38/27*($B71-$B$64)),0) -> 902.1125963 | E71: 0 | G71: 16343.08143 | H71: 12109.85492 | I71: 137.15279 | K71: 13736.72917 | L71: 166871.672 | M71: 22.88691539 | O71: =FAU!$U71-FAU!$U70+(N70+O70)*F$165+(N69+O69)*F$166+(N68+O68)*F$167+(N67+O67)*F$168+(N66+O66)*F$169+(N65+O65)*F$170+(N64+O64)*F$171+(N63+O63)*F$172+(N62+O62)*F$173+(N61+O61)*F$174+(N60+O60)*F$175+(N59+O59)*F$176+(N58+O58)*F$177+(N57+O57)*F$178+(N56+O56)*F$179+(N55+O55)*F$180+(N54+O54)*F$181+(N53+O53)*F$182+(N52+O52)*F$183+(N51+O51)*F$184+(N50+O50)*F$185+(N49+O49)*F$186+(N48+O48)*F$187+(N47+O47)*F$188 -> 594.5300228 | P71: 0.6590419259 | R71: 2606.352255 | S71: 0.1594774074 | T71: 0.02480192748 | U71: 31040.673 | V71: 0.178408417 | W71: 5537.917332 | X71: 444.6040645 | Y71: 79.32110734 | Z71: 2.462180555 | AA71: 25.34909595 | AB71: 128.0824394 | AC71: -15.62894004 | AD71: -38.13979773 | AE71: 27.1442303 | AF71: 25.34909595 | AG71: 25.34909595 | AH71: 1.795134351
A72: 31 | B72: 2031 | D72: =IF(FAU!$C72*(1+D$38/27*($B72-$B$64))>=0,FAU!$C72*(1+D$38/27*($B72-$B$64)),0) -> 902.9599242 | E72: 0 | G72: 16485.27035 | H72: 12023.79219 | I72: 133.9383798 | K72: 13210.74245 | L72: 159328.6459 | M72: 21.34022068 | O72: =FAU!$U72-FAU!$U71+(N71+O71)*F$165+(N70+O70)*F$166+(N69+O69)*F$167+(N68+O68)*F$168+(N67+O67)*F$169+(N66+O66)*F$170+(N65+O65)*F$171+(N64+O64)*F$172+(N63+O63)*F$173+(N62+O62)*F$174+(N61+O61)*F$175+(N60+O60)*F$176+(N59+O59)*F$177+(N58+O58)*F$178+(N57+O57)*F$179+(N56+O56)*F$180+(N55+O55)*F$181+(N54+O54)*F$182+(N53+O53)*F$183+(N52+O52)*F$184+(N51+O51)*F$185+(N50+O50)*F$186+(N49+O49)*F$187+(N48+O48)*F$188 -> 673.1742339 | P72: 0.745519503 | R72: 3274.527907 | S72: 0.1986335582 | T72: 0.01849364011 | U72: 38886.81901 | V72: 0.1766243328 | W72: 6868.358463 | X72: 427.7953923 | Y72: 75.55907575 | Z72: 2.938252103 | AA72: 24.27847278 | AB72: 122.4852601 | AC72: -16.6995632 | AD72: -40.75247338 | AE72: 26.54865821 | AF72: 24.27847278 | AG72: 24.27847278 | AH72: 2.270185428
A73: 32 | B73: 2032 | D73: =IF(FAU!$C73*(1+D$38/27*($B73-$B$64))>=0,FAU!$C73*(1+D$38/27*($B73-$B$64)),0) -> 903.6778367 | E73: 0 | G73: 16622.51789 | H73: 11938.34108 | I73: 130.7993029 | K73: 12613.63176 | L73: 151025.3552 | M73: 19.75401118 | O73: =FAU!$U73-FAU!$U72+(N72+O72)*F$165+(N71+O71)*F$166+(N70+O70)*F$167+(N69+O69)*F$168+(N68+O68)*F$169+(N67+O67)*F$170+(N66+O66)*F$171+(N65+O65)*F$172+(N64+O64)*F$173+(N63+O63)*F$174+(N62+O62)*F$175+(N61+O61)*F$176+(N60+O60)*F$177+(N59+O59)*F$178+(N58+O58)*F$179+(N57+O57)*F$180+(N56+O56)*F$181+(N55+O55)*F$182+(N54+O54)*F$183+(N53+O53)*F$184+(N52+O52)*F$185+(N51+O51)*F$186+(N50+O50)*F$187+(N49+O49)*F$188 -> 742.6654564 | P73: 0.8218254628 | R73: 4008.886131 | S73: 0.2411720148 | T73: 0.01377524066 | U73: 47419.93302 | V73: 0.1748580895 | W73: 8291.758892 | X73: 411.3432257 | Y73: 71.92669057 | Z73: 3.410758849 | AA73: 23.16477003 | AB73: 116.7312675 | AC73: -17.81326595 | AD73: -43.47027749 | AE73: 25.95650536 | AF73: 23.16477003 | AG73: 23.16477003 | AH73: 2.791735334
A74: 33 | B74: 2033 | D74: =IF(FAU!$C74*(1+D$38/27*($B74-$B$64))>=0,FAU!$C74*(1+D$38/27*($B74-$B$64)),0) -> 904.2745193 | E74: 0 | G74: =IF(a*EXP(-b*EXP(-ze*(B74-2000)))*(1+G$38/27*($B74-$B$64))>=0,a*EXP(-b*EXP(-ze*(B74-2000)))*(1+G$38/27*($B74-$B$64)),0) -> 16754.94761 | H74: 11853.49725 | I74: 127.7337941 | K74: 11958.35198 | L74: 142136.91 | M74: 18.15568679 | O74: =FAU!$U74-FAU!$U73+(N73+O73)*F$165+(N72+O72)*F$166+(N71+O71)*F$167+(N70+O70)*F$168+(N69+O69)*F$169+(N68+O68)*F$170+(N67+O67)*F$171+(N66+O66)*F$172+(N65+O65)*F$173+(N64+O64)*F$174+(N63+O63)*F$175+(N62+O62)*F$176+(N61+O61)*F$177+(N60+O60)*F$178+(N59+O59)*F$179+(N58+O58)*F$180+(N57+O57)*F$181+(N56+O56)*F$182+(N55+O55)*F$183+(N54+O54)*F$184+(N53+O53)*F$185+(N52+O52)*F$186+(N51+O51)*F$187+(N50+O50)*F$188 -> 801.4217578 | P74: 0.8862593612 | R74: 4796.595629 | S74: 0.2862793571 | T74: 0.01025260595 | U74: 56467.81535 | V74: 0.1731095086 | W74: 9775.115768 | X74: 395.2692867 | Y74: 68.42487198 | Z74: 3.863803037 | AA74: 22.01948983 | AB74: 110.8709261 | AC74: -18.95854616 | AD74: -46.26514107 | AE74: 25.36853509 | AF74: 22.01948983 | AG74: 22.01948983 | AH74: 3.349045262
A75: 34 | B75: 2034 | D75: =IF(FAU!$C75*(1+D$38/27*($B75-$B$64))>=0,FAU!$C75*(1+D$38/27*($B75-$B$64)),0) -> 904.7576892 | E75: 0 | G75: 16882.68415 | H75: 11769.25638 | I75: 124.7401291 | K75: 11259.17875 | L75: 132848.6578 | M75: 16.57155873 | O75: =FAU!$U75-FAU!$U74+(N74+O74)*F$165+(N73+O73)*F$166+(N72+O72)*F$167+(N71+O71)*F$168+(N70+O70)*F$169+(N69+O69)*F$170+(N68+O68)*F$171+(N67+O67)*F$172+(N66+O66)*F$173+(N65+O65)*F$174+(N64+O64)*F$175+(N63+O63)*F$176+(N62+O62)*F$177+(N61+O61)*F$178+(N60+O60)*F$179+(N59+O59)*F$180+(N58+O58)*F$181+(N57+O57)*F$182+(N56+O56)*F$183+(N55+O55)*F$184+(N54+O54)*F$185+(N53+O53)*F$186+(N52+O52)*F$187+(N51+O51)*F$188 -> 849.1946039 | P75: 0.9385878828 | R75: 5623.5054 | S75: 0.3330930881 | T75: 0.007626329717 | U75: 65847.98037 | V75: 0.1713784135 | W75: 11284.92241 | X75: 379.5914404 | Y75: 65.05377885 | Z75: 4.283659953 | AA75: 20.85521868 | AB75: 104.9600983 | AC75: -20.1228173 | AD75: -49.10634886 | AE75: 24.7854443 | AF75: 20.85521868 | AG75: 20.85521868 | AH75: 3.930225623
A76: 35 | B76: 2035 | D76: =IF(FAU!$C76*(1+D$38/27*($B76-$B$64))>=0,FAU!$C76*(1+D$38/27*($B76-$B$64)),0) -> 905.1346162 | E76: 0 | G76: 17005.85281 | H76: 11685.61418 | I76: 121.8166245 | K76: 10530.73335 | L76: 123344.1202 | M76: 15.02536437 | O76: =FAU!$U76-FAU!$U75+(N75+O75)*F$165+(N74+O74)*F$166+(N73+O73)*F$167+(N72+O72)*F$168+(N71+O71)*F$169+(N70+O70)*F$170+(N69+O69)*F$171+(N68+O68)*F$172+(N67+O67)*F$173+(N66+O66)*F$174+(N65+O65)*F$175+(N64+O64)*F$176+(N63+O63)*F$177+(N62+O62)*F$178+(N61+O61)*F$179+(N60+O60)*F$180+(N59+O59)*F$181+(N58+O58)*F$182+(N57+O57)*F$183+(N56+O56)*F$184+(N55+O55)*F$185+(N54+O54)*F$186+(N53+O53)*F$187+(N52+O52)*F$188 -> 886.988319 | P76: 0.9799518249 | R76: 6475.119465 | S76: 0.3807582916 | T76: 0.005670331508 | U76: 75379.71462 | V76: 0.1696646294 | W76: 12789.27134 | X76: 364.3240177 | Y76: 61.81289943 | Z76: 4.659438719 | AA76: 19.68480309 | AB76: 99.05607502 | AC76: -21.29323289 | AD76: -51.96255111 | AE76: 24.20786676 | AF76: 19.68480309 | AG76: 19.68480309 | AH76: 4.523063669
A77: 36 | B77: 2036 | D77: =IF(FAU!$C77*(1+D$38/27*($B77-$B$64))>=0,FAU!$C77*(1+D$38/27*($B77-$B$64)),0) -> 905.4121434 | E77: 1 | G77: 17124.57909 | H77: 11602.56641 | I77: 118.9616358 | K77: 9787.157233 | L77: 113795.3454 | M77: 13.53728043 | O77: =FAU!$U77-FAU!$U76+(N76+O76)*F$165+(N75+O75)*F$166+(N74+O74)*F$167+(N73+O73)*F$168+(N72+O72)*F$169+(N71+O71)*F$170+(N70+O70)*F$171+(N69+O69)*F$172+(N68+O68)*F$173+(N67+O67)*F$174+(N66+O66)*F$175+(N65+O65)*F$176+(N64+O64)*F$177+(N63+O63)*F$178+(N62+O62)*F$179+(N61+O61)*F$180+(N60+O60)*F$181+(N59+O59)*F$182+(N58+O58)*F$183+(N57+O57)*F$184+(N56+O56)*F$185+(N55+O55)*F$186+(N54+O54)*F$187+(N53+O53)*F$188 -> 916.8135849 | P77: 1.012592543 | R77: 7337.421852 | S77: 0.4284731213 | T77: 0.004214648781 | U77: 84893.72075 | V77: 0.1679679831 | W77: 14259.42705 | X77: 349.4781244 | Y77: 58.70113569 | Z77: 4.983357821 | AA77: 18.52063825 | AB77: 93.21417938 | AC77: -22.45739773 | AD77: -54.80349947 | AE77: 23.63637632 | AF77: 18.52063825 | AG77: 18.52063825 | AH77: 5.115738067
A78: 37 | B78: 2037 | D78: =IF(FAU!$C78*(1+D$38/27*($B78-$B$64))>=0,FAU!$C78*(1+D$38/27*($B78-$B$64)),0) -> 905.5967072 | E78: 1 | G78: 17238.98828 | H78: 11520.10884 | I78: 116.1735574 | K78: 9041.480475 | L78: 104356.0167 | M78: 12.1234097 | O78: =FAU!$U78-FAU!$U77+(N77+O77)*F$165+(N76+O76)*F$166+(N75+O75)*F$167+(N74+O74)*F$168+(N73+O73)*F$169+(N72+O72)*F$170+(N71+O71)*F$171+(N70+O70)*F$172+(N69+O69)*F$173+(N68+O68)*F$174+(N67+O67)*F$175+(N66+O66)*F$176+(N65+O65)*F$177+(N64+O64)*F$178+(N63+O63)*F$179+(N62+O62)*F$180+(N61+O61)*F$181+(N60+O60)*F$182+(N59+O59)*F$183+(N58+O58)*F$184+(N57+O57)*F$185+(N56+O56)*F$186+(N55+O55)*F$187+(N54+O54)*F$188 -> 941.2891579 | P78: 1.039413185 | R78: 8197.5078 | S78: 0.4755213977 | T78: 0.003131918237 | U78: 94239.00445 | V78: 0.1662883033 | W78: 15670.84415 | X78: 335.061939 | Y78: 55.71688132 | Z78: 5.250703427 | AA78: 17.37411313 | AB78: 87.48513949 | AC78: -23.60392285 | AD78: -57.60140106 | AE78: 23.0714901 | AF78: 17.37411313 | AG78: 17.37411313 | AH78: 5.697376969
A79: 38 | B79: 2038 | D79: =IF(FAU!$C79*(1+D$38/27*($B79-$B$64))>=0,FAU!$C79*(1+D$38/27*($B79-$B$64)),0) -> 905.6943574 | E79: 1 | G79: 17349.20517 | H79: 11438.23727 | I79: 113.4508213 | K79: 8305.193409 | L79: 95157.24917 | M79: 10.79566808 | O79: =FAU!$U79-FAU!$U78+(N78+O78)*F$165+(N77+O77)*F$166+(N76+O76)*F$167+(N75+O75)*F$168+(N74+O74)*F$169+(N73+O73)*F$170+(N72+O72)*F$171+(N71+O71)*F$172+(N70+O70)*F$173+(N69+O69)*F$174+(N68+O68)*F$175+(N67+O67)*F$176+(N66+O66)*F$177+(N65+O65)*F$178+(N64+O64)*F$179+(N63+O63)*F$180+(N62+O62)*F$181+(N61+O61)*F$182+(N60+O60)*F$183+(N59+O59)*F$184+(N58+O58)*F$185+(N57+O57)*F$186+(N56+O56)*F$187+(N55+O55)*F$188 -> 963.1316655 | P79: 1.063417982 | R79: 9044.011759 | S79: 0.5212925706 | T79: 0.00232692442 | U79: 103287.0759 | V79: 0.1646254202 | W79: 17003.67828 | X79: 321.0809942 | Y79: 52.8580936 | Z79: 5.459557926 | AA79: 16.255226 | AB79: 81.9132822 | AC79: -24.72280998 | AD79: -60.33185678 | AE79: 22.51367167 | AF79: 16.255226 | AG79: 16.255226 | AH79: 6.25844567
A80: 39 | B80: 2039 | D80: =IF(FAU!$C80*(1+D$38/27*($B80-$B$64))>=0,FAU!$C80*(1+D$38/27*($B80-$B$64)),0) -> 905.7107774 | E80: 1 | G80: 17455.35371 | H80: 11356.94753 | I80: 110.7918962 | K80: 7588.006349 | L80: 86305.73201 | M80: 9.561975702 | O80: =FAU!$U80-FAU!$U79+(N79+O79)*F$165+(N78+O78)*F$166+(N77+O77)*F$167+(N76+O76)*F$168+(N75+O75)*F$169+(N74+O74)*F$170+(N73+O73)*F$171+(N72+O72)*F$172+(N71+O71)*F$173+(N70+O70)*F$174+(N69+O69)*F$175+(N68+O68)*F$176+(N67+O67)*F$177+(N66+O66)*F$178+(N65+O65)*F$179+(N64+O64)*F$180+(N63+O63)*F$181+(N62+O62)*F$182+(N61+O61)*F$183+(N60+O60)*F$184+(N59+O59)*F$185+(N58+O58)*F$186+(N57+O57)*F$187+(N56+O56)*F$188 -> 984.6628372 | P80: 1.087171382 | R80: 9867.347359 | S80: 0.5652905993 | T80: 0.001728609267 | U80: 111933.8042 | V80: 0.162979166 | W80: 18242.87806 | X80: 307.5384439 | Y80: 50.12235911 | Z80: 5.610386331 | AA80: 15.17236203 | AB80: 76.53550004 | AC80: -25.80567395 | AD80: -62.97440405 | AE80: 21.96333412 | AF80: 15.17236203 | AG80: 15.17236203 | AH80: 6.790972086
A81: 40 | B81: 2040 | D81: =IF(FAU!$C81*(1+D$38/27*($B81-$B$64))>=0,FAU!$C81*(1+D$38/27*($B81-$B$64)),0) -> 905.6513027 | E81: 1 | G81: 17557.55672 | H81: 11276.2355 | I81: 108.1952866 | K81: 6897.767636 | L81: 77883.74637 | M81: 8.426654256 | O81: =FAU!$U81-FAU!$U80+(N80+O80)*F$165+(N79+O79)*F$166+(N78+O78)*F$167+(N77+O77)*F$168+(N76+O76)*F$169+(N75+O75)*F$170+(N74+O74)*F$171+(N73+O73)*F$172+(N72+O72)*F$173+(N71+O71)*F$174+(N70+O70)*F$175+(N69+O69)*F$176+(N68+O68)*F$177+(N67+O67)*F$178+(N66+O66)*F$179+(N65+O65)*F$180+(N64+O64)*F$181+(N63+O63)*F$182+(N62+O62)*F$183+(N61+O61)*F$184+(N60+O60)*F$185+(N59+O59)*F$186+(N58+O58)*F$187+(N57+O57)*F$188 -> 1007.522441 | P81: 1.112483842 | R81: 10659.78908 | S81: 0.6071339682 | T81: 0.001284011298 | U81: 120099.398 | V81: 0.1613493744 | W81: =V81*U81 -> 19377.96273 | X81: 294.4353138 | Y81: 47.50695367 | Z81: 5.705556539 | AA81: 14.1322108 | AB81: 71.3808786 | AC81: -26.84582519 | AD81: -65.51271808 | AE81: 21.42084304 | AF81: 14.1322108 | AG81: 14.1322108 | AH81: 7.288632247
A82: 41 | B82: 2041 | D82: =IF(FAU!$C82*(1+D$38/27*($B82-$B$64))>=0,FAU!$C82*(1+D$38/27*($B82-$B$64)),0) -> 905.5209396 | E82: 1 | G82: 17655.93566 | H82: 11196.09707 | I82: 105.659532 | K82: 6240.504145 | L82: 69950.55022 | M82: 7.390942401 | O82: =FAU!$U82-FAU!$U81+(N81+O81)*F$165+(N80+O80)*F$166+(N79+O79)*F$167+(N78+O78)*F$168+(N77+O77)*F$169+(N76+O76)*F$170+(N75+O75)*F$171+(N74+O74)*F$172+(N73+O73)*F$173+(N72+O72)*F$174+(N71+O71)*F$175+(N70+O70)*F$176+(N69+O69)*F$177+(N68+O68)*F$178+(N67+O67)*F$179+(N66+O66)*F$180+(N65+O65)*F$181+(N64+O64)*F$182+(N63+O63)*F$183+(N62+O62)*F$184+(N61+O61)*F$185+(N60+O60)*F$186+(N59+O59)*F$187+(N58+O58)*F$188 -> 1032.639139 | P82: 1.140381292 | R82: 11415.43152 | S82: 0.6465492249 | T82: 0.0009536944481 | U82: 127727.0194 | V82: 0.1597358806 | W82: 20402.58792 | X82: 281.7707365 | Y82: 45.00889672 | Z82: 5.748852223 | AA82: 13.13979462 | AB82: 66.47084266 | AC82: -27.83824136 | AD82: -67.93454272 | AE82: 20.88651949 | AF82: 13.13979462 | AG82: 13.13979462 | AH82: 7.74672487
A83: 42 | B83: 2042 | D83: =IF(FAU!$C83*(1+D$38/27*($B83-$B$64))>=0,FAU!$C83*(1+D$38/27*($B83-$B$64)),0) -> 905.3243834 | E83: 1 | G83: 17750.61042 | H83: 11116.52816 | I83: 103.1832064 | K83: 5620.54834 | L83: 62544.65865 | M83: 6.453558425 | O83: =FAU!$U83-FAU!$U82+(N82+O82)*F$165+(N81+O81)*F$166+(N80+O80)*F$167+(N79+O79)*F$168+(N78+O78)*F$169+(N77+O77)*F$170+(N76+O76)*F$171+(N75+O75)*F$172+(N74+O74)*F$173+(N73+O73)*F$174+(N72+O72)*F$175+(N71+O71)*F$176+(N70+O70)*F$177+(N69+O69)*F$178+(N68+O68)*F$179+(N67+O67)*F$180+(N66+O66)*F$181+(N65+O65)*F$182+(N64+O64)*F$183+(N63+O63)*F$184+(N62+O62)*F$185+(N61+O61)*F$186+(N60+O60)*F$187+(N59+O59)*F$188 -> 1060.26909 | P83: 1.171148276 | R83: 12130.06208 | S83: 0.6833602785 | T83: 0.0007083146088 | U83: 134780.502 | V83: 0.1581385218 | W83: 21313.98935 | X83: 269.5421698 | Y83: 42.6250003 | Z83: 5.745018937 | AA83: 12.19857736 | AB83: 61.81967532 | AC83: -28.77945862 | AD83: -70.23142503 | AE83: 20.36064279 | AF83: 12.19857736 | AG83: 12.19857736 | AH83: 8.162065424
A84: 43 | B84: 2043 | D84: =IF(FAU!$C84*(1+D$38/27*($B84-$B$64))>=0,FAU!$C84*(1+D$38/27*($B84-$B$64)),0) -> 905.0660354 | E84: 1 | G84: 17841.69909 | H84: 11037.52473 | I84: 100.7649171 | K84: 5040.719722 | L84: 55686.61923 | M84: 5.611257568 | O84: =FAU!$U84-FAU!$U83+(N83+O83)*F$165+(N82+O82)*F$166+(N81+O81)*F$167+(N80+O80)*F$168+(N79+O79)*F$169+(N78+O78)*F$170+(N77+O77)*F$171+(N76+O76)*F$172+(N75+O75)*F$173+(N74+O74)*F$174+(N73+O73)*F$175+(N72+O72)*F$176+(N71+O71)*F$177+(N70+O70)*F$178+(N69+O69)*F$179+(N68+O68)*F$180+(N67+O67)*F$181+(N66+O66)*F$182+(N65+O65)*F$183+(N64+O64)*F$184+(N63+O63)*F$185+(N62+O62)*F$186+(N61+O61)*F$187+(N60+O60)*F$188 -> 1089.928665 | P84: 1.204253195 | R84: 12800.97937 | S84: 0.7174753539 | T84: 0.0005260484182 | U84: 141241.5757 | V84: 0.1565571366 | W84: 22112.37666 | X84: 257.7456002 | Y84: 40.35191314 | Z84: 5.699367794 | AA84: 11.31062536 | AB84: 57.43527668 | AC84: -29.66741062 | AD84: -72.39832244 | AE84: 19.84345323 | AF84: 11.31062536 | AG84: 11.31062536 | AH84: 8.532827865
A85: 44 | B85: 2044 | D85: =IF(FAU!$C85*(1+D$38/27*($B85-$B$64))>=0,FAU!$C85*(1+D$38/27*($B85-$B$64)),0) -> 904.7500198 | E85: 1 | G85: 17929.31784 | H85: 10959.08275 | I85: 98.40330375 | K85: 4502.534201 | L85: 49381.96858 | M85: 4.859348855 | O85: =FAU!$U85-FAU!$U84+(N84+O84)*F$165+(N83+O83)*F$166+(N82+O82)*F$167+(N81+O81)*F$168+(N80+O80)*F$169+(N79+O79)*F$170+(N78+O78)*F$171+(N77+O77)*F$172+(N76+O76)*F$173+(N75+O75)*F$174+(N74+O74)*F$175+(N73+O73)*F$176+(N72+O72)*F$177+(N71+O71)*F$178+(N70+O70)*F$179+(N69+O69)*F$180+(N68+O68)*F$181+(N67+O67)*F$182+(N66+O66)*F$183+(N65+O65)*F$184+(N64+O64)*F$185+(N63+O63)*F$186+(N62+O62)*F$187+(N61+O61)*F$188 -> 1120.36696 | P85: 1.238316591 | R85: 13426.78364 | S85: 0.7488730892 | T85: 0.0003906720124 | U85: 147106.9093 | V85: 0.1549915652 | W85: 22800.33013 | X85: 246.3757301 | Y85: 38.18616004 | Z85: 5.617447981 | AA85: 10.47679684 | AB85: 53.32005022 | AC85: -30.50123915 | AD85: -74.43314062 | AE85: 19.33515473 | AF85: 10.47679684 | AG85: 10.47679684 | AH85: 8.858357897
A86: 45 | B86: 2045 | D86: =IF(FAU!$C86*(1+D$38/27*($B86-$B$64))>=0,FAU!$C86*(1+D$38/27*($B86-$B$64)),0) -> 904.3801995 | E86: 1 | G86: 18013.58074 | H86: 10881.19824 | I86: 96.09703829 | K86: 4006.416452 | L86: 43624.09147 | M86: 4.192145989 | O86: =FAU!$U86-FAU!$U85*(1-FAU!$F85) -> 1195.313383 | P86: 1.321693447 | R86: =IF(AND(O86>D86,$AA$1="YES"),R85*(1-FAU!$F85)+D86,R85*(1-FAU!$F85)+O86) -> 14007.16429 | S86: 0.777589114 | T86: 0.000290127751 | U86: 152385.2516 | V86: 0.1534416496 | W86: 23382.24437 | X86: 235.4261505 | Y86: 36.12417689 | Z86: 5.504791782 | AA86: 9.696937771 | AB86: 49.47181405 | AC86: -31.28109821 | AD86: -76.33625542 | AE86: 18.83591734 | AF86: 9.696937771 | AG86: 9.696937771 | AH86: 9.138979572
A87: 46 | B87: 2046 | D87: =IF(FAU!$C87*(1+D$38/27*($B87-$B$64))>=0,FAU!$C87*(1+D$38/27*($B87-$B$64)),0) -> 903.9601912 | E87: 1 | G87: 18094.59966 | H87: 10803.86723 | I87: 93.84482357 | K87: 3551.924303 | L87: 38397.0865 | M87: 3.603367808 | O87: =FAU!$U87-FAU!$U86*(1-FAU!$F86) -> 1176.222437 | P87: 1.301188314 | R87: =IF(AND(O87>D87,$AA$1="YES"),R86*(1-FAU!$F86)+D87,R86*(1-FAU!$F86)+O87) -> 14542.67536 | S87: 0.8037025207 | T87: 0.0002154562556 | U87: 157094.5659 | V87: 0.1519072331 | W87: 23863.80083 | X87: 224.8894993 | Y87: 34.16234159 | Z87: 5.366718221 | AA87: 8.97008603 | AB87: 45.88475222 | AC87: -32.00794995 | AD87: -78.11001476 | AE87: 18.34587962 | AF87: 8.97008603 | AG87: 8.97008603 | AH87: 9.375793595
A88: 47 | B88: 2047 | D88: =IF(FAU!$C88*(1+D$38/27*($B88-$B$64))>=0,FAU!$C88*(1+D$38/27*($B88-$B$64)),0) -> 903.4933804 | E88: 1 | G88: 18172.48416 | H88: 10727.0858 | I88: 91.64539286 | K88: 3137.928365 | L88: 33678.02982 | M88: 3.086436274 | O88: =FAU!$U88-FAU!$U87*(1-FAU!$F87) -> 1156.25516 | P88: 1.279760522 | R88: =IF(AND(O88>D88,$AA$1="YES"),R87*(1-FAU!$F87)+D88,R87*(1-FAU!$F87)+O88) -> 15034.55579 | S88: 0.8273252937 | T88: 0.0001600013496 | U88: 161259.7669 | V88: 0.1503881607 | W88: =V88*U88 -> 24251.55975 | X88: 214.7576062 | Y88: 32.29700141 | Z88: 5.208206918 | AA88: 8.294643192 | AB88: 42.5502049 | AC88: -32.68339279 | AD88: -79.75831932 | AE88: 17.86515096 | AF88: 8.294643192 | AG88: 8.294643192 | AH88: 9.57050777
A89: 48 | B89: 2048 | D89: =IF(FAU!$C89*(1+D$38/27*($B89-$B$64))>=0,FAU!$C89*(1+D$38/27*($B89-$B$64)),0) -> 902.9829347 | E89: 1 | G89: 18247.34139 | H89: 10650.85003 | I89: 89.49750913 | K89: 2762.789409 | L89: 29439.11965 | M89: 2.634727879 | O89: =FAU!$U89-FAU!$U88*(1-FAU!$F88) -> 1135.983339 | P89: 1.258034117 | R89: =IF(AND(O89>D89,$AA$1="YES"),R88*(1-FAU!$F88)+D89,R88*(1-FAU!$F88)+O89) -> 15484.55199 | S89: 0.8485922223 | T89: 0.0001188185503 | U89: 164910.5769 | V89: 0.1488842791 | W89: 24552.59237 | X89: 205.0216241 | Y89: 30.52449671 | Z89: 5.033812363 | AA89: 7.668540242 | AB89: 39.45743357 | AC89: -33.30949574 | AD89: -81.28621819 | AE89: 17.39381374 | AF89: 7.668540242 | AG89: 7.668540242 | AH89: 9.725273502
A90: 49 | B90: 2049 | D90: =IF(FAU!$C90*(1+D$38/27*($B90-$B$64))>=0,FAU!$C90*(1+D$38/27*($B90-$B$64)),0) -> 902.4318172 | E90: 1 | G90: 18319.27606 | H90: 10575.15604 | I90: 87.39996434 | K90: =IF(AND(G90<>"",R90<>"",G90-R90>0,K89>0.9),G90-R90,0) -> 2424.507004 | L90: =IF(K90<>"",(K90+R90*T90*2/3)*H90/1000,0) -> 25649.42752 | M90: 2.24175905 | O90: =FAU!$U90-FAU!$U89*(1-FAU!$F89) -> 1115.852875 | P90: 1.236495494 | R90: =IF(AND(O90>D90,$AA$1="YES"),R89*(1-FAU!$F89)+D90,R89*(1-FAU!$F89)+O90) -> 15894.76906 | S90: =R90/G90 -> 0.8676526848 | T90: 8.823521143e-05 | U90: =R90*(1-2/3*T90)*H90/1000 -> 168079.7755 | V90: 0.1473954364 | W90: =V90*U90 -> 24774.19185 | X90: 195.6721485 | Y90: 28.84118171 | Z90: 4.847619346 | AA90: 7.089378397 | AB90: =IF(L90<>0,(M90+Z90)/(L90+U90)*1000000,(M90+Z90)/(0.00000000001+U90)*1000000) -> 36.59426812 | AC90: -33.88865759 | AD90: -82.6995652 | AE90: 16.93192543 | AF90: 7.089378397 | AG90: 7.089378397 | AH90: 9.842547036
A91: 50 | B91: 2050 | D91: =IF(FAU!$C91*(1+D$38/27*($B91-$B$64))>=0,FAU!$C91*(1+D$38/27*($B91-$B$64)),0) -> 901.8427994 | E91: 1 | G91: 18388.39034 | H91: 10500 | I91: 85.35157876 | K91: 2120.844134 | L91: =(K91+R91*T91*2/3)*H91/1000 -> 22276.32476 | M91: 1.901319487 | O91: =FAU!$U91-FAU!$U90*(1-FAU!$F90) -> 1096.200909 | P91: 1.215512182 | R91: =IF(AND(O91>D91,$AA$1="YES"),R90*(1-FAU!$F90)+D91,R90*(1-FAU!$F90)+O91) -> 16267.5462 | S91: 0.8846639594 | T91: 6.552355351e-05 | U91: 170801.7738 | V91: 0.145921482 | W91: 24923.64796 | X91: 186.6993259 | Y91: =V91*X91 -> 27.24344232 | Z91: 4.653228272 | AA91: 6.554547759 | AB91: =IF(L91<>0,(M91+Z91)/(L91+U91)*1000000,(M91+Z91)/(0.00000000001+U91)*1000000) -> 33.94765024 | AC91: -34.42348822 | AD91: -84.00472936 | AE91: =IF(H91>=0,G91*H91*I91/1000000000,0) -> 16.47952053 | AF91: 6.554547759 | AG91: 6.554547759 | AH91: 9.924972776
A92: 51 | B92: 2051 | D92: =IF(FAU!$C92*(1+D$38/27*($B92-$B$64))>=0,FAU!$C92*(1+D$38/27*($B92-$B$64)),0) -> 901.2184722 | E92: 1 | G92: 18454.78383 | H92: 10425.37807 | I92: 83.3512003 | K92: 1849.429034 | L92: =IF(K92<>"",(K92+R92*T92*2/3)*H92/1000,0) -> 19286.61255 | M92: 1.607562306 | O92: =FAU!$U92-FAU!$U91*(1-FAU!$F91) -> 1077.272847 | P92: 1.195351493 | R92: =IF(AND(O92>D92,$AA$1="YES"),R91*(1-FAU!$F91)+D92,R91*(1-FAU!$F91)+O92) -> 16605.3548 | S92: 0.8997859281 | T92: 4.865767382e-05 | U92: 173111.4861 | V92: 0.1444622672 | W92: 25008.07776 | X92: 178.0929504 | Y92: =V92*X92 -> 25.72771138 | Z92: 4.453762352 | AA92: 6.061324657 | AB92: =IF(L92<>0,(M92+Z92)/(L92+U92)*1000000,(M92+Z92)/(0.00000000001+U92)*1000000) -> 31.50407774 | AC92: -34.91671133 | AD92: -85.20835733 | AE92: 16.03661246 | AF92: 6.061324657 | AG92: 6.061324657 | AH92: 9.975287802
A93: 52 | B93: 2052 | D93: =IF(FAU!$C93*(1+D$38/27*($B93-$B$64))>=0,FAU!$C93*(1+D$38/27*($B93-$B$64)),0) -> 900.5612578 | E93: 1 | G93: 18518.55358 | H93: 10351.28646 | I93: 81.39770387 | K93: 1607.836338 | L93: 16647.39118 | M93: 1.355059417 | O93: =FAU!$U93-FAU!$U92*(1-FAU!$F92) -> 1059.238373 | P93: 1.176198026 | R93: =IF(AND(O93>D93,$AA$1="YES"),R92*(1-FAU!$F92)+D93,R92*(1-FAU!$F92)+O93) -> 16910.71724 | S93: 0.9131770021 | T93: 3.613300213e-05 | U93: 175043.4617 | V93: 0.1430176445 | W93: 25034.30358 | X93: 169.8425514 | Y93: 24.29048164 | Z93: 4.251889993 | AA93: 5.60694941 | AB93: =IF(L93<>0,(M93+Z93)/(L93+U93)*1000000,(M93+Z93)/(0.00000000001+U93)*1000000) -> 29.24995807 | AC93: -35.37108657 | AD93: -86.31718364 | AE93: 15.60319528 | AF93: 5.60694941 | AG93: 5.60694941 | AH93: 9.996245869
A94: 53 | B94: 2053 | D94: =IF(FAU!$C94*(1+D$38/27*($B94-$B$64))>=0,FAU!$C94*(1+D$38/27*($B94-$B$64)),0) -> 899.8734202 | E94: 1 | G94: 18579.79399 | H94: 10277.7214 | I94: 79.48999075 | K94: 1393.650023 | L94: 14326.70632 | M94: 1.138829753 | O94: =FAU!$U94-FAU!$U93*(1-FAU!$F93) -> 1042.205942 | P94: 1.158169492 | R94: =IF(AND(O94>D94,$AA$1="YES"),R93*(1-FAU!$F93)+D94,R93*(1-FAU!$F93)+O94) -> 17186.14397 | S94: 0.9249910939 | T94: 2.683217403e-05 | U94: 176631.2399 | V94: 0.1415874681 | W94: 25008.77004 | X94: 161.9374711 | Y94: 22.92831652 | Z94: 4.049856977 | AA94: 5.18868673 | AB94: 27.17188172 | AC94: -35.78934925 | AD94: -87.33788332 | AE94: 15.17924538 | AF94: 5.18868673 | AG94: 5.18868673 | AH94: 9.990558653
A95: 54 | B95: 2054 | D95: =IF(FAU!$C95*(1+D$38/27*($B95-$B$64))>=0,FAU!$C95*(1+D$38/27*($B95-$B$64)),0) -> 899.1570749 | E95: 1 | G95: 18638.59688 | H95: 10204.67915 | I95: 77.62698797 | K95: 1204.510801 | L95: 12294.00952 | M95: 0.9543469293 | O95: =FAU!$U95-FAU!$U94*(1-FAU!$F94) -> 1026.235486 | P95: 1.141330603 | R95: =IF(AND(O95>D95,$AA$1="YES"),R94*(1-FAU!$F94)+D95,R94*(1-FAU!$F94)+O95) -> 17434.08608 | S95: 0.9353754572 | T95: 1.992539858e-05 | U95: 177906.8913 | V95: 0.1401715934 | W95: 24937.49243 | X95: 154.366934 | Y95: 21.6378591 | Z95: 3.849524248 | AA95: 4.803871177 | AB95: 25.25682663 | AC95: -36.17416481 | AD95: -88.27696091 | AE95: 14.76472304 | AF95: 4.803871177 | AG95: 4.803871177 | AH95: 9.960851864
A96: 55 | B96: 2055 | D96: =IF(FAU!$C96*(1+D$38/27*($B96-$B$64))>=0,FAU!$C96*(1+D$38/27*($B96-$B$64)),0) -> 898.4141985 | E96: 1 | G96: 18695.05143 | H96: 10132.15599 | I96: 75.80764768 | K96: 1038.150476 | L96: 10520.46731 | M96: 0.7975318791 | O96: =FAU!$U96-FAU!$U95*(1-FAU!$F95) -> 1011.34931 | P96: 1.125704949 | R96: =IF(AND(O96>D96,$AA$1="YES"),R95*(1-FAU!$F95)+D96,R95*(1-FAU!$F95)+O96) -> 17656.90095 | S96: 0.9444692367 | T96: 1.479645519e-05 | U96: 178900.71 | V96: 0.1387698774 | W96: 24826.02959 | X96: 147.120108 | Y96: 20.41583936 | Z96: 3.652408155 | AA96: 4.449940035 | AB96: 23.49230481 | AC96: -36.52809595 | AD96: -89.14067029 | AE96: 14.35957387 | AF96: 4.449940035 | AG96: 4.449940035 | AH96: 9.909633836
A97: 56 | B97: 2056 | D97: =IF(FAU!$C97*(1+D$38/27*($B97-$B$64))>=0,FAU!$C97*(1+D$38/27*($B97-$B$64)),0) -> 897.6466376 | E97: 1 | G97: =IF(a*EXP(-b*EXP(-ze*(B97-2000)))*(1+G$38/27*($B97-$B$64))>=0,a*EXP(-b*EXP(-ze*(B97-2000)))*(1+G$38/27*($B97-$B$64)),0) -> 18749.24425 | H97: 10060.14823 | I97: =IF($M$150*$O$150*$R$150*EXP((-$O$150*EXP(-$R$150*($B97-2000))-$R$150*($B97-2000)))*(1+I$38/27*($B97-$B$64))>=0,$M$150*$O$150*$R$150*EXP((-$O$150*EXP(-$R$150*($B97-2000))-$R$150*($B97-2000)))*(1+I$38/27*($B97-$B$64)),0) -> 74.03094663 | K97: 892.4156473 | L97: 8979.149603 | M97: 0.6647349451 | O97: =FAU!$U97-FAU!$U96*(1-FAU!$F96) -> 997.5412286 | P97: 1.111284983 | R97: =IF(AND(O97>D97,$AA$1="YES"),R96*(1-FAU!$F96)+D97,R96*(1-FAU!$F96)+O97) -> 17856.8286 | S97: 0.9524025803 | T97: =IF(Scen=5,IF($F$154*$I$154*$K$154*EXP((-$I$154*EXP(-$K$154*($B97-2000))-$K$154*($B97-2000)))*(1-2.8519/77*($B97-$B$64))>=0,$F$154*$I$154*$K$154*EXP((-$I$154*EXP(-$K$154*($B97-2000))-$K$154*($B97-2000)))*(1-2.8519/77*($B97-$B$64)),0),IF(Scen<>5,IF($F$154*$I$154*$K$154*EXP((-$I$154*EXP(-$K$154*($B97-2000))-$K$154*($B97-2000)))*(1+T$38/27*($B97-$B$64))>=0,$F$154*$I$154*$K$154*EXP((-$I$154*EXP(-$K$154*($B97-2000))-$K$154*($B97-2000)))*(1+T$38/27*($B97-$B$64)),0))) -> 1.098773015e-05 | U97: 179641.0267 | V97: 0.1373821787 | W97: 24679.47563 | X97: =IF(OR(Scen=3,Scen=5),IF($V$154*$X$154*$Z$154*EXP((-$X$154*EXP(-$Z$154*($B97-2000))-$Z$154*($B97-2000)))*(1-2.8519/77*($B97-$B$64))>=0,$V$154*$X$154*$Z$154*EXP((-$X$154*EXP(-$Z$154*($B97-2000))-$Z$154*($B97-2000)))*(1-2.8519/77*($B97-$B$64)),0),IF(AND(Scen<>3,Scen<>5),IF($V$154*$X$154*$Z$154*EXP((-$X$154*EXP(-$Z$154*($B97-2000))-$Z$154*($B97-2000)))*(1+X$38/27*($B97-$B$64))>=0,$V$154*$X$154*$Z$154*EXP((-$X$154*EXP(-$Z$154*($B97-2000))-$Z$154*($B97-2000)))*(1+X$38/27*($B97-$B$64)),0))) -> 140.1861587 | Y97: 19.2590799 | Z97: 3.459720888 | AA97: 4.124455833 | AB97: 21.86646155 | AC97: -36.85358015 | AD97: -89.93495971 | AE97: 13.96373021 | AF97: 4.124455833 | AG97: 4.124455833 | AH97: 9.839274376
A98: 57 | B98: 2057 | D98: =IF(FAU!$C98*(1+D$38/27*($B98-$B$64))>=0,FAU!$C98*(1+D$38/27*($B98-$B$64)),0) -> 896.8561171 | E98: 1 | G98: 18801.25934 | H98: 9988.652217 | I98: 72.29588552 | K98: 765.2828422 | L98: 7645.124129 | M98: 0.5527110188 | O98: =FAU!$U98-FAU!$U97*(1-FAU!$F97) -> 984.7840983 | P98: 1.098040231 | R98: =IF(AND(O98>D98,$AA$1="YES"),R97*(1-FAU!$F97)+D98,R97*(1-FAU!$F97)+O98) -> 18035.97649 | S98: 0.9592961924 | T98: 8.159396103e-06 | U98: 180154.1166 | V98: 0.1360083569 | W98: 24502.46538 | X98: 133.5542967 | Y98: 18.16450044 | Z98: 3.272409531 | AA98: 3.82512055 | AB98: 20.36813639 | AC98: -37.15291543 | AD98: -90.66543709 | AE98: 13.57711241 | AF98: 3.82512055 | AG98: 3.82512055 | AH98: 9.751991858
A99: 58 | B99: 2058 | D99: =IF(FAU!$C99*(1+D$38/27*($B99-$B$64))>=0,FAU!$C99*(1+D$38/27*($B99-$B$64)),0) -> 896.0442482 | E99: 1 | G99: 18851.17814 | H99: 9917.664307 | I99: 70.60148846 | K99: 654.8669089 | L99: 6495.479137 | M99: 0.4585904954 | O99: =FAU!$U99-FAU!$U98*(1-FAU!$F98) -> 973.035918 | P99: 1.08592396 | R99: =IF(AND(O99>D99,$AA$1="YES"),R98*(1-FAU!$F98)+D99,R98*(1-FAU!$F98)+O99) -> 18196.31123 | S99: 0.9652612211 | T99: 6.059096199e-06 | U99: 180464.1774 | V99: 0.1346482733 | W99: 24299.18988 | X99: 127.2138187 | Y99: 17.12912102 | Z99: 3.091192736 | AA99: 3.549783231 | AB99: 18.98689427 | AC99: -37.42825275 | AD99: -91.33735147 | AE99: 13.19963004 | AF99: 3.549783231 | AG99: 3.549783231 | AH99: 9.649846804
A100: 59 | B100: 2059 | D100: =IF(FAU!$C100*(1+D$38/27*($B100-$B$64))>=0,FAU!$C100*(1+D$38/27*($B100-$B$64)),0) -> 895.2125355 | E100: 1 | G100: 18899.07957 | H100: 9847.180891 | I100: 68.94680246 | K100: 559.4242123 | L100: 5509.293126 | M100: 0.3798481448 | O100: =FAU!$U100-FAU!$U99*(1-FAU!$F99) -> 962.2446951 | P100: 1.074878486 | R100: =IF(AND(O100>D100,$AA$1="YES"),R99*(1-FAU!$F99)+D100,R99*(1-FAU!$F99)+O100) -> 18339.65536 | S100: 0.9703993938 | T100: 4.499430312e-06 | U100: 180593.3621 | V100: 0.1333017906 | W100: 24073.41853 | X100: 121.1541435 | Y100: 16.15006426 | Z100: 2.916594403 | AA100: 3.296442548 | AB100: 17.7130334 | AC100: -37.68159344 | AD100: -91.95558677 | AE100: 12.831183 | AF100: 3.296442548 | AG100: 3.296442548 | AH100: 9.534740457
A101: 60 | B101: 2060 | D101: =IF(FAU!$C101*(1+D$38/27*($B101-$B$64))>=0,FAU!$C101*(1+D$38/27*($B101-$B$64)),0) -> 894.3623843 | E101: 1 | G101: 18945.04004 | H101: 9777.198384 | I101: 67.33089684 | K101: 477.3519166 | L101: 4667.566588 | M101: 0.3142714444 | O101: =FAU!$U101-FAU!$U100*(1-FAU!$F100) -> 952.3522614 | P101: 1.064839352 | R101: =IF(AND(O101>D101,$AA$1="YES"),R100*(1-FAU!$F100)+D101,R100*(1-FAU!$F100)+O101) -> 18467.68812 | S101: 0.9748033303 | T101: 3.341235609e-06 | U101: 180561.8483 | V101: 0.1319687727 | W101: 23828.52551 | X101: 115.3648426 | Y101: 15.22455668 | Z101: 2.748974094 | AA101: 3.063245538 | AB101: 16.53757607 | AC101: -37.91479044 | AD101: -92.52466482 | AE101: 12.47166262 | AF101: 3.063245538 | AG101: 3.063245538 | AH101: 9.408417084
A102: 61 | B102: 2061 | D102: =IF(FAU!$C102*(1+D$38/27*($B102-$B$64))>=0,FAU!$C102*(1+D$38/27*($B102-$B$64)),0) -> 893.4951068 | E102: 1 | G102: 18989.1335 | H102: 9707.713225 | I102: 65.75286273 | K102: 407.1844063 | L102: 3953.127829 | M102: 0.2599294715 | O102: =FAU!$U102-FAU!$U101*(1-FAU!$F101) -> 943.297215 | P102: 1.055738535 | R102: =IF(AND(O102>D102,$AA$1="YES"),R101*(1-FAU!$F101)+D102,R101*(1-FAU!$F101)+O102) -> 18581.94909 | S102: 0.9785569781 | T102: 2.481170394e-06 | U102: 180387.9346 | V102: 0.1306490849 | W102: 23567.51859 | X102: 109.8356662 | Y102: 14.34992928 | Z102: 2.588554104 | AA102: 2.848483576 | AB102: 15.45224671 | AC102: -38.12955241 | AD102: -93.04875525 | AE102: 12.12095257 | AF102: 2.848483576 | AG102: 2.848483576 | AH102: 9.272468997
A103: 62 | B103: 2062 | D103: =IF(FAU!$C103*(1+D$38/27*($B103-$B$64))>=0,FAU!$C103*(1+D$38/27*($B103-$B$64)),0) -> 892.6119283 | E103: 1 | G103: 19031.43148 | H103: 9638.721881 | I103: 64.21181258 | K103: 347.5876894 | L103: 3350.522275 | M103: 0.2151431084 | O103: =FAU!$U103-FAU!$U102*(1-FAU!$F102) -> 935.0171449 | P103: 1.04750689 | R103: =IF(AND(O103>D103,$AA$1="YES"),R102*(1-FAU!$F102)+D103,R102*(1-FAU!$F102)+O103) -> 18683.84379 | S103: 0.9817361248 | T103: 1.84249373e-06 | U103: 180088.1528 | V103: 0.1293425941 | W103: 23293.06884 | X103: 104.5565653 | Y103: 13.52361738 | Z103: 2.435443273 | AA103: 2.650586382 | AB103: 14.44944138 | AC103: -38.3274496 | AD103: -93.53169004 | AE103: 11.77892982 | AF103: 2.650586382 | AG103: 2.650586382 | AH103: 9.12834344
A104: 63 | B104: 2063 | D104: =IF(FAU!$C104*(1+D$38/27*($B104-$B$64))>=0,FAU!$C104*(1+D$38/27*($B104-$B$64)),0) -> 891.7139928 | E104: 1 | G104: 19072.00313 | H104: 9570.220841 | I104: 62.70687963 | K104: 297.352454 | L104: 2845.892545 | M104: 0.1784570412 | O104: =FAU!$U104-FAU!$U103*(1-FAU!$F103) -> 927.450274 | P104: 1.040075945 | R104: =IF(AND(O104>D104,$AA$1="YES"),R103*(1-FAU!$F103)+D104,R103*(1-FAU!$F103)+O104) -> 18774.65068 | S104: 0.9844089553 | T104: 1.368218321e-06 | U104: 179677.3893 | V104: 0.1280491682 | W104: 23007.54024 | X104: 99.51771007 | Y104: 12.74315999 | Z104: 2.289657719 | AA104: 2.46811476 | AB104: 13.52219144 | AC104: -38.50992122 | AD104: -93.97698133 | AE104: 11.44546546 | AF104: 2.46811476 | AG104: 2.46811476 | AH104: 8.977350704
A105: 64 | B105: 2064 | D105: =IF(FAU!$C105*(1+D$38/27*($B105-$B$64))>=0,FAU!$C105*(1+D$38/27*($B105-$B$64)),0) -> 890.8023687 | E105: 1 | G105: 19110.91527 | H105: 9502.206622 | I105: 61.23721741 | K105: 255.3862991 | L105: 2426.854743 | M105: 0.1486138315 | O105: =FAU!$U105-FAU!$U104*(1-FAU!$F104) -> 920.5366385 | P105: 1.033379199 | R105: =IF(AND(O105>D105,$AA$1="YES"),R104*(1-FAU!$F104)+D105,R104*(1-FAU!$F104)+O105) -> 18855.52898 | S105: 0.9866366265 | T105: 1.016025834e-06 | U105: 179169.0109 | V105: 0.1267686765 | W105: 22713.01838 | X105: 94.70950466 | Y105: 12.00619856 | Z105: 2.15113872 | AA105: 2.299752552 | AB105: 12.66412395 | AC105: -38.67828343 | AD105: -94.38784096 | AE105: 11.12042551 | AF105: 2.299752552 | AG105: 2.299752552 | AH105: 8.820672956
A106: 65 | B106: 2065 | D106: =IF(FAU!$C106*(1+D$38/27*($B106-$B$64))>=0,FAU!$C106*(1+D$38/27*($B106-$B$64)),0) -> 889.8780533 | E106: 1 | G106: 19148.23246 | H106: 9434.675765 | I106: 59.80199933 | K106: =IF(AND(G106<>"",R106<>"",G106-R106>0,K105>0.9),G106-R106,0) -> 220.7055399 | L106: 2082.375031 | M106: 0.1245301902 | O106: =FAU!$U106-FAU!$U105*(1-FAU!$F105) -> 914.2189012 | P106: 1.027353015 | R106: =IF(AND(O106>D106,$AA$1="YES"),R105*(1-FAU!$F105)+D106,R105*(1-FAU!$F105)+O106) -> 18927.52692 | S106: 0.9884738427 | T106: 7.544910199e-07 | U106: 178574.9896 | V106: 0.1255009897 | W106: 22411.33794 | X106: 90.12259927 | Y106: 11.3104754 | Z106: 2.019768028 | AA106: 2.144298218 | AB106: 11.86942045 | AC106: -38.83373776 | AD106: -94.76720109 | AE106: 10.8036716 | AF106: 2.144298218 | AG106: 2.144298218 | AH106: 8.659373383
A107: 66 | B107: 2066 | D107: =IF(FAU!$C107*(1+D$38/27*($B107-$B$64))>=0,FAU!$C107*(1+D$38/27*($B107-$B$64)),0) -> 888.9419781 | E107: 1 | G107: 19184.01699 | H107: 9367.624833 | I107: 58.40041813 | K107: =IF(AND(G107<>"",R107<>"",G107-R107>0,K106>0.9),G107-R107,0) -> 192.4268888 | L107: 1802.649353 | M107: 0.105275476 | O107: =FAU!$U107-FAU!$U106*(1-FAU!$F106) -> 908.4428799 | P107: 1.021937204 | R107: =IF(AND(O107>D107,$AA$1="YES"),R106*(1-FAU!$F106)+D107,R106*(1-FAU!$F106)+O107) -> 18991.5901 | S107: 0.9899694163 | T107: 5.602777563e-07 | U107: 177906.0246 | V107: 0.1242459798 | W107: 22104.10833 | X107: 85.74789945 | Y107: 10.65383178 | Z107: 1.895380859 | AA107: 2.000656335 | AB107: 11.13277557 | AC107: -38.97737965 | AD107: -95.11773494 | AE107: 10.4950617 | AF107: 2.000656335 | AG107: 2.000656335 | AH107: 8.494405362
A108: 67 | B108: 2067 | D108: =IF(FAU!$C108*(1+D$38/27*($B108-$B$64))>=0,FAU!$C108*(1+D$38/27*($B108-$B$64)),0) -> 887.9950126 | E108: 1 | G108: 19218.329 | H108: 9301.050416 | I108: 57.03168549 | K108: 169.7592325 | L108: 1578.988322 | M108: 0.09005236539 | O108: =FAU!$U108-FAU!$U107*(1-FAU!$F107) -> 903.1578568 | P108: 1.017075371 | R108: =IF(AND(O108>D108,$AA$1="YES"),R107*(1-FAU!$F107)+D108,R107*(1-FAU!$F107)+O108) -> 19048.56977 | S108: 0.9911668058 | T108: 4.160568462e-07 | U108: 177171.6587 | V108: 0.12300352 | W108: 21792.73766 | X108: 81.5765731 | Y108: 10.03420564 | Z108: 1.777776857 | AA108: 1.867829222 | AB108: 10.44935643 | AC108: -39.11020676 | AD108: -95.44187715 | AE108: 10.19445068 | AF108: 1.867829222 | AG108: 1.867829222 | AH108: 8.326621457
A109: 68 | B109: 2068 | D109: =IF(FAU!$C109*(1+D$38/27*($B109-$B$64))>=0,FAU!$C109*(1+D$38/27*($B109-$B$64)),0) -> 887.0379686 | E109: 1 | G109: 19251.22653 | H109: 9234.949128 | I109: 55.69503156 | K109: 151.995663 | L109: 1403.708545 | M109: 0.07817959174 | O109: =FAU!$U109-FAU!$U108*(1-FAU!$F108) -> 898.3167238 | P109: 1.012715076 | R109: =IF(AND(O109>D109,$AA$1="YES"),R108*(1-FAU!$F108)+D109,R108*(1-FAU!$F108)+O109) -> 19099.23086 | S109: 0.9921046245 | T109: 3.089597852e-07 | U109: 176380.3891 | V109: 0.1217734848 | W109: 21478.45463 | X109: 77.60005528 | Y109: 9.449629153 | Z109: 1.666729267 | AA109: 1.744908858 | AB109: 9.814763422 | AC109: -39.23312712 | AD109: -95.74184361 | AE109: 9.901690928 | AF109: 1.744908858 | AG109: 1.744908858 | AH109: 8.15678207
A110: 69 | B110: 2069 | D110: =IF(FAU!$C110*(1+D$38/27*($B110-$B$64))>=0,FAU!$C110*(1+D$38/27*($B110-$B$64)),0) -> 886.0716041 | E110: 1 | G110: 19282.76549 | H110: 9169.317607 | I110: 54.38970454 | K110: 138.5058703 | L110: 1270.031164 | M110: 0.0690766198 | O110: =FAU!$U110-FAU!$U109*(1-FAU!$F109) -> 893.8760052 | P110: 1.008807867 | R110: =IF(AND(O110>D110,$AA$1="YES"),R109*(1-FAU!$F109)+D110,R109*(1-FAU!$F109)+O110) -> 19144.25962 | S110: 0.9928171159 | T110: 2.294305407e-07 | U110: 175539.77 | V110: 0.12055575 | W110: 21162.32862 | X110: 73.81005133 | Y110: 8.898226092 | Z110: 1.561992562 | AA110: 1.631069181 | AB110: 9.224993019 | AC110: -39.3469668 | AD110: -96.01965018 | AE110: 9.616632846 | AF110: 1.631069181 | AG110: 1.631069181 | AH110: 7.985563664
A111: 70 | B111: 2070 | D111: =IF(FAU!$C111*(1+D$38/27*($B111-$B$64))>=0,FAU!$C111*(1+D$38/27*($B111-$B$64)),0) -> 885.0966272 | E111: 1 | G111: 19312.99984 | H111: 9104.152514 | I111: 53.11497024 | K111: 128.7289653 | L111: 1171.987971 | M111: 0.06225010619 | O111: =FAU!$U111-FAU!$U110*(1-FAU!$F110) -> 889.795792 | P111: 1.005309211 | R111: =IF(AND(O111>D111,$AA$1="YES"),R110*(1-FAU!$F110)+D111,R110*(1-FAU!$F110)+O111) -> 19184.27088 | S111: 0.993334595 | T111: 1.703728927e-07 | U111: 174656.5081 | V111: 0.1193501925 | W111: 20845.28786 | X111: 70.19853819 | Y111: 8.378209043 | Z111: 1.463308736 | AA111: =M111+Z111 -> 1.525558842 | AB111: 8.676402721 | AC111: -39.45247714 | AD111: -96.27713041 | AE111: 9.339125337 | AF111: =Z111+M111 -> 1.525558842 | AG111: =AF111 -> 1.525558842 | AH111: 7.813566495
A112: 71 | B112: 2071 | D112: =IF(FAU!$C112*(1+D$38/27*($B112-$B$64))>=0,FAU!$C112*(1+D$38/27*($B112-$B$64)),0) -> 884.1136985 | E112: 1 | G112: 19341.98155 | H112: 9039.450535 | I112: 51.87011168 | K112: 122.1667742 | L112: 1104.335166 | M112: 0.05728198838 | O112: =FAU!$U112-FAU!$U111*(1-FAU!$F111) -> 886.0396145 | P112: 1.002178358 | R112: =IF(AND(O112>D112,$AA$1="YES"),R111*(1-FAU!$F111)+D112,R111*(1-FAU!$F111)+O112) -> 19219.81477 | S112: 0.9936838543 | T112: 1.265172552e-07 | U112: 173736.5503 | V112: 0.1181566905 | W112: 20528.13581 | X112: 66.75776445 | Y112: 7.887876515 | Z112: 1.370412455 | AA112: 1.427694443 | AB112: 8.165678408 | AC112: =Z112+M112-M$46 -> -39.55034154 | AD112: =(AC112/M$46*100) -> -96.515952 | AE112: 9.069016254 | AF112: 1.427694443 | AG112: 1.427694443 | AH112: 7.641321811
A113: 72 | B113: 2072 | D113: =IF(FAU!$C113*(1+D$38/27*($B113-$B$64))>=0,FAU!$C113*(1+D$38/27*($B113-$B$64)),0) -> 883.1234353 | E113: 0 | G113: 19369.76068 | H113: 8975.208377 | I113: 50.65442866 | K113: 118.3776205 | L113: 1062.474633 | M113: 0.05381904552 | O113: =FAU!$U113-FAU!$U112*(1-FAU!$F112) -> 882.5742738 | P113: 0.99937816 | R113: =IF(AND(O113>D113,$AA$1="YES"),R112*(1-FAU!$F112)+D113,R112*(1-FAU!$F112)+O113) -> 19251.38306 | S113: 0.9938885347 | T113: 9.395048417e-08 | U113: 172785.1637 | V113: 0.1169751236 | W113: 20211.56588 | X113: 63.48024908 | Y113: 7.425609985 | Z113: 1.283035237 | AA113: 1.336854282 | AB113: 7.689804102 | AC113: -39.6411817 | AD113: -96.73763212 | AE113: 8.806152794 | AF113: 1.336854282 | AG113: 1.336854282 | AH113: 7.469298512
A114: 73 | B114: 2073 | D114: =IF(FAU!$C114*(1+D$38/27*($B114-$B$64))>=0,FAU!$C114*(1+D$38/27*($B114-$B$64)),0) -> 882.1264138 | E114: 0 | G114: 19396.38546 | H114: 8911.422775 | I114: 49.46723744 | K114: 116.9705976 | L114: 1042.382438 | M114: 0.05156377956 | O114: =FAU!$U114-FAU!$U113*(1-FAU!$F113) -> 879.3696473 | P114: 0.9968748623 | R114: =IF(AND(O114>D114,$AA$1="YES"),R113*(1-FAU!$F113)+D114,R113*(1-FAU!$F113)+O114) -> 19279.41486 | S114: 0.9939694642 | T114: 6.976671611e-08 | U114: 171807.0087 | V114: 0.1158053724 | W114: 19896.17462 | X114: 60.35877917 | Y114: 6.989870899 | Z114: 1.20090881 | AA114: 1.25247259 | AB114: 7.246034143 | AC114: -39.72556339 | AD114: -96.94355144 | AE114: 8.550381873 | AF114: 1.25247259 | AG114: 1.25247259 | AH114: 7.297909283
A115: 74 | B115: 2074 | D115: =IF(FAU!$C115*(1+D$38/27*($B115-$B$64))>=0,FAU!$C115*(1+D$38/27*($B115-$B$64)),0) -> 881.1231721 | E115: 0 | G115: 19421.90233 | H115: 8848.090482 | I115: 48.30787025 | K115: 117.6003206 | L115: 1040.544177 | M115: 0.0502664731 | O115: =FAU!$U115-FAU!$U114*(1-FAU!$F114) -> 876.3984807 | P115: 0.9946378763 | R115: =IF(AND(O115>D115,$AA$1="YES"),R114*(1-FAU!$F114)+D115,R114*(1-FAU!$F114)+O115) -> 19304.302 | S115: 0.9939449639 | T115: 5.180808488e-08 | U115: 170806.2049 | V115: 0.1146473187 | W115: 19582.47341 | X115: 57.38640663 | Y115: 6.579197648 | Z115: 1.123767782 | AA115: 1.174034255 | AB115: 6.831867702 | AC115: -39.80400173 | AD115: -97.134967 | AE115: 8.301550458 | AF115: 1.174034255 | AG115: 1.174034255 | AH115: 7.127516203
A116: 75 | B116: 2075 | D116: =IF(FAU!$C116*(1+D$38/27*($B116-$B$64))>=0,FAU!$C116*(1+D$38/27*($B116-$B$64)),0) -> 880.1142128 | E116: 0 | G116: 19446.35596 | H116: 8785.208278 | I116: 47.175675 | K116: 119.9621407 | L116: 1053.896746 | M116: 0.04971829036 | O116: =FAU!$U116-FAU!$U115*(1-FAU!$F115) -> 873.6361746 | P116: 0.9926395482 | R116: =IF(AND(O116>D116,$AA$1="YES"),R115*(1-FAU!$F115)+D116,R115*(1-FAU!$F115)+O116) -> 19326.39382 | S116: 0.9938311249 | T116: 3.847217986e-08 | U116: 169786.3906 | V116: 0.1135008455 | W116: =V116*U116 -> 19270.89889 | X116: 54.55644427 | Y116: 6.192202552 | Z116: =W116*X116/1000000 -> 1.051351721 | AA116: 1.101070012 | AB116: 6.445025518 | AC116: -39.87696597 | AD116: -97.31302395 | AE116: 8.059505874 | AF116: 1.101070012 | AG116: 1.101070012 | AH116: 6.958435862
A117: 76 | B117: 2076 | D117: =IF(FAU!$C117*(1+D$38/27*($B117-$B$64))>=0,FAU!$C117*(1+D$38/27*($B117-$B$64)),0) -> 879.100005 | E117: 0 | G117: 19469.78938 | H117: 8722.772963 | I117: 46.07001488 | K117: 123.7877962 | L117: 1079.776056 | M117: 0.04974529895 | O117: =FAU!$U117-FAU!$U116*(1-FAU!$F116) -> 871.0605724 | P117: 0.9908549282 | R117: =IF(AND(O117>D117,$AA$1="YES"),R116*(1-FAU!$F116)+D117,R116*(1-FAU!$F116)+O117) -> 19346.00159 | S117: 0.9936420578 | T117: 2.856906646e-08 | U117: 168750.7764 | V117: 0.112365837 | W117: 18961.82224 | X117: 51.86246111 | Y117: 5.827568854 | Z117: 0.9834067685 | AA117: 1.033152067 | AB117: 6.083428762 | AC117: -39.94488392 | AD117: -97.47876626 | AE117: 7.824096077 | AF117: 1.033152067 | AG117: 1.033152067 | AH117: =AE117-AF117 -> 6.79094401
A118: 77 | B118: 2077 | D118: =IF(FAU!$C118*(1+D$38/27*($B118-$B$64))>=0,FAU!$C118*(1+D$38/27*($B118-$B$64)),0) -> 878.0809872 | E118: 0 | G118: 19492.24397 | H118: 8660.781363 | I118: 44.99026799 | K118: 128.8414764 | L118: 1115.87023 | M118: 0.05020330067 | O118: =FAU!$U118-FAU!$U117*(1-FAU!$F117) -> 868.6517544 | P118: 0.9892615454 | R118: =IF(AND(O118>D118,$AA$1="YES"),R117*(1-FAU!$F117)+D118,R117*(1-FAU!$F117)+O118) -> 19363.40249 | S118: 0.9933901157 | T118: 2.121511077e-08 | U118: 167702.193 | V118: 0.1112421787 | W118: 18655.55732 | X118: 49.29827717 | Y118: 5.484047757 | Z118: 0.9196868355 | AA118: 0.9698901362 | AB118: 5.745179855 | AC118: -40.00814585 | AD118: -97.63314636 | AE118: 7.595169908 | AF118: 0.9698901362 | AG118: 0.9698901362 | AH118: 6.625279772
A119: 78 | B119: 2078 | D119: =IF(FAU!$C119*(1+D$38/27*($B119-$B$64))>=0,FAU!$C119*(1+D$38/27*($B119-$B$64)),0) -> 877.0575685 | E119: 0 | G119: 19513.75951 | H119: 8599.230323 | I119: 43.93582703 | K119: 134.916267 | L119: 1160.177805 | M119: 0.05097337134 | O119: =FAU!$U119-FAU!$U118*(1-FAU!$F118) -> 866.39184 | P119: 0.9878391922 | R119: =IF(AND(O119>D119,$AA$1="YES"),R118*(1-FAU!$F118)+D119,R118*(1-FAU!$F118)+O119) -> 19378.84324 | S119: 0.9930860956 | T119: 1.575413481e-08 | U119: 166643.1347 | V119: 0.1101297569 | W119: 18352.36791 | X119: 46.85795781 | Y119: 5.160455501 | Z119: 0.8599544811 | AA119: 0.9109278524 | AB119: 5.428545116 | AC119: -40.06710813 | AD119: -97.77703389 | AE119: 7.372577312 | AF119: 0.9109278524 | AG119: 0.9109278524 | AH119: 6.461649459
A120: 79 | B120: 2079 | D120: =IF(FAU!$C120*(1+D$38/27*($B120-$B$64))>=0,FAU!$C120*(1+D$38/27*($B120-$B$64)),0) -> 876.0301313 | E120: 0 | G120: 19534.37428 | H120: 8538.116713 | I120: 42.9060989 | K120: 141.8309494 | L120: 1210.970491 | M120: 0.05195801966 | O120: =FAU!$U120-FAU!$U119*(1-FAU!$F119) -> 864.2648017 | P120: 0.9865697204 | R120: =IF(AND(O120>D120,$AA$1="YES"),R119*(1-FAU!$F119)+D120,R119*(1-FAU!$F119)+O120) -> 19392.54333 | S120: 0.9927394168 | T120: 1.169886719e-08 | U120: 165575.7971 | V120: 0.1090284593 | W120: 18052.47405 | X120: 44.53580772 | Y120: 4.855670499 | Z120: 0.8039815132 | AA120: 0.8559395328 | AB120: 5.131939094 | AC120: -40.12209645 | AD120: -97.91122363 | AE120: 7.156169544 | AF120: 0.8559395328 | AG120: 0.8559395328 | AH120: 6.300230011
A121: 80 | B121: 2080 | D121: =IF(FAU!$C121*(1+D$38/27*($B121-$B$64))>=0,FAU!$C121*(1+D$38/27*($B121-$B$64)),0) -> 874.9990326 | E121: 0 | G121: 19554.12509 | H121: 8477.437424 | I121: 41.90050443 | K121: 149.4271251 | L121: 1266.760055 | M121: 0.05307788529 | O121: =FAU!$U121-FAU!$U120*(1-FAU!$F120) -> 862.2562899 | P121: 0.9854368494 | R121: =IF(AND(O121>D121,$AA$1="YES"),R120*(1-FAU!$F120)+D121,R120*(1-FAU!$F120)+O121) -> 19404.69796 | S121: 0.9923582812 | T121: 8.687464916e-09 | U121: 164502.1118 | V121: 0.1079381747 | W121: 17756.05768 | X121: 42.32636458 | Y121: 4.568630535 | Z121: 0.751549371 | AA121: 0.8046272563 | AB121: 4.853910432 | AC121: -40.17340873 | AD121: -98.0364426 | AE121: 6.945799348 | AF121: 0.8046272563 | AG121: 0.8046272563 | AH121: 6.141172092
A122: 81 | B122: 2081 | D122: =IF(FAU!$C122*(1+D$38/27*($B122-$B$64))>=0,FAU!$C122*(1+D$38/27*($B122-$B$64)),0) -> 873.9646058 | E122: 0 | G122: 19573.04729 | H122: 8417.18937 | I122: 40.91847799 | K122: 157.5666364 | L122: 1326.26892 | M122: 0.0542689056 | O122: =FAU!$U122-FAU!$U121*(1-FAU!$F121) -> 860.353471 | P122: 0.9844259885 | R122: =IF(AND(O122>D122,$AA$1="YES"),R121*(1-FAU!$F121)+D122,R121*(1-FAU!$F121)+O122) -> 19415.48066 | S122: 0.9919498158 | T122: 6.451226893e-09 | U122: 163423.7767 | V122: 0.106858793 | W122: 17463.26752 | X122: 40.22439257 | Y122: 4.298330038 | Z122: 0.7024493284 | AA122: 0.756718234 | AB122: 4.593129131 | AC122: -40.22131775 | AD122: -98.15335651 | AE122: 6.741321117 | AF122: 0.756718234 | AG122: 0.756718234 | AH122: 5.984602883
A123: 82 | B123: 2082 | D123: =IF(FAU!$C123*(1+D$38/27*($B123-$B$64))>=0,FAU!$C123*(1+D$38/27*($B123-$B$64)),0) -> 872.9271626 | E123: 0 | G123: 19591.17489 | H123: 8357.369486 | I123: 39.95946725 | K123: 166.129258 | L123: 1388.40411 | M123: 0.05547988857 | O123: =FAU!$U123-FAU!$U122*(1-FAU!$F122) -> 858.5448782 | P123: 0.9835240729 | R123: =IF(AND(O123>D123,$AA$1="YES"),R122*(1-FAU!$F122)+D123,R122*(1-FAU!$F122)+O123) -> 19425.04564 | S123: 0.9915201993 | T123: 4.790618301e-09 | U123: 162342.2831 | V123: 0.105790205 | W123: 17174.22342 | X123: 38.22487563 | Y123: 4.04381743 | Z123: 0.6564825543 | AA123: 0.7119624428 | AB123: 4.348375096 | AC123: -40.26607354 | AD123: -98.26257549 | AE123: 6.542591036 | AF123: 0.7119624428 | AG123: 0.7119624428 | AH123: 5.830628593
A124: 83 | B124: 2083 | D124: =IF(FAU!$C124*(1+D$38/27*($B124-$B$64))>=0,FAU!$C124*(1+D$38/27*($B124-$B$64)),0) -> 871.8869937 | E124: 0 | G124: 19608.54055 | H124: 8297.974729 | I124: 39.02293279 | K124: =IF(AND(G124<>"",R124<>"",G124-R124>0,K123>0),G124-R124,0) -> 175.0106333 | L124: 1452.234195 | M124: 0.05667043738 | O124: =FAU!$U124-FAU!$U123*(1-FAU!$F123) -> 856.820274 | P124: 0.9827194122 | R124: =IF(AND(O124>D124,$AA$1="YES"),R123*(1-FAU!$F123)+D124,R123*(1-FAU!$F123)+O124) -> 19433.52991 | S124: 0.9910747752 | T124: 3.557466522e-09 | U124: 161258.9398 | V124: 0.104732303 | W124: 16889.02014 | X124: 36.32301067 | Y124: 3.804192559 | Z124: 0.6134600587 | AA124: 0.6701304961 | AB124: 4.118527817 | AC124: -40.30790549 | AD124: -98.36465931 | AE124: 6.349467205 | AF124: 0.6701304961 | AG124: 0.6701304961 | AH124: 5.679336709
A125: 84 | B125: 2084 | D125: =IF(FAU!$C125*(1+D$38/27*($B125-$B$64))>=0,FAU!$C125*(1+D$38/27*($B125-$B$64)),0) -> 870.8443711 | E125: 0 | G125: 19625.17564 | H125: =IF(AC$147*AE$147*AH$147*EXP(-AE$147*EXP(-AH$147*(B125-2000))-AH$147*(B125-2000))*(1+H$38/27*($B125-$B$64))>=0,AC$147*AE$147*AH$147*EXP(-AE$147*EXP(-AH$147*(B125-2000))-AH$147*(B125-2000))*(1+H$38/27*($B125-$B$64)),0) -> 8239.002078 | I125: 38.10834784 | K125: 184.1204321 | L125: 1516.968905 | M125: 0.05780917868 | O125: =FAU!$U125-FAU!$U124*(1-FAU!$F124) -> 855.1705248 | P125: 0.982001553 | R125: =IF(AND(O125>D125,$AA$1="YES"),R124*(1-FAU!$F124)+D125,R124*(1-FAU!$F124)+O125) -> 19441.05521 | S125: 0.9906181511 | T125: 2.641740013e-09 | U125: 160174.894 | V125: 0.10368498 | W125: 16607.73067 | X125: 34.51420072 | Y125: 3.57860421 | Z125: 0.5732025499 | AA125: 0.6310117286 | AB125: 3.902557107 | AC125: -40.34702425 | AD125: -98.46012208 | AE125: 6.161809754 | AF125: 0.6310117286 | AG125: 0.6310117286 | AH125: 5.530798025
A126: 85 | B126: 2085 | D126: =IF(FAU!$C126*(1+D$38/27*($B126-$B$64))>=0,FAU!$C126*(1+D$38/27*($B126-$B$64)),0) -> 869.7995485 | E126: 0 | G126: 19641.11031 | H126: 8180.448534 | I126: 37.21519798 | K126: 193.3807089 | L126: 1581.941144 | M126: 0.05887225287 | O126: =FAU!$U126-FAU!$U125*(1-FAU!$F125) -> 853.5874874 | P126: 0.9813611526 | R126: =IF(AND(O126>D126,$AA$1="YES"),R125*(1-FAU!$F125)+D126,R125*(1-FAU!$F125)+O126) -> 19447.7296 | S126: 0.9901542883 | T126: 1.96173042e-09 | U126: 159091.1509 | V126: 0.1026481302 | W126: 16330.40916 | X126: 32.79404803 | Y126: 3.36624771 | Z126: 0.5355402223 | AA126: 0.5944124752 | AB126: 3.699514759 | AC126: -40.38362351 | AD126: -98.5494364 | AE126: 5.979480929 | AF126: 0.5944124752 | AG126: 0.5944124752 | AH126: 5.385068454
A127: 86 | B127: 2086 | D127: =IF(FAU!$C127*(1+D$38/27*($B127-$B$64))>=0,FAU!$C127*(1+D$38/27*($B127-$B$64)),0) -> 868.7527631 | E127: 0 | G127: 19656.3735 | H127: 8122.311117 | I127: 36.34298084 | K127: 202.7244402 | L127: 1646.591127 | M127: 0.05984202979 | O127: =FAU!$U127-FAU!$U126*(1-FAU!$F126) -> 852.0639055 | P127: 0.9807898653 | R127: =IF(AND(O127>D127,$AA$1="YES"),R126*(1-FAU!$F126)+D127,R126*(1-FAU!$F126)+O127) -> 19453.64906 | S127: 0.9896865798 | T127: 1.456761915e-09 | U127: 158008.5899 | V127: 0.1016216489 | W127: 16057.09344 | X127: 31.15834718 | Y127: 3.166362616 | Z127: 0.500312492 | AA127: 0.5601545218 | AB127: 3.508527053 | AC127: -40.41788146 | AD127: -98.63303717 | AE127: 5.802345184 | AF127: 0.5601545218 | AG127: 0.5601545218 | AH127: 5.242190662
A128: 87 | B128: 2087 | D128: =IF(FAU!$C128*(1+D$38/27*($B128-$B$64))>=0,FAU!$C128*(1+D$38/27*($B128-$B$64)),0) -> 867.7042365 | E128: 0 | G128: 19670.99302 | H128: 8064.58687 | I128: 35.49120583 | K128: 212.0942239 | L128: 1710.452407 | M128: 0.06070601843 | O128: =FAU!$U128-FAU!$U127*(1-FAU!$F127) -> 850.5933159 | P128: 0.9802802386 | R128: =IF(AND(O128>D128,$AA$1="YES"),R127*(1-FAU!$F127)+D128,R127*(1-FAU!$F127)+O128) -> 19458.8988 | S128: 0.9892179198 | T128: 1.081777219e-09 | U128: 156927.9796 | V128: 0.1006054324 | W128: 15787.80724 | X128: 29.60307829 | Y128: 2.978230491 | Z128: 0.4673676938 | AA128: 0.5280737122 | AB128: 3.328788021 | AC128: -40.44996227 | AD128: -98.71132498 | AE128: 5.630269243 | AF128: 0.5280737122 | AG128: 0.5280737122 | AH128: 5.102195531
A129: 88 | B129: 2088 | D129: =IF(FAU!$C129*(1+D$38/27*($B129-$B$64))>=0,FAU!$C129*(1+D$38/27*($B129-$B$64)),0) -> 866.6541755 | E129: 0 | G129: =IF(a*EXP(-b*EXP(-ze*(B129-2000)))*(1+G$38/27*($B129-$B$64))>=0,a*EXP(-b*EXP(-ze*(B129-2000)))*(1+G$38/27*($B129-$B$64)),0) -> 19684.99555 | H129: 8007.272858 | I129: =IF($M$150*$O$150*$R$150*EXP((-$O$150*EXP(-$R$150*($B129-2000))-$R$150*($B129-2000)))*(1+I$38/27*($B129-$B$64))>=0,$M$150*$O$150*$R$150*EXP((-$O$150*EXP(-$R$150*($B129-2000))-$R$150*($B129-2000)))*(1+I$38/27*($B129-$B$64)),0) -> 34.65939385 | K129: 221.4411236 | L129: 1773.139582 | M129: =IF(L129>=0,I129*L129/1000000,0) -> 0.06145594313 | O129: =FAU!$U129-FAU!$U128*(1-FAU!$F128) -> 849.169965 | P129: 0.9798256202 | R129: =IF(AND(O129>D129,$AA$1="YES"),R128*(1-FAU!$F128)+D129,R128*(1-FAU!$F128)+O129) -> 19463.55443 | S129: 0.9887507659 | T129: =IF(Scen=5,IF($F$154*$I$154*$K$154*EXP((-$I$154*EXP(-$K$154*($B129-2000))-$K$154*($B129-2000)))*(1-2.8519/77*($B129-$B$64))>=0,$F$154*$I$154*$K$154*EXP((-$I$154*EXP(-$K$154*($B129-2000))-$K$154*($B129-2000)))*(1-2.8519/77*($B129-$B$64)),0),IF(Scen<>5,IF($F$154*$I$154*$K$154*EXP((-$I$154*EXP(-$K$154*($B129-2000))-$K$154*($B129-2000)))*(1+T$38/27*($B129-$B$64))>=0,$F$154*$I$154*$K$154*EXP((-$I$154*EXP(-$K$154*($B129-2000))-$K$154*($B129-2000)))*(1+T$38/27*($B129-$B$64)),0))) -> 8.033172327e-10 | U129: =R129*(1-2/3*T129)*H129/1000 -> 155849.991 | V129: 0.09959937804 | W129: 15522.56217 | X129: =IF(OR(Scen=3,Scen=5),IF($V$154*$X$154*$Z$154*EXP((-$X$154*EXP(-$Z$154*($B129-2000))-$Z$154*($B129-2000)))*(1-2.8519/77*($B129-$B$64))>=0,$V$154*$X$154*$Z$154*EXP((-$X$154*EXP(-$Z$154*($B129-2000))-$Z$154*($B129-2000)))*(1-2.8519/77*($B129-$B$64)),0),IF(AND(Scen<>3,Scen<>5),IF($V$154*$X$154*$Z$154*EXP((-$X$154*EXP(-$Z$154*($B129-2000))-$Z$154*($B129-2000)))*(1+X$38/27*($B129-$B$64))>=0,$V$154*$X$154*$Z$154*EXP((-$X$154*EXP(-$Z$154*($B129-2000))-$Z$154*($B129-2000)))*(1+X$38/27*($B129-$B$64)),0))) -> 28.12440024 | Y129: 2.801172772 | Z129: 0.4365627512 | AA129: 0.4980186943 | AB129: 3.159553376 | AC129: -40.48001729 | AD129: -98.7846692 | AE129: 5.463122162 | AF129: 0.4980186943 | AG129: 0.4980186943 | AH129: 4.965103468
A130: 89 | B130: 2089 | D130: =IF(FAU!$C130*(1+D$38/27*($B130-$B$64))>=0,FAU!$C130*(1+D$38/27*($B130-$B$64)),0) -> 865.6027735 | E130: =IF(D130<O130,1,0) -> 0 | G130: 19698.40671 | H130: 7950.366165 | I130: 33.84707704 | K130: 230.7236416 | L130: 1834.337495 | M130: 0.0620869625 | O130: =FAU!$U130-FAU!$U129*(1-FAU!$F129) -> 847.788732 | P130: =O130/D130 -> 0.9794200735 | R130: =IF(AND(O130>D130,$AA$1="YES"),R129*(1-FAU!$F129)+D130,R129*(1-FAU!$F129)+O130) -> 19467.68307 | S130: =R130/G130 -> 0.9882871927 | T130: 5.965355577e-10 | U130: 154775.2087 | V130: =IF(V$64*0.99^(B130-B$64)*(1+V$38/27*($B130-$B$64))>=0,V$64*0.99^(B130-B$64)*(1+V$38/27*($B130-$B$64)),0) -> 0.09860338426 | W130: 15261.35938 | X130: 26.71864398 | Y130: 2.63454872 | Z130: 0.4077628279 | AA130: 0.4698497904 | AB130: 3.000135061 | AC130: -40.50818619 | AD130: -98.85341066 | AE130: 5.300775375 | AF130: 0.4698497904 | AG130: 0.4698497904 | AH130: 4.830925585
A131: 90 | B131: 2090 | D131: =IF(FAU!$C131*(1+D$38/27*($B131-$B$64))>=0,FAU!$C131*(1+D$38/27*($B131-$B$64)),0) -> 864.550211 | E131: 0 | G131: 19711.25109 | H131: 7893.863895 | I131: 33.05379849 | K131: 239.9068086 | L131: 1893.79174 | M131: 0.06259701057 | O131: =FAU!$U131-FAU!$U130*(1-FAU!$F130) -> 846.4450615 | P131: 0.9790583019 | R131: =IF(AND(O131>D131,$AA$1="YES"),R130*(1-FAU!$F130)+D131,R130*(1-FAU!$F130)+O131) -> 19471.34428 | S131: 0.9878289406 | T131: 4.429814986e-10 | U131: 153704.1416 | V131: 0.09761735042 | W131: 15004.19105 | X131: 25.38230602 | Y131: 2.477753462 | Z131: 0.3808409689 | AA131: 0.4434379795 | AB131: 2.849896332 | AC131: -40.534598 | AD131: -98.91786424 | AE131: 5.143102735 | AF131: 0.4434379795 | AG131: 0.4434379795 | AH131: 4.699664755
A132: 91 | B132: 2091 | D132: =IF(FAU!$C132*(1+D$38/27*($B132-$B$64))>=0,FAU!$C132*(1+D$38/27*($B132-$B$64)),0) -> 863.4966568 | E132: 0 | G132: 19723.5523 | H132: 7837.763176 | I132: 32.27911202 | K132: 248.961377 | L132: 1951.300347 | M132: 0.06298624247 | O132: =FAU!$U132-FAU!$U131*(1-FAU!$F131) -> 845.134902 | P132: 0.9787355808 | R132: =IF(AND(O132>D132,$AA$1="YES"),R131*(1-FAU!$F131)+D132,R131*(1-FAU!$F131)+O132) -> 19474.59092 | S132: 0.9873774575 | T132: 3.28953749e-10 | U132: 152637.2316 | V132: 0.09664117691 | W132: 14751.0417 | X132: 24.11204197 | Y132: 2.330216113 | Z132: 0.3556777366 | AA132: 0.418663979 | AB132: 2.708247331 | AC132: -40.559372 | AD132: -98.97832102 | AE132: 4.989980539 | AF132: 0.418663979 | AG132: 0.418663979 | AH132: 4.57131656
A133: 92 | B133: 2092 | D133: =IF(FAU!$C133*(1+D$38/27*($B133-$B$64))>=0,FAU!$C133*(1+D$38/27*($B133-$B$64)),0) -> 862.4422683 | E133: 0 | G133: 19735.33298 | H133: 7782.061154 | I133: 31.52258187 | K133: 257.8631054 | L133: 2006.70648 | M133: 0.06325656931 | O133: =FAU!$U133-FAU!$U132*(1-FAU!$F132) -> 843.8546508 | P133: 0.9784476965 | R133: =IF(AND(O133>D133,$AA$1="YES"),R132*(1-FAU!$F132)+D133,R132*(1-FAU!$F132)+O133) -> 19477.46988 | S133: 0.9869339369 | T133: 2.44277852e-10 | U133: 151574.8617 | V133: 0.09567476514 | W133: 14501.88929 | X133: 22.90466023 | Y133: 2.191397988 | Z133: 0.3321608469 | AA133: 0.3954174162 | AB133: 2.574641091 | AC133: -40.58261857 | AD133: -99.03505035 | AE133: 4.841287556 | AF133: 0.3954174162 | AG133: 0.3954174162 | AH133: 4.44587014
A134: 93 | B134: 2093 | D134: =IF(FAU!$C134*(1+D$38/27*($B134-$B$64))>=0,FAU!$C134*(1+D$38/27*($B134-$B$64)),0) -> 861.3871928 | E134: 0 | G134: 19746.61487 | H134: 7726.754994 | I134: 30.78378253 | K134: 266.5921262 | L134: 2059.89206 | M134: 0.06341126923 | O134: =FAU!$U134-FAU!$U133*(1-FAU!$F133) -> 842.6011056 | P134: 0.978190891 | R134: =IF(AND(O134>D134,$AA$1="YES"),R133*(1-FAU!$F133)+D134,R133*(1-FAU!$F133)+O134) -> 19480.02274 | S134: 0.9864993505 | T134: 1.813983552e-10 | U134: 150517.363 | V134: 0.09471801749 | W134: 14256.70622 | X134: 21.7571159 | Y134: 2.060790884 | Z134: 0.3101848095 | AA134: 0.3735960787 | AB134: 2.44856993 | AC134: -40.6044399 | AD134: -99.08830165 | AE134: 4.696905038 | AF134: 0.3735960787 | AG134: 0.3735960787 | AH134: 4.323308959
A135: 94 | B135: 2094 | D135: =IF(FAU!$C135*(1+D$38/27*($B135-$B$64))>=0,FAU!$C135*(1+D$38/27*($B135-$B$64)),0) -> 860.3315676 | E135: 0 | G135: 19757.4188 | H135: 7671.841885 | I135: 30.06229844 | K135: 275.1323859 | L135: 2110.772176 | M135: 0.06345466309 | O135: =FAU!$U135-FAU!$U134*(1-FAU!$F134) -> 841.3714203 | P135: 0.9779618137 | R135: =IF(AND(O135>D135,$AA$1="YES"),R134*(1-FAU!$F134)+D135,R134*(1-FAU!$F134)+O135) -> 19482.28642 | S135: 0.9860744772 | T135: 1.347046528e-10 | U135: 149465.0209 | V135: 0.09377083732 | W135: 14015.46016 | X135: 20.66650475 | Y135: 1.937915455 | Z135: 0.289650574 | AA135: 0.353105237 | AB135: 2.329562194 | AC135: -40.62493075 | AD135: -99.1383061 | AE135: 4.556716729 | AF135: 0.353105237 | AG135: 0.353105237 | AH135: 4.203611492
A136: 95 | B136: 2095 | D136: =IF(FAU!$C136*(1+D$38/27*($B136-$B$64))>=0,FAU!$C136*(1+D$38/27*($B136-$B$64)),0) -> 859.2755213 | E136: 0 | G136: 19767.76479 | H136: 7617.319031 | I136: 29.3577238 | K136: 283.4711511 | L136: 2159.290204 | M136: 0.06339184541 | O136: =FAU!$U136-FAU!$U135*(1-FAU!$F135) -> 840.1630654 | P136: 0.9777574767 | R136: =IF(AND(O136>D136,$AA$1="YES"),R135*(1-FAU!$F135)+D136,R135*(1-FAU!$F135)+O136) -> 19484.29364 | S136: 0.985659929 | T136: 1.00030364e-10 | U136: 148418.0807 | V136: 0.09283312894 | W136: 13778.11483 | X136: 19.63005743 | Y136: 1.822319653 | Z136: 0.2704651853 | AA136: 0.3338570307 | AB136: 2.217179306 | AC136: -40.64417895 | AD136: -99.18527811 | AE136: 4.420608866 | AF136: 0.3338570307 | AG136: 0.3338570307 | AH136: 4.086751835
A137: 96 | B137: 2096 | D137: =IF(FAU!$C137*(1+D$38/27*($B137-$B$64))>=0,FAU!$C137*(1+D$38/27*($B137-$B$64)),0) -> 858.2191735 | E137: 0 | G137: 19777.67201 | H137: 7563.183661 | I137: 28.66966229 | K137: 291.5985712 | L137: 2205.413557 | M137: 0.06322846189 | O137: =FAU!$U137-FAU!$U136*(1-FAU!$F136) -> 838.973794 | P137: 0.977575216 | R137: =IF(AND(O137>D137,$AA$1="YES"),R136*(1-FAU!$F136)+D137,R136*(1-FAU!$F136)+O137) -> 19486.07344 | S137: 0.9852561732 | T137: 7.428157463e-11 | U137: 147376.7522 | V137: 0.09190479766 | W137: 13544.63059 | X137: 18.64513381 | Y137: 1.71357725 | Z137: 0.2525414498 | AA137: 0.3157699117 | AB137: 2.111013101 | AC137: -40.66226607 | AD137: -99.22941668 | AE137: 4.288470178 | AF137: 0.3157699117 | AG137: 0.3157699117 | AH137: 3.972700267
A138: 97 | B138: 2097 | D138: =IF(FAU!$C138*(1+D$38/27*($B138-$B$64))>=0,FAU!$C138*(1+D$38/27*($B138-$B$64)),0) -> 857.1626364 | E138: 0 | G138: 19787.15886 | H138: 7509.433021 | I138: 27.99772691 | K138: 299.5072938 | L138: 2249.129968 | M138: 0.06297052661 | O138: =FAU!$U138-FAU!$U137*(1-FAU!$F137) -> 837.8016096 | P138: 0.9774126566 | R138: =IF(AND(O138>D138,$AA$1="YES"),R137*(1-FAU!$F137)+D138,R137*(1-FAU!$F137)+O138) -> 19487.65157 | S138: 0.9848635524 | T138: 5.516077428e-11 | U138: 146341.2142 | V138: 0.09098574968 | W138: 13314.96508 | X138: 17.70921749 | Y138: 1.61128643 | Z138: 0.2357976126 | AA138: 0.2987681392 | AB138: 2.010683405 | AC138: -40.67926784 | AD138: -99.27090664 | AE138: 4.160191877 | AF138: 0.2987681392 | AG138: 0.2987681392 | AH138: 3.861423738
A139: 98 | B139: 2098 | D139: =IF(FAU!$C139*(1+D$38/27*($B139-$B$64))>=0,FAU!$C139*(1+D$38/27*($B139-$B$64)),0) -> 856.1060145 | E139: 0 | G139: 19796.243 | H139: 7456.064375 | I139: 27.3415397 | K139: 307.1921247 | L139: 2290.444261 | M139: 0.0626242727 | O139: =FAU!$U139-FAU!$U138*(1-FAU!$F138) -> 836.644739 | P139: 0.9772676805 | R139: =IF(AND(O139>D139,$AA$1="YES"),R138*(1-FAU!$F138)+D139,R138*(1-FAU!$F138)+O139) -> 19489.05087 | S139: 0.9844823018 | T139: 4.096185405e-11 | U139: 145311.6179 | V139: 0.09007589218 | W139: 13089.07363 | X139: 16.81991053 | Y139: 1.515068447 | Z139: 0.2201570474 | AA139: 0.2827813201 | AB139: 1.915835835 | AC139: -40.69525466 | AD139: -99.30991978 | AE139: 4.035667643 | AF139: 0.2827813201 | AG139: 0.2827813201 | AH139: 3.752886323
A140: 99 | B140: 2099 | D140: =IF(FAU!$C140*(1+D$38/27*($B140-$B$64))>=0,FAU!$C140*(1+D$38/27*($B140-$B$64)),0) -> 855.0494053 | E140: 0 | G140: 19804.94133 | H140: 7403.07501 | I140: 26.70073158 | K140: 314.6497287 | L140: 2329.375547 | M140: 0.06219603123 | O140: =FAU!$U140-FAU!$U139*(1-FAU!$F139) -> 835.5016074 | P140: 0.9771383995 | R140: =IF(AND(O140>D140,$AA$1="YES"),R139*(1-FAU!$F139)+D140,R139*(1-FAU!$F139)+O140) -> 19490.29161 | S140: 0.9841125645 | T140: 3.04178741e-11 | U140: 144288.0907 | V140: 0.08917513326 | W140: 12866.90972 | X140: 15.97492828 | Y140: 1.424566358 | Z140: 0.2055479599 | AA140: 0.2677439912 | AB140: 1.826139804 | AC140: -40.71029199 | AD140: -99.34661585 | AE140: 3.914793613 | AF140: 0.2677439912 | AG140: 0.2677439912 | AH140: 3.647049621
A141: 100 | B141: 2100 | D141: =IF(FAU!$C141*(1+D$38/27*($B141-$B$64))>=0,FAU!$C141*(1+D$38/27*($B141-$B$64)),0) -> 853.9929 | E141: 0 | G141: 19813.27009 | H141: 7350.462231 | I141: 26.07494212 | K141: 321.8783668 | L141: 2365.95478 | M141: 0.06169213396 | O141: =FAU!$U141-FAU!$U140*(1-FAU!$F140) -> 834.3708159 | P141: 0.9770231297 | R141: =IF(AND(O141>D141,$AA$1="YES"),R140*(1-FAU!$F140)+D141,R140*(1-FAU!$F140)+O141) -> 19491.39173 | S141: 0.9837544047 | T141: 2.258801723e-11 | U141: 143270.7387 | V141: 0.08828338193 | W141: 12648.42534 | X141: 15.17209447 | Y141: 1.33944381 | Z141: 0.1919031042 | AA141: 0.2535952381 | AB141: 1.741286705 | AC141: -40.72444074 | AD141: -99.3811435 | AE141: 3.797468353 | AF141: 0.2535952381 | AG141: 0.2535952381 | AH141: 3.543873115
B143: References
B145: ¹ Total vehicle Stock: https://www.oica.net/category/vehicles-in-use/ (Last retrieved 11/13/2023); https://www.bitre.gov.au/publications/2023/road-vehicles-australia-january-2023 (Last retrieved 01/03/2024). Total inventories from 2023 on were forecasted with the distribution function of a Gompertz function. Saturation limit was set to 20 million vehicles » 756 vehicles per 1,000 population (R² = .998). | M145: ² Total Vehicles Stock Forecast: Coeffcients for the Gompertz Distribution Function | U145: ³ Yearly Distance Travelled (km): https://stats.oecd.org/index.aspx?lang=en (Last retrieved 01/26/2024). Passenger transport: Road passenger transport: Passenger kilometers divided by vehicle Stock assuming an occupancy of 1.6 passengers per car. Note that due to COVID-19, data for 2020 were not included. Distances from 2020 on were forcasted with the density function of a Gompertz function (R² = .980). | AB145: ³ Yearly km per vehicle: Coeffcients for the Gompertz Density Function:
M147: a: | N147: =FAU!$I$32 -> 20000 | O147: b: | Q147: =FAU!$I$33 -> 0.7524391348 | R147: c: | T147: =FAU!$I$34 -> 0.04384702645 | AB147: a: | AC147: =EAU!$C$32 -> 9.75722322e+10 | AD147: b: | AE147: =EAU!$C$33 -> 2.155334572e-05 | AF147: c: | AH147: =EAU!$C$34 -> 0.007132331665
B148: ⁴ ICE CO₂/km (gm): IEA International Energy Agency. https://iea.blob.core.windows.net/assets/66965fb0-87c9-4bc7-990d-a509a1646956/Fuel_Economy_in_Major_Car_Markets.pdf. (Last retrieved 02/03/2024). CO₂/km values from 2018 on were forecasted with the density function of a Gompertz function (R² = .965). | M148: ⁴ ICE CO₂/km (gm): Coeffcients for the Gompertz Density Function. Constraint: CO₂/km in 2050 >= 80 gm. | U148: ⁵ Actual EV Sales 2010-June 2024: https://www.ev-volumes.com/datacenter/ (Last retrieved 07/31/2024). ⁶ EV sales from 2025 on were forecasted by the yearly difference of the EV Stock forecasts⁸ augmented by the EV wastes according to the Weibull function (see below). ⁷ Actual EV stocks until 2023 were the added EV sales⁵ which were reduced by the EV wastes according to the Weibull function (see below). | AB148: ⁸ EV Stock Forecast Coefficients for the Gompertz Distribution Function (Saturation Limit 20 million vehicles (750 per 1,000 population).
M149: a: | O149: b: | R149: c: | AB149: Based on actual data (Scenarios 1 and 3): | AC149: a | AD149: =FAU!$N$32 -> 19500 | AE149: Based on 100% EVs in 2050 (Scenarios 4 and 5): | AF149: a | AH149: =FAU!$S$32 -> 19500
M150: =IF(AD1="NO",EAU!$G$32,EAU!$G$32) -> 234428062 | O150: =IF(AD1="NO",EAU!$G$33,EAU!$G$33) -> 5.025214365e-05 | R150: =IF(AD1="NO",EAU!$G$34,EAU!$G$34) -> 0.02371629655 | AC150: b | AD150: =FAU!$N$33 -> 74.46050675 | AF150: b | AH150: =FAU!$S$33 -> 210.780159
AC151: c | AD151: =FAU!$N$34 -> 0.1203642994 | AF151: c | AH151: =FAU!$S$34 -> 0.1637171089
B152: ⁹ Proportion Plug-In-Hybrid-EVs (PHEV) of all EVs in % based on the numbers from https://www.ev-volumes.com/datacenter/ (Last retrieved 05/21/2024). Coefficients for the Gompertz Density Function: | M152: ¹⁰ EV Efficiency: Assesing local EV-fleet from https://www.ev-volumes.com/datacenter/ and respective efficiencies from Marklines Electric Vehicles by Model: https://www.marklines.com/en/green_vehicles/case_top?rf=left_menu (Last retrieved 02/01/2024, see Folder "Parameters" Table 3). From 2024 on, kWh/km have been reduced by 1% per year. | U152: ¹¹ Electricty CO₂/kWh: Coefficients for the Gompert Density Function: https://ourworldindata.org/grapher/carbon-intensity-electricity? (Last retrieved 05/31/2024). In Scenario 3 and 5, from 2024 on, CO₂ is reduced linearly down to zero in 2050 (R² = .952).
B154: a: | F154: =IF(AD1="NO",FAU!$X$32,FAU!$X$32) -> 5.295321882 | H154: b: | I154: =IF(AD1="NO",FAU!$X$33,FAU!$X$33) -> 120.6179025 | K154: =IF(AD1="NO",FAU!$X$34,FAU!$X$34) -> 0.2976108451 | M154: Starting with | O154: ='P1'!G41 -> 0.1914119191 | Q154: kWh/km until 2023 and from 2024 on, reducing by 1% per year. | U154: a: | V154: =IF($AD1="NO",EAU!$K$32,EAU!$K$32) -> 42143.77661 | W154: b: | X154: =IF($AD1="NO",EAU!$K$33,EAU!$K$33) -> 1.257140566 | Y154: c: | Z154: =IF($AD1="NO",EAU!$K$34,EAU!$K$34) -> 0.05193476938 | AA154: c:
B155: ¹² Percentage in green fields reduce values in the respective column. Can be increased or decreases by changing numbers in EXCEL file CONTROL.xlsx.
B158: For any function in this study, the time variable is the respective year minus 2000 (i.e., for 2050, t = 50).
B162: WEIBULL FUNCTION
B163: k= | C163: 6.5 | D163: l= | F163: =(1/G164)/((-LN(1-0.999))^(1/C163)) -> 15.63060402 | G163: Avg. Scrap | H163: Lifetime | I163: Æ Waste | J163: Mean Lifetime
B164: Waste after year x | C164: Cumulative Distribution Function (CDF) | F164: Waste in year | G164: =AVERAGE(FAU!$F$47:$F$64) -> 0.0475220841 | H164: =(ROUND((1/G164),0)) -> 21 | I164: =AVERAGE(F165:F165:INDIRECT("F"&H164+ROW())) -> 0.04756689626 | J164: =ROUND(F163*_xlfn.GAMMA(1+1/k),0) -> 15
B165: 1 | C165: =_xlfn.WEIBULL.DIST(B165,C$163,F$163,1) -> 1.73443309e-08 | F165: =C165 -> 1.73443309e-08
B166: 2 | C166: =_xlfn.WEIBULL.DIST(B166,C$163,F$163,1) -> 1.569828413e-06 | F166: =C166-C165 -> 1.552484082e-06
B167: 3 | C167: 2.189984063e-05 | F167: =C167-C166 -> 2.033001222e-05
B168: 4 | C168: 0.0001420746664 | F168: 0.0001201748258
B169: 5 | C169: 0.0006058024159 | F169: 0.0004637277495
B170: 6 | C170: 0.00198020581 | F170: 0.001374403394
B171: 7 | C171: 0.005384222689 | F171: 0.003404016879
B172: 8 | C172: 0.01277770741 | F172: 0.00739348472
B173: 9 | C173: 0.02727363637 | F173: 0.01449592896
B174: 10 | C174: 0.05337058783 | F174: 0.02609695146
B175: 11 | C175: 0.09688773228 | F175: 0.04351714445
B176: 12 | C176: 0.1642330385 | F176: 0.06734530621
B177: 13 | C177: 0.2605500825 | F177: 0.09631704403
B178: 14 | C178: 0.3865403991 | F178: 0.1259903166
B179: 15 | C179: 0.5347392702 | F179: 0.1481988711
B180: 16 | C180: 0.6877522556 | F180: 0.1530129853
B181: 17 | C181: 0.8220296149 | F181: 0.1342773594
B182: 18 | C182: 0.9181457874 | F182: 0.09611617245
B183: 19 | C183: 0.971469211 | F183: 0.05332342364
B184: 20 | C184: 0.9930167246 | F184: =C184-C183 -> 0.02154751358
B185: 21 | C185: 0.9989048215 | F185: =C185-C184 -> 0.005888096945
B186: 22 | C186: 0.9999013267 | F186: 0.0009965051436
B187: 23 | C187: 0.9999955102 | F187: 9.418349772e-05
B188: 24 | C188: 0.9999999113 | F188: 4.401114124e-06
B189: 25 | C189: 0.9999999994 | F189: 8.806861007e-08
B190: 26 | C190: 1 | F190: 6.368932048e-10
B191: 27 | C191: 1 | F191: 1.363797963e-12
B192: 28 | C192: 1 | F192: 0
B193: 29 | C193: 1 | F193: 0
B194: 30 | C194: 1 | F194: 0
B195: 31 | C195: 1 | F195: 0
B196: 32 | C196: 1 | F196: 0
B197: 33 | C197: 1 | F197: 0
B198: 34 | C198: 1 | F198: 0
B199: 35 | C199: 1 | F199: 0
B200: 36 | C200: 1 | F200: 0
B201: 37 | C201: 1 | F201: 0
B202: 38 | C202: 1 | F202: 0
B203: 39 | C203: 1 | F203: 0
B204: 40 | C204: 1 | F204: 0
B205: 41 | C205: 1 | F205: 0
B206: 42 | C206: 1 | F206: 0
B207: 43 | C207: 1 | F207: 0
B208: 44 | C208: 1 | F208: 0
B209: 45 | C209: 1 | F209: 0
B210: 46 | C210: 1 | F210: 0
B211: 47 | C211: 1 | F211: 0
B212: 48 | C212: 1 | F212: 0
B213: 49 | C213: 1 | F213: 0
B214: 50 | C214: 1 | F214: 0

Sheet AT
B1: Austria | G1: Click → | H1: Scenario 1/2 | L1: Scenario 3 | Q1: Scenario 4 | V1: Scenario 5 | Y1: With Sales Limit → | AA1: NO | AE1: Limits forecasted EV sales to maximum total sales (column D)
A3: Or choose scenario (1-5): | D3: 1 | H3: Actual (2023) data and forecast 2050 based on actual data | L3: Electricity: Reduce CO₂/kWh to zero in 2050 | Q3: Increase EV Stock to 100% in 2050 | V3: ZERO CARBON in 2050: Both zero CO₂/kWh and100% EVs | Z3: Population (thsd): | AB3: ='P1'!C31 -> 8958.96 | AC3: Vehicles per 1,000 in 2050: | AE3: =G91/AB3*1000 -> 674.6041671
B4: CO2 emission 2050 (Mt): | H4: =AA91 -> 1.139185846 | I4: Accrued CO₂ savings in 2050 since 2010 (Mt): | N4: =SUM(AH46:AH91) -> 71.91583096 | O4: 2050 EV Stock (thsd.) | U4: =R91 -> 4980.740949 | V4: =R91/G91 -> 0.824114086 | W4: 2050 Average CO₂/km (gm) | Z4: =AB91 -> 16.42756211 | AA4: Equivalent reduction in distance travelled in 2050 (km): | AH4: =AE18 -> -11735.7137
AA5: Summary | AB5: Scenario: | AC5: 1 | AE5: =IF(Scen=1,2,IF(Scen=3,3,IF(Scen=4,4,5))) -> 2 | AG5: 5
AC6: Actual | AE6: =IF(Scen=1,"Forecast 2050",IF(Scen=3,"2050 Zero CO2/kWh",IF(Scen=4,"2050 100% EVs","Zero CO2 + 100% EVs"))) -> Forecast 2050
AA8: Yearly km per vehicle | AC8: =H64 -> 13606.79021 | AE8: =$H91 -> 11474 | AI8: =$H91 -> 11474
AA9: Stock EVs (thsd.) | AC9: =Q64 -> 232.3505811 | AE9: =$R91 -> 4980.740949 | AI9: =$R91 -> 4980.740949
AA10: Stock ICEs (thsd.) | AC10: =J64+K64 -> 4931.580232 | AE10: =$K91 -> 1063.010801 | AH10: =MIN(IF($O$65:$O$141>=$D$65:$D$141,ROW($P$65:$P$141))) -> 76 | AI10: =$K91 -> 1063.010801
AA11: ICE CO₂/km (gm) | AC11: =I64 -> 122.6043891 | AE11: =$I91 -> 80 | AH11: Year in which the EV share of total car sales reaches 100%. | AI11: =$I91 -> 80
AA12: EV kWh/km | AC12: =V64 -> 0.1982175412 | AE12: =$V91 -> 0.1511096984 | AI12: =$V91 -> 0.1511096984
AA13: EV CO₂/kWh (gm) | AC13: =X64 -> 110.81243 | AE13: =$X91 -> 14.30469936 | AI13: =$X91 -> 14.30469936
AA14: EV CO₂/km (gm) | AC14: =Y64 -> 21.96496741 | AE14: =$Y91 -> 2.161578806 | AI14: =$Y91 -> 2.161578806
AA15: Average CO₂/km (gm) | AC15: =AB64 -> 118.8721475 | AE15: =$AB91 -> 16.42756211 | AI15: =$AB91 -> 16.42756211
AA16: Total CO₂/year (Mt) | AC16: =AA64 -> 8.352494767 | AE16: =$AA$91 -> 1.139185846 | AI16: =$AA91 -> 1.139185846
AA17: CO₂ Reduction (Mt) | AC17: =SUM(AH46:AH64) -> 0.7935136285 | AE17: =SUM($AH46:$AH91) -> 71.91583096 | AI17: =SUM($AH46:$AH91) -> 71.91583096
AA18: ¹⁴ Equivalent km reduction | AE18: =AE16/((($J64+$R64*$T64*(2/3))*$I64+((Q64+$R64)*(1-$T64*(2/3))*$Y64))/1000000000)-AC8 -> -11735.7137 | AG18: -12555.25295 | AI18: =AI16/((($K91+$R91*$T91*(2/3))*$I91+($R91*(1-$T91*(2/3))*$Y91))/1000000000)-$AC8 -> -2132.790207
AA19: First zero carbon year (<= 3g/km) | AE19: =MIN(IF(AB$65:AB$141<=3,ROW(AB$65:AB$141))) -> 104 | AF19: =IF(AE19>0,INDIRECT("B"&AE19),">2100") -> 2063 | AH19: =IF(AH10>0,INDIRECT("B"&AH10),">2100") -> 2035 | AI19: =IF(AE19>0,INDIRECT("B"&AE19),">2100") -> 2063
AB21: =CONCATENATE("Total CO₂"&CHAR(10),"in 2023") -> Total CO₂ in 2023 | AC21: =AD21-AD20 -> 8.352494767 | AD21: =AA64 -> 8.352494767
AB22: =CONCATENATE("From ",TEXT($F$64/1000,"##0.0"),"m to"&CHAR(10),TEXT($G$91/1000,"##0.0"),"m total Stock") -> From 5.2m to 6.0m total Stock | AC22: 1.423082538 | AD22: =G91/F64*AD21 -> 9.775577305
AB23: =CONCATENATE("From ",TEXT($H$64,"###,0")," to"&CHAR(10),TEXT($H$91,"###,0")," yearly km") -> From 13,607 to 11,474 yearly km | AC23: -1.494591241 | AD23: =$H$91*(((($G$91-$Q$64)+$Q$64*$T$64*2/3)*$I$64)+((($Q$64*(1-$T$64*2/3)))*$V$64*$X$64))/1000000000 -> 8.280986064
AB24: =CONCATENATE("From ",TEXT($I$64,"###")," to ",TEXT($I$91,"###")&CHAR(10)," gm ","CO₂/km ICE") -> From 123 to 80 gm CO₂/km ICE | AC24: -2.860828046 | AD24: =$H$91*(((($G$91-$Q$64)+$Q$64*$T$64*2/3)*$I$91)+((($Q$64*(1-$T$64*2/3)))*$V$64*$X$64))/1000000000 -> 5.420158018
AB25: =CONCATENATE("From ",TEXT($Q$64/1000,"##0.0"),"m to"&CHAR(10),TEXT($R$91/1000,"##0.0"),"m EV Stock") -> From 0.2m to 5.0m EV Stock | AC25: =AD25-AD24 -> -2.606092148 | AD25: =$H$91*(((($G$91-$R$91)+$R$91*$T$64*2/3)*$I$91)+((($R$91*(1-$T$64*2/3)))*$V$64*$X$64))/1000000000 -> 2.814065871
AB26: =CONCATENATE("From ",TEXT($V$64,".####")," to"&CHAR(10),TEXT($V$91,".####")," kWh/km EV") -> From .1982 to .1511 kWh/km EV | AC26: -0.245883151 | AD26: =$H$91*(((($G$91-$R$91)+$R$91*$T$64*2/3)*$I$91)+((($R$91*(1-$T$64*2/3)))*$V$91*$X$64))/1000000000 -> 2.56818272
AB27: =IF($X$91=0,CONCATENATE("From ",TEXT($X$64,"###")," to zero"&CHAR(10),"gr CO₂/kWh EV"),CONCATENATE("From ",TEXT($X$64,"###")," to ",TEXT($X$91,"###")&CHAR(10)," gr CO₂/kWh EV")) -> From 111 to 14 gr CO₂/kWh EV | AC27: -0.6869126532 | AD27: =$H$91*(((($G$91-$R$91)+$R$91*$T$64*2/3)*$I$91)+((($R$91*(1-$T$64*2/3)))*$V$91*$X$91))/1000000000 -> 1.881270066
AB28: =IF($T$91<0.01,CONCATENATE("From ",TEXT($T$64,"###.##%")&CHAR(10),"to "," zero % PHEV"),CONCATENATE("From ",TEXT($T$64,"###.##%")&CHAR(10),"to ",TEXT($T$91,"###.##%")," PHEV")) -> From 26.37% to 1.35% PHEV | AC28: -0.7420842201 | AD28: =$H$91*(((($G$91-$R$91)+$R$91*$T$91*2/3)*$I$91)+((($R$91*(1-$T$91*2/3)))*$V$91*$X$91))/1000000000 -> 1.139185846
AB29: =CONCATENATE("Total CO₂"&CHAR(10),"in 2050") -> Total CO₂ in 2050 | AC29: =SUM(AC21:AC28) -> 1.139185846
A33: -0.21
A37: -0.72
B38: Change by % in 2050¹² | D38: =Control!$B$3 -> 0 | G38: =Control!C$3 -> 0 | H38: =Control!D$3 -> 0 | I38: =Control!E$3 -> 0 | K38: Except for fields D3 (scenario selection) and AA1 (sales limit selection), all other fields are locked to prevent accidental overwriting. To be able to do this anyway, the sheet can be unlocked without a password. | R38: =Control!$F$3 -> 0 | T38: =Control!$G$3 -> 0 | V38: =Control!$H$3 -> 0 | X38: =Control!$I$3 -> 0
A39: # | R39: Blue Background = Actual Data
B40: =B1 -> Austria | C40: Total Actual Sales (thsd)¹ | D40: Total Sales Fore-cast (tshd) | F40: Total Stock Actual (thsd)¹ | G40: Total Stock Forecast (thsd)² | H40: Yearly Distance per vehicle (km)³ | I40: ICE CO₂/km (gm)⁴ | J40: ICE Stock Actual = Total - EV (thsd) | K40: ICE Stock Forecast = Total - EV | L40: ICE Yearly Distance (million kM) | M40: ICE Yearly Mt CO₂ | N40: EV Sales Actual (thsd)⁵ | O40: EV Sales Forecast (thsd)⁶ | P40: EV % from Total Sales | Q40: EV Stock Actual (thsd)⁷ | R40: EV Stock Forecast (thsd)⁸ | S40: EV % from Total Stock | T40: Thereof PHEVs in %⁹ | U40: EV Yearly Distance (million km) | V40: EV kWh/km¹⁰ | W40: EV Total kWh (million) | X40: Elec-tricity CO₂/kWh (gm)¹¹ | Y40: EV CO₂/km (gm) | Z40: EV Yearly Mt CO₂ | AA40: Total Mt CO₂ (ICE + EV) | AB40: Average CO₂/km (gm) | AC40: Absolute CO₂ Reduction compared to 2005 | AD40: Relative CO₂ Re-duction (%) | AE40: CO₂ of ICE only | AF40: CO₂ of combined ICE + EV | AH40: Accrued CO₂ Reduction since 2010
A41: 0 | B41: 2000 | X41: =EAT!$J37 -> 203.387
A42: 1 | B42: 2001 | X42: =EAT!$J38 -> 229.0915
A43: 2 | B43: 2002 | X43: =EAT!$J39 -> 226.12569
A44: 3 | B44: 2003 | X44: =EAT!$J40 -> 282.38745
A45: 4 | B45: 2004 | X45: =EAT!$J41 -> 259.33713
A46: 5 | B46: 2005 | C46: =FAT!$B46 -> 307.915 | F46: =FAT!$H46 -> 4156.743 | H46: =EAT!$B42 -> 13884 | I46: =IF($M$150*$O$150*$R$150*EXP((-$O$150*EXP(-$R$150*($B46-2000))-$R$150*($B46-2000)))*(1+I$38/27*($B46-$B$64))>=0,$M$150*$O$150*$R$150*EXP((-$O$150*EXP(-$R$150*($B46-2000))-$R$150*($B46-2000)))*(1+I$38/27*($B46-$B$64)),0) -> 162.6067973 | J46: =IF(AND(F46<>"",Q46<>""),F46-Q46,F46) -> 4156.743 | L46: =IF(J46<>"",(J46+Q46*T46*2/3)*H46/1000,0) -> 57712.21981 | M46: =I46*L46/1000000 -> 9.384399231 | X46: =EAT!$J42 -> 254.00029 | AA46: =M46+Z46 -> 9.384399231 | AB46: =IF(L46<>"",(M46+Z46)/(L46+U46)*1000000,0) -> 162.6067973 | AE46: =F46*H46*I46/1000000000 -> 9.384399231 | AF46: =Z46+M46 -> 9.384399231 | AG46: =AF46 -> 9.384399231
A47: 6 | B47: 2006 | C47: =FAT!$B47 -> 308.594 | F47: =FAT!$H47 -> 4204.969 | H47: =EAT!$B43 -> 13931 | I47: 160.0853303 | J47: =IF(AND(F47<>"",Q47<>""),F47-Q47,F47) -> 4204.969 | L47: 58579.42314 | M47: 9.377706304 | X47: =EAT!$J43 -> 253.01398 | AA47: =M47+Z47 -> 9.377706304 | AB47: 160.0853303 | AC47: =Z47+M47-M$46 -> -0.006692926588 | AD47: =(AC47/M$46*100) -> -0.07131971289 | AE47: 9.377706304 | AF47: =Z47+M47 -> 9.377706304 | AG47: 9.377706304
A48: 7 | B48: 2007 | C48: =FAT!$B48 -> 298.182 | F48: =FAT!$H48 -> 4245.583 | H48: =EAT!$B44 -> 14018 | I48: 157.6017664 | J48: =IF(AND(F48<>"",Q48<>""),F48-Q48,F48) -> 4245.583 | L48: 59514.58249 | M48: 9.379603327 | X48: =EAT!$J44 -> 232.69138 | AA48: 9.379603327 | AB48: 157.6017664 | AC48: =Z48+M48-M$46 -> -0.004795903178 | AD48: =(AC48/M$46*100) -> -0.05110506341 | AE48: 9.379603327 | AF48: 9.379603327 | AG48: 9.379603327
A49: 8 | B49: 2008 | C49: =FAT!$B49 -> 293.697 | F49: =FAT!$H49 -> 4284.919 | H49: =EAT!$B45 -> 13528 | I49: 155.1555737 | J49: =IF(AND(F49<>"",Q49<>""),F49-Q49,F49) -> 4284.919 | L49: 57966.38423 | M49: 8.993807601 | X49: =EAT!$J45 -> 220.41006 | AA49: 8.993807601 | AB49: 155.1555737 | AC49: -0.3905916293 | AD49: -4.162137817 | AE49: 8.993807601 | AF49: 8.993807601 | AG49: 8.993807601
A50: 9 | B50: 2009 | C50: =FAT!$B50 -> 319.403 | F50: =FAT!$H50 -> 4359.944 | H50: =EAT!$B46 -> 13229 | I50: 152.7462267 | J50: =IF(AND(F50<>"",Q50<>""),F50-Q50,F50) -> 4359.944 | L50: 57677.69918 | M50: 8.810050914 | X50: =EAT!$J46 -> 195.89186 | AA50: 8.810050914 | AB50: 152.7462267 | AC50: -0.5743483171 | AD50: -6.120245985 | AE50: 8.810050914 | AF50: 8.810050914 | AG50: 8.810050914
A51: 10 | B51: 2010 | C51: =FAT!$B51 -> 328.563 | F51: =FAT!$H51 -> 4441.027 | H51: =EAT!$B47 -> 13169 | I51: 150.373206 | J51: =IF(AND(F51<>"",Q51<>""),F51-Q51,"") -> 4440.854 | L51: 58481.60633 | M51: 8.794066634 | N51: =FAT!$L51*(1+Control!$F$3) -> 0.173 | P51: =N51/C51 -> 0.0005265352459 | Q51: =N51+N50*(1-F$165)+N49*(1-F$166)+N48*(1-F$167)+N47*(1-F$168)+N46*(1-F$169)+N45*(1-F$170)+N44*(1-F$171)+N43*(1-F$172)+N42*(1-F$173)+N41*(1-F$174) -> 0.173 | S51: =Q51/F51 -> 3.895495344e-05 | T51: =FAT!$W51 -> 0 | U51: =Q51*(1-2/3*T51)*H51/1000 -> 2.278237 | V51: =$O$154 -> 0.1982175412 | W51: =V51*U51 -> 0.4515865365 | X51: =EAT!$J47 -> 226.77676 | Y51: =V51*X51 -> 44.95113177 | Z51: =W51*X51/1000000 -> 0.0001024093316 | AA51: 8.794169044 | AB51: 150.3690993 | AC51: -0.590230187 | AD51: -6.289482922 | AE51: 8.79440922 | AF51: 8.794169044 | AG51: 8.794169044 | AH51: =AE51-AF51 -> 0.0002401764701
A52: 11 | B52: 2011 | C52: =FAT!$B52 -> 356.145 | F52: =FAT!$H52 -> 4513.421 | H52: =EAT!$B48 -> 13166 | I52: 148.0359984 | J52: 4512.564 | L52: 59412.43518 | M52: 8.795179158 | N52: =FAT!$L52*(1+Control!$F$3) -> 0.684 | P52: =N52/C52 -> 0.001920566062 | Q52: =N52+N51*(1-F$165)+N50*(1-F$166)+N49*(1-F$167)+N48*(1-F$168)+N47*(1-F$169)+N46*(1-F$170)+N45*(1-F$171)+N44*(1-F$172)+N43*(1-F$173)+N42*(1-F$174)+N41*(1-F$175) -> 0.8569999632 | S52: =Q52/F52 -> 0.0001898781353 | T52: =FAT!$W52 -> 0.002333722287 | U52: 11.26570685 | V52: 0.1982175412 | W52: =V52*U52 -> 2.233060712 | X52: =EAT!$J48 -> 238.5852 | Y52: =V52*X52 -> 47.29177172 | Z52: =W52*X52/1000000 -> 0.0005327752365 | AA52: 8.795711933 | AB52: 148.016899 | AC52: -0.5886872976 | AD52: -6.273041919 | AE52: 8.796846888 | AF52: 8.795711933 | AG52: 8.795711933 | AH52: =AE52-AF52 -> 0.001134954924
A53: 12 | B53: 2012 | C53: =FAT!$B53 -> 336.01 | F53: =FAT!$H53 -> 4584.202 | H53: =EAT!$B49 -> 12949 | I53: 145.7340968 | J53: 4582.050002 | L53: 59334.64022 | M53: 8.647080202 | N53: =FAT!$L53*(1+Control!$F$3) -> 1.295 | P53: 0.003854051963 | Q53: =N53+N52*(1-F$165)+N51*(1-F$166)+N50*(1-F$167)+N49*(1-F$168)+N48*(1-F$169)+N47*(1-F$170)+N46*(1-F$171)+N45*(1-F$172)+N44*(1-F$173)+N43*(1-F$174)+N42*(1-F$175)+N41*(1-F$176) -> 2.151997536 | S53: 0.0004694377639 | T53: =FAT!$W53 -> 0.09014869888 | U53: 26.19148068 | V53: 0.1982175412 | W53: 5.191610901 | X53: =EAT!$J49 -> 185.87035 | Y53: 36.84276376 | Z53: 0.0009649665352 | AA53: 8.648045169 | AB53: 145.6860512 | AC53: -0.7363540621 | AD53: -7.846576472 | AE53: 8.650897194 | AF53: 8.648045169 | AG53: 8.648045169 | AH53: =AE53-AF53 -> 0.002852025246
A54: 13 | B54: 2013 | C54: =FAT!$B54 -> 319.035 | F54: =FAT!$H54 -> 4641.308 | H54: =EAT!$B50 -> 12944 | I54: 143.4670003 | J54: 4638.322034 | L54: 60040.80482 | M54: 8.613874165 | N54: =FAT!$L54*(1+Control!$F$3) -> 0.834 | P54: 0.002614133246 | Q54: =N54+N53*(1-F$165)+N52*(1-F$166)+N51*(1-F$167)+N50*(1-F$168)+N49*(1-F$169)+N48*(1-F$170)+N47*(1-F$171)+N46*(1-F$172)+N45*(1-F$173)+N44*(1-F$174)+N43*(1-F$175)+N42*(1-F$176)+N41*(1-F$177) -> 2.985966088 | S54: 0.0006433458171 | T54: =FAT!$W54 -> 0.09176155392 | U54: 36.28593456 | V54: 0.1982175412 | W54: 7.192508729 | X54: =EAT!$J50 -> 173.35397 | Y54: 34.36179769 | Z54: 0.001246849942 | AA54: 8.615121015 | AB54: 143.4011019 | AC54: -0.7692782156 | AD54: -8.197415697 | AE54: 8.619079999 | AF54: 8.615121015 | AG54: 8.615121015 | AH54: 0.003958984243
A55: 14 | B55: 2014 | C55: =FAT!$B55 -> 303.318 | F55: =FAT!$H55 -> 4694.921 | H55: =EAT!$B51 -> 13128 | I55: =EAT!$F51 -> 143 | J55: 4690.285238 | L55: 61578.2916 | M55: 8.8056957 | N55: =FAT!$L55*(1+Control!$F$3) -> 1.65 | P55: 0.00543983542 | Q55: 4.635761874 | S55: 0.0009873993352 | T55: =FAT!$W55 -> 0.1041846419 | U55: 56.63128301 | V55: 0.1982175412 | W55: 11.22531368 | X55: =EAT!$J51 -> 150.4468 | Y55: 29.82119478 | Z55: 0.001688812521 | AA55: 8.807384512 | AB55: 142.8960093 | AC55: -0.5770147186 | AD55: -6.148659114 | AE55: 8.813793973 | AF55: 8.807384512 | AG55: 8.807384512 | AH55: 0.00640946095
A56: 15 | B56: 2015 | C56: =FAT!$B56 -> 308.555 | F56: =FAT!$H56 -> 4748.048 | H56: =EAT!$B52 -> 13319 | I56: =EAT!$F52 -> 138 | J56: 4740.618108 | L56: 63153.31662 | M56: 8.715157693 | N56: =FAT!$L56*(1+Control!$F$3) -> 2.795 | P56: 0.009058352644 | Q56: 7.429892264 | S56: 0.001564830908 | T56: =FAT!$W56 -> 0.1974162293 | U56: 85.93469485 | V56: 0.1982175412 | W56: 17.03376392 | X56: =EAT!$J52 -> 172.06215 | Y56: 34.10573631 | Z56: 0.002930866042 | AA56: 8.718088559 | AB56: 137.8588199 | AC56: -0.6663106714 | AD56: -7.100195282 | AE56: 8.727016681 | AF56: 8.718088559 | AG56: 8.718088559 | AH56: 0.008928121847
A57: 16 | B57: 2016 | C57: =FAT!$B57 -> 329.604 | F57: =FAT!$H57 -> 4821.557 | H57: =EAT!$B53 -> 13496 | I57: =EAT!$F53 -> 135 | J57: 4808.934876 | L57: 64925.21171 | M57: 8.76490358 | N57: =FAT!$L57*(1+Control!$F$3) -> 5.195 | P57: 0.01576133785 | Q57: 12.6221239 | S57: 0.002617852263 | T57: =FAT!$W57 -> 0.2098051639 | U57: 146.5215651 | V57: 0.1982175412 | W57: 29.04314436 | X57: =EAT!$J53 -> 154.61691 | Y57: 30.64778373 | Z57: 0.004490561238 | AA57: 8.769394142 | AB57: 134.7650308 | AC57: -0.615005089 | AD57: -6.55348386 | AE57: 8.784683992 | AF57: 8.769394142 | AG57: 8.769394142 | AH57: 0.01528985004
A58: 17 | B58: 2017 | C58: =FAT!$B58 -> 353.32 | F58: =FAT!$H58 -> 4898.578 | H58: =EAT!$B54 -> 13537 | I58: =EAT!$F54 -> 136 | J58: 4878.451091 | L58: 66079.90144 | M58: 8.986866596 | N58: =FAT!$L58*(1+Control!$F$3) -> 7.512 | P58: 0.02126117967 | Q58: 20.12690918 | S58: 0.004108724854 | T58: =FAT!$W58 -> 0.2219187606 | U58: 232.1489463 | V58: 0.1982175412 | W58: 46.01599333 | X58: =EAT!$J54 -> 162.9155 | Y58: 32.29270984 | Z58: 0.007496718561 | AA58: 8.994363314 | AB58: 135.6369357 | AC58: -0.3900359163 | AD58: -4.156216149 | AE58: 9.018438852 | AF58: 8.994363314 | AG58: 8.994363314 | AH58: 0.02407553813
A59: 18 | B59: 2018 | C59: =FAT!$B59 -> 341.068 | F59: =FAT!$H59 -> 4978.852578 | H59: =EAT!$B55 -> 13733 | I59: =IF($M$150*$O$150*$R$150*EXP((-$O$150*EXP(-$R$150*($B59-2000))-$R$150*($B59-2000)))*(1+I$38/27*($B59-$B$64))>=0,$M$150*$O$150*$R$150*EXP((-$O$150*EXP(-$R$150*($B59-2000))-$R$150*($B59-2000)))*(1+I$38/27*($B59-$B$64)),0) -> 132.636483 | J59: 4949.370016 | L59: 68030.05831 | M59: 9.023267669 | N59: =FAT!$L59*(1+Control!$F$3) -> 9.372 | P59: 0.02747839141 | Q59: 29.48256159 | S59: 0.005921557452 | T59: =FAT!$W59 -> 0.2236191122 | U59: 344.5241485 | V59: 0.1982175412 | W59: 68.2907296 | X59: =EAT!$J55 -> 157.87846 | Y59: 31.29428015 | Z59: 0.01078163522 | AA59: 9.034049305 | AB59: 132.1258424 | AC59: -0.3503499261 | AD59: -3.733322907 | AE59: 9.068964141 | AF59: 9.034049305 | AG59: 9.034049305 | AH59: 0.03491483613
A60: 19 | B60: 2019 | C60: =FAT!$B60 -> 320.381 | F60: =FAT!$H60 -> 5039.548 | H60: =EAT!$B56 -> 13699 | I60: 130.5680337 | J60: 4997.594865 | L60: 68547.45558 | M60: 8.950106491 | N60: =FAT!$L60*(1+Control!$F$3) -> 12.504 | P60: 0.03902853165 | Q60: 41.95313485 | S60: 0.008324781279 | T60: =FAT!$W60 -> 0.2229018898 | U60: 489.3124734 | V60: 0.1982175412 | W60: 96.99031537 | X60: =EAT!$J56 -> 152.77974 | Y60: 30.28362441 | Z60: 0.01481815516 | AA60: 8.964924646 | AB60: 129.8572471 | AC60: -0.4194745849 | AD60: -4.469914105 | AE60: 9.013995058 | AF60: 8.964924646 | AG60: 8.964924646 | AH60: 0.04907041236
A61: 20 | B61: 2020 | C61: =FAT!$B61 -> 257.721 | F61: =FAT!$H61 -> 5091.827 | H61: =AC$147*AE$147*AH$147*EXP(-AE$147*EXP(-AH$147*(B61-2000))-AH$147*(B61-2000)) -> 13683.28679 | I61: 128.5310504 | J61: 5025.50585 | L61: 68921.38235 | M61: 8.858537669 | N61: =FAT!$L61*(1+Control!$F$3) -> 24.431 | P61: 0.09479631074 | Q61: 66.32114994 | S61: 0.01302502028 | T61: =FAT!$W61 -> 0.2577620588 | U61: 751.5467615 | V61: 0.1982175412 | W61: 148.9697512 | X61: =EAT!$J57 -> 133.40092 | Y61: 26.44240236 | Z61: 0.01987270186 | AA61: 8.878410371 | AB61: 127.4298423 | AC61: -0.5059888599 | AD61: -5.391808761 | AE61: 8.955134764 | AF61: 8.878410371 | AG61: 8.878410371 | AH61: 0.07672439283
A62: 21 | B62: 2021 | C62: =FAT!$B62 -> 239.803 | F62: =FAT!$H62 -> 5133.836 | H62: =AC$147*AE$147*AH$147*EXP(-AE$147*EXP(-AH$147*(B62-2000))-AH$147*(B62-2000)) -> 13662.60017 | I62: 126.5250795 | J62: 5017.417334 | L62: 68839.7504 | M62: 8.709954892 | N62: =FAT!$L62*(1+Control!$F$3) -> 50.208 | P62: 0.2093718594 | Q62: 116.4186662 | S62: 0.0226767404 | T62: =FAT!$W62 -> 0.2723376167 | U62: 1301.798205 | V62: 0.1982175412 | W62: 258.0392393 | X62: =EAT!$J58 -> 136.0228 | Y62: 26.96210497 | Z62: 0.03509921983 | AA62: 8.745054112 | AB62: 124.6772318 | AC62: -0.639345119 | AD62: -6.812850811 | AE62: 8.874665013 | AF62: 8.745054112 | AG62: 8.745054112 | AH62: 0.1296109015
A63: 22 | B63: 2022 | C63: =FAT!$B63 -> 215.05 | F63: =FAT!$H63 -> 5150.89 | H63: =AC$147*AE$147*AH$147*EXP(-AE$147*EXP(-AH$147*(B63-2000))-AH$147*(B63-2000)) -> 13637.06037 | I63: 124.5496731 | J63: 4985.553802 | L63: 68396.7555 | M63: 8.51879354 | N63: =FAT!$L63*(1+Control!$F$3) -> 49.099 | P63: 0.2283143455 | Q63: 165.3361982 | S63: 0.03209856902 | T63: =FAT!$W63 -> 0.2717372943 | U63: 1846.242382 | V63: 0.1982175412 | W63: 365.9576255 | X63: =EAT!$J59 -> 141.78989 | Y63: =V63*X63 -> 28.10524337 | Z63: 0.05188909147 | AA63: 8.570682632 | AB63: 122.0147615 | AC63: -0.8137165987 | AD63: -8.670950358 | AE63: 8.748742426 | AF63: 8.570682632 | AG63: 8.570682632 | AH63: 0.1780597938
A64: 23 | B64: 2023 | C64: =FAT!$B64 -> 239.15 | F64: =a*EXP(-b*EXP(-ze*(B64-2000))) -> 5163.930813 | H64: =AC$147*AE$147*AH$147*EXP(-AE$147*EXP(-AH$147*(B64-2000))-AH$147*(B64-2000)) -> 13606.79021 | I64: 122.6043891 | J64: =IF(AND(F64<>"",Q64<>"",F64-Q64>0),F64-Q64,) -> 4931.580232 | L64: =IF(J64<>"",(J64+Q64*T64*2/3)*H64/1000,0) -> 67658.74334 | M64: =IF(L64<>"",I64*L64/1000000,0) -> 8.295258897 | N64: =FAT!$L64*(1+Control!$F$3) -> 67.296 | P64: =N64/C64 -> 0.281396613 | Q64: =N64+N63*(1-F$165)+N62*(1-F$166)+N61*(1-F$167)+N60*(1-F$168)+N59*(1-F$169)+N58*(1-F$170)+N57*(1-F$171)+N56*(1-F$172)+N55*(1-F$173)+N54*(1-F$174)+N53*(1-F$175)+N52*(1-F$176)+N51*(1-F$177) -> 232.3505811 | S64: =Q64/F64 -> 0.04499490593 | T64: =FAT!$W64 -> 0.2636838763 | U64: =Q64*(1-2/3*T64)*H64/1000 -> 2605.779877 | V64: 0.1982175412 | W64: =V64*U64 -> 516.5112802 | X64: =EAT!$J60 -> 110.81243 | Y64: 21.96496741 | Z64: 0.05723587008 | AA64: 8.352494767 | AB64: =IF(L64<>0,(M64+Z64)/(L64+U64)*1000000,(M64+Z64)/(0.00000000001+U64)*1000000) -> 118.8721475 | AC64: -1.031904463 | AD64: -10.99595657 | AE64: =F64*H64*I64/1000000000 -> 8.614738947 | AF64: 8.352494767 | AG64: 8.352494767 | AH64: 0.26224418
A65: 24 | B65: 2024 | D65: =IF(FAT!$C65*(1+D$38/27*($B65-$B$64))>=0,FAT!$C65*(1+D$38/27*($B65-$B$64)),0) -> 301.5600743 | E65: =IF(D65<O65,1,0) -> 0 | G65: =IF(a*EXP(-b*EXP(-ze*(B65-2000)))*(1+G$38/27*($B65-$B$64))>=0,a*EXP(-b*EXP(-ze*(B65-2000)))*(1+G$38/27*($B65-$B$64)),0) -> 5208.050296 | H65: =IF(AC$147*AE$147*AH$147*EXP(-AE$147*EXP(-AH$147*(B65-2000))-AH$147*(B65-2000))*(1+H$38/27*($B65-$B$64))>=0,AC$147*AE$147*AH$147*EXP(-AE$147*EXP(-AH$147*(B65-2000))-AH$147*(B65-2000))*(1+H$38/27*($B65-$B$64)),0) -> 13571.91478 | I65: =IF($M$150*$O$150*$R$150*EXP((-$O$150*EXP(-$R$150*($B65-2000))-$R$150*($B65-2000)))*(1+I$38/27*($B65-$B$64))>=0,$M$150*$O$150*$R$150*EXP((-$O$150*EXP(-$R$150*($B65-2000))-$R$150*($B65-2000)))*(1+I$38/27*($B65-$B$64)),0) -> 120.688791 | K65: =IF(AND(G65<>"",R65<>"",G65-R65>0,J64>0.9),G65-R65,0) -> 4911.550508 | L65: =IF(K65<>"",(K65+R65*T65*2/3)*H65/1000,0) -> 67367.96329 | M65: =IF(L65>=0,I65*L65/1000000,0) -> 8.130558044 | O65: =FAT!$L$65*(1+Control!$F$3) -> 65.26716019 | P65: =O65/D65 -> 0.2164317022 | R65: =IF(AND(O65>D65,$AA$1="YES"),Q64+D65-(+(N64+O64)*F$165+(N63+O63)*F$166+(N62+O62)*F$167+(N61+O61)*F$168+(N60+O60)*F$169+(N59+O59)*F$170+(N58+O58)*F$171+(N57+O57)*F$172+(N56+O56)*F$173+(N55+O55)*F$174+(N54+O54)*F$175+(N53+O53)*F$176+(N52+O52)*F$177+(N51+O51)*F$178+(N50+O50)*F$179+(N49+O49)*F$180+(N48+O48)*F$181+(N47+O47)*F$182+(N46+O46)*F$183+(N45+O45)*F$184+(N44+O44)*F$185+(N43+O43)*F$186+(N42+O42)*F$187+(N41+O41)*F$188),Q64+O65-(+(N64+O64)*F$165+(N63+O63)*F$166+(N62+O62)*F$167+(N61+O61)*F$168+(N60+O60)*F$169+(N59+O59)*F$170+(N58+O58)*F$171+(N57+O57)*F$172+(N56+O56)*F$173+(N55+O55)*F$174+(N54+O54)*F$175+(N53+O53)*F$176+(N52+O52)*F$177+(N51+O51)*F$178+(N50+O50)*F$179+(N49+O49)*F$180+(N48+O48)*F$181+(N47+O47)*F$182+(N46+O46)*F$183+(N45+O45)*F$184+(N44+O44)*F$185+(N43+O43)*F$186+(N42+O42)*F$187+(N41+O41)*F$188)) -> 296.4997886 | S65: =R65/G65 -> 0.05693105323 | T65: =FAT!$W65 -> 0.2642169696 | U65: =R65*(1-2/3*T65)*H65/1000 -> 3315.2515 | V65: =IF(V$64*0.99^(B65-B$64)*(1+V$38/27*($B65-$B$64))>=0,V$64*0.99^(B65-B$64)*(1+V$38/27*($B65-$B$64)),0) -> 0.1962353658 | W65: =V65*U65 -> 650.5695909 | X65: =IF(OR(Scen=3,Scen=5),IF($V$154*$X$154*$Z$154*EXP((-$X$154*EXP(-$Z$154*($B65-2000))-$Z$154*($B65-2000)))*(1-2.8519/77*($B65-$B$64))>=0,$V$154*$X$154*$Z$154*EXP((-$X$154*EXP(-$Z$154*($B65-2000))-$Z$154*($B65-2000)))*(1-2.8519/77*($B65-$B$64)),0),IF(AND(Scen<>3,Scen<>5),IF($V$154*$X$154*$Z$154*EXP((-$X$154*EXP(-$Z$154*($B65-2000))-$Z$154*($B65-2000)))*(1+X$38/27*($B65-$B$64))>=0,$V$154*$X$154*$Z$154*EXP((-$X$154*EXP(-$Z$154*($B65-2000))-$Z$154*($B65-2000)))*(1+X$38/27*($B65-$B$64)),0))) -> 103.4898982 | Y65: 20.30837803 | Z65: 0.06732738072 | AA65: 8.197885425 | AB65: 115.9806532 | AC65: -1.186513805 | AD65: -12.64347111 | AE65: =G65*H65*I65/1000000000 -> 8.53067174 | AF65: 8.197885425 | AG65: 8.197885425 | AH65: 0.3327863149
A66: 25 | B66: 2025 | D66: =IF(FAT!$C66*(1+D$38/27*($B66-$B$64))>=0,FAT!$C66*(1+D$38/27*($B66-$B$64)),0) -> 299.6564908 | E66: =IF(D66<O66,1,0) -> 0 | G66: 5251.165617 | H66: =IF(AC$147*AE$147*AH$147*EXP(-AE$147*EXP(-AH$147*(B66-2000))-AH$147*(B66-2000))*(1+H$38/27*($B66-$B$64))>=0,AC$147*AE$147*AH$147*EXP(-AE$147*EXP(-AH$147*(B66-2000))-AH$147*(B66-2000))*(1+H$38/27*($B66-$B$64)),0) -> 13532.56114 | I66: 118.8024479 | K66: =IF(AND(G66<>"",R66<>"",G66-R66>0,K65>0.9),G66-R66,0) -> 4862.861213 | L66: 66653.01972 | M66: 7.918541901 | O66: =FAT!$U66-FAT!$U65+(N65+O65)*F$165+(N64+O64)*F$166+(N63+O63)*F$167+(N62+O62)*F$168+(N61+O61)*F$169+(N60+O60)*F$170+(N59+O59)*F$171+(N58+O58)*F$172+(N57+O57)*F$173+(N56+O56)*F$174+(N55+O55)*F$175+(N54+O54)*F$176+(N53+O53)*F$177+(N52+O52)*F$178+(N51+O51)*F$179+(N50+O50)*F$180+(N49+O49)*F$181+(N48+O48)*F$182+(N47+O47)*F$183+(N46+O46)*F$184+(N45+O45)*F$185+(N44+O44)*F$186+(N43+O43)*F$187+(N42+O42)*F$188 -> 93.54252113 | P66: =O66/D66 -> 0.3121658432 | R66: =IF(AND(O66>D66,$AA$1="YES"),R65+D66-(+(N65+O65)*F$165+(N64+O64)*F$166+(N63+O63)*F$167+(N62+O62)*F$168+(N61+O61)*F$169+(N60+O60)*F$170+(N59+O59)*F$171+(N58+O58)*F$172+(N57+O57)*F$173+(N56+O56)*F$174+(N55+O55)*F$175+(N54+O54)*F$176+(N53+O53)*F$177+(N52+O52)*F$178+(N51+O51)*F$179+(N50+O50)*F$180+(N49+O49)*F$181+(N48+O48)*F$182+(N47+O47)*F$183+(N46+O46)*F$184+(N45+O45)*F$185+(N44+O44)*F$186+(N43+O43)*F$187+(N42+O42)*F$188+(N41+O41)*F$189),R65+O66-(+(N65+O65)*F$165+(N64+O64)*F$166+(N63+O63)*F$167+(N62+O62)*F$168+(N61+O61)*F$169+(N60+O60)*F$170+(N59+O59)*F$171+(N58+O58)*F$172+(N57+O57)*F$173+(N56+O56)*F$174+(N55+O55)*F$175+(N54+O54)*F$176+(N53+O53)*F$177+(N52+O52)*F$178+(N51+O51)*F$179+(N50+O50)*F$180+(N49+O49)*F$181+(N48+O48)*F$182+(N47+O47)*F$183+(N46+O46)*F$184+(N45+O45)*F$185+(N44+O44)*F$186+(N43+O43)*F$187+(N42+O42)*F$188+(N41+O41)*F$189)) -> 388.304404 | S66: =R66/G66 -> 0.0739463259 | T66: =IF(Scen=5,IF($F$154*$I$154*$K$154*EXP((-$I$154*EXP(-$K$154*($B66-2000))-$K$154*($B66-2000)))*(1-2.8519/77*($B66-$B$64))>=0,$F$154*$I$154*$K$154*EXP((-$I$154*EXP(-$K$154*($B66-2000))-$K$154*($B66-2000)))*(1-2.8519/77*($B66-$B$64)),0),IF(Scen<>5,IF($F$154*$I$154*$K$154*EXP((-$I$154*EXP(-$K$154*($B66-2000))-$K$154*($B66-2000)))*(1+T$38/27*($B66-$B$64))>=0,$F$154*$I$154*$K$154*EXP((-$I$154*EXP(-$K$154*($B66-2000))-$K$154*($B66-2000)))*(1+T$38/27*($B66-$B$64)),0))) -> 0.241510788 | U66: 4408.700049 | V66: =IF(V$64*0.99^(B66-B$64)*(1+V$38/27*($B66-$B$64))>=0,V$64*0.99^(B66-B$64)*(1+V$38/27*($B66-$B$64)),0) -> 0.1942730122 | W66: =V66*U66 -> 856.4914383 | X66: 96.73452414 | Y66: 18.79290738 | Z66: 0.08285229171 | AA66: 8.001394192 | AB66: 112.5978124 | AC66: -1.383005038 | AD66: -14.73727837 | AE66: 8.442306258 | AF66: 8.001394192 | AG66: 8.001394192 | AH66: 0.4409120661
A67: 26 | B67: 2026 | D67: =IF(FAT!$C67*(1+D$38/27*($B67-$B$64))>=0,FAT!$C67*(1+D$38/27*($B67-$B$64)),0) -> 297.7007772 | E67: 0 | G67: 5293.288722 | H67: 13488.85799 | I67: 116.9449343 | K67: 4796.484826 | L67: 65714.4834 | M67: 7.684975942 | O67: =FAT!$U67-FAT!$U66+(N66+O66)*F$165+(N65+O65)*F$166+(N64+O64)*F$167+(N63+O63)*F$168+(N62+O62)*F$169+(N61+O61)*F$170+(N60+O60)*F$171+(N59+O59)*F$172+(N58+O58)*F$173+(N57+O57)*F$174+(N56+O56)*F$175+(N55+O55)*F$176+(N54+O54)*F$177+(N53+O53)*F$178+(N52+O52)*F$179+(N51+O51)*F$180+(N50+O50)*F$181+(N49+O49)*F$182+(N48+O48)*F$183+(N47+O47)*F$184+(N46+O46)*F$185+(N45+O45)*F$186+(N44+O44)*F$187+(N43+O43)*F$188 -> 111.1594285 | P67: 0.3733931418 | R67: =IF(AND(O67>D67,$AA$1="YES"),R66+D67-(+(N66+O66)*F$165+(N65+O65)*F$166+(N64+O64)*F$167+(N63+O63)*F$168+(N62+O62)*F$169+(N61+O61)*F$170+(N60+O60)*F$171+(N59+O59)*F$172+(N58+O58)*F$173+(N57+O57)*F$174+(N56+O56)*F$175+(N55+O55)*F$176+(N54+O54)*F$177+(N53+O53)*F$178+(N52+O52)*F$179+(N51+O51)*F$180+(N50+O50)*F$181+(N49+O49)*F$182+(N48+O48)*F$183+(N47+O47)*F$184+(N46+O46)*F$185+(N45+O45)*F$186+(N44+O44)*F$187+(N43+O43)*F$188+(N42+O42)*F$189+(N41+O41)*F$190),R66+O67-(+(N66+O66)*F$165+(N65+O65)*F$166+(N64+O64)*F$167+(N63+O63)*F$168+(N62+O62)*F$169+(N61+O61)*F$170+(N60+O60)*F$171+(N59+O59)*F$172+(N58+O58)*F$173+(N57+O57)*F$174+(N56+O56)*F$175+(N55+O55)*F$176+(N54+O54)*F$177+(N53+O53)*F$178+(N52+O52)*F$179+(N51+O51)*F$180+(N50+O50)*F$181+(N49+O49)*F$182+(N48+O48)*F$183+(N47+O47)*F$184+(N46+O46)*F$185+(N45+O45)*F$186+(N44+O44)*F$187+(N43+O43)*F$188+(N42+O42)*F$189+(N41+O41)*F$190)) -> 496.8038955 | S67: 0.0938554312 | T67: 0.2272793643 | U67: 5685.936452 | V67: 0.192330282 | W67: 1093.577761 | X67: 90.31223264 | Y67: 17.36977717 | Z67: 0.09876344919 | AA67: 7.783739391 | AB67: 109.0153168 | AC67: -1.600659839 | AD67: -17.05660426 | AE67: 8.349917407 | AF67: 7.783739391 | AG67: 7.783739391 | AH67: 0.5661780155
A68: 27 | B68: 2027 | D68: =IF(FAT!$C68*(1+D$38/27*($B68-$B$64))>=0,FAT!$C68*(1+D$38/27*($B68-$B$64)),0) -> 295.6963113 | E68: 0 | G68: 5334.432121 | H68: 13440.93537 | I68: 115.1158304 | K68: 4712.218826 | L68: 64517.11666 | M68: 7.426941458 | O68: =FAT!$U68-FAT!$U67+(N67+O67)*F$165+(N66+O66)*F$166+(N65+O65)*F$167+(N64+O64)*F$168+(N63+O63)*F$169+(N62+O62)*F$170+(N61+O61)*F$171+(N60+O60)*F$172+(N59+O59)*F$173+(N58+O58)*F$174+(N57+O57)*F$175+(N56+O56)*F$176+(N55+O55)*F$177+(N54+O54)*F$178+(N53+O53)*F$179+(N52+O52)*F$180+(N51+O51)*F$181+(N50+O50)*F$182+(N49+O49)*F$183+(N48+O48)*F$184+(N47+O47)*F$185+(N46+O46)*F$186+(N45+O45)*F$187+(N44+O44)*F$188 -> 129.4566033 | P68: 0.4378025641 | R68: =IF(AND(O68>D68,$AA$1="YES"),R67+D68-(+(N67+O67)*F$165+(N66+O66)*F$166+(N65+O65)*F$167+(N64+O64)*F$168+(N63+O63)*F$169+(N62+O62)*F$170+(N61+O61)*F$171+(N60+O60)*F$172+(N59+O59)*F$173+(N58+O58)*F$174+(N57+O57)*F$175+(N56+O56)*F$176+(N55+O55)*F$177+(N54+O54)*F$178+(N53+O53)*F$179+(N52+O52)*F$180+(N51+O51)*F$181+(N50+O50)*F$182+(N49+O49)*F$183+(N48+O48)*F$184+(N47+O47)*F$185+(N46+O46)*F$186+(N45+O45)*F$187+(N44+O44)*F$188+(N43+O43)*F$189+(N42+O42)*F$190+(N41+O41)*F$191),R67+O68-(+(N67+O67)*F$165+(N66+O66)*F$166+(N65+O65)*F$167+(N64+O64)*F$168+(N63+O63)*F$169+(N62+O62)*F$170+(N61+O61)*F$171+(N60+O60)*F$172+(N59+O59)*F$173+(N58+O58)*F$174+(N57+O57)*F$175+(N56+O56)*F$176+(N55+O55)*F$177+(N54+O54)*F$178+(N53+O53)*F$179+(N52+O52)*F$180+(N51+O51)*F$181+(N50+O50)*F$182+(N49+O49)*F$183+(N48+O48)*F$184+(N47+O47)*F$185+(N46+O46)*F$186+(N45+O45)*F$187+(N44+O44)*F$188+(N43+O43)*F$189+(N42+O42)*F$190+(N41+O41)*F$191)) -> 622.2132952 | S68: 0.1166409622 | T68: 0.2117308045 | U68: 7182.64071 | V68: 0.1904069792 | W68: 1367.62492 | X68: 84.223694 | Y68: 16.03677915 | Z68: 0.1151864228 | AA68: 7.542127881 | AB68: 105.190424 | AC68: -1.842271349 | AD68: -19.63121244 | AE68: 8.253777108 | AF68: 7.542127881 | AG68: 7.542127881 | AH68: 0.7116492269
A69: 28 | B69: 2028 | D69: =IF(FAT!$C69*(1+D$38/27*($B69-$B$64))>=0,FAT!$C69*(1+D$38/27*($B69-$B$64)),0) -> 293.6463629 | E69: 0 | G69: 5374.608832 | H69: 13388.92441 | I69: 113.3147217 | K69: 4610.3575 | L69: 63061.46353 | M69: 7.145792193 | O69: =FAT!$U69-FAT!$U68+(N68+O68)*F$165+(N67+O67)*F$166+(N66+O66)*F$167+(N65+O65)*F$168+(N64+O64)*F$169+(N63+O63)*F$170+(N62+O62)*F$171+(N61+O61)*F$172+(N60+O60)*F$173+(N59+O59)*F$174+(N58+O58)*F$175+(N57+O57)*F$176+(N56+O56)*F$177+(N55+O55)*F$178+(N54+O54)*F$179+(N53+O53)*F$180+(N52+O52)*F$181+(N51+O51)*F$182+(N50+O50)*F$183+(N49+O49)*F$184+(N48+O48)*F$185+(N47+O47)*F$186+(N46+O46)*F$187+(N45+O45)*F$188 -> 148.1623193 | P69: 0.5045603762 | R69: =IF(AND(O69>D69,$AA$1="YES"),R68+D69-(+(N68+O68)*F$165+(N67+O67)*F$166+(N66+O66)*F$167+(N65+O65)*F$168+(N64+O64)*F$169+(N63+O63)*F$170+(N62+O62)*F$171+(N61+O61)*F$172+(N60+O60)*F$173+(N59+O59)*F$174+(N58+O58)*F$175+(N57+O57)*F$176+(N56+O56)*F$177+(N55+O55)*F$178+(N54+O54)*F$179+(N53+O53)*F$180+(N52+O52)*F$181+(N51+O51)*F$182+(N50+O50)*F$183+(N49+O49)*F$184+(N48+O48)*F$185+(N47+O47)*F$186+(N46+O46)*F$187+(N45+O45)*F$188+(N44+O44)*F$189+(N43+O43)*F$190+(N42+O42)*F$191+(N41+O41)*F$192),R68+O69-(+(N68+O68)*F$165+(N67+O67)*F$166+(N66+O66)*F$167+(N65+O65)*F$168+(N64+O64)*F$169+(N63+O63)*F$170+(N62+O62)*F$171+(N61+O61)*F$172+(N60+O60)*F$173+(N59+O59)*F$174+(N58+O58)*F$175+(N57+O57)*F$176+(N56+O56)*F$177+(N55+O55)*F$178+(N54+O54)*F$179+(N53+O53)*F$180+(N52+O52)*F$181+(N51+O51)*F$182+(N50+O50)*F$183+(N49+O49)*F$184+(N48+O48)*F$185+(N47+O47)*F$186+(N46+O46)*F$187+(N45+O45)*F$188+(N44+O44)*F$189+(N43+O43)*F$190+(N42+O42)*F$191+(N41+O41)*F$192)) -> 764.2513318 | S69: 0.1421966427 | T69: 0.1955145428 | U69: 8898.767839 | V69: 0.1885029094 | W69: 1677.443628 | X69: 78.46616941 | Y69: 14.79110122 | Z69: 0.1316225759 | AA69: 7.277414769 | AB69: 101.1310641 | AC69: -2.106984462 | AD69: -22.45199091 | AE69: 8.154153594 | AF69: 7.277414769 | AG69: 7.277414769 | AH69: 0.8767388256
A70: 29 | B70: 2029 | D70: =IF(FAT!$C70*(1+D$38/27*($B70-$B$64))>=0,FAT!$C70*(1+D$38/27*($B70-$B$64)),0) -> 291.5540948 | E70: 0 | G70: 5413.832323 | H70: 13332.95702 | I70: 111.5411993 | K70: 4491.66984 | L70: 61355.77552 | M70: 6.843696786 | O70: =FAT!$U70-FAT!$U69+(N69+O69)*F$165+(N68+O68)*F$166+(N67+O67)*F$167+(N66+O66)*F$168+(N65+O65)*F$169+(N64+O64)*F$170+(N63+O63)*F$171+(N62+O62)*F$172+(N61+O61)*F$173+(N60+O60)*F$174+(N59+O59)*F$175+(N58+O58)*F$176+(N57+O57)*F$177+(N56+O56)*F$178+(N55+O55)*F$179+(N54+O54)*F$180+(N53+O53)*F$181+(N52+O52)*F$182+(N51+O51)*F$183+(N50+O50)*F$184+(N49+O49)*F$185+(N48+O48)*F$186+(N47+O47)*F$187+(N46+O46)*F$188 -> 167.0721033 | P70: 0.5730398109 | R70: =IF(AND(O70>D70,$AA$1="YES"),R69+D70-(+(N69+O69)*F$165+(N68+O68)*F$166+(N67+O67)*F$167+(N66+O66)*F$168+(N65+O65)*F$169+(N64+O64)*F$170+(N63+O63)*F$171+(N62+O62)*F$172+(N61+O61)*F$173+(N60+O60)*F$174+(N59+O59)*F$175+(N58+O58)*F$176+(N57+O57)*F$177+(N56+O56)*F$178+(N55+O55)*F$179+(N54+O54)*F$180+(N53+O53)*F$181+(N52+O52)*F$182+(N51+O51)*F$183+(N50+O50)*F$184+(N49+O49)*F$185+(N48+O48)*F$186+(N47+O47)*F$187+(N46+O46)*F$188+(N45+O45)*F$189+(N44+O44)*F$190+(N43+O43)*F$191+(N42+O42)*F$192+(N41+O41)*F$193),R69+O70-(+(N69+O69)*F$165+(N68+O68)*F$166+(N67+O67)*F$167+(N66+O66)*F$168+(N65+O65)*F$169+(N64+O64)*F$170+(N63+O63)*F$171+(N62+O62)*F$172+(N61+O61)*F$173+(N60+O60)*F$174+(N59+O59)*F$175+(N58+O58)*F$176+(N57+O57)*F$177+(N56+O56)*F$178+(N55+O55)*F$179+(N54+O54)*F$180+(N53+O53)*F$181+(N52+O52)*F$182+(N51+O51)*F$183+(N50+O50)*F$184+(N49+O49)*F$185+(N48+O48)*F$186+(N47+O47)*F$187+(N46+O46)*F$188+(N45+O45)*F$189+(N44+O44)*F$190+(N43+O43)*F$191+(N42+O42)*F$192+(N41+O41)*F$193)) -> 922.1624831 | S70: 0.1703345113 | T70: 0.1791601897 | U70: 10826.61815 | V70: 0.1866178803 | W70: 2020.440531 | X70: 73.03413855 | Y70: 13.62947613 | Z70: 0.1475611336 | AA70: 6.99125792 | AB70: 96.85544583 | AC70: -2.393141311 | AD70: -25.50127346 | AE70: 8.05131076 | AF70: 6.99125792 | AG70: 6.99125792 | AH70: 1.06005284
A71: 30 | B71: 2030 | D71: =IF(FAT!$C71*(1+D$38/27*($B71-$B$64))>=0,FAT!$C71*(1+D$38/27*($B71-$B$64)),0) -> 289.4225625 | E71: 0 | G71: 5452.116468 | H71: 13273.16565 | I71: 109.7948595 | K71: 4357.350161 | L71: 59415.65246 | M71: 6.523533211 | O71: =FAT!$U71-FAT!$U70+(N70+O70)*F$165+(N69+O69)*F$166+(N68+O68)*F$167+(N67+O67)*F$168+(N66+O66)*F$169+(N65+O65)*F$170+(N64+O64)*F$171+(N63+O63)*F$172+(N62+O62)*F$173+(N61+O61)*F$174+(N60+O60)*F$175+(N59+O59)*F$176+(N58+O58)*F$177+(N57+O57)*F$178+(N56+O56)*F$179+(N55+O55)*F$180+(N54+O54)*F$181+(N53+O53)*F$182+(N52+O52)*F$183+(N51+O51)*F$184+(N50+O50)*F$185+(N49+O49)*F$186+(N48+O48)*F$187+(N47+O47)*F$188 -> 186.0604551 | P71: 0.6428678312 | R71: =IF(AND(O71>D71,$AA$1="YES"),R70+D71-(+(N70+O70)*F$165+(N69+O69)*F$166+(N68+O68)*F$167+(N67+O67)*F$168+(N66+O66)*F$169+(N65+O65)*F$170+(N64+O64)*F$171+(N63+O63)*F$172+(N62+O62)*F$173+(N61+O61)*F$174+(N60+O60)*F$175+(N59+O59)*F$176+(N58+O58)*F$177+(N57+O57)*F$178+(N56+O56)*F$179+(N55+O55)*F$180+(N54+O54)*F$181+(N53+O53)*F$182+(N52+O52)*F$183+(N51+O51)*F$184+(N50+O50)*F$185+(N49+O49)*F$186+(N48+O48)*F$187+(N47+O47)*F$188+(N46+O46)*F$189+(N45+O45)*F$190+(N44+O44)*F$191+(N43+O43)*F$192+(N42+O42)*F$193+(N41+O41)*F$194),R70+O71-(+(N70+O70)*F$165+(N69+O69)*F$166+(N68+O68)*F$167+(N67+O67)*F$168+(N66+O66)*F$169+(N65+O65)*F$170+(N64+O64)*F$171+(N63+O63)*F$172+(N62+O62)*F$173+(N61+O61)*F$174+(N60+O60)*F$175+(N59+O59)*F$176+(N58+O58)*F$177+(N57+O57)*F$178+(N56+O56)*F$179+(N55+O55)*F$180+(N54+O54)*F$181+(N53+O53)*F$182+(N52+O52)*F$183+(N51+O51)*F$184+(N50+O50)*F$185+(N49+O49)*F$186+(N48+O48)*F$187+(N47+O47)*F$188+(N46+O46)*F$189+(N45+O45)*F$190+(N44+O44)*F$191+(N43+O43)*F$192+(N42+O42)*F$193+(N41+O41)*F$194)) -> 1094.766306 | S71: 0.2007965737 | T71: 0.1630810401 | U71: 12951.19256 | V71: 0.1847517015 | W71: 2392.754861 | X71: 67.91985297 | Y71: 12.5483084 | Z71: 0.1625155584 | AA71: 6.68604877 | AB71: 92.39104963 | AC71: -2.698350461 | AD71: -28.75357702 | AE71: 7.945507578 | AF71: 6.68604877 | AG71: 6.68604877 | AH71: 1.259458808
A72: 31 | B72: 2031 | D72: =IF(FAT!$C72*(1+D$38/27*($B72-$B$64))>=0,FAT!$C72*(1+D$38/27*($B72-$B$64)),0) -> 287.2547157 | E72: 0 | G72: 5489.475494 | H72: 13209.68304 | I72: 108.0753038 | K72: 4208.948626 | L72: 57263.1743 | M72: 6.188734957 | O72: =FAT!$U72-FAT!$U71+(N71+O71)*F$165+(N70+O70)*F$166+(N69+O69)*F$167+(N68+O68)*F$168+(N67+O67)*F$169+(N66+O66)*F$170+(N65+O65)*F$171+(N64+O64)*F$172+(N63+O63)*F$173+(N62+O62)*F$174+(N61+O61)*F$175+(N60+O60)*F$176+(N59+O59)*F$177+(N58+O58)*F$178+(N57+O57)*F$179+(N56+O56)*F$180+(N55+O55)*F$181+(N54+O54)*F$182+(N53+O53)*F$183+(N52+O52)*F$184+(N51+O51)*F$185+(N50+O50)*F$186+(N49+O49)*F$187+(N48+O48)*F$188 -> 205.0815645 | P72: 0.7139362847 | R72: =IF(AND(O72>D72,$AA$1="YES"),R71+D72-(+(N71+O71)*F$165+(N70+O70)*F$166+(N69+O69)*F$167+(N68+O68)*F$168+(N67+O67)*F$169+(N66+O66)*F$170+(N65+O65)*F$171+(N64+O64)*F$172+(N63+O63)*F$173+(N62+O62)*F$174+(N61+O61)*F$175+(N60+O60)*F$176+(N59+O59)*F$177+(N58+O58)*F$178+(N57+O57)*F$179+(N56+O56)*F$180+(N55+O55)*F$181+(N54+O54)*F$182+(N53+O53)*F$183+(N52+O52)*F$184+(N51+O51)*F$185+(N50+O50)*F$186+(N49+O49)*F$187+(N48+O48)*F$188+(N47+O47)*F$189+(N46+O46)*F$190+(N45+O45)*F$191+(N44+O44)*F$192+(N43+O43)*F$193+(N42+O42)*F$194+(N41+O41)*F$195),R71+O72-(+(N71+O71)*F$165+(N70+O70)*F$166+(N69+O69)*F$167+(N68+O68)*F$168+(N67+O67)*F$169+(N66+O66)*F$170+(N65+O65)*F$171+(N64+O64)*F$172+(N63+O63)*F$173+(N62+O62)*F$174+(N61+O61)*F$175+(N60+O60)*F$176+(N59+O59)*F$177+(N58+O58)*F$178+(N57+O57)*F$179+(N56+O56)*F$180+(N55+O55)*F$181+(N54+O54)*F$182+(N53+O53)*F$183+(N52+O52)*F$184+(N51+O51)*F$185+(N50+O50)*F$186+(N49+O49)*F$187+(N48+O48)*F$188+(N47+O47)*F$189+(N46+O46)*F$190+(N45+O45)*F$191+(N44+O44)*F$192+(N43+O43)*F$193+(N42+O42)*F$194+(N41+O41)*F$195)) -> 1280.526868 | S72: 0.2332694389 | T72: 0.1475845873 | U72: 15251.05702 | V72: 0.1829041845 | W72: 2789.482146 | X72: 63.11381915 | Y72: 11.54378162 | Z72: 0.1760548717 | AA72: 6.364789828 | AB72: 87.77297522 | AC72: -3.019609402 | AD72: -32.17690689 | AE72: 7.836997576 | AF72: 6.364789828 | AG72: 6.364789828 | AH72: 1.472207748
A73: 32 | B73: 2032 | D73: =IF(FAT!$C73*(1+D$38/27*($B73-$B$64))>=0,FAT!$C73*(1+D$38/27*($B73-$B$64)),0) -> 285.0533989 | E73: 0 | G73: 5525.92394 | H73: 13142.64196 | I73: 106.3821391 | K73: 4048.289467 | L73: 54925.66028 | M73: 5.843109234 | O73: =FAT!$U73-FAT!$U72+(N72+O72)*F$165+(N71+O71)*F$166+(N70+O70)*F$167+(N69+O69)*F$168+(N68+O68)*F$169+(N67+O67)*F$170+(N66+O66)*F$171+(N65+O65)*F$172+(N64+O64)*F$173+(N63+O63)*F$174+(N62+O62)*F$175+(N61+O61)*F$176+(N60+O60)*F$177+(N59+O59)*F$178+(N58+O58)*F$179+(N57+O57)*F$180+(N56+O56)*F$181+(N55+O55)*F$182+(N54+O54)*F$183+(N53+O53)*F$184+(N52+O52)*F$185+(N51+O51)*F$186+(N50+O50)*F$187+(N49+O49)*F$188 -> 224.1111825 | P73: 0.7862077187 | R73: =IF(AND(O73>D73,$AA$1="YES"),R72+D73-(+(N72+O72)*F$165+(N71+O71)*F$166+(N70+O70)*F$167+(N69+O69)*F$168+(N68+O68)*F$169+(N67+O67)*F$170+(N66+O66)*F$171+(N65+O65)*F$172+(N64+O64)*F$173+(N63+O63)*F$174+(N62+O62)*F$175+(N61+O61)*F$176+(N60+O60)*F$177+(N59+O59)*F$178+(N58+O58)*F$179+(N57+O57)*F$180+(N56+O56)*F$181+(N55+O55)*F$182+(N54+O54)*F$183+(N53+O53)*F$184+(N52+O52)*F$185+(N51+O51)*F$186+(N50+O50)*F$187+(N49+O49)*F$188+(N48+O48)*F$189+(N47+O47)*F$190+(N46+O46)*F$191+(N45+O45)*F$192+(N44+O44)*F$193+(N43+O43)*F$194+(N42+O42)*F$195+(N41+O41)*F$196),R72+O73-(+(N72+O72)*F$165+(N71+O71)*F$166+(N70+O70)*F$167+(N69+O69)*F$168+(N68+O68)*F$169+(N67+O67)*F$170+(N66+O66)*F$171+(N65+O65)*F$172+(N64+O64)*F$173+(N63+O63)*F$174+(N62+O62)*F$175+(N61+O61)*F$176+(N60+O60)*F$177+(N59+O59)*F$178+(N58+O58)*F$179+(N57+O57)*F$180+(N56+O56)*F$181+(N55+O55)*F$182+(N54+O54)*F$183+(N53+O53)*F$184+(N52+O52)*F$185+(N51+O51)*F$186+(N50+O50)*F$187+(N49+O49)*F$188+(N48+O48)*F$189+(N47+O47)*F$190+(N46+O46)*F$191+(N45+O45)*F$192+(N44+O44)*F$193+(N43+O43)*F$194+(N42+O42)*F$195+(N41+O41)*F$196)) -> 1477.634473 | S73: 0.2674004364 | T73: 0.132886669 | U73: 17699.57958 | V73: 0.1810751427 | W73: 3204.953898 | X73: 58.6052164 | Y73: 10.61194792 | Z73: 0.1878270167 | AA73: 6.03093625 | AB73: 83.0418772 | AC73: -3.35346298 | AD73: -35.73444499 | AE73: 7.726028371 | AF73: 6.03093625 | AG73: 6.03093625 | AH73: 1.695092121
A74: 33 | B74: 2033 | D74: =IF(FAT!$C74*(1+D$38/27*($B74-$B$64))>=0,FAT!$C74*(1+D$38/27*($B74-$B$64)),0) -> 282.8213527 | E74: 0 | G74: =IF(a*EXP(-b*EXP(-ze*(B74-2000)))*(1+G$38/27*($B74-$B$64))>=0,a*EXP(-b*EXP(-ze*(B74-2000)))*(1+G$38/27*($B74-$B$64)),0) -> 5561.47661 | H74: 13072.17504 | I74: 104.7149776 | K74: 3877.384375 | L74: 52434.21199 | M74: 5.490647335 | O74: =FAT!$U74-FAT!$U73+(N73+O73)*F$165+(N72+O72)*F$166+(N71+O71)*F$167+(N70+O70)*F$168+(N69+O69)*F$169+(N68+O68)*F$170+(N67+O67)*F$171+(N66+O66)*F$172+(N65+O65)*F$173+(N64+O64)*F$174+(N63+O63)*F$175+(N62+O62)*F$176+(N61+O61)*F$177+(N60+O60)*F$178+(N59+O59)*F$179+(N58+O58)*F$180+(N57+O57)*F$181+(N56+O56)*F$182+(N55+O55)*F$183+(N54+O54)*F$184+(N53+O53)*F$185+(N52+O52)*F$186+(N51+O51)*F$187+(N50+O50)*F$188+(N49+O49)*F$189+(N48+O48)*F$190+(N47+O47)*F$191+(N46+O46)*F$192+(N45+O45)*F$193+(N44+O44)*F$194+(N43+O43)*F$195+(N42+O42)*F$196+(N41+O41)*F$197 -> 243.0129584 | P74: 0.8592454427 | R74: =IF(AND(O74>D74,$AA$1="YES"),R73+D74-(+(N73+O73)*F$165+(N72+O72)*F$166+(N71+O71)*F$167+(N70+O70)*F$168+(N69+O69)*F$169+(N68+O68)*F$170+(N67+O67)*F$171+(N66+O66)*F$172+(N65+O65)*F$173+(N64+O64)*F$174+(N63+O63)*F$175+(N62+O62)*F$176+(N61+O61)*F$177+(N60+O60)*F$178+(N59+O59)*F$179+(N58+O58)*F$180+(N57+O57)*F$181+(N56+O56)*F$182+(N55+O55)*F$183+(N54+O54)*F$184+(N53+O53)*F$185+(N52+O52)*F$186+(N51+O51)*F$187+(N50+O50)*F$188+(N49+O49)*F$189+(N48+O48)*F$190+(N47+O47)*F$191+(N46+O46)*F$192+(N45+O45)*F$193+(N44+O44)*F$194+(N43+O43)*F$195+(N42+O42)*F$196+(N41+O41)*F$197),R73+O74-(+(N73+O73)*F$165+(N72+O72)*F$166+(N71+O71)*F$167+(N70+O70)*F$168+(N69+O69)*F$169+(N68+O68)*F$170+(N67+O67)*F$171+(N66+O66)*F$172+(N65+O65)*F$173+(N64+O64)*F$174+(N63+O63)*F$175+(N62+O62)*F$176+(N61+O61)*F$177+(N60+O60)*F$178+(N59+O59)*F$179+(N58+O58)*F$180+(N57+O57)*F$181+(N56+O56)*F$182+(N55+O55)*F$183+(N54+O54)*F$184+(N53+O53)*F$185+(N52+O52)*F$186+(N51+O51)*F$187+(N50+O50)*F$188+(N49+O49)*F$189+(N48+O48)*F$190+(N47+O47)*F$191+(N46+O46)*F$192+(N45+O45)*F$193+(N44+O44)*F$194+(N43+O43)*F$195+(N42+O42)*F$196+(N41+O41)*F$197)) -> 1684.092235 | S74: 0.3028138664 | T74: 0.119126826 | U74: 20266.38374 | V74: 0.1792643912 | W74: 3633.040944 | X74: 54.38225498 | Y74: 9.748801833 | Z74: 0.1975729589 | AA74: 5.688220294 | AB74: 78.24172879 | AC74: -3.696178936 | AD74: -39.38642044 | AE74: 7.612841255 | AF74: 5.688220294 | AG74: 5.688220294 | AH74: 1.924620961
A75: 34 | B75: 2034 | D75: =IF(FAT!$C75*(1+D$38/27*($B75-$B$64))>=0,FAT!$C75*(1+D$38/27*($B75-$B$64)),0) -> 280.5612155 | E75: 0 | G75: 5596.148537 | H75: 12998.41448 | I75: 103.0734365 | K75: 3698.347478 | L75: 49822.19074 | M75: 5.135344412 | O75: =FAT!$U75-FAT!$U74+(N74+O74)*F$165+(N73+O73)*F$166+(N72+O72)*F$167+(N71+O71)*F$168+(N70+O70)*F$169+(N69+O69)*F$170+(N68+O68)*F$171+(N67+O67)*F$172+(N66+O66)*F$173+(N65+O65)*F$174+(N64+O64)*F$175+(N63+O63)*F$176+(N62+O62)*F$177+(N61+O61)*F$178+(N60+O60)*F$179+(N59+O59)*F$180+(N58+O58)*F$181+(N57+O57)*F$182+(N56+O56)*F$183+(N55+O55)*F$184+(N54+O54)*F$185+(N53+O53)*F$186+(N52+O52)*F$187+(N51+O51)*F$188+(N50+O50)*F$189+(N49+O49)*F$190+(N48+O48)*F$191+(N47+O47)*F$192+(N46+O46)*F$193+(N45+O45)*F$194+(N44+O44)*F$195+(N43+O43)*F$196+(N42+O42)*F$197+(N41+O41)*F$198 -> 261.4355615 | P75: 0.9318307275 | R75: =IF(AND(O75>D75,$AA$1="YES"),R74+D75-(+(N74+O74)*F$165+(N73+O73)*F$166+(N72+O72)*F$167+(N71+O71)*F$168+(N70+O70)*F$169+(N69+O69)*F$170+(N68+O68)*F$171+(N67+O67)*F$172+(N66+O66)*F$173+(N65+O65)*F$174+(N64+O64)*F$175+(N63+O63)*F$176+(N62+O62)*F$177+(N61+O61)*F$178+(N60+O60)*F$179+(N59+O59)*F$180+(N58+O58)*F$181+(N57+O57)*F$182+(N56+O56)*F$183+(N55+O55)*F$184+(N54+O54)*F$185+(N53+O53)*F$186+(N52+O52)*F$187+(N51+O51)*F$188+(N50+O50)*F$189+(N49+O49)*F$190+(N48+O48)*F$191+(N47+O47)*F$192+(N46+O46)*F$193+(N45+O45)*F$194+(N44+O44)*F$195+(N43+O43)*F$196+(N42+O42)*F$197+(N41+O41)*F$198),R74+O75-(+(N74+O74)*F$165+(N73+O73)*F$166+(N72+O72)*F$167+(N71+O71)*F$168+(N70+O70)*F$169+(N69+O69)*F$170+(N68+O68)*F$171+(N67+O67)*F$172+(N66+O66)*F$173+(N65+O65)*F$174+(N64+O64)*F$175+(N63+O63)*F$176+(N62+O62)*F$177+(N61+O61)*F$178+(N60+O60)*F$179+(N59+O59)*F$180+(N58+O58)*F$181+(N57+O57)*F$182+(N56+O56)*F$183+(N55+O55)*F$184+(N54+O54)*F$185+(N53+O53)*F$186+(N52+O52)*F$187+(N51+O51)*F$188+(N50+O50)*F$189+(N49+O49)*F$190+(N48+O48)*F$191+(N47+O47)*F$192+(N46+O46)*F$193+(N45+O45)*F$194+(N44+O44)*F$195+(N43+O43)*F$196+(N42+O42)*F$197+(N41+O41)*F$198)) -> 1897.801059 | S75: 0.3391262842 | T75: 0.1063832866 | U75: 22918.86746 | V75: 0.1774717473 | W75: 4067.451454 | X75: 50.4324802 | Y75: 8.950340383 | Z75: 0.2051316649 | AA75: 5.340476077 | AB75: 73.41762974 | AC75: -4.043923153 | AD75: -43.09197695 | AE75: 7.497670841 | AF75: 5.340476077 | AG75: 5.340476077 | AH75: 2.157194764
A76: 35 | B76: 2035 | D76: =IF(FAT!$C76*(1+D$38/27*($B76-$B$64))>=0,FAT!$C76*(1+D$38/27*($B76-$B$64)),0) -> 278.2755247 | E76: 1 | G76: 5629.95494 | H76: 12921.49192 | I76: 101.457138 | K76: 3513.316908 | L76: 47123.75674 | M76: 4.781041493 | O76: =FAT!$U76-FAT!$U75+(N75+O75)*F$165+(N74+O74)*F$166+(N73+O73)*F$167+(N72+O72)*F$168+(N71+O71)*F$169+(N70+O70)*F$170+(N69+O69)*F$171+(N68+O68)*F$172+(N67+O67)*F$173+(N66+O66)*F$174+(N65+O65)*F$175+(N64+O64)*F$176+(N63+O63)*F$177+(N62+O62)*F$178+(N61+O61)*F$179+(N60+O60)*F$180+(N59+O59)*F$181+(N58+O58)*F$182+(N57+O57)*F$183+(N56+O56)*F$184+(N55+O55)*F$185+(N54+O54)*F$186+(N53+O53)*F$187+(N52+O52)*F$188+(N51+O51)*F$189+(N50+O50)*F$190+(N49+O49)*F$191+(N48+O48)*F$192+(N47+O47)*F$193+(N46+O46)*F$194+(N45+O45)*F$195+(N44+O44)*F$196+(N43+O43)*F$197+(N42+O42)*F$198 -> 278.9231415 | P76: 1.00232725 | R76: =IF(AND(O76>D76,$AA$1="YES"),R75+D76-(+(N75+O75)*F$165+(N74+O74)*F$166+(N73+O73)*F$167+(N72+O72)*F$168+(N71+O71)*F$169+(N70+O70)*F$170+(N69+O69)*F$171+(N68+O68)*F$172+(N67+O67)*F$173+(N66+O66)*F$174+(N65+O65)*F$175+(N64+O64)*F$176+(N63+O63)*F$177+(N62+O62)*F$178+(N61+O61)*F$179+(N60+O60)*F$180+(N59+O59)*F$181+(N58+O58)*F$182+(N57+O57)*F$183+(N56+O56)*F$184+(N55+O55)*F$185+(N54+O54)*F$186+(N53+O53)*F$187+(N52+O52)*F$188+(N51+O51)*F$189+(N50+O50)*F$190+(N49+O49)*F$191+(N48+O48)*F$192+(N47+O47)*F$193+(N46+O46)*F$194+(N45+O45)*F$195+(N44+O44)*F$196+(N43+O43)*F$197+(N42+O42)*F$198+(N41+O41)*F$199),R75+O76-(+(N75+O75)*F$165+(N74+O74)*F$166+(N73+O73)*F$167+(N72+O72)*F$168+(N71+O71)*F$169+(N70+O70)*F$170+(N69+O69)*F$171+(N68+O68)*F$172+(N67+O67)*F$173+(N66+O66)*F$174+(N65+O65)*F$175+(N64+O64)*F$176+(N63+O63)*F$177+(N62+O62)*F$178+(N61+O61)*F$179+(N60+O60)*F$180+(N59+O59)*F$181+(N58+O58)*F$182+(N57+O57)*F$183+(N56+O56)*F$184+(N55+O55)*F$185+(N54+O54)*F$186+(N53+O53)*F$187+(N52+O52)*F$188+(N51+O51)*F$189+(N50+O50)*F$190+(N49+O49)*F$191+(N48+O48)*F$192+(N47+O47)*F$193+(N46+O46)*F$194+(N45+O45)*F$195+(N44+O44)*F$196+(N43+O43)*F$197+(N42+O42)*F$198+(N41+O41)*F$199)) -> 2116.638032 | S76: 0.3759600307 | T76: 0.09468663895 | U76: 25623.66053 | V76: 0.1756970298 | W76: 4502.001049 | X76: 46.74302814 | Y76: 8.212611211 | Z76: 0.2104371617 | AA76: 4.991478655 | AB76: 68.61382633 | AC76: -4.392920576 | AD76: -46.8108876 | AE76: 7.380744757 | AF76: 4.991478655 | AG76: 4.991478655 | AH76: 2.389266102
A77: 36 | B77: 2036 | D77: =IF(FAT!$C77*(1+D$38/27*($B77-$B$64))>=0,FAT!$C77*(1+D$38/27*($B77-$B$64)),0) -> 275.9667188 | E77: 1 | G77: 5662.911191 | H77: 12841.5382 | I77: 99.86570971 | K77: 3324.386444 | L77: 44372.5649 | M77: 4.431297686 | O77: =FAT!$U77-FAT!$U76+(N76+O76)*F$165+(N75+O75)*F$166+(N74+O74)*F$167+(N73+O73)*F$168+(N72+O72)*F$169+(N71+O71)*F$170+(N70+O70)*F$171+(N69+O69)*F$172+(N68+O68)*F$173+(N67+O67)*F$174+(N66+O66)*F$175+(N65+O65)*F$176+(N64+O64)*F$177+(N63+O63)*F$178+(N62+O62)*F$179+(N61+O61)*F$180+(N60+O60)*F$181+(N59+O59)*F$182+(N58+O58)*F$183+(N57+O57)*F$184+(N56+O56)*F$185+(N55+O55)*F$186+(N54+O54)*F$187+(N53+O53)*F$188+(N52+O52)*F$189+(N51+O51)*F$190+(N50+O50)*F$191+(N49+O49)*F$192+(N48+O48)*F$193+(N47+O47)*F$194+(N46+O46)*F$195+(N45+O45)*F$196+(N44+O44)*F$197+(N43+O43)*F$198+(N42+O42)*F$199+(N41+O41)*F$200 -> 295.2552043 | P77: 1.069894245 | R77: =IF(AND(O77>D77,$AA$1="YES"),R76+D77-(+(N76+O76)*F$165+(N75+O75)*F$166+(N74+O74)*F$167+(N73+O73)*F$168+(N72+O72)*F$169+(N71+O71)*F$170+(N70+O70)*F$171+(N69+O69)*F$172+(N68+O68)*F$173+(N67+O67)*F$174+(N66+O66)*F$175+(N65+O65)*F$176+(N64+O64)*F$177+(N63+O63)*F$178+(N62+O62)*F$179+(N61+O61)*F$180+(N60+O60)*F$181+(N59+O59)*F$182+(N58+O58)*F$183+(N57+O57)*F$184+(N56+O56)*F$185+(N55+O55)*F$186+(N54+O54)*F$187+(N53+O53)*F$188+(N52+O52)*F$189+(N51+O51)*F$190+(N50+O50)*F$191+(N49+O49)*F$192+(N48+O48)*F$193+(N47+O47)*F$194+(N46+O46)*F$195+(N45+O45)*F$196+(N44+O44)*F$197+(N43+O43)*F$198+(N42+O42)*F$199+(N41+O41)*F$200),R76+O77-(+(N76+O76)*F$165+(N75+O75)*F$166+(N74+O74)*F$167+(N73+O73)*F$168+(N72+O72)*F$169+(N71+O71)*F$170+(N70+O70)*F$171+(N69+O69)*F$172+(N68+O68)*F$173+(N67+O67)*F$174+(N66+O66)*F$175+(N65+O65)*F$176+(N64+O64)*F$177+(N63+O63)*F$178+(N62+O62)*F$179+(N61+O61)*F$180+(N60+O60)*F$181+(N59+O59)*F$182+(N58+O58)*F$183+(N57+O57)*F$184+(N56+O56)*F$185+(N55+O55)*F$186+(N54+O54)*F$187+(N53+O53)*F$188+(N52+O52)*F$189+(N51+O51)*F$190+(N50+O50)*F$191+(N49+O49)*F$192+(N48+O48)*F$193+(N47+O47)*F$194+(N46+O46)*F$195+(N45+O45)*F$196+(N44+O44)*F$197+(N43+O43)*F$198+(N42+O42)*F$199+(N41+O41)*F$200)) -> 2338.524747 | S77: 0.4129545155 | T77: 0.08403172385 | U77: 28347.92549 | V77: 0.1739400595 | W77: 4930.839847 | X77: 43.30083846 | Y77: 7.531750421 | Z77: 0.2135094997 | AA77: 4.644807185 | AB77: 63.87205532 | AC77: -4.739592045 | AD77: -50.50501294 | AE77: 7.262283383 | AF77: 4.644807185 | AG77: 4.644807185 | AH77: 2.617476198
A78: 37 | B78: 2037 | D78: =IF(FAT!$C78*(1+D$38/27*($B78-$B$64))>=0,FAT!$C78*(1+D$38/27*($B78-$B$64)),0) -> 273.6371392 | E78: 1 | G78: 5695.032783 | H78: 12758.68321 | I78: 98.29878385 | K78: 3133.549216 | L78: 41600.67713 | M78: 4.089295969 | O78: =FAT!$U78-FAT!$U77+(N77+O77)*F$165+(N76+O76)*F$166+(N75+O75)*F$167+(N74+O74)*F$168+(N73+O73)*F$169+(N72+O72)*F$170+(N71+O71)*F$171+(N70+O70)*F$172+(N69+O69)*F$173+(N68+O68)*F$174+(N67+O67)*F$175+(N66+O66)*F$176+(N65+O65)*F$177+(N64+O64)*F$178+(N63+O63)*F$179+(N62+O62)*F$180+(N61+O61)*F$181+(N60+O60)*F$182+(N59+O59)*F$183+(N58+O58)*F$184+(N57+O57)*F$185+(N56+O56)*F$186+(N55+O55)*F$187+(N54+O54)*F$188+(N53+O53)*F$189+(N52+O52)*F$190+(N51+O51)*F$191+(N50+O50)*F$192+(N49+O49)*F$193+(N48+O48)*F$194+(N47+O47)*F$195+(N46+O46)*F$196+(N45+O45)*F$197+(N44+O44)*F$198+(N43+O43)*F$199+(N42+O42)*F$200+(N41+O41)*F$201 -> 310.6803187 | P78: 1.135373362 | R78: =IF(AND(O78>D78,$AA$1="YES"),R77+D78-(+(N77+O77)*F$165+(N76+O76)*F$166+(N75+O75)*F$167+(N74+O74)*F$168+(N73+O73)*F$169+(N72+O72)*F$170+(N71+O71)*F$171+(N70+O70)*F$172+(N69+O69)*F$173+(N68+O68)*F$174+(N67+O67)*F$175+(N66+O66)*F$176+(N65+O65)*F$177+(N64+O64)*F$178+(N63+O63)*F$179+(N62+O62)*F$180+(N61+O61)*F$181+(N60+O60)*F$182+(N59+O59)*F$183+(N58+O58)*F$184+(N57+O57)*F$185+(N56+O56)*F$186+(N55+O55)*F$187+(N54+O54)*F$188+(N53+O53)*F$189+(N52+O52)*F$190+(N51+O51)*F$191+(N50+O50)*F$192+(N49+O49)*F$193+(N48+O48)*F$194+(N47+O47)*F$195+(N46+O46)*F$196+(N45+O45)*F$197+(N44+O44)*F$198+(N43+O43)*F$199+(N42+O42)*F$200+(N41+O41)*F$201),R77+O78-(+(N77+O77)*F$165+(N76+O76)*F$166+(N75+O75)*F$167+(N74+O74)*F$168+(N73+O73)*F$169+(N72+O72)*F$170+(N71+O71)*F$171+(N70+O70)*F$172+(N69+O69)*F$173+(N68+O68)*F$174+(N67+O67)*F$175+(N66+O66)*F$176+(N65+O65)*F$177+(N64+O64)*F$178+(N63+O63)*F$179+(N62+O62)*F$180+(N61+O61)*F$181+(N60+O60)*F$182+(N59+O59)*F$183+(N58+O58)*F$184+(N57+O57)*F$185+(N56+O56)*F$186+(N55+O55)*F$187+(N54+O54)*F$188+(N53+O53)*F$189+(N52+O52)*F$190+(N51+O51)*F$191+(N50+O50)*F$192+(N49+O49)*F$193+(N48+O48)*F$194+(N47+O47)*F$195+(N46+O46)*F$196+(N45+O45)*F$197+(N44+O44)*F$198+(N43+O43)*F$199+(N42+O42)*F$200+(N41+O41)*F$201)) -> 2561.483566 | S78: 0.4497750345 | T78: 0.07438760534 | U78: 31060.44201 | V78: 0.172200659 | W78: 5348.628581 | X78: 40.09282954 | Y78: 6.904011666 | Z78: 0.214441654 | AA78: 4.303737623 | AB78: 59.23026887 | AC78: -5.080661608 | AD78: -54.13944444 | AE78: 7.142499644 | AF78: 4.303737623 | AG78: 4.303737623 | AH78: 2.838762021
A79: 38 | B79: 2038 | D79: =IF(FAT!$C79*(1+D$38/27*($B79-$B$64))>=0,FAT!$C79*(1+D$38/27*($B79-$B$64)),0) -> 271.2890318 | E79: 1 | G79: 5726.335293 | H79: 12673.0557 | I79: 96.75599782 | K79: 2942.65421 | L79: 38837.71944 | M79: 3.757782297 | O79: =FAT!$U79-FAT!$U78+(N78+O78)*F$165+(N77+O77)*F$166+(N76+O76)*F$167+(N75+O75)*F$168+(N74+O74)*F$169+(N73+O73)*F$170+(N72+O72)*F$171+(N71+O71)*F$172+(N70+O70)*F$173+(N69+O69)*F$174+(N68+O68)*F$175+(N67+O67)*F$176+(N66+O66)*F$177+(N65+O65)*F$178+(N64+O64)*F$179+(N63+O63)*F$180+(N62+O62)*F$181+(N61+O61)*F$182+(N60+O60)*F$183+(N59+O59)*F$184+(N58+O58)*F$185+(N57+O57)*F$186+(N56+O56)*F$187+(N55+O55)*F$188+(N54+O54)*F$189+(N53+O53)*F$190+(N52+O52)*F$191+(N51+O51)*F$192+(N50+O50)*F$193+(N49+O49)*F$194+(N48+O48)*F$195+(N47+O47)*F$196+(N46+O46)*F$197+(N45+O45)*F$198+(N44+O44)*F$199+(N43+O43)*F$200+(N42+O42)*F$201+(N41+O41)*F$202 -> 325.6821217 | P79: 1.200498669 | R79: =IF(AND(O79>D79,$AA$1="YES"),R78+D79-(+(N78+O78)*F$165+(N77+O77)*F$166+(N76+O76)*F$167+(N75+O75)*F$168+(N74+O74)*F$169+(N73+O73)*F$170+(N72+O72)*F$171+(N71+O71)*F$172+(N70+O70)*F$173+(N69+O69)*F$174+(N68+O68)*F$175+(N67+O67)*F$176+(N66+O66)*F$177+(N65+O65)*F$178+(N64+O64)*F$179+(N63+O63)*F$180+(N62+O62)*F$181+(N61+O61)*F$182+(N60+O60)*F$183+(N59+O59)*F$184+(N58+O58)*F$185+(N57+O57)*F$186+(N56+O56)*F$187+(N55+O55)*F$188+(N54+O54)*F$189+(N53+O53)*F$190+(N52+O52)*F$191+(N51+O51)*F$192+(N50+O50)*F$193+(N49+O49)*F$194+(N48+O48)*F$195+(N47+O47)*F$196+(N46+O46)*F$197+(N45+O45)*F$198+(N44+O44)*F$199+(N43+O43)*F$200+(N42+O42)*F$201+(N41+O41)*F$202),R78+O79-(+(N78+O78)*F$165+(N77+O77)*F$166+(N76+O76)*F$167+(N75+O75)*F$168+(N74+O74)*F$169+(N73+O73)*F$170+(N72+O72)*F$171+(N71+O71)*F$172+(N70+O70)*F$173+(N69+O69)*F$174+(N68+O68)*F$175+(N67+O67)*F$176+(N66+O66)*F$177+(N65+O65)*F$178+(N64+O64)*F$179+(N63+O63)*F$180+(N62+O62)*F$181+(N61+O61)*F$182+(N60+O60)*F$183+(N59+O59)*F$184+(N58+O58)*F$185+(N57+O57)*F$186+(N56+O56)*F$187+(N55+O55)*F$188+(N54+O54)*F$189+(N53+O53)*F$190+(N52+O52)*F$191+(N51+O51)*F$192+(N50+O50)*F$193+(N49+O49)*F$194+(N48+O48)*F$195+(N47+O47)*F$196+(N46+O46)*F$197+(N45+O45)*F$198+(N44+O44)*F$199+(N43+O43)*F$200+(N42+O42)*F$201+(N41+O41)*F$202)) -> 2783.681083 | S79: 0.4861191217 | T79: 0.06570567524 | U79: 33732.4467 | V79: 0.1704786524 | W79: 5750.662055 | X79: 37.1060407 | Y79: 6.325787813 | Z79: 0.2133843003 | AA79: 3.971166597 | AB79: 54.72175149 | AC79: -5.413232633 | AD79: -57.68331569 | AE79: 7.021598837 | AF79: 3.971166597 | AG79: 3.971166597 | AH79: 3.050432239
A80: 39 | B80: 2039 | D80: =IF(FAT!$C80*(1+D$38/27*($B80-$B$64))>=0,FAT!$C80*(1+D$38/27*($B80-$B$64)),0) -> 271.0051461 | E80: 1 | G80: 5756.834356 | H80: 12584.78316 | I80: 95.23699385 | K80: 2753.375291 | L80: 36110.28595 | M80: 3.439035081 | O80: =FAT!$U80-FAT!$U79*(1-FAT!$F79) -> 337.0812477 | P80: 1.243818623 | R80: =IF(AND(O80>D80,$AA$1="YES"),R79*(1-FAT!$F79)+D80,R79*(1-FAT!$F79)+O80) -> 3003.459065 | S80: 0.5217205984 | T80: 0.05792606228 | U80: 36338.22614 | V80: 0.1687738658 | W80: 6132.942903 | X80: 34.32774602 | Y80: 5.793626401 | Z80: 0.2105301063 | AA80: 3.649565187 | AB80: 50.37460511 | AC80: -5.734834044 | AD80: -61.11029489 | AE80: 6.8997785 | AF80: 3.649565187 | AG80: 3.649565187 | AH80: 3.250213313
A81: 40 | B81: 2040 | D81: =IF(FAT!$C81*(1+D$38/27*($B81-$B$64))>=0,FAT!$C81*(1+D$38/27*($B81-$B$64)),0) -> 271.4983263 | E81: 1 | G81: 5786.54564 | H81: 12493.99164 | I81: 93.74141903 | K81: 2567.191798 | L81: 33441.57316 | M81: 3.134860523 | O81: =FAT!$U81-FAT!$U80*(1-FAT!$F80) -> 342.040057 | P81: 1.259823814 | R81: =IF(AND(O81>D81,$AA$1="YES"),R80*(1-FAT!$F80)+D81,R80*(1-FAT!$F80)+O81) -> 3219.353842 | S81: 0.5563515856 | T81: 0.05098256914 | U81: 38855.47966 | V81: 0.1670861272 | W81: =V81*U81 -> 6492.211617 | X81: 31.74554364 | Y81: 5.304239943 | Z81: 0.2060987872 | AA81: 3.34095931 | AB81: 46.21155607 | AC81: -6.04343992 | AD81: -64.39879391 | AE81: 6.777228324 | AF81: 3.34095931 | AG81: 3.34095931 | AH81: 3.436269014
A82: 41 | B82: 2041 | D82: =IF(FAT!$C82*(1+D$38/27*($B82-$B$64))>=0,FAT!$C82*(1+D$38/27*($B82-$B$64)),0) -> 271.9740892 | E82: 1 | G82: 5815.484812 | H82: 12400.80561 | I82: 92.26892527 | K82: 2385.379206 | L82: 30851.21531 | M82: 2.846608479 | O82: =FAT!$U82-FAT!$U81*(1-FAT!$F81) -> 345.964626 | P82: 1.272049948 | R82: =IF(AND(O82>D82,$AA$1="YES"),R81*(1-FAT!$F81)+D82,R81*(1-FAT!$F81)+O82) -> 3430.105606 | S82: 0.5898228122 | T82: 0.04480637476 | U82: 41265.48135 | V82: 0.1654152659 | W82: 6825.94057 | X82: 29.3474243 | Y82: 4.854511994 | Z82: 0.2003237742 | AA82: 3.046932254 | AB82: 42.25002524 | AC82: -6.337466977 | AD82: -67.53194127 | AE82: 6.654130094 | AF82: 3.046932254 | AG82: 3.046932254 | AH82: 3.607197841
A83: 42 | B83: 2042 | D83: =IF(FAT!$C83*(1+D$38/27*($B83-$B$64))>=0,FAT!$C83*(1+D$38/27*($B83-$B$64)),0) -> 272.433073 | E83: 1 | G83: 5843.667523 | H83: 12305.34787 | I83: 90.81916918 | K83: 2209.008233 | L83: 28355.28593 | M83: 2.57520351 | O83: =FAT!$U83-FAT!$U82*(1-FAT!$F82) -> 348.618119 | P83: 1.279646833 | R83: =IF(AND(O83>D83,$AA$1="YES"),R82*(1-FAT!$F82)+D83,R82*(1-FAT!$F82)+O83) -> 3634.65929 | S83: 0.6219825607 | T83: 0.0393287289 | U83: 43553.07575 | V83: 0.1637611133 | W83: 7132.30017 | X83: 27.12182211 | Y83: 4.441499782 | Z83: 0.1934409765 | AA83: 2.768644486 | AB83: 38.50239975 | AC83: -6.615754744 | AD83: -70.49737103 | AE83: 6.530657665 | AF83: 2.768644486 | AG83: 2.768644486 | AH83: 3.762013178
A84: 43 | B84: 2043 | D84: =IF(FAT!$C84*(1+D$38/27*($B84-$B$64))>=0,FAT!$C84*(1+D$38/27*($B84-$B$64)),0) -> 272.8758926 | E84: 1 | G84: 5871.10938 | H84: 12207.73941 | I84: 89.39181211 | K84: 2038.950642 | L84: 25966.42892 | M84: 2.321186135 | O84: =FAT!$U84-FAT!$U83*(1-FAT!$F83) -> 350.1551381 | P84: 1.283202905 | R84: =IF(AND(O84>D84,$AA$1="YES"),R83*(1-FAT!$F83)+D84,R83*(1-FAT!$F83)+O84) -> 3832.158738 | S84: 0.6527145877 | T84: 0.03448284388 | U84: 45706.54441 | V84: 0.1621235021 | W84: 7410.105049 | X84: 25.05765061 | Y84: 4.062434072 | Z84: 0.1856798233 | AA84: 2.506865959 | AB84: 34.97644708 | AC84: -6.877533272 | AD84: -73.2868786 | AE84: 6.406976965 | AF84: 2.506865959 | AG84: 2.506865959 | AH84: 3.900111007
A85: 44 | B85: 2044 | D85: =IF(FAT!$C85*(1+D$38/27*($B85-$B$64))>=0,FAT!$C85*(1+D$38/27*($B85-$B$64)),0) -> 273.3031406 | E85: 1 | G85: 5897.825926 | H85: 12108.09931 | I85: 87.98652003 | K85: 1875.89007 | L85: 23694.08382 | M85: 2.084759981 | O85: =FAT!$U85-FAT!$U84*(1-FAT!$F84) -> 350.7277856 | P85: 1.283292189 | R85: =IF(AND(O85>D85,$AA$1="YES"),R84*(1-FAT!$F84)+D85,R84*(1-FAT!$F84)+O85) -> 4021.935856 | S85: 0.6819353278 | T85: 0.03020516003 | U85: 47717.37821 | V85: 0.1605022671 | W85: 7658.747382 | X85: 23.14432638 | Y85: 3.714716855 | Z85: 0.1772565491 | AA85: 2.26201653 | AB85: 31.67581878 | AC85: -7.1223827 | AD85: -75.89598999 | AE85: 6.283246035 | AF85: 2.26201653 | AG85: 2.26201653 | AH85: 4.021229504
A86: 45 | B86: 2045 | D86: =IF(FAT!$C86*(1+D$38/27*($B86-$B$64))>=0,FAT!$C86*(1+D$38/27*($B86-$B$64)),0) -> 273.7153879 | E86: 1 | G86: 5923.832625 | H86: 12006.54465 | I86: 86.60296353 | K86: 1720.336395 | L86: 21544.77407 | M86: 1.865841283 | O86: =FAT!$U86-FAT!$U85*(1-FAT!$F85) -> 350.48168 | P86: 1.280460272 | R86: =IF(AND(O86>D86,$AA$1="YES"),R85*(1-FAT!$F85)+D86,R85*(1-FAT!$F85)+O86) -> 4203.49623 | S86: 0.7095906479 | T86: 0.02643613283 | U86: 49579.98687 | V86: 0.1588972444 | W86: 7878.123292 | X86: 21.3717825 | Y86: 3.395917348 | Z86: 0.1683695375 | AA86: 2.03421082 | AB86: 28.60059976 | AC86: -7.35018841 | AD86: -78.32348379 | AE86: 6.159615077 | AF86: 2.03421082 | AG86: 2.03421082 | AH86: 4.125404257
A87: 46 | B87: 2046 | D87: =IF(FAT!$C87*(1+D$38/27*($B87-$B$64))>=0,FAT!$C87*(1+D$38/27*($B87-$B$64)),0) -> 274.1131843 | E87: 1 | G87: 5949.144839 | H87: 11903.19042 | I87: 85.24081771 | K87: 1572.642323 | L87: 19522.4315 | M87: 1.664108025 | O87: =FAT!$U87-FAT!$U86*(1-FAT!$F86) -> 349.5531277 | P87: 1.275214574 | R87: =IF(AND(O87>D87,$AA$1="YES"),R86*(1-FAT!$F86)+D87,R86*(1-FAT!$F86)+O87) -> 4376.502516 | S87: 0.7356523727 | T87: 0.02312066231 | U87: 51291.37235 | V87: 0.157308272 | W87: 8068.557152 | X87: 19.7304736 | Y87: 3.103766707 | Z87: 0.1591964539 | AA87: 1.823304479 | AB87: 25.74786807 | AC87: -7.561094752 | AD87: -80.57089821 | AE87: 6.036226546 | AF87: 1.823304479 | AG87: 1.823304479 | AH87: 4.212922067
A88: 47 | B88: 2047 | D88: =IF(FAT!$C88*(1+D$38/27*($B88-$B$64))>=0,FAT!$C88*(1+D$38/27*($B88-$B$64)),0) -> 274.4970594 | E88: 1 | G88: 5973.777815 | H88: 11798.14942 | I88: 83.8997622 | K88: 1433.02112 | L88: 17628.73569 | M88: 1.479046733 | O88: =FAT!$U88-FAT!$U87*(1-FAT!$F87) -> 348.0672846 | P88: 1.268018264 | R88: =IF(AND(O88>D88,$AA$1="YES"),R87*(1-FAT!$F87)+D88,R87*(1-FAT!$F87)+O88) -> 4540.756695 | S88: 0.7601147608 | T88: 0.02020826115 | U88: 52850.78758 | V88: 0.1557351893 | W88: =V88*U88 -> 8230.727407 | X88: 18.21137419 | Y88: 2.836151806 | Z88: 0.1498928567 | AA88: 1.628939589 | AB88: 23.11223904 | AC88: -7.755459641 | AD88: -82.6420472 | AE88: 5.913215243 | AF88: 1.628939589 | AG88: 1.628939589 | AH88: 4.284275654
A89: 48 | B89: 2048 | D89: =IF(FAT!$C89*(1+D$38/27*($B89-$B$64))>=0,FAT!$C89*(1+D$38/27*($B89-$B$64)),0) -> 274.867523 | E89: 1 | G89: 5997.74667 | H89: 11691.53223 | I89: 82.57948105 | K89: 1301.564621 | L89: 15863.45135 | M89: 1.30999558 | O89: =FAT!$U89-FAT!$U88*(1-FAT!$F88) -> 346.1371352 | P89: 1.259287134 | R89: =IF(AND(O89>D89,$AA$1="YES"),R88*(1-FAT!$F88)+D89,R88*(1-FAT!$F88)+O89) -> 4696.182049 | S89: 0.7829910644 | T89: 0.01765303704 | U89: 54259.39716 | V89: 0.1541778374 | W89: 8365.596511 | X89: 16.80597162 | Y89: 2.591108359 | Z89: 0.1405919775 | AA89: 1.450587558 | AB89: 20.68637525 | AC89: -7.933811673 | AD89: -84.54256344 | AE89: 5.79070844 | AF89: 1.450587558 | AG89: 1.450587558 | AH89: 4.340120882
A90: 49 | B90: 2049 | D90: =IF(FAT!$C90*(1+D$38/27*($B90-$B$64))>=0,FAT!$C90*(1+D$38/27*($B90-$B$64)),0) -> 275.225066 | E90: 1 | G90: 6021.066376 | H90: 11583.44712 | I90: 81.27966272 | K90: 1178.260853 | L90: 14224.75179 | M90: 1.156183028 | O90: =FAT!$U90-FAT!$U89*(1-FAT!$F89) -> 343.8631195 | P90: 1.249388816 | R90: =IF(AND(O90>D90,$AA$1="YES"),R89*(1-FAT!$F89)+D90,R89*(1-FAT!$F89)+O90) -> 4842.805523 | S90: 0.80431027 | T90: 0.01541354781 | U90: 55519.95218 | V90: 0.152636059 | W90: =V90*U90 -> 8474.346696 | X90: 15.50625474 | Y90: 2.366813613 | Z90: 0.1314053786 | AA90: 1.287588407 | AB90: =IF(L90<>0,(M90+Z90)/(L90+U90)*1000000,(M90+Z90)/(0.00000000001+U90)*1000000) -> 18.4614506 | AC90: -8.096810824 | AD90: -86.27947964 | AE90: 5.668826016 | AF90: 1.287588407 | AG90: 1.287588407 | AH90: 4.381237609
A91: 50 | B91: 2050 | D91: =IF(FAT!$C91*(1+D$38/27*($B91-$B$64))>=0,FAT!$C91*(1+D$38/27*($B91-$B$64)),0) -> 275.5701611 | E91: 1 | G91: 6043.751749 | H91: 11474 | I91: 80 | K91: 1063.010801 | L91: =(K91+R91*T91*2/3)*H91/1000 -> 12709.5202 | M91: 1.016761616 | O91: =FAT!$U91-FAT!$U90*(1-FAT!$F90) -> 341.3332579 | P91: 1.238643751 | R91: =IF(AND(O91>D91,$AA$1="YES"),R90*(1-FAT!$F90)+D91,R90*(1-FAT!$F90)+O91) -> 4980.740949 | S91: 0.824114086 | T91: 0.01345257332 | U91: 56636.48738 | V91: 0.1511096984 | W91: 8558.322526 | X91: 14.30469936 | Y91: =V91*X91 -> 2.161578806 | Z91: 0.1224242308 | AA91: 1.139185846 | AB91: =IF(L91<>0,(M91+Z91)/(L91+U91)*1000000,(M91+Z91)/(0.00000000001+U91)*1000000) -> 16.42756211 | AC91: -8.245213384 | AD91: -87.86085483 | AE91: =IF(H91>=0,G91*H91*I91/1000000000,0) -> 5.547680606 | AF91: 1.139185846 | AG91: 1.139185846 | AH91: 4.408494759
A92: 51 | B92: 2051 | D92: =IF(FAT!$C92*(1+D$38/27*($B92-$B$64))>=0,FAT!$C92*(1+D$38/27*($B92-$B$64)),0) -> 275.903263 | E92: 1 | G92: 6065.817439 | H92: 11363.29438 | I92: 78.74018998 | K92: 955.6439729 | L92: =IF(K92<>"",(K92+R92*T92*2/3)*H92/1000,0) -> 11313.62341 | M92: 0.8908368565 | O92: =FAT!$U92-FAT!$U91*(1-FAT!$F91) -> 338.6236371 | P92: 1.227327409 | R92: =IF(AND(O92>D92,$AA$1="YES"),R91*(1-FAT!$F91)+D92,R91*(1-FAT!$F91)+O92) -> 5110.173466 | S92: 0.8424542145 | T92: 0.01173683739 | U92: 57614.0458 | V92: 0.1495986014 | W92: 8618.980674 | X92: 13.19425129 | Y92: =V92*X92 -> 1.973841539 | Z92: 0.1137209969 | AA92: 1.004557853 | AB92: =IF(L92<>0,(M92+Z92)/(L92+U92)*1000000,(M92+Z92)/(0.00000000001+U92)*1000000) -> 14.57408708 | AC92: -8.379841377 | AD92: -89.29544845 | AE92: 5.427377769 | AF92: 1.004557853 | AG92: 1.004557853 | AH92: 4.422819915
A93: 52 | B93: 2052 | D93: =IF(FAT!$C93*(1+D$38/27*($B93-$B$64))>=0,FAT!$C93*(1+D$38/27*($B93-$B$64)),0) -> 276.2248096 | E93: 1 | G93: 6087.277916 | H93: 11251.43132 | I93: 77.499934 | K93: 855.9325895 | L93: 10032.15584 | M93: 0.7774914155 | O93: =FAT!$U93-FAT!$U92*(1-FAT!$F92) -> 335.7991461 | P93: 1.215673374 | R93: =IF(AND(O93>D93,$AA$1="YES"),R92*(1-FAT!$F92)+D93,R92*(1-FAT!$F92)+O93) -> 5231.345326 | S93: 0.8593899274 | T93: 0.01023670371 | U93: 58458.43359 | V93: 0.1481026154 | W93: 8657.846907 | X93: 12.16830756 | Y93: 1.802158175 | Z93: 0.105351344 | AA93: 0.8828427594 | AB93: =IF(L93<>0,(M93+Z93)/(L93+U93)*1000000,(M93+Z93)/(0.00000000001+U93)*1000000) -> 12.8899863 | AC93: -8.501556471 | AD93: -90.59244244 | AE93: 5.30801616 | AF93: 0.8828427594 | AG93: 0.8828427594 | AH93: 4.425173401
A94: 53 | B94: 2053 | D94: =IF(FAT!$C94*(1+D$38/27*($B94-$B$64))>=0,FAT!$C94*(1+D$38/27*($B94-$B$64)),0) -> 276.5352221 | E94: 1 | G94: 6108.147466 | H94: 11138.50942 | I94: 76.27893758 | K94: 763.6042734 | L94: 8859.652607 | M94: 0.6758048882 | O94: =FAT!$U94-FAT!$U93*(1-FAT!$F93) -> 332.9143695 | P94: 1.203876913 | R94: =IF(AND(O94>D94,$AA$1="YES"),R93*(1-FAT!$F93)+D94,R93*(1-FAT!$F93)+O94) -> 5344.543192 | S94: 0.8749859466 | T94: 0.008925863174 | U94: 59176.0055 | V94: 0.1466215893 | W94: 8676.479972 | X94: 11.22069656 | Y94: 1.645196363 | Z94: 0.09735614899 | AA94: 0.7731610372 | AB94: 11.36405613 | AC94: -8.611238193 | AD94: -91.76120902 | AE94: 5.189687718 | AF94: 0.7731610372 | AG94: 0.7731610372 | AH94: 4.416526681
A95: 54 | B95: 2054 | D95: =IF(FAT!$C95*(1+D$38/27*($B95-$B$64))>=0,FAT!$C95*(1+D$38/27*($B95-$B$64)),0) -> 276.8349061 | E95: 1 | G95: 6128.440178 | H95: 11024.62476 | I95: 75.07691041 | K95: 678.3532361 | L95: 7790.272638 | M95: 0.5848696009 | O95: =FAT!$U95-FAT!$U94*(1-FAT!$F94) -> 330.0145639 | P95: 1.192098816 | R95: =IF(AND(O95>D95,$AA$1="YES"),R94*(1-FAT!$F94)+D95,R94*(1-FAT!$F94)+O95) -> 5450.086942 | S95: 0.8893106212 | T95: 0.007781024568 | U95: 59773.48069 | V95: 0.1451553734 | W95: 8676.441906 | X95: 10.34565738 | Y95: 1.50172776 | Z95: 0.08976349523 | AA95: 0.6746330961 | AB95: 9.985133491 | AC95: -8.709766135 | AD95: -92.8111211 | AE95: 5.072477855 | AF95: 0.6746330961 | AG95: 0.6746330961 | AH95: 4.397844759
A96: 55 | B96: 2055 | D96: =IF(FAT!$C96*(1+D$38/27*($B96-$B$64))>=0,FAT!$C96*(1+D$38/27*($B96-$B$64)),0) -> 277.1242517 | E96: 1 | G96: 6148.169942 | H96: 10909.87089 | I96: 73.89356624 | K96: 599.8499883 | L96: 6817.953342 | M96: 0.5038028869 | O96: =FAT!$U96-FAT!$U95*(1-FAT!$F95) -> 327.1366636 | P96: 1.180469272 | R96: =IF(AND(O96>D96,$AA$1="YES"),R95*(1-FAT!$F95)+D96,R95*(1-FAT!$F95)+O96) -> 5548.319954 | S96: 0.9024343839 | T96: 0.006781616714 | U96: 60257.78695 | V96: 0.1437038196 | W96: 8659.274147 | X96: 9.537818852 | Y96: 1.370621 | Z96: 0.08259058821 | AA96: 0.5863934751 | AB96: 8.742258715 | AC96: -8.798005756 | AD96: -93.75140101 | AE96: 4.956465659 | AF96: 0.5863934751 | AG96: 0.5863934751 | AH96: 4.370072184
A97: 56 | B97: 2056 | D97: =IF(FAT!$C97*(1+D$38/27*($B97-$B$64))>=0,FAT!$C97*(1+D$38/27*($B97-$B$64)),0) -> 277.4036343 | E97: 1 | G97: =IF(a*EXP(-b*EXP(-ze*(B97-2000)))*(1+G$38/27*($B97-$B$64))>=0,a*EXP(-b*EXP(-ze*(B97-2000)))*(1+G$38/27*($B97-$B$64)),0) -> 6167.350439 | H97: 10794.33884 | I97: 72.72862291 | K97: 527.74965 | L97: 5936.539049 | M97: 0.4317563099 | O97: =FAT!$U97-FAT!$U96*(1-FAT!$F96) -> 324.3102731 | P97: 1.169091652 | R97: =IF(AND(O97>D97,$AA$1="YES"),R96*(1-FAT!$F96)+D97,R96*(1-FAT!$F96)+O97) -> 5639.600789 | S97: 0.914428464 | T97: =IF(Scen=5,IF($F$154*$I$154*$K$154*EXP((-$I$154*EXP(-$K$154*($B97-2000))-$K$154*($B97-2000)))*(1-2.8519/77*($B97-$B$64))>=0,$F$154*$I$154*$K$154*EXP((-$I$154*EXP(-$K$154*($B97-2000))-$K$154*($B97-2000)))*(1-2.8519/77*($B97-$B$64)),0),IF(Scen<>5,IF($F$154*$I$154*$K$154*EXP((-$I$154*EXP(-$K$154*($B97-2000))-$K$154*($B97-2000)))*(1+T$38/27*($B97-$B$64))>=0,$F$154*$I$154*$K$154*EXP((-$I$154*EXP(-$K$154*($B97-2000))-$K$154*($B97-2000)))*(1+T$38/27*($B97-$B$64)),0))) -> 0.005909507252 | U97: 60635.93134 | V97: 0.1422667814 | W97: 8626.478791 | X97: =IF(OR(Scen=3,Scen=5),IF($V$154*$X$154*$Z$154*EXP((-$X$154*EXP(-$Z$154*($B97-2000))-$Z$154*($B97-2000)))*(1-2.8519/77*($B97-$B$64))>=0,$V$154*$X$154*$Z$154*EXP((-$X$154*EXP(-$Z$154*($B97-2000))-$Z$154*($B97-2000)))*(1-2.8519/77*($B97-$B$64)),0),IF(AND(Scen<>3,Scen<>5),IF($V$154*$X$154*$Z$154*EXP((-$X$154*EXP(-$Z$154*($B97-2000))-$Z$154*($B97-2000)))*(1+X$38/27*($B97-$B$64))>=0,$V$154*$X$154*$Z$154*EXP((-$X$154*EXP(-$Z$154*($B97-2000))-$Z$154*($B97-2000)))*(1+X$38/27*($B97-$B$64)),0))) -> 8.792178583 | Y97: 1.250834949 | Z97: 0.07584554207 | AA97: 0.507601852 | AB97: 7.624801198 | AC97: -8.876797379 | AD97: -94.59100322 | AE97: 4.841724095 | AF97: 0.507601852 | AG97: 0.507601852 | AH97: 4.334122243
A98: 57 | B98: 2057 | D98: =IF(FAT!$C98*(1+D$38/27*($B98-$B$64))>=0,FAT!$C98*(1+D$38/27*($B98-$B$64)),0) -> 277.6734152 | E98: 1 | G98: 6185.995136 | H98: 10678.11707 | I98: 71.58180224 | K98: 461.6989631 | L98: 5139.885762 | M98: 0.3679222861 | O98: =FAT!$U98-FAT!$U97*(1-FAT!$F97) -> 321.5586167 | P98: 1.158046104 | R98: =IF(AND(O98>D98,$AA$1="YES"),R97*(1-FAT!$F97)+D98,R97*(1-FAT!$F97)+O98) -> 5724.296173 | S98: 0.9253638335 | T98: 0.005148740965 | U98: 60914.89452 | V98: 0.1408441136 | W98: 8579.504324 | X98: 8.104082165 | Y98: 1.141412269 | Z98: 0.06952900798 | AA98: 0.4374512941 | AB98: 6.622553163 | AC98: -8.946947937 | AD98: -95.33852638 | AE98: 4.728320219 | AF98: 0.4374512941 | AG98: 0.4374512941 | AH98: 4.290868925
A99: 58 | B99: 2058 | D99: =IF(FAT!$C99*(1+D$38/27*($B99-$B$64))>=0,FAT!$C99*(1+D$38/27*($B99-$B$64)),0) -> 277.9339418 | E99: 1 | G99: 6204.117282 | H99: 10561.29151 | I99: 70.45282999 | K99: 401.3421206 | L99: 4421.944902 | M99: 0.3115385324 | O99: =FAT!$U99-FAT!$U98*(1-FAT!$F98) -> 318.8994279 | P99: 1.147392887 | R99: =IF(AND(O99>D99,$AA$1="YES"),R98*(1-FAT!$F98)+D99,R98*(1-FAT!$F98)+O99) -> 5802.775161 | S99: 0.9353103589 | T99: 0.0044852991 | U99: 61101.54626 | V99: 0.1394356725 | W99: 8519.735192 | X99: 7.46920281 | Y99: 1.041473317 | Z99: 0.06363563004 | AA99: 0.3751741625 | AB99: 5.725796288 | AC99: -9.009225068 | AD99: -96.00215045 | AE99: 4.616315383 | AF99: 0.3751741625 | AG99: 0.3751741625 | AH99: 4.24114122
A100: 59 | B100: 2059 | D100: =IF(FAT!$C100*(1+D$38/27*($B100-$B$64))>=0,FAT!$C100*(1+D$38/27*($B100-$B$64)),0) -> 278.1855488 | E100: 1 | G100: 6221.729905 | H100: 10443.9455 | I100: 69.34143584 | K100: 346.3255355 | L100: 3776.828714 | M100: 0.261890726 | O100: =FAT!$U100-FAT!$U99*(1-FAT!$F99) -> 316.3457648 | P100: 1.137175408 | R100: =IF(AND(O100>D100,$AA$1="YES"),R99*(1-FAT!$F99)+D100,R99*(1-FAT!$F99)+O100) -> 5875.404369 | S100: 0.9443361347 | T100: 0.00390687999 | U100: 61202.57933 | V100: 0.1380413158 | W100: 8448.484578 | X100: 6.883521538 | Y100: 0.9502103702 | Z100: 0.05815532556 | AA100: 0.3200460515 | AB100: 4.925345755 | AC100: -9.064353179 | AD100: -96.58959467 | AE100: 4.505765454 | AF100: 0.3200460515 | AG100: 0.3200460515 | AH100: 4.185719402
A101: 60 | B101: 2060 | D101: =IF(FAT!$C101*(1+D$38/27*($B101-$B$64))>=0,FAT!$C101*(1+D$38/27*($B101-$B$64)),0) -> 278.4285577 | E101: 1 | G101: 6238.845807 | H101: 10326.15986 | I101: 68.24735332 | K101: 296.3016725 | L101: 3198.859879 | M101: 0.2183137204 | O101: =FAT!$U101-FAT!$U100*(1-FAT!$F100) -> 313.9067482 | P101: 1.127422958 | R101: =IF(AND(O101>D101,$AA$1="YES"),R100*(1-FAT!$F100)+D101,R100*(1-FAT!$F100)+O101) -> 5942.544134 | S101: 0.952506973 | T101: 0.003402700557 | U101: 61224.45927 | V101: 0.1366609026 | W101: 8366.989865 | X101: 6.343308022 | Y101: 0.8668821998 | Z101: 0.05307439394 | AA101: 0.2713881144 | AB101: 4.212575787 | AC101: -9.113011116 | AD101: -97.10809283 | AE101: 4.396721024 | AF101: 0.2713881144 | AG101: 0.2713881144 | AH101: 4.12533291
A102: 61 | B102: 2061 | D102: =IF(FAT!$C102*(1+D$38/27*($B102-$B$64))>=0,FAT!$C102*(1+D$38/27*($B102-$B$64)),0) -> 278.6632782 | E102: 1 | G102: 6255.477561 | H102: 10208.01286 | I102: 67.17031978 | K102: 250.9320619 | L102: 2682.607726 | M102: 0.1801916188 | O102: =FAT!$U102-FAT!$U101*(1-FAT!$F101) -> 311.5882186 | P102: 1.118153137 | R102: =IF(AND(O102>D102,$AA$1="YES"),R101*(1-FAT!$F101)+D102,R101*(1-FAT!$F101)+O102) -> 6004.545499 | S102: 0.9598860264 | T102: 0.002963317784 | U102: 61173.38768 | V102: 0.1352942936 | W102: 8276.410272 | X102: 5.845102177 | Y102: 0.7908089699 | Z102: 0.0483764637 | AA102: 0.2285680825 | AB102: 3.579430264 | AC102: -9.155831148 | AD102: -97.56438237 | AE102: 4.289227631 | AF102: 0.2285680825 | AG102: 0.2285680825 | AH102: 4.060659549
A103: 62 | B103: 2062 | D103: =IF(FAT!$C103*(1+D$38/27*($B103-$B$64))>=0,FAT!$C103*(1+D$38/27*($B103-$B$64)),0) -> 278.8900082 | E103: 1 | G103: 6271.637512 | H103: 10089.58024 | I103: 66.11007631 | K103: 209.8896075 | L103: 2222.913204 | M103: 0.1469569615 | O103: =FAT!$U103-FAT!$U102*(1-FAT!$F102) -> 309.393316 | P103: 1.109373971 | R103: =IF(AND(O103>D103,$AA$1="YES"),R102*(1-FAT!$F102)+D103,R102*(1-FAT!$F102)+O103) -> 6061.747904 | S103: 0.9665335238 | T103: 0.002580468931 | U103: 61055.27673 | V103: 0.1339413506 | W103: 8177.826229 | X103: 5.385696546 | Y103: 0.7213674695 | Z103: 0.04404329048 | AA103: 0.191000252 | AB103: 3.018421547 | AC103: -9.193398979 | AD103: -97.96470453 | AE103: 4.183325965 | AF103: 0.191000252 | AG103: 0.191000252 | AH103: 3.992325713
A104: 63 | B104: 2063 | D104: =IF(FAT!$C104*(1+D$38/27*($B104-$B$64))>=0,FAT!$C104*(1+D$38/27*($B104-$B$64)),0) -> 279.1090344 | E104: 1 | G104: 6287.33777 | H104: 9970.935234 | I104: 65.06636773 | K104: 172.8602929 | L104: 1814.904559 | M104: 0.1180892474 | O104: =FAT!$U104-FAT!$U103*(1-FAT!$F103) -> 307.3229854 | P104: 1.101085768 | R104: =IF(AND(O104>D104,$AA$1="YES"),R103*(1-FAT!$F103)+D104,R103*(1-FAT!$F103)+O104) -> 6114.477478 | S104: 0.9725065999 | T104: 0.002246929124 | U104: 60875.73315 | V104: 0.1326019371 | W104: 8072.240139 | X104: 4.962119517 | Y104: 0.6579866602 | Z104: 0.04005542034 | AA104: 0.1581446678 | AB104: 2.52262018 | AC104: -9.226254563 | AD104: -98.31481309 | AE104: 4.079052086 | AF104: 0.1581446678 | AG104: 0.1581446678 | AH104: 3.920907418
A105: 64 | B105: 2064 | D105: =IF(FAT!$C105*(1+D$38/27*($B105-$B$64))>=0,FAT!$C105*(1+D$38/27*($B105-$B$64)),0) -> 279.3206324 | E105: 1 | G105: 6302.590216 | H105: 9852.148569 | I105: 64.03894253 | K105: 139.5443799 | L105: 1454.005434 | M105: 0.09311297044 | O105: =FAT!$U105-FAT!$U104*(1-FAT!$F104) -> 305.3764131 | P105: 1.093282693 | R105: =IF(AND(O105>D105,$AA$1="YES"),R104*(1-FAT!$F104)+D105,R104*(1-FAT!$F104)+O105) -> 6163.045837 | S105: 0.9778592015 | T105: 0.001956384848 | U105: 60640.04975 | V105: 0.1312759178 | W105: 7960.578184 | X105: 4.571619388 | Y105: 0.6001435308 | Z105: 0.03639273356 | AA105: 0.129505704 | AB105: 2.085637725 | AC105: -9.254893527 | AD105: -98.6199894 | AE105: 3.976437631 | AF105: 0.129505704 | AG105: 0.129505704 | AH105: 3.846931927
A106: 65 | B106: 2065 | D106: =IF(FAT!$C106*(1+D$38/27*($B106-$B$64))>=0,FAT!$C106*(1+D$38/27*($B106-$B$64)),0) -> 279.5250676 | E106: 1 | G106: 6317.406495 | H106: 9733.288516 | I106: 63.02755281 | K106: =IF(AND(G106<>"",R106<>"",G106-R106>0,K105>0.9),G106-R106,0) -> 109.6571831 | L106: 1135.936869 | M106: 0.07159532101 | O106: =FAT!$U106-FAT!$U105*(1-FAT!$F105) -> 303.5514004 | P106: 1.085954126 | R106: =IF(AND(O106>D106,$AA$1="YES"),R105*(1-FAT!$F105)+D106,R105*(1-FAT!$F105)+O106) -> 6207.749312 | S106: 0.9826420568 | T106: 0.001703321914 | U106: 60353.20322 | V106: 0.1299631586 | W106: 7843.692921 | X106: 4.21164928 | Y106: 0.5473592433 | Z106: 0.03303488365 | AA106: 0.1046302047 | AB106: 1.701604617 | AC106: -9.279769026 | AD106: -98.8850623 | AE106: 3.875510024 | AF106: 0.1046302047 | AG106: 0.1046302047 | AH106: 3.77087982
A107: 66 | B107: 2066 | D107: =IF(FAT!$C107*(1+D$38/27*($B107-$B$64))>=0,FAT!$C107*(1+D$38/27*($B107-$B$64)),0) -> 279.7225955 | E107: 1 | G107: 6331.798018 | H107: 9614.4209 | I107: 62.03195427 | K107: =IF(AND(G107<>"",R107<>"",G107-R107>0,K106>0.9),G107-R107,0) -> 82.92949613 | L107: 856.7144897 | M107: 0.05314367405 | O107: =FAT!$U107-FAT!$U106*(1-FAT!$F106) -> 301.8446808 | P107: 1.0790858 | R107: =IF(AND(O107>D107,$AA$1="YES"),R106*(1-FAT!$F106)+D107,R106*(1-FAT!$F106)+O107) -> 6248.868522 | S107: 0.986902694 | T107: 0.00148292647 | U107: 60019.85671 | V107: 0.128663527 | W107: 7722.366453 | X107: 3.879852903 | Y107: 0.4991955587 | Z107: 0.0299616459 | AA107: 0.08310531995 | AB107: 1.365144559 | AC107: -9.301293911 | AD107: -99.11443111 | AE107: 3.776292681 | AF107: 0.08310531995 | AG107: 0.08310531995 | AH107: 3.693187361
A108: 67 | B108: 2067 | D108: =IF(FAT!$C108*(1+D$38/27*($B108-$B$64))>=0,FAT!$C108*(1+D$38/27*($B108-$B$64)),0) -> 279.9134617 | E108: 1 | G108: 6345.775963 | H108: 9495.609129 | I108: 61.05190613 | K108: 59.10773286 | L108: 612.6419744 | M108: 0.03740296031 | O108: =FAT!$U108-FAT!$U107*(1-FAT!$F107) -> 300.2521861 | P108: 1.072660758 | R108: =IF(AND(O108>D108,$AA$1="YES"),R107*(1-FAT!$F107)+D108,R107*(1-FAT!$F107)+O108) -> 6286.66823 | S108: 0.9906854996 | T108: 0.001290997724 | U108: 59644.36619 | V108: 0.1273768917 | W108: 7597.313974 | X108: 3.574051141 | Y108: 0.4552515252 | Z108: 0.02715318868 | AA108: 0.06455614899 | AB108: 1.071346736 | AC108: -9.319843082 | AD108: -99.31209076 | AE108: 3.678805206 | AF108: 0.06455614899 | AG108: 0.06455614899 | AH108: 3.614249057
A109: 68 | B109: 2068 | D109: =IF(FAT!$C109*(1+D$38/27*($B109-$B$64))>=0,FAT!$C109*(1+D$38/27*($B109-$B$64)),0) -> 280.0979028 | E109: 1 | G109: 6359.351275 | H109: 9376.91423 | I109: 60.08717108 | K109: 37.9538414 | L109: 400.3017078 | M109: 0.0240529972 | O109: =FAT!$U109-FAT!$U108*(1-FAT!$F108) -> 298.7692694 | P109: 1.066660145 | R109: =IF(AND(O109>D109,$AA$1="YES"),R108*(1-FAT!$F108)+D109,R108*(1-FAT!$F108)+O109) -> 6321.397434 | S109: 0.9940318061 | T109: 0.001123871141 | U109: 59230.78976 | V109: 0.1261031228 | W109: 7469.187555 | X109: 3.292229458 | Y109: 0.4151604156 | Z109: 0.02459027929 | AA109: 0.04864327649 | AB109: 0.8157368127 | AC109: -9.335755954 | AD109: -99.48165807 | AE109: 3.583063594 | AF109: 0.04864327649 | AG109: 0.04864327649 | AH109: 3.534420318
A110: 69 | B110: 2069 | D110: =IF(FAT!$C110*(1+D$38/27*($B110-$B$64))>=0,FAT!$C110*(1+D$38/27*($B110-$B$64)),0) -> 280.2761463 | E110: 1 | G110: 6372.534668 | H110: 9258.394877 | I110: 59.13751528 | K110: 19.24503803 | L110: 216.5433876 | M110: 0.01280583789 | O110: =FAT!$U110-FAT!$U109*(1-FAT!$F109) -> 297.3908883 | P110: 1.061063855 | R110: =IF(AND(O110>D110,$AA$1="YES"),R109*(1-FAT!$F109)+D110,R109*(1-FAT!$F109)+O110) -> 6353.28963 | S110: 0.9969800026 | T110: 0.0009783509397 | U110: 58782.89893 | V110: 0.1248420916 | W110: 7338.580052 | X110: 3.032526074 | Y110: 0.3785868979 | Z110: 0.02225443536 | AA110: 0.03506027325 | AB110: 0.5942475364 | AC110: -9.349338957 | AD110: -99.62639832 | AE110: 3.489080422 | AF110: 0.03506027325 | AG110: 0.03506027325 | AH110: 3.454020148
A111: 70 | B111: 2070 | D111: =IF(FAT!$C111*(1+D$38/27*($B111-$B$64))>=0,FAT!$C111*(1+D$38/27*($B111-$B$64)),0) -> 280.4484113 | E111: 1 | G111: 6385.336623 | H111: 9140.107429 | I111: 58.20270828 | K111: 2.773402434 | L111: 58.47121172 | M111: 0.003403182879 | O111: =FAT!$U111-FAT!$U110*(1-FAT!$F110) -> 296.1117553 | P111: 1.055851071 | R111: =IF(AND(O111>D111,$AA$1="YES"),R110*(1-FAT!$F110)+D111,R110*(1-FAT!$F110)+O111) -> 6382.56322 | S111: 0.9995656607 | T111: 0.0008516508613 | U111: 58304.19149 | V111: 0.1235936707 | W111: 7206.029041 | X111: 2.793220907 | Y111: 0.3452244248 | Z111: 0.02012803097 | AA111: =M111+Z111 -> 0.02353121385 | AB111: 0.4031895181 | AC111: -9.360868017 | AD111: -99.74925178 | AE111: 3.396865032 | AF111: =Z111+M111 -> 0.02353121385 | AG111: =AF111 -> 0.02353121385 | AH111: 3.373333818
A112: 71 | B112: 2071 | D112: =IF(FAT!$C112*(1+D$38/27*($B112-$B$64))>=0,FAT!$C112*(1+D$38/27*($B112-$B$64)),0) -> 280.6149087 | E112: 1 | G112: 6397.767393 | H112: 9022.105968 | I112: 57.28252298 | K112: 1.666631033e-05 | L112: 28.5276596 | M112: 0.001634136317 | O112: =FAT!$U112-FAT!$U111*(1-FAT!$F111) -> 283.2718115 | P112: 1.009468146 | R112: =IF(AND(O112>D112,$AA$1="YES"),R111*(1-FAT!$F111)+D112,R111*(1-FAT!$F111)+O112) -> 6397.767377 | S112: 0.9999999974 | T112: 0.0007413422383 | U112: 57692.80772 | V112: 0.122357734 | W112: 7059.161218 | X112: 2.572725218 | Y112: 0.3147928278 | Z112: 0.01816128209 | AA112: 0.0197954184 | AB112: 0.3429480325 | AC112: =Z112+M112-M$46 -> -9.364603812 | AD112: =(AC112/M$46*100) -> -99.78906036 | AE112: 3.30642372 | AF112: 0.0197954184 | AG112: 0.0197954184 | AH112: 3.286628302
A113: 72 | B113: 2072 | D113: =IF(FAT!$C113*(1+D$38/27*($B113-$B$64))>=0,FAT!$C113*(1+D$38/27*($B113-$B$64)),0) -> 280.7758413 | E113: 1 | G113: 6409.837004 | H113: 8904.442335 | I113: 56.37673559 | K113: 0 | L113: 24.55442959 | M113: 0.001384298584 | O113: =FAT!$U113-FAT!$U112*(1-FAT!$F112) -> 280.7758413 | P113: 1 | R113: =IF(AND(O113>D113,$AA$1="YES"),R112*(1-FAT!$F112)+D113,R112*(1-FAT!$F112)+O113) -> 6409.836988 | S113: 0.9999999975 | T113: 0.0006453085184 | U113: 57051.46941 | V113: 0.1211341566 | W113: 6910.881631 | X113: 2.369571963 | Y113: 0.2870361013 | Z113: 0.01637583135 | AA113: 0.01776012994 | AB113: 0.3111662086 | AC113: -9.366639101 | AD113: -99.81074835 | AE113: 3.217759912 | AF113: 0.01776012994 | AG113: 0.01776012994 | AH113: 3.199999782
A114: 73 | B114: 2073 | D114: =IF(FAT!$C114*(1+D$38/27*($B114-$B$64))>=0,FAT!$C114*(1+D$38/27*($B114-$B$64)),0) -> 280.9314047 | E114: 0 | G114: 6421.555255 | H114: 8787.166175 | I114: 55.48512559 | K114: 0 | L114: 21.13033852 | M114: 0.001172419486 | O114: =FAT!$U114-FAT!$U113*(1-FAT!$F113) -> 280.9314047 | P114: 1 | R114: =IF(AND(O114>D114,$AA$1="YES"),R113*(1-FAT!$F113)+D114,R113*(1-FAT!$F113)+O114) -> 6421.555239 | S114: 0.9999999976 | T114: 0.0005617054679 | U114: 56406.14265 | V114: 0.1199228151 | W114: 6764.383413 | X114: 2.18240678 | Y114: 0.2617203646 | Z114: 0.01476263622 | AA114: 0.01593505571 | AB114: 0.2823998904 | AC114: -9.368464175 | AD114: -99.83019632 | AE114: 3.130874336 | AF114: 0.01593505571 | AG114: 0.01593505571 | AH114: 3.11493928
A115: 74 | B115: 2074 | D115: =IF(FAT!$C115*(1+D$38/27*($B115-$B$64))>=0,FAT!$C115*(1+D$38/27*($B115-$B$64)),0) -> 281.081787 | E115: 0 | G115: 6432.931721 | H115: 8670.324971 | I115: 54.6074757 | K115: 0 | L115: 18.18011064 | M115: 0.0009927699501 | O115: =FAT!$U115-FAT!$U114*(1-FAT!$F114) -> 281.081787 | P115: 1 | R115: =IF(AND(O115>D115,$AA$1="YES"),R114*(1-FAT!$F114)+D115,R114*(1-FAT!$F114)+O115) -> 6432.931706 | S115: 0.9999999977 | T115: 0.0004889263738 | U115: 55757.4283 | V115: 0.1187235869 | W115: 6619.721884 | X115: 2.009979602 | Y115: 0.2386319879 | Z115: 0.01330550596 | AA115: 0.01429827591 | AB115: 0.2563535623 | AC115: -9.370100955 | AD115: -99.84763781 | AE115: 3.045765187 | AF115: 0.01429827591 | AG115: 0.01429827591 | AH115: 3.031466912
A116: 75 | B116: 2075 | D116: =IF(FAT!$C116*(1+D$38/27*($B116-$B$64))>=0,FAT!$C116*(1+D$38/27*($B116-$B$64)),0) -> 281.2271691 | E116: 1 | G116: 6443.975758 | H116: 8553.964093 | I116: 53.74357179 | K116: 0 | L116: 15.63877508 | M116: 0.0008404836313 | O116: =FAT!$U116-FAT!$U115*(1-FAT!$F115) -> 281.2271691 | P116: 1 | R116: =IF(AND(O116>D116,$AA$1="YES"),R115*(1-FAT!$F115)+D116,R115*(1-FAT!$F115)+O116) -> 6443.975744 | S116: 0.9999999978 | T116: 0.0004255716339 | U116: 55105.89836 | V116: 0.117536351 | W116: =V116*U116 -> 6476.946213 | X116: 1.851136854 | Y116: 0.217575871 | Z116: =W116*X116/1000000 -> 0.01198971383 | AA116: 0.01283019746 | AB116: 0.2327619681 | AC116: -9.371569033 | AD116: -99.86328163 | AE116: 2.962428295 | AF116: 0.01283019746 | AG116: 0.01283019746 | AH116: 2.949598097
A117: 76 | B117: 2076 | D117: =IF(FAT!$C117*(1+D$38/27*($B117-$B$64))>=0,FAT!$C117*(1+D$38/27*($B117-$B$64)),0) -> 281.3677255 | E117: 0 | G117: 6454.696502 | H117: 8438.126841 | I117: 52.89320292 | K117: 0 | L117: 13.45016519 | M117: 0.0007114223169 | O117: =FAT!$U117-FAT!$U116*(1-FAT!$F116) -> 281.3677255 | P117: 1 | R117: =IF(AND(O117>D117,$AA$1="YES"),R116*(1-FAT!$F116)+D117,R116*(1-FAT!$F116)+O117) -> 6454.696488 | S117: 0.9999999979 | T117: 0.0003704221962 | U117: 54452.09752 | V117: 0.1163609875 | W117: 6336.099841 | X117: 1.704814192 | Y117: 0.1983738629 | Z117: 0.01080187293 | AA117: 0.01151329525 | AB117: 0.2113867525 | AC117: -9.372885935 | AD117: -99.87731452 | AE117: 2.880857272 | AF117: 0.01151329525 | AG117: 0.01151329525 | AH117: =AE117-AF117 -> 2.869343977
A118: 77 | B118: 2077 | D118: =IF(FAT!$C118*(1+D$38/27*($B118-$B$64))>=0,FAT!$C118*(1+D$38/27*($B118-$B$64)),0) -> 281.5036242 | E118: 1 | G118: 6465.102873 | H118: 8322.854487 | I118: 52.0561612 | K118: 0 | L118: 11.56574379 | M118: 0.0006020682232 | O118: =FAT!$U118-FAT!$U117*(1-FAT!$F117) -> 281.5036242 | P118: 1 | R118: =IF(AND(O118>D118,$AA$1="YES"),R117*(1-FAT!$F117)+D118,R117*(1-FAT!$F117)+O118) -> 6465.10286 | S118: 0.999999998 | T118: 0.0003224163714 | U118: 53796.5446 | V118: 0.1151973776 | W118: 6197.220865 | X118: 1.570029769 | Y118: 0.1808633122 | Z118: 0.009729821243 | AA118: 0.01033188947 | AB118: 0.1920136091 | AC118: -9.374067341 | AD118: -99.88990356 | AE118: 2.801043672 | AF118: 0.01033188947 | AG118: 0.01033188947 | AH118: 2.790711782
A119: 78 | B119: 2078 | D119: =IF(FAT!$C119*(1+D$38/27*($B119-$B$64))>=0,FAT!$C119*(1+D$38/27*($B119-$B$64)),0) -> 281.6350268 | E119: 0 | G119: 6475.203579 | H119: 8208.186321 | I119: 51.23224183 | K119: 0 | L119: 9.943581721 | M119: 0.0005094319833 | O119: =FAT!$U119-FAT!$U118*(1-FAT!$F118) -> 281.6350268 | P119: 1 | R119: =IF(AND(O119>D119,$AA$1="YES"),R118*(1-FAT!$F118)+D119,R118*(1-FAT!$F118)+O119) -> 6475.203566 | S119: 0.9999999981 | T119: 0.0002806295979 | U119: 53139.73376 | V119: 0.1140454039 | W119: 6060.342398 | X119: 1.445877972 | Y119: 0.1648957373 | Z119: 0.008762515577 | AA119: 0.009271947561 | AB119: 0.1744497432 | AC119: -9.375127283 | AD119: -99.90119828 | AE119: 2.722977128 | AF119: 0.009271947561 | AG119: 0.009271947561 | AH119: 2.71370518
A120: 79 | B120: 2079 | D120: =IF(FAT!$C120*(1+D$38/27*($B120-$B$64))>=0,FAT!$C120*(1+D$38/27*($B120-$B$64)),0) -> 281.7620891 | E120: 0 | G120: 6485.007118 | H120: 8094.159696 | I120: 50.42124301 | K120: 0 | L120: 8.547470523 | M120: 0.0004309740884 | O120: =FAT!$U120-FAT!$U119*(1-FAT!$F119) -> 281.7620891 | P120: 1 | R120: =IF(AND(O120>D120,$AA$1="YES"),R119*(1-FAT!$F119)+D120,R119*(1-FAT!$F119)+O120) -> 6485.007106 | S120: 0.9999999982 | T120: 0.0002442567903 | U120: 52482.13567 | V120: 0.1129049498 | W120: 5925.492895 | X120: 1.331523624 | Y120: 0.150335608 | Z120: 0.007889933774 | AA120: 0.008320907863 | AB120: 0.158521615 | AC120: -9.376078323 | AD120: -99.91133255 | AE120: 2.646645496 | AF120: 0.008320907863 | AG120: 0.008320907863 | AH120: 2.638324588
A121: 80 | B121: 2080 | D121: =IF(FAT!$C121*(1+D$38/27*($B121-$B$64))>=0,FAT!$C121*(1+D$38/27*($B121-$B$64)),0) -> 281.8849611 | E121: 0 | G121: 6494.52178 | H121: 7980.810079 | I121: 49.62296595 | K121: 0 | L121: 7.346152033 | M121: 0.0003645378522 | O121: =FAT!$U121-FAT!$U120*(1-FAT!$F120) -> 281.8849611 | P121: 1 | R121: =IF(AND(O121>D121,$AA$1="YES"),R120*(1-FAT!$F120)+D121,R120*(1-FAT!$F120)+O121) -> 6494.521768 | S121: 0.9999999983 | T121: 0.0002125969445 | U121: 51824.19863 | V121: 0.1117759003 | W121: 5792.696461 | X121: 1.226196601 | Y121: 0.1370592291 | Z121: 0.007102984714 | AA121: 0.007467522566 | AB121: 0.1440729308 | AC121: -9.376931708 | AD121: -99.92042621 | AE121: 2.572034986 | AF121: 0.007467522566 | AG121: 0.007467522566 | AH121: 2.564567464
A122: 81 | B122: 2081 | D122: =IF(FAT!$C122*(1+D$38/27*($B122-$B$64))>=0,FAT!$C122*(1+D$38/27*($B122-$B$64)),0) -> 282.0037873 | E122: 0 | G122: 6503.755652 | H122: 7868.17109 | I122: 48.83721475 | K122: 0 | L122: 6.312649929 | M122: 0.0003082922402 | O122: =FAT!$U122-FAT!$U121*(1-FAT!$F121) -> 282.0037873 | P122: 1 | R122: =IF(AND(O122>D122,$AA$1="YES"),R121*(1-FAT!$F121)+D122,R121*(1-FAT!$F121)+O122) -> 6503.755641 | S122: 0.9999999983 | T122: 0.0001850397166 | U122: 51166.34946 | V122: 0.1106581413 | W122: 5661.97313 | X122: 1.129186853 | Y122: 0.1249537183 | Z122: 0.006393425619 | AA122: 0.006701717859 | AB122: 0.1309628536 | AC122: -9.377697513 | AD122: -99.92858661 | AE122: 2.499130293 | AF122: 0.006701717859 | AG122: 0.006701717859 | AH122: 2.492428575
A123: 82 | B123: 2082 | D123: =IF(FAT!$C123*(1+D$38/27*($B123-$B$64))>=0,FAT!$C123*(1+D$38/27*($B123-$B$64)),0) -> 282.118707 | E123: 1 | G123: 6512.716622 | H123: 7756.274555 | I123: 48.06379645 | K123: 0 | L123: =IF(K123<>"",(K123+R123*T123*2/3)*H123/1000,0) -> 5.423690091 | M123: 0.0002606831365 | O123: =FAT!$U123-FAT!$U122*(1-FAT!$F122) -> 282.118707 | P123: 1 | R123: =IF(AND(O123>D123,$AA$1="YES"),R122*(1-FAT!$F122)+D123,R122*(1-FAT!$F122)+O123) -> 6512.716611 | S123: 0.9999999984 | T123: 0.0001610537236 | U123: 50508.99445 | V123: 0.1095515599 | W123: 5533.339131 | X123: 1.039839782 | Y123: 0.1139160702 | Z123: 0.005753786157 | AA123: 0.006014469294 | AB123: 0.1190644081 | AC123: -9.378384761 | AD123: -99.93590992 | AE123: 2.427914715 | AF123: 0.006014469294 | AG123: 0.006014469294 | AH123: 2.421900246
A124: 83 | B124: 2083 | D124: =IF(FAT!$C124*(1+D$38/27*($B124-$B$64))>=0,FAT!$C124*(1+D$38/27*($B124-$B$64)),0) -> 282.2298543 | E124: 0 | G124: 6521.412378 | H124: 7645.150549 | I124: 47.30252093 | K124: =IF(AND(G124<>"",R124<>"",G124-R124>0,K123>0),G124-R124,0) -> 0 | L124: 4.659198207 | M124: 0.0002203918207 | O124: =FAT!$U124-FAT!$U123*(1-FAT!$F123) -> 282.2298543 | P124: 1 | R124: =IF(AND(O124>D124,$AA$1="YES"),R123*(1-FAT!$F123)+D124,R123*(1-FAT!$F123)+O124) -> 6521.412368 | S124: 0.9999999985 | T124: 0.0001401763477 | U124: 49852.52015 | V124: 0.1084560443 | W124: 5406.807135 | X124: 0.9575519801 | Y124: 0.1038523 | Z124: 0.005177298878 | AA124: 0.005397690698 | AB124: 0.108263058 | AC124: -9.37900154 | AD124: -99.9424823 | AE124: 2.358370273 | AF124: 0.005397690698 | AG124: 0.005397690698 | AH124: 2.352972582
A125: 84 | B125: 2084 | D125: =IF(FAT!$C125*(1+D$38/27*($B125-$B$64))>=0,FAT!$C125*(1+D$38/27*($B125-$B$64)),0) -> 282.3373585 | E125: 0 | G125: 6529.850417 | H125: 7534.827447 | I125: 46.55320088 | K125: 0 | L125: 4.00186458 | M125: 0.0001862996057 | O125: =FAT!$U125-FAT!$U124*(1-FAT!$F124) -> 282.3373585 | P125: 1 | R125: =IF(AND(O125>D125,$AA$1="YES"),R124*(1-FAT!$F124)+D125,R124*(1-FAT!$F124)+O125) -> 6529.850407 | S125: 0.9999999985 | T125: 0.0001220048525 | U125: 49197.2942 | V125: 0.1073714839 | W125: 5282.386481 | X125: 0.8817672697 | Y125: 0.09467666018 | Z125: 0.004657835505 | AA125: 0.004844135111 | AB125: 0.09845543711 | AC125: -9.379555096 | AD125: -99.94838098 | AE125: 2.290477823 | AF125: 0.004844135111 | AG125: 0.004844135111 | AH125: 2.285633688
A126: 85 | B126: 2085 | D126: =IF(FAT!$C126*(1+D$38/27*($B126-$B$64))>=0,FAT!$C126*(1+D$38/27*($B126-$B$64)),0) -> 282.441344 | E126: 0 | G126: 6538.038043 | H126: 7425.331965 | I126: 45.81565181 | K126: 0 | L126: 3.436767306 | M126: 0.0001574577342 | O126: =FAT!$U126-FAT!$U125*(1-FAT!$F125) -> 282.441344 | P126: 1 | R126: =IF(AND(O126>D126,$AA$1="YES"),R125*(1-FAT!$F125)+D126,R125*(1-FAT!$F125)+O126) -> 6538.038034 | S126: 0.9999999986 | T126: 0.0001061886428 | U126: 48543.66603 | V126: 0.106297769 | W126: 5160.0834 | X126: 0.8119730545 | Y126: 0.08631092421 | Z126: 0.00418984868 | AA126: 0.004347306414 | AB126: 0.08954821531 | AC126: -9.380051924 | AD126: -99.95367518 | AE126: 2.224217161 | AF126: 0.004347306414 | AG126: 0.004347306414 | AH126: 2.219869855
A127: 86 | B127: 2086 | D127: =IF(FAT!$C127*(1+D$38/27*($B127-$B$64))>=0,FAT!$C127*(1+D$38/27*($B127-$B$64)),0) -> 282.541931 | E127: 0 | G127: 6545.982376 | H127: 7316.689212 | I127: 45.08969193 | K127: 0 | L127: 2.951046138 | M127: 0.0001330617612 | O127: =FAT!$U127-FAT!$U126*(1-FAT!$F126) -> 282.541931 | P127: 1 | R127: =IF(AND(O127>D127,$AA$1="YES"),R126*(1-FAT!$F126)+D127,R126*(1-FAT!$F126)+O127) -> 6545.982368 | S127: 0.9999999987 | T127: 9.242252286e-05 | U127: 47891.96753 | V127: 0.1052347913 | W127: 5039.90121 | X127: 0.747696939 | Y127: 0.07868373137 | Z127: 0.003768318707 | AA127: 0.003901380469 | AB127: 0.08145708532 | AC127: -9.38049785 | AD127: -99.95842696 | AE127: 2.159567126 | AF127: 0.003901380469 | AG127: 0.003901380469 | AH127: 2.155665746
A128: 87 | B128: 2087 | D128: =IF(FAT!$C128*(1+D$38/27*($B128-$B$64))>=0,FAT!$C128*(1+D$38/27*($B128-$B$64)),0) -> 282.6392351 | E128: 0 | G128: 6553.690352 | H128: 7208.922735 | I128: 44.37514219 | K128: 0 | L128: 2.53362035 | M128: 0.0001124297633 | O128: =FAT!$U128-FAT!$U127*(1-FAT!$F127) -> 282.6392351 | P128: 1 | R128: =IF(AND(O128>D128,$AA$1="YES"),R127*(1-FAT!$F127)+D128,R127*(1-FAT!$F127)+O128) -> 6553.690343 | S128: 0.9999999987 | T128: 8.044082377e-05 | U128: 47242.5137 | V128: 0.1041824434 | W128: 4921.840511 | X128: 0.6885036078 | Y128: 0.07172998817 | Z128: 0.003388704948 | AA128: 0.003501134712 | AB128: 0.07410585682 | AC128: -9.380898096 | AD128: -99.96269197 | AE128: 2.096505695 | AF128: 0.003501134712 | AG128: 0.003501134712 | AH128: 2.093004561
A129: 88 | B129: 2088 | D129: =IF(FAT!$C129*(1+D$38/27*($B129-$B$64))>=0,FAT!$C129*(1+D$38/27*($B129-$B$64)),0) -> 282.7333679 | E129: 0 | G129: =IF(a*EXP(-b*EXP(-ze*(B129-2000)))*(1+G$38/27*($B129-$B$64))>=0,a*EXP(-b*EXP(-ze*(B129-2000)))*(1+G$38/27*($B129-$B$64)),0) -> 6561.168725 | H129: 7102.054565 | I129: =IF($M$150*$O$150*$R$150*EXP((-$O$150*EXP(-$R$150*($B129-2000))-$R$150*($B129-2000)))*(1+I$38/27*($B129-$B$64))>=0,$M$150*$O$150*$R$150*EXP((-$O$150*EXP(-$R$150*($B129-2000))-$R$150*($B129-2000)))*(1+I$38/27*($B129-$B$64)),0) -> 43.6718262 | K129: 0 | L129: 2.17494475 | M129: =IF(L129>=0,I129*L129/1000000,0) -> 9.498380909e-05 | O129: =FAT!$U129-FAT!$U128*(1-FAT!$F128) -> 282.7333679 | P129: 1 | R129: =IF(AND(O129>D129,$AA$1="YES"),R128*(1-FAT!$F128)+D129,R128*(1-FAT!$F128)+O129) -> 6561.168717 | S129: 0.9999999988 | T129: =IF(Scen=5,IF($F$154*$I$154*$K$154*EXP((-$I$154*EXP(-$K$154*($B129-2000))-$K$154*($B129-2000)))*(1-2.8519/77*($B129-$B$64))>=0,$F$154*$I$154*$K$154*EXP((-$I$154*EXP(-$K$154*($B129-2000))-$K$154*($B129-2000)))*(1-2.8519/77*($B129-$B$64)),0),IF(Scen<>5,IF($F$154*$I$154*$K$154*EXP((-$I$154*EXP(-$K$154*($B129-2000))-$K$154*($B129-2000)))*(1+T$38/27*($B129-$B$64))>=0,$F$154*$I$154*$K$154*EXP((-$I$154*EXP(-$K$154*($B129-2000))-$K$154*($B129-2000)))*(1+T$38/27*($B129-$B$64)),0))) -> 7.001228917e-05 | U129: =R129*(1-2/3*T129)*H129/1000 -> 46595.60329 | V129: 0.103140619 | W129: 4805.899366 | X129: =IF(OR(Scen=3,Scen=5),IF($V$154*$X$154*$Z$154*EXP((-$X$154*EXP(-$Z$154*($B129-2000))-$Z$154*($B129-2000)))*(1-2.8519/77*($B129-$B$64))>=0,$V$154*$X$154*$Z$154*EXP((-$X$154*EXP(-$Z$154*($B129-2000))-$Z$154*($B129-2000)))*(1-2.8519/77*($B129-$B$64)),0),IF(AND(Scen<>3,Scen<>5),IF($V$154*$X$154*$Z$154*EXP((-$X$154*EXP(-$Z$154*($B129-2000))-$Z$154*($B129-2000)))*(1+X$38/27*($B129-$B$64))>=0,$V$154*$X$154*$Z$154*EXP((-$X$154*EXP(-$Z$154*($B129-2000))-$Z$154*($B129-2000)))*(1+X$38/27*($B129-$B$64)),0))) -> 0.6339919404 | Y129: 0.06539032118 | Z129: 0.003046901465 | AA129: 0.003141885274 | AB129: 0.06742564544 | AC129: -9.381257345 | AD129: -99.96652012 | AE129: 2.035010075 | AF129: 0.003141885274 | AG129: 0.003141885274 | AH129: 2.031868189
A130: 89 | B130: 2089 | D130: =IF(FAT!$C130*(1+D$38/27*($B130-$B$64))>=0,FAT!$C130*(1+D$38/27*($B130-$B$64)),0) -> 282.8244368 | E130: =IF(D130<O130,1,0) -> 0 | G130: 6568.424075 | H130: =IF(AC$147*AE$147*AH$147*EXP(-AE$147*EXP(-AH$147*(B130-2000))-AH$147*(B130-2000))*(1+H$38/27*($B130-$B$64))>=0,AC$147*AE$147*AH$147*EXP(-AE$147*EXP(-AH$147*(B130-2000))-AH$147*(B130-2000))*(1+H$38/27*($B130-$B$64)),0) -> 6996.10526 | I130: 42.97957018 | K130: 0 | L130: 1.866798761 | M130: 8.023420835e-05 | O130: =FAT!$U130-FAT!$U129*(1-FAT!$F129) -> 282.8244368 | P130: =O130/D130 -> 1 | R130: =IF(AND(O130>D130,$AA$1="YES"),R129*(1-FAT!$F129)+D130,R129*(1-FAT!$F129)+O130) -> 6568.424067 | S130: =R130/G130 -> 0.9999999988 | T130: 6.093562138e-05 | U130: 45951.51937 | V130: =IF(V$64*0.99^(B130-B$64)*(1+V$38/27*($B130-$B$64))>=0,V$64*0.99^(B130-B$64)*(1+V$38/27*($B130-$B$64)),0) -> 0.1021092128 | W130: 4692.07347 | X130: 0.5837923484 | Y130: 0.05961057714 | Z130: 0.00273919659 | AA130: 0.002819430799 | AB130: 0.06135414674 | AC130: -9.3815798 | AD130: -99.96995619 | AE130: 1.975056788 | AF130: 0.002819430799 | AG130: 0.002819430799 | AH130: 1.972237358
A131: 90 | B131: 2090 | D131: =IF(FAT!$C131*(1+D$38/27*($B131-$B$64))>=0,FAT!$C131*(1+D$38/27*($B131-$B$64)),0) -> 282.9125455 | E131: 0 | G131: 6575.46281 | H131: 6891.093957 | I131: 42.29820299 | K131: 0 | L131: 1.602104167 | M131: 6.776612724e-05 | O131: =FAT!$U131-FAT!$U130*(1-FAT!$F130) -> 282.9125455 | P131: 1 | R131: =IF(AND(O131>D131,$AA$1="YES"),R130*(1-FAT!$F130)+D131,R130*(1-FAT!$F130)+O131) -> 6575.462802 | S131: 0.9999999989 | T131: 5.303560315e-05 | U131: 45310.52988 | V131: 0.1010881207 | W131: 4580.356312 | X131: 0.5375643148 | Y131: 0.05434136633 | Z131: 0.002462236103 | AA131: 0.00253000223 | AB131: 0.05583498545 | AC131: -9.381869228 | AD131: -99.97304034 | AE131: 1.916621759 | AF131: 0.00253000223 | AG131: 0.00253000223 | AH131: 1.914091756
A132: 91 | B132: 2091 | D132: =IF(FAT!$C132*(1+D$38/27*($B132-$B$64))>=0,FAT!$C132*(1+D$38/27*($B132-$B$64)),0) -> 282.997794 | E132: 0 | G132: 6582.291166 | H132: 6787.038411 | I132: 41.62755601 | K132: 0 | L132: 1.374767667 | M132: 5.722821807e-05 | O132: =FAT!$U132-FAT!$U131*(1-FAT!$F131) -> 282.997794 | P132: 1 | R132: =IF(AND(O132>D132,$AA$1="YES"),R131*(1-FAT!$F131)+D132,R131*(1-FAT!$F131)+O132) -> 6582.291158 | S132: 0.9999999989 | T132: 4.615972074e-05 | U132: 44672.88816 | V132: 0.1000772395 | W132: 4470.739326 | X132: 0.4949941237 | Y132: 0.04953764546 | Z132: 0.002212989695 | AA132: 0.002270217913 | AB132: 0.05081713193 | AC132: -9.382129013 | AD132: -99.9758086 | AE132: 1.859680384 | AF132: 0.002270217913 | AG132: 0.002270217913 | AH132: 1.857410166
A133: 92 | B133: 2092 | D133: =IF(FAT!$C133*(1+D$38/27*($B133-$B$64))>=0,FAT!$C133*(1+D$38/27*($B133-$B$64)),0) -> 283.0802786 | E133: 0 | G133: 6588.915215 | H133: 6683.955042 | I133: 40.96746318 | K133: 0 | L133: 1.179544919 | M133: 4.832296303e-05 | O133: =FAT!$U133-FAT!$U132*(1-FAT!$F132) -> 283.0802786 | P133: 1 | R133: =IF(AND(O133>D133,$AA$1="YES"),R132*(1-FAT!$F132)+D133,R132*(1-FAT!$F132)+O133) -> 6588.915208 | S133: 0.999999999 | T133: 4.017522376e-05 | U133: 44038.83349 | V133: 0.09907646708 | W133: 4363.212036 | X133: 0.4557927645 | Y133: 0.04515833683 | Z133: 0.001988720476 | AA133: 0.002037043439 | AB133: 0.04625437866 | AC133: -9.382362187 | AD133: -99.9782933 | AE133: 1.804207614 | AF133: 0.002037043439 | AG133: 0.002037043439 | AH133: 1.802170571
A134: 93 | B134: 2093 | D134: =IF(FAT!$C134*(1+D$38/27*($B134-$B$64))>=0,FAT!$C134*(1+D$38/27*($B134-$B$64)),0) -> 283.1600923 | E134: 0 | G134: 6595.340868 | H134: 6581.85898 | I134: 40.31776091 | K134: 0 | L134: 1.011923159 | M134: 4.079847598e-05 | O134: =FAT!$U134-FAT!$U133*(1-FAT!$F133) -> 283.1600923 | P134: 1 | R134: =IF(AND(O134>D134,$AA$1="YES"),R133*(1-FAT!$F133)+D134,R133*(1-FAT!$F133)+O134) -> 6595.340862 | S134: 0.999999999 | T134: 3.496656539e-05 | U134: 43408.59155 | V134: 0.09808570241 | W134: 4257.762193 | X134: 0.4196939975 | Y134: 0.04116598054 | Z134: 0.001786957235 | AA134: 0.001827755711 | AB134: 0.04210487 | AC134: -9.382571475 | AD134: -99.98052347 | AE134: 1.750178016 | AF134: 0.001827755711 | AG134: 0.001827755711 | AH134: 1.74835026
A135: 94 | B135: 2094 | D135: =IF(FAT!$C135*(1+D$38/27*($B135-$B$64))>=0,FAT!$C135*(1+D$38/27*($B135-$B$64)),0) -> 283.2373247 | E135: 0 | G135: 6601.573877 | H135: 6480.764104 | I135: 39.67828807 | K135: 0 | L135: 0.8680199126 | M135: 3.444154414e-05 | O135: =FAT!$U135-FAT!$U134*(1-FAT!$F134) -> 283.2373247 | P135: 1 | R135: =IF(AND(O135>D135,$AA$1="YES"),R134*(1-FAT!$F134)+D135,R134*(1-FAT!$F134)+O135) -> 6601.57387 | S135: 0.9999999991 | T135: 3.04331738e-05 | U135: 42782.37495 | V135: 0.09710484538 | W135: 4154.375904 | X135: 0.38645257 | Y135: 0.03752641706 | Z135: 0.001605469245 | AA135: 0.001639910789 | AB135: 0.03833067985 | AC135: -9.38275932 | AD135: -99.98252514 | AE135: 1.697565841 | AF135: 0.001639910789 | AG135: 0.001639910789 | AH135: 1.69592593
A136: 95 | B136: 2095 | D136: =IF(FAT!$C136*(1+D$38/27*($B136-$B$64))>=0,FAT!$C136*(1+D$38/27*($B136-$B$64)),0) -> 283.3120622 | E136: 1 | G136: 6607.619836 | H136: 6380.683091 | I136: 39.04888594 | K136: 0 | L136: 0.7444955942 | M136: 2.907172354e-05 | O136: =FAT!$U136-FAT!$U135*(1-FAT!$F135) -> 283.3120622 | P136: 1 | R136: =IF(AND(O136>D136,$AA$1="YES"),R135*(1-FAT!$F135)+D136,R135*(1-FAT!$F135)+O136) -> 6607.61983 | S136: 0.9999999991 | T136: 2.64875121e-05 | U136: 42160.38362 | V136: 0.09613379693 | W136: 4053.037758 | X136: 0.3558425698 | Y136: 0.03420849735 | Z136: 0.001442243371 | AA136: 0.001471315095 | AB136: 0.03489743184 | AC136: -9.382927916 | AD136: -99.98432169 | AE136: 1.646345085 | AF136: 0.001471315095 | AG136: 0.001471315095 | AH136: 1.64487377
A137: 96 | B137: 2096 | D137: =IF(FAT!$C137*(1+D$38/27*($B137-$B$64))>=0,FAT!$C137*(1+D$38/27*($B137-$B$64)),0) -> 283.3843883 | E137: 1 | G137: 6613.484191 | H137: 6281.627453 | I137: 38.42939822 | K137: 0 | L137: 0.6384781257 | M137: 2.453633015e-05 | O137: =FAT!$U137-FAT!$U136*(1-FAT!$F136) -> 283.3843883 | P137: 1 | R137: =IF(AND(O137>D137,$AA$1="YES"),R136*(1-FAT!$F136)+D137,R136*(1-FAT!$F136)+O137) -> 6613.484186 | S137: 0.9999999991 | T137: 2.305338943e-05 | U137: 41542.80534 | V137: 0.09517245896 | W137: 3953.730936 | X137: 0.3276559073 | Y137: 0.03118381839 | Z137: 0.001295463297 | AA137: 0.001319999627 | AB137: 0.03177395772 | AC137: -9.383079231 | AD137: -99.98593411 | AE137: 1.596489547 | AF137: 0.001319999627 | AG137: 0.001319999627 | AH137: 1.595169548
A138: 97 | B138: 2097 | D138: =IF(FAT!$C138*(1+D$38/27*($B138-$B$64))>=0,FAT!$C138*(1+D$38/27*($B138-$B$64)),0) -> 283.4543835 | E138: 0 | G138: 6619.172239 | H138: 6183.60758 | I138: 37.81967092 | K138: 0 | L138: 0.5474979339 | M138: 2.070619169e-05 | O138: =FAT!$U138-FAT!$U137*(1-FAT!$F137) -> 283.4543835 | P138: 1 | R138: =IF(AND(O138>D138,$AA$1="YES"),R137*(1-FAT!$F137)+D138,R137*(1-FAT!$F137)+O138) -> 6619.172233 | S138: 0.9999999992 | T138: 2.006449073e-05 | U138: 40929.8161 | V138: 0.09422073437 | W138: 3856.437331 | X138: 0.3017009152 | Y138: 0.02842648179 | Z138: 0.001163490672 | AA138: 0.001184196864 | AB138: 0.02893198984 | AC138: -9.383215034 | AD138: -99.98738122 | AE138: 1.547972883 | AF138: 0.001184196864 | AG138: 0.001184196864 | AH138: 1.546788687
A139: 98 | B139: 2098 | D139: =IF(FAT!$C139*(1+D$38/27*($B139-$B$64))>=0,FAT!$C139*(1+D$38/27*($B139-$B$64)),0) -> 283.5221254 | E139: 0 | G139: 6624.68913 | H139: 6086.632783 | I139: 37.21955242 | K139: 0 | L139: 0.4694319128 | M139: 1.747204568e-05 | O139: =FAT!$U139-FAT!$U138*(1-FAT!$F138) -> 283.5221254 | P139: 1 | R139: =IF(AND(O139>D139,$AA$1="YES"),R138*(1-FAT!$F138)+D139,R138*(1-FAT!$F138)+O139) -> 6624.689125 | S139: 0.9999999992 | T139: 1.746309697e-05 | U139: 40321.58057 | V139: 0.09327852703 | W139: 3761.137643 | X139: 0.2778010577 | Y139: 0.02591287347 | Z139: 0.001044848016 | AA139: 0.001062320061 | AB139: 0.02634588423 | AC139: -9.383336911 | AD139: -99.98867994 | AE139: 1.500768655 | AF139: 0.001062320061 | AG139: 0.001062320061 | AH139: 1.499706335
A140: 99 | B140: 2099 | D140: =IF(FAT!$C140*(1+D$38/27*($B140-$B$64))>=0,FAT!$C140*(1+D$38/27*($B140-$B$64)),0) -> 283.5876889 | E140: 0 | G140: 6630.039876 | H140: 5990.711328 | I140: 36.62889334 | K140: 0 | L140: 0.4024551266 | M140: 1.47414859e-05 | O140: =FAT!$U140-FAT!$U139*(1-FAT!$F139) -> 283.5876889 | P140: 1 | R140: =IF(AND(O140>D140,$AA$1="YES"),R139*(1-FAT!$F139)+D140,R139*(1-FAT!$F139)+O140) -> 6630.039871 | S140: 0.9999999992 | T140: 1.519897113e-05 | U140: 39718.2525 | V140: 0.09234574176 | W140: 3667.811489 | X140: 0.2557937401 | Y140: 0.02362146267 | Z140: 0.0009382032186 | AA140: 0.0009529447045 | AB140: 0.02399237098 | AC140: -9.383446286 | AD140: -99.98984544 | AE140: 1.454850377 | AF140: 0.0009529447045 | AG140: 0.0009529447045 | AH140: 1.453897432
A141: 100 | B141: 2100 | D141: =IF(FAT!$C141*(1+D$38/27*($B141-$B$64))>=0,FAT!$C141*(1+D$38/27*($B141-$B$64)),0) -> 283.6511463 | E141: 0 | G141: 6635.229347 | H141: 5895.850481 | I141: 36.04754658 | K141: 0 | L141: 0.3449991945 | M141: 1.243637453e-05 | O141: =FAT!$U141-FAT!$U140*(1-FAT!$F140) -> 283.6511463 | P141: 1 | R141: =IF(AND(O141>D141,$AA$1="YES"),R140*(1-FAT!$F140)+D141,R140*(1-FAT!$F140)+O141) -> 6635.229342 | S141: 0.9999999993 | T141: 1.322838848e-05 | U141: 39119.97511 | V141: 0.09142228434 | W141: 3576.437488 | X141: 0.2355292113 | Y141: 0.02153261852 | Z141: 0.0008423555006 | AA141: 0.0008547918751 | AB141: 0.02185032926 | AC141: -9.383544439 | AD141: -99.99089135 | AE141: 1.410191562 | AF141: 0.0008547918751 | AG141: 0.0008547918751 | AH141: 1.409336771
B143: References
B145: ¹ Total vehicle Stock: https://www.oica.net/category/vehicles-in-use/ (Last retrieved 11/13/2023); https://www.statistik.at/statistiken/tourismus-und-verkehr/fahrzeuge/kfz-bestand (Last retrieved 05/31/2024). Total inventories from 2023 on were forecasted with the distribution function of a Gompertz function. Saturation limit was set to 6.8 million vehicles » 759 vehicles per 1,000 population (R² = .954). | M145: ² Total Vehicles Stock Forecast: Coeffcients for the Gompertz Distribution Function | U145: ³ Yearly Distance Travelled (km): https://stats.oecd.org/index.aspx?lang=en (Last retrieved 11/13/2023). Passenger transport: Road passenger transport: Passenger kilometers divided by vehicle Stock assuming an occupancy of 1.6 passengers per car. Note that due to COVID-19, data for 2020 were not included. Distances from 2020 on were forcasted with the density function of a Gompertz function (R² = .308). | AB145: ³ Yearly km per vehicle: Coeffcients for the Gompertz Density Function:
M147: a: | N147: =FAT!$I$32 -> 6800 | O147: b: | Q147: =FAT!$I$33 -> 0.5666614825 | R147: c: | T147: =FAT!$I$34 -> 0.03139890562 | AB147: a: | AC147: =EAT!$C$32 -> 1884038.207 | AD147: b: | AE147: =EAT!$C$33 -> 1.385587027 | AF147: c: | AH147: =EAT!$C$34 -> 0.01978904244
B148: ⁴ ICE CO₂/km (gm): IEA International Energy Agency. https://iea.blob.core.windows.net/assets/66965fb0-87c9-4bc7-990d-a509a1646956/Fuel_Economy_in_Major_Car_Markets.pdf. (Last retrieved 02/03/2024). CO₂/km values from 2018 on were forecasted with the density function of a Gompertz function (R² = .764). | M148: ⁴ ICE CO₂/km (gm): Coeffcients for the Gompertz Density Function. Constraint: CO₂/km in 2050 >= 80 gm. | U148: ⁵ Actual EV Sales 2010-June 2024: https://www.ev-volumes.com/datacenter/ (Last retrieved 07/31/2024). ⁶ EV sales from 2025 on were forecasted by the yearly difference of the EV Stock forecasts⁸ augmented by the EV wastes according to the Weibull function (see below). ⁷ Actual EV stocks until 2023 were the added EV sales⁵ which were reduced by the EV wastes according to the Weibull function (see below). | AB148: ⁸ EV Stock Forecast Coefficients for the Gompertz Distribution Function (Saturation Limit 20 million vehicles (750 per 1,000 population).
M149: a: | O149: b: | R149: c: | AB149: Based on actual data (Scenarios 1 and 3): | AC149: a | AD149: =FAT!$N$32 -> 6700 | AE149: Based on 100% EVs in 2050 (Scenarios 4 and 5): | AF149: a | AH149: =FAT!$S$32 -> 6500
M150: =EAT!$G$32 -> 349754.0069 | O150: =EAT!$G$33 -> 0.03223668388 | R150: =EAT!$G$34 -> 0.01610313018 | AC150: b | AD150: =FAT!$N$33 -> 27.35491001 | AF150: b | AH150: =FAT!$S$33 -> 98.23067366
AC151: c | AD151: =FAT!$N$34 -> 0.0904901358 | AF151: c | AH151: =FAT!$S$34 -> 0.1441647075
B152: ⁹ Proportion Plug-In-Hybrid-EVs (PHEV) of all EVs in % based on the numbers from https://www.ev-volumes.com/datacenter/ (Last retrieved 05/21/2024). Coefficients for the Gompertz Density Function: | M152: ¹⁰ EV Efficiency: Assesing local EV-fleet from https://www.ev-volumes.com/datacenter/ and respective efficiencies from Marklines Electric Vehicles by Model: https://www.marklines.com/en/green_vehicles/case_top?rf=left_menu (Last retrieved 02/01/2024, see Folder "Parameters" Table 3). From 2024 on, kWh/km have been reduced by 1% per year. | U152: ¹¹ Electricty CO₂/kWh: Coefficients for the Gompert Density Function: https://ourworldindata.org/grapher/carbon-intensity-electricity? (Last retrieved 05/31/2024). In Scenario 3 and 5, from 2024 on, CO₂ is reduced linearly down to zero in 2050 (R² = .848).
B154: a: | F154: =FAT!$X$32 -> 5.272506585 | H154: b: | I154: =FAT!$X$33 -> 19.39750575 | J154: c: | K154: =FAT!$X$34 -> 0.1388652657 | M154: Starting with | O154: ='P1'!G42 -> 0.1982175412 | Q154: kWh/km until 2023 and from 2024 on, reducing by 1% per year. | U154: a: | V154: =EAT!$K$32 -> 7974.64765 | W154: b: | X154: =EAT!$K$33 -> 1.378896838 | Y154: c: | Z154: =EAT!$K$34 -> 0.08256727123
B155: ¹² Increase or decrease number reached in 2050 by a positive or negative percentage. 100% will double in 2050. -100% will decrease to zero in 2050. -35.1% will decrease to zero in 2100 (= 27/77). EVs won't exceed total stock. Does not work for EV Stock Forecast in Scenarios 4 and 5 (forced to be 100% in 2050).
B156: ¹³ EV Sales should not exceed the yearly maximum sales of all cars in the respective country. The number is the mean of the maximum of cars ever sold per year, the forecasted sales numbers by a linear, and by a logarithmic function (see Folder "Parameters" Table 2) .
B157: ¹⁴ Equivalent to km reduction means: Instead of taking the measures in Scenario 3, 4, or 5, how many km would have to be saved in Scenario 2 to achieve the same CO₂ reduction effect.
B158: For any function in this study, the time variable is the respective year minus 2000 (i.e., for 2050, t = 50).
B162: WEIBULL FUNCTION
B163: k= | C163: 6 | D163: l= | F163: =(1/G164)/((-LN(1-0.999))^(1/C163)) -> 12.94290918 | G163: Avg. Scrap | H163: Lifetime | I163: Æ Waste | J163: Mean Lifetime
B164: Waste after year x | C164: Cumulative Distribution Function (CDF) | F164: Waste in year | G164: =AVERAGE(FAT!$F$47:$F$64) -> 0.05598589245 | H164: =(ROUND((1/G164),0)) -> 18 | I164: =AVERAGE(F165:F165:INDIRECT("F"&H164+ROW())) -> 0.05551550853 | J164: =ROUND(F163*_xlfn.GAMMA(1+1/k),0) -> 12
B165: 1 | C165: =_xlfn.WEIBULL.DIST(B165,C$163,F$163,1) -> 2.127201009e-07 | F165: =C165 -> 2.127201009e-07
B166: 2 | C166: =_xlfn.WEIBULL.DIST(B166,C$163,F$163,1) -> 1.361399523e-05 | F166: =C166-C165 -> 1.340127513e-05
B167: 3 | C167: 0.0001550609469 | F167: =C167-C166 -> 0.0001414469516
B168: 4 | C168: 0.0008709221529 | F168: 0.0007158612061
B169: 5 | C169: 0.003318234381 | F169: 0.002447312228
B170: 6 | C170: 0.00987558307 | F170: 0.006557348689
B171: 7 | C171: 0.02471574786 | F171: 0.01484016479
B172: 8 | C172: 0.05423703235 | F172: 0.02952128449
B173: 9 | C173: 0.1068923844 | F173: 0.05265535205
B174: 10 | C174: 0.1916176472 | F174: 0.08472526285
B175: 11 | C175: 0.3139787498 | F175: 0.1223611026
B176: 12 | C176: 0.4701593009 | F176: 0.1561805511
B177: 13 | C177: 0.6418342485 | F177: 0.1716749476
B178: 14 | C178: 0.798443155 | F178: 0.1566089065
B179: 15 | C179: 0.9113460914 | F179: 0.1129029364
B180: 16 | C180: 0.9718117896 | F180: 0.06046569823
B181: 17 | C181: 0.9941102791 | F181: 0.02229848943
B182: 18 | C182: 0.9992791536 | F182: 0.005168874557
B183: 19 | C183: 0.9999549441 | F183: 0.0006757904478
B184: 20 | C184: 0.9999987769 | F184: =C184-C183 -> 4.383280338e-05
B185: 21 | C185: 0.9999999881 | F185: =C185-C184 -> 1.211211271e-06
B186: 22 | C186: 1 | F186: 1.189681176e-08
B187: 23 | C187: 1 | F187: 3.352207401e-11
B188: 24 | C188: 1 | F188: 2.109423747e-14
B189: 25 | C189: 1 | F189: 0
B190: 26 | C190: 1 | F190: 0
B191: 27 | C191: 1 | F191: 0
B192: 28 | C192: 1 | F192: 0
B193: 29 | C193: 1 | F193: 0
B194: 30 | C194: 1 | F194: 0
B195: 31 | C195: 1 | F195: 0
B196: 32 | C196: 1 | F196: 0
B197: 33 | C197: 1 | F197: 0
B198: 34 | C198: 1 | F198: 0
B199: 35 | C199: 1 | F199: 0
B200: 36 | C200: 1 | F200: 0
B201: 37 | C201: 1 | F201: 0
B202: 38 | C202: 1 | F202: 0
B203: 39 | C203: 1 | F203: 0
B204: 40 | C204: 1 | F204: 0
B205: 41 | C205: 1 | F205: 0
B206: 42 | C206: 1 | F206: 0
B207: 43 | C207: 1 | F207: 0
B208: 44 | C208: 1 | F208: 0
B209: 45 | C209: 1 | F209: 0
B210: 46 | C210: 1 | F210: 0
B211: 47 | C211: 1 | F211: 0
B212: 48 | C212: 1 | F212: 0
B213: 49 | C213: 1 | F213: 0
B214: 50 | C214: 1 | F214: 0

Sheet BE
B1: Belgium | G1: Click → | H1: Scenario 1/2 | L1: Scenario 3 | Q1: Scenario 4 | V1: Scenario 5 | Y1: With Sales Limit → | AA1: NO | AE1: Limits forecasted EV sales to maximum total sales (column D)
A3: Or choose scenario (1-5): | D3: 1 | H3: Actual (2023) data and forecast 2050 | L3: Electricity: Reduce CO₂/kWh to zero in 2050 | Q3: Increase EV Stock to 100% in 2050 | V3: ZERO CARBON in 2050: Both zero CO₂/kWh and100% EVs | Z3: Population (thsd): | AB3: ='P1'!C32 -> 11686.14 | AC3: Vehicles per 1,000 in 2050: | AE3: =G91/AB3*1000 -> 623.4913354
B4: CO2 emission 2050 (Mt): | H4: =AA91 -> 0.6609052109 | I4: Accrued CO₂ savings in 2050 since 2010 (Mt): | N4: =SUM(AH46:AH91) -> 133.6488246 | O4: 2050 EV Stock (thsd.) | U4: =R91 -> 7286.207063 | V4: =R91/G91 -> 1.000000004 | W4: 2050 Average CO₂/km (gm) | Z4: =AB91 -> 7.686978381 | AA4: Equivalent reduction in distance travelled in 2050 (km): | AH4: =AE18 -> -14161.60148
AA5: Summary | AB5: Scenario: | AC5: 1 | AE5: =IF(Scen=1,2,IF(Scen=3,3,IF(Scen=4,4,5))) -> 2 | AG5: 5
AC6: Actual | AE6: =IF(Scen=1,"Forecast 2050",IF(Scen=3,"2050 Zero CO2/kWh",IF(Scen=4,"2050 100% EVs","Zero CO2 + 100% EVs"))) -> Forecast 2050
AA8: Yearly km per vehicle | AC8: =H64 -> 15145.31455 | AE8: =$H91 -> 11800 | AI8: =$H91 -> 11800
AA9: Stock EVs (thsd.) | AC9: =Q64 -> 478.4127734 | AE9: =$R91 -> 7286.207063 | AI9: =$R91 -> 7286.207063
AA10: Stock ICEs (thsd.) | AC10: =J64+K64 -> 5552.067227 | AE10: =$K91 -> 0 | AH10: =MIN(IF($O$65:$O$141>=$D$65:$D$141,ROW($P$65:$P$141))) -> 71 | AI10: =$K91 -> 0
AA11: ICE CO₂/km (gm) | AC11: =I64 -> 119.5025899 | AE11: =$I91 -> 81.35876304 | AH11: Year in which the EV share of total car sales reaches 100%. | AI11: =$I91 -> 81.35876304
AA12: EV kWh/km | AC12: =V64 -> 0.2076062661 | AE12: =$V91 -> 0.1582671244 | AI12: =$V91 -> 0.1582671244
AA13: EV CO₂/kWh (gm) | AC13: =X64 -> 138.1068 | AE13: =$X91 -> 47.0440273 | AI13: =$X91 -> 47.0440273
AA14: EV CO₂/km (gm) | AC14: =Y64 -> 28.67183706 | AE14: =$Y91 -> 7.44552292 | AI14: =$Y91 -> 7.44552292
AA15: Average CO₂/km (gm) | AC15: =AB64 -> 115.1103069 | AE15: =$AB91 -> 7.686978381 | AI15: =$AB91 -> 7.686978381
AA16: Total CO₂/year (Mt) | AC16: =AA64 -> 10.51342912 | AE16: =$AA$91 -> 0.6609052109 | AI16: =$AA91 -> 0.6609052109
AA17: CO₂ Reduction (Mt) | AC17: =SUM(AH46:AH64) -> 1.032335821 | AE17: =SUM($AH46:$AH91) -> 133.6488246 | AI17: =SUM($AH46:$AH91) -> 133.6488246
AA18: ¹⁴ Equivalent km reduction | AE18: =AE16/((($J64+$R64*$T64*(2/3))*$I64+((Q64+$R64)*(1-$T64*(2/3))*$Y64))/1000000000)-AC8 -> -14161.60148 | AG18: -12555.25295 | AI18: =AI16/((($K91+$R91*$T91*(2/3))*$I91+($R91*(1-$T91*(2/3))*$Y91))/1000000000)-$AC8 -> -3345.314553
AA19: First zero carbon year (<= 3g/km) | AE19: =MIN(IF(AB$65:AB$141<=3,ROW(AB$65:AB$141))) -> 108 | AF19: =IF(AE19>0,INDIRECT("B"&AE19),">2100") -> 2067 | AH19: =IF(AH10>0,INDIRECT("B"&AH10),">2100") -> 2030 | AI19: =IF(AE19>0,INDIRECT("B"&AE19),">2100") -> 2067
AB21: =CONCATENATE("Total CO₂"&CHAR(10),"in 2023") -> Total CO₂ in 2023 | AC21: =AD21-AD20 -> 10.51342912 | AD21: =AA64 -> 10.51342912
AB22: =CONCATENATE("From ",TEXT($G$64/1000,"##0.0"),"m to"&CHAR(10),TEXT($G$91/1000,"##0.0"),"m total Stock") -> From 0.0m to 7.3m total Stock | AC22: 2.189211666 | AD22: =G91/F64*AD21 -> 12.70264078
AB23: =CONCATENATE("From ",TEXT($H$64,"###,0")," to"&CHAR(10),TEXT($H$91,"###,0")," yearly km") -> From 15,145 to 11,800 yearly km | AC23: -2.740690952 | AD23: =$H$91*(((($G$91-$Q$64)+$Q$64*$T$64*2/3)*$I$64)+((($Q$64*(1-$T$64*2/3)))*$V$64*$X$64))/1000000000 -> 9.96194983
AB24: =CONCATENATE("From ",TEXT($I$64,"###")," to ",TEXT($I$91,"###")&CHAR(10)," gm ","CO₂/km ICE") -> From 120 to 81 gm CO₂/km ICE | AC24: -3.148246164 | AD24: =$H$91*(((($G$91-$Q$64)+$Q$64*$T$64*2/3)*$I$91)+((($Q$64*(1-$T$64*2/3)))*$V$64*$X$64))/1000000000 -> 6.813703666
AB25: =CONCATENATE("From ",TEXT($Q$64/1000,"##0.0"),"m to"&CHAR(10),TEXT($R$91/1000,"##0.0"),"m EV Stock") -> From 0.5m to 7.3m EV Stock | AC25: =AD25-AD24 -> -2.579869908 | AD25: =$H$91*(((($G$91-$R$91)+$R$91*$T$64*2/3)*$I$91)+((($R$91*(1-$T$64*2/3)))*$V$64*$X$64))/1000000000 -> 4.233833758
AB26: =CONCATENATE("From ",TEXT($V$64,".####")," to"&CHAR(10),TEXT($V$91,".####")," kWh/km EV") -> From .2076 to .1583 kWh/km EV | AC26: -0.3571056191 | AD26: =$H$91*(((($G$91-$R$91)+$R$91*$T$64*2/3)*$I$91)+((($R$91*(1-$T$64*2/3)))*$V$91*$X$64))/1000000000 -> 3.876728139
AB27: =IF($X$91=0,CONCATENATE("From ",TEXT($X$64,"###")," to zero"&CHAR(10),"gr CO₂/kWh EV"),CONCATENATE("From ",TEXT($X$64,"###")," to ",TEXT($X$91,"###")&CHAR(10)," gr CO₂/kWh EV")) -> From 138 to 47 gr CO₂/kWh EV | AC27: -0.7553037007 | AD27: =$H$91*(((($G$91-$R$91)+$R$91*$T$64*2/3)*$I$91)+((($R$91*(1-$T$64*2/3)))*$V$91*$X$91))/1000000000 -> 3.121424439
AB28: =IF($T$91<0.01,CONCATENATE("From ",TEXT($T$64,"###.##%")&CHAR(10),"to "," zero % PHEV"),CONCATENATE("From ",TEXT($T$64,"###.##%")&CHAR(10),"to ",TEXT($T$91,"###.##%")," PHEV")) -> From 58.57% to zero % PHEV | AC28: -2.460519255 | AD28: =$H$91*(((($G$91-$R$91)+$R$91*$T$91*2/3)*$I$91)+((($R$91*(1-$T$91*2/3)))*$V$91*$X$91))/1000000000 -> 0.6609051832
AB29: =CONCATENATE("Total CO₂"&CHAR(10),"in 2050") -> Total CO₂ in 2050 | AC29: =SUM(AC21:AC28) -> 0.6609051832
A33: -0.98
A37: 0
B38: Change by % in 2050¹² | D38: =Control!$B$4 -> 0 | G38: =Control!C4 -> 0 | H38: =Control!D4 -> 0 | I38: =Control!E4 -> 0 | K38: Except for fields D3 (scenario selection) and AA1 (sales limit selection), all other fields are locked to prevent accidental overwriting. To be able to do this anyway, the sheet can be unlocked without a password. | R38: =Control!F4 -> 0 | T38: =Control!G4 -> 0 | V38: =Control!H4 -> 0 | X38: =Control!I4 -> 0
A39: # | R39: Blue Background = Actual Data
B40: =B1 -> Belgium | C40: Total Actual Sales (thsd)¹ | D40: Total Sales Fore-cast (tshd) | F40: Total Stock Actual (thsd)¹ | G40: Total Stock Forecast (thsd)² | H40: Yearly Distance per vehicle (km)³ | I40: ICE CO₂/km (gm)⁴ | J40: ICE Stock Actual = Total - EV (thsd) | K40: ICE Stock Forecast = Total - EV | L40: ICE Yearly Distance (million kM) | M40: ICE Yearly Mt CO₂ | N40: EV Sales Actual (thsd)⁵ | O40: EV Sales Forecast (thsd)⁶ | P40: EV % from Total Sales | Q40: EV Stock Actual (thsd)⁷ | R40: EV Stock Forecast (thsd)⁸ | S40: EV % from Total Stock | T40: Thereof PHEVs in %⁹ | U40: EV Yearly Distance (million km) | V40: EV kWh/km¹⁰ | W40: EV Total kWh (million) | X40: Electricity CO₂/kWh (gm)¹¹ | Y40: EV CO₂/km (gm) | Z40: EV Yearly Mt CO₂ | AA40: Total Mt CO₂ (ICE + EV) | AB40: Average CO₂/km (gm) | AC40: Absolute CO₂ Reduction compared to 2005 | AD40: Relative CO₂ Re-duction (%) | AE40: CO₂ of ICE only | AF40: CO₂ of combined ICE + EV | AH40: Accrued CO₂ Reduction since 2010
A41: 0 | B41: 2000 | X41: 269.59778
A42: 1 | B42: 2001 | X42: 252.82971
A43: 2 | B43: 2002 | X43: 249.81467
A44: 3 | B44: 2003 | X44: 249.13245
A45: 4 | B45: 2004 | X45: 247.61789
A46: 5 | B46: 2005 | C46: =FBE!$B46 -> 480.088 | F46: =FBE!$H46 -> 4861 | H46: =EBE!$B42 -> 18282.65789 | I46: =IF($M$150*$O$150*$R$150*EXP((-$O$150*EXP(-$R$150*($B46-2000))-$R$150*($B46-2000)))*(1+I$38/27*($B46-$B$64))>=0,$M$150*$O$150*$R$150*EXP((-$O$150*EXP(-$R$150*($B46-2000))-$R$150*($B46-2000)))*(1+I$38/27*($B46-$B$64)),0) -> 154.2625169 | J46: =IF(AND(F46<>"",Q46<>""),F46-Q46,F46) -> 4861 | L46: =IF(J46<>"",(J46+Q46*T46*2/3)*H46/1000,0) -> 88872 | M46: =I46*L46/1000000 -> 13.7096184 | X46: 241.05238 | AA46: =M46+Z46 -> 13.7096184 | AB46: =IF(L46<>"",(M46+Z46)/(L46+U46)*1000000,0) -> 154.2625169 | AE46: =F46*H46*I46/1000000000 -> 13.7096184 | AF46: =Z46+M46 -> 13.7096184 | AG46: =AF46 -> 13.7096184
A47: 6 | B47: 2006 | C47: =FBE!$B47 -> 526.141 | F47: =FBE!$H47 -> 4929 | H47: =EBE!$B43 -> 18176.70927 | I47: 152.0937489 | J47: =IF(AND(F47<>"",Q47<>""),F47-Q47,F47) -> 4929 | L47: 89593 | M47: 13.62653525 | X47: 231.58148 | AA47: =M47+Z47 -> 13.62653525 | AB47: 152.0937489 | AC47: =Z47+M47-M$46 -> -0.08308315269 | AD47: =(AC47/M$46*100) -> -0.6060208991 | AE47: 13.62653525 | AF47: =Z47+M47 -> 13.62653525 | AG47: 13.62653525
A48: 7 | B48: 2007 | C48: =FBE!$B48 -> 524.795 | F48: =FBE!$H48 -> 5006 | H48: =EBE!$B44 -> 18291.45026 | I48: 149.9549845 | J48: =IF(AND(F48<>"",Q48<>""),F48-Q48,F48) -> 5006 | L48: 91567 | M48: 13.73092806 | X48: 224.2829 | AA48: 13.73092806 | AB48: 149.9549845 | AC48: =Z48+M48-M$46 -> 0.02130966447 | AD48: =(AC48/M$46*100) -> 0.1554358688 | AE48: 13.73092806 | AF48: 13.73092806 | AG48: 13.73092806
A49: 8 | B49: 2008 | C49: =FBE!$B49 -> 535.947 | F49: =FBE!$H49 -> 5087 | H49: =EBE!$B45 -> 17974.0515 | I49: 147.8458223 | J49: =IF(AND(F49<>"",Q49<>""),F49-Q49,F49) -> 5087 | L49: 91434 | M49: 13.51813492 | X49: 218.27592 | AA49: 13.51813492 | AB49: 147.8458223 | AC49: -0.1914834831 | AD49: -1.396709066 | AE49: 13.51813492 | AF49: 13.51813492 | AG49: 13.51813492
A50: 9 | B50: 2009 | C50: =FBE!$B50 -> 476.194 | F50: =FBE!$H50 -> 5160 | H50: =EBE!$B46 -> 17779.45736 | I50: 145.7658661 | J50: =IF(AND(F50<>"",Q50<>""),F50-Q50,F50) -> 5160 | L50: 91742 | M50: 13.37285209 | X50: 216.91174 | AA50: 13.37285209 | AB50: 145.7658661 | AC50: -0.3367663122 | AD50: -2.456423675 | AE50: 13.37285209 | AF50: 13.37285209 | AG50: 13.37285209
A51: 10 | B51: 2010 | C51: =FBE!$B51 -> 547.34 | F51: =FBE!$H51 -> 5279 | H51: =EBE!$B47 -> 16810.21027 | I51: 143.7147245 | J51: =IF(AND(F51<>"",Q51<>""),F51-Q51,"") -> 5278.965 | L51: =IF(J51<>"",(J51+Q51*T51*2/3)*H51/1000,0) -> 88740.51164 | M51: 12.75331818 | N51: =FBE!$L51*(1+Control!$F$4) -> 0.035 | P51: =N51/C51 -> 6.394562795e-05 | Q51: =N51+N50*(1-F$165)+N49*(1-F$166)+N48*(1-F$167)+N47*(1-F$168)+N46*(1-F$169)+N45*(1-F$170)+N44*(1-F$171)+N43*(1-F$172)+N42*(1-F$173)+N41*(1-F$174) -> 0.035 | S51: =Q51/F51 -> 6.630043569e-06 | T51: =FBE!$W51 -> 0 | U51: =Q51*(1-2/3*T51)*H51/1000 -> 0.5883573593 | V51: =$O$154 -> 0.2076062661 | W51: =V51*U51 -> 0.1221466745 | X51: 212.88031 | Y51: =V51*X51 -> 44.19528628 | Z51: =W51*X51/1000000 -> 2.600262193e-05 | AA51: 12.75334418 | AB51: 143.7140647 | AC51: -0.9562742149 | AD51: -6.975206654 | AE51: 12.75340274 | AF51: 12.75334418 | AG51: 12.75334418 | AH51: =AE51-AF51 -> 5.855299387e-05
A52: 11 | B52: 2011 | C52: =FBE!$B52 -> 572.211 | F52: =FBE!$H52 -> 5359 | H52: =EBE!$B48 -> 16672.51353 | I52: 141.692011 | J52: =IF(AND(F52<>"",Q52<>""),F52-Q52,"") -> 5358.66 | L52: 89342.50919 | M52: 12.65911979 | N52: =FBE!$L52*(1+Control!$F$4) -> 0.305 | P52: =N52/C52 -> 0.0005330201621 | Q52: =N52+N51*(1-F$165)+N50*(1-F$166)+N49*(1-F$167)+N48*(1-F$168)+N47*(1-F$169)+N46*(1-F$170)+N45*(1-F$171)+N44*(1-F$172)+N43*(1-F$173)+N42*(1-F$174)+N41*(1-F$175) -> 0.3399999227 | S52: =Q52/F52 -> 6.344465809e-05 | T52: =FBE!$W52 -> 0.04705882353 | U52: 5.490813207 | V52: 0.2076062661 | W52: =V52*U52 -> 1.139927227 | X52: 192.98442 | Y52: =V52*X52 -> 40.06477484 | Z52: =W52*X52/1000000 -> 0.0002199881948 | AA52: 12.65933978 | AB52: 141.6857656 | AC52: -1.050278617 | AD52: -7.660888777 | AE52: 12.6598978 | AF52: 12.65933978 | AG52: 12.65933978 | AH52: =AE52-AF52 -> 0.0005580161704
A53: 12 | B53: 2012 | C53: =FBE!$B53 -> 486.737 | F53: =FBE!$H53 -> 5393 | H53: =EBE!$B49 -> 16620.10013 | I53: 139.6973439 | J53: 5391.236006 | L53: 89605.97356 | M53: 12.51771651 | N53: =FBE!$L53*(1+Control!$F$4) -> 1.424 | P53: 0.002925604587 | Q53: =N53+N52*(1-F$165)+N51*(1-F$166)+N50*(1-F$167)+N49*(1-F$168)+N48*(1-F$169)+N47*(1-F$170)+N46*(1-F$171)+N45*(1-F$172)+N44*(1-F$173)+N43*(1-F$174)+N42*(1-F$175)+N41*(1-F$176) -> 1.763994456 | S53: 0.000327089645 | T53: =FBE!$W53 -> 0.1581632653 | U53: 26.22643557 | V53: 0.2076062661 | W53: 5.444772361 | X53: 202.67453 | Y53: 42.0765024 | Z53: 0.001103516679 | AA53: 12.51882002 | AB53: 139.66878 | AC53: -1.190798376 | AD53: -8.685860838 | AE53: 12.52138027 | AF53: 12.51882002 | AG53: 12.51882002 | AH53: =AE53-AF53 -> 0.002560246711
A54: 13 | B54: 2013 | C54: =FBE!$B54 -> 486.065 | F54: =FBE!$H54 -> 5439.295 | H54: =EBE!$B50 -> 15640.07836 | I54: 137.7303464 | J54: 5436.858097 | L54: 85036.42116 | M54: 11.71209574 | N54: =FBE!$L54*(1+Control!$F$4) -> 0.673 | P54: 0.001384588481 | Q54: =N54+N53*(1-F$165)+N52*(1-F$166)+N51*(1-F$167)+N50*(1-F$168)+N49*(1-F$169)+N48*(1-F$170)+N47*(1-F$171)+N46*(1-F$172)+N45*(1-F$173)+N44*(1-F$174)+N43*(1-F$175)+N42*(1-F$176)+N41*(1-F$177) -> 2.436903041 | S54: 0.000448018179 | T54: =FBE!$W54 -> 0.1391054575 | U54: 34.57883743 | V54: 0.2076062661 | W54: 7.178783323 | X54: 184.2587 | Y54: 38.2532607 | Z54: 0.001322753283 | AA54: 11.7134185 | AB54: 137.6899119 | AC54: -1.996199903 | AD54: -14.56057963 | AE54: 11.7168583 | AF54: 11.7134185 | AG54: 11.7134185 | AH54: 0.003439801974
A55: 14 | B55: 2014 | C55: =FBE!$B55 -> 482.939 | F55: =FBE!$H55 -> 5511.08 | H55: =EBE!$B51 -> 15747.54857 | I55: =EBE!$F51 -> 137 | J55: 5506.539906 | L55: 86724.90646 | M55: 11.88131218 | N55: =FBE!$L55*(1+Control!$F$4) -> 2.104 | P55: 0.00435665788 | Q55: 4.54009376 | S55: 0.0008238119861 | T55: =FBE!$W55 -> 0.2182338692 | U55: 61.09354288 | V55: 0.2076062661 | W55: 12.68340232 | X55: 189.88765 | Y55: 39.42186599 | Z55: 0.00240842146 | AA55: 11.88372061 | AB55: 136.9313093 | AC55: -1.825897793 | AD55: -13.31837065 | AE55: 11.889682 | AF55: 11.88372061 | AG55: 11.88372061 | AH55: 0.005961393915
A56: 15 | B56: 2015 | C56: =FBE!$B56 -> 501.066 | F56: =FBE!$H56 -> 5587.415 | H56: =EBE!$B52 -> 15314.41642 | I56: =EBE!$F52 -> 134 | J56: 5579.000317 | L56: 85471.38624 | M56: 11.45316576 | N56: =FBE!$L56*(1+Control!$F$4) -> 3.879 | P56: 0.007741495132 | Q56: 8.414683016 | S56: 0.001506006448 | T56: =FBE!$W56 -> 0.375415677 | U56: 96.61375871 | V56: 0.2076062661 | W56: 20.0576217 | X56: 215.40259 | Y56: 44.71892741 | Z56: 0.004320463662 | AA56: 11.45748622 | AB56: 133.8991939 | AC56: -2.252132179 | AD56: -16.42738779 | AE56: 11.466112 | AF56: 11.45748622 | AG56: 11.45748622 | AH56: 0.008625780005
A57: 16 | B57: 2016 | C57: =FBE!$B57 -> 539.519 | F57: =FBE!$H57 -> 5670 | H57: =AC$147*AE$147*AH$147*EXP(-AE$147*EXP(-AH$147*(B57-2000))-AH$147*(B57-2000)) -> 16157.74769 | I57: =EBE!$F53 -> 132 | J57: 5652.003665 | L57: 91434.30422 | M57: 12.06932816 | N57: =FBE!$L57*(1+Control!$F$4) -> 9.598 | P57: 0.01778992028 | Q57: 17.9963351 | S57: 0.003173956808 | T57: =FBE!$W57 -> 0.5708180708 | U57: 180.1251641 | V57: 0.2076062661 | W57: 37.39511273 | X57: 158.7998 | Y57: 32.96783353 | Z57: 0.005938336423 | AA57: 12.07526649 | AB57: 131.8052907 | AC57: -1.634351905 | AD57: -11.92120639 | AE57: 12.09310468 | AF57: 12.07526649 | AG57: 12.07526649 | AH57: 0.01783818523
A58: 17 | B58: 2017 | C58: =FBE!$B58 -> 546.558 | F58: =FBE!$H58 -> 5735.28 | H58: 16009.07288 | I58: =EBE!$F54 -> 133 | J58: 5702.446218 | L58: 91524.50838 | M58: 12.17275961 | N58: =FBE!$L58*(1+Control!$F$4) -> 14.884 | P58: 0.02723224251 | Q58: 32.83378243 | S58: 0.005724878721 | T58: =FBE!$W58 -> 0.6667071911 | U58: 292.0071414 | V58: 0.2076062661 | W58: 60.62251229 | X58: 159.83127 | Y58: 33.18197316 | Z58: 0.00968937313 | AA58: 12.18244899 | AB58: 132.6825454 | AC58: -1.527169411 | AD58: -11.13940131 | AE58: 12.21159656 | AF58: 12.18244899 | AG58: 12.18244899 | AH58: 0.02914757668
A59: 18 | B59: 2018 | C59: =FBE!$B59 -> 549.632 | F59: =FBE!$H59 -> 5782.684 | H59: 15861.76603 | I59: =IF($M$150*$O$150*$R$150*EXP((-$O$150*EXP(-$R$150*($B59-2000))-$R$150*($B59-2000)))*(1+I$38/27*($B59-$B$64))>=0,$M$150*$O$150*$R$150*EXP((-$O$150*EXP(-$R$150*($B59-2000))-$R$150*($B59-2000)))*(1+I$38/27*($B59-$B$64)),0) -> 128.2975378 | J59: 5736.10585 | L59: 91315.29271 | M59: 11.71552722 | N59: =FBE!$L59*(1+Control!$F$4) -> 13.854 | P59: 0.02520595599 | Q59: 46.57815031 | S59: 0.008054763204 | T59: =FBE!$W59 -> 0.6710582599 | U59: 408.2879164 | V59: 0.2076062661 | W59: 84.7631298 | X59: 187.33083 | Y59: 38.89105413 | Z59: 0.01587874746 | AA59: 11.73140597 | AB59: 127.899564 | AC59: -1.978212431 | AD59: -14.42937632 | AE59: 11.76790955 | AF59: 11.73140597 | AG59: 11.73140597 | AH59: 0.03650358694
A60: 19 | B60: 2019 | C60: =FBE!$B60 -> 550.008 | F60: =FBE!$H60 -> 5889.21 | H60: 15715.81454 | I60: 126.4889035 | J60: 5824.681905 | L60: 91958.27271 | M60: 11.63170108 | N60: =FBE!$L60*(1+Control!$F$4) -> 18.172 | P60: 0.03303951943 | Q60: 64.52809478 | S60: 0.01095700353 | T60: =FBE!$W60 -> 0.6192397733 | U60: 595.4594243 | V60: 0.2076062661 | W60: 123.6211077 | X60: 156.86696 | Y60: 32.56656383 | Z60: 0.01939206735 | AA60: 11.65109315 | AB60: 125.8846389 | AC60: -2.058525247 | AD60: -15.01518997 | AE60: 11.70702009 | AF60: 11.65109315 | AG60: 11.65109315 | AH60: 0.05592694231
A61: 20 | B61: 2020 | C61: =FBE!$B61 -> 431.491 | F61: =FBE!$H61 -> 5888.589 | H61: 15571.20594 | I61: 124.7054299 | J61: 5775.949953 | L61: 90693.27296 | M61: 11.30994359 | N61: =FBE!$L61*(1+Control!$F$4) -> 48.509 | P61: 0.1124218118 | Q61: 112.6390467 | S61: 0.01912835939 | T61: =FBE!$W61 -> 0.6454948562 | U61: 999.1590748 | V61: 0.2076062661 | W61: 207.4316847 | X61: 166.85545 | Y61: 34.64023695 | Z61: 0.0346111071 | AA61: 11.3445547 | AB61: 123.7240026 | AC61: -2.365063699 | AD61: -17.25112713 | AE61: 11.43454415 | AF61: 11.3445547 | AG61: 11.3445547 | AH61: 0.08998945486
A62: 21 | B62: 2021 | C62: =FBE!$B62 -> 383.123 | F62: =FBE!$H62 -> 5927.912 | H62: 15427.92789 | I62: 122.9467765 | J62: 5744.562588 | L62: 89868.62257 | M62: 11.04905745 | N62: =FBE!$L62*(1+Control!$F$4) -> 71.372 | P62: 0.1862900426 | Q62: 183.3494118 | S62: 0.0309298471 | T62: =FBE!$W62 -> 0.6585664118 | U62: 1586.776304 | V62: 0.2076062661 | W62: 329.4247036 | X62: 131.90462 | Y62: 27.38422563 | Z62: 0.04345264035 | AA62: 11.09251009 | AB62: 121.2887399 | AC62: -2.617108309 | AD62: -19.08957808 | AE62: 11.24414648 | AF62: 11.09251009 | AG62: 11.09251009 | AH62: 0.1516363912
A63: 22 | B63: 2022 | C63: =FBE!$B63 -> 366.333 | F63: =FBE!$H63 -> 5947.901 | H63: 15285.96814 | I63: 121.2126071 | J63: 5664.999543 | L63: 88436.23958 | M63: 10.71958716 | N63: =FBE!$L63*(1+Control!$F$4) -> 100.646 | P63: 0.2747391035 | Q63: 282.9014566 | S63: 0.04756324233 | T63: =FBE!$W63 -> 0.6386645881 | U63: 2483.185577 | V63: 0.2076062661 | W63: 515.5248855 | X63: 139.79181 | Y63: =V63*X63 -> 29.0216557 | Z63: 0.07206615685 | AA63: 10.79165332 | AB63: 118.6946937 | AC63: -2.917965081 | AD63: -21.28407222 | AE63: 11.02058056 | AF63: 10.79165332 | AG63: 10.79165332 | AH63: 0.2289272408
A64: 23 | B64: 2023 | C64: =FBE!$B64 -> 476.674 | F64: =FBE!$H64 -> 6030.48 | H64: 15145.31455 | I64: 119.5025899 | J64: =IF(AND(F64<>"",Q64<>"",F64-Q64>0),F64-Q64,) -> 5552.067227 | L64: 86916.92148 | M64: =IF(L64<>"",I64*L64/1000000,0) -> 10.38679722 | N64: =FBE!$L64*(1+Control!$F$4) -> 197.342 | P64: =N64/C64 -> 0.4139978266 | Q64: =N64+N63*(1-F$165)+N62*(1-F$166)+N61*(1-F$167)+N60*(1-F$168)+N59*(1-F$169)+N58*(1-F$170)+N57*(1-F$171)+N56*(1-F$172)+N55*(1-F$173)+N54*(1-F$174)+N53*(1-F$175)+N52*(1-F$176)+N51*(1-F$177) -> 478.4127734 | S64: =Q64/F64 -> 0.07933245338 | T64: =FBE!$W64 -> 0.5856809384 | U64: 4416.595028 | V64: 0.2076062661 | W64: =V64*U64 -> 916.9128024 | X64: 138.1068 | Y64: 28.67183706 | Z64: 0.126631893 | AA64: 10.51342912 | AB64: =IF(L64<>0,(M64+Z64)/(L64+U64)*1000000,(M64+Z64)/(0.00000000001+U64)*1000000) -> 115.1103069 | AC64: -3.196189283 | AD64: -23.31348102 | AE64: 10.91459177 | AF64: =Z64+M64 -> 10.51342912 | AG64: 10.51342912 | AH64: 0.4011626514
A65: 24 | B65: 2024 | D65: =IF(FBE!$C65*(1+D$38/27*($B65-$B$64))>=0,FBE!$C65*(1+D$38/27*($B65-$B$64)),0) -> 511.4543134 | E65: =IF(D65<O65,1,0) -> 0 | G65: =IF(a*EXP(-b*EXP(-ze*(B65-2000)))*(1+G$38/27*($B65-$B$64))>=0,a*EXP(-b*EXP(-ze*(B65-2000)))*(1+G$38/27*($B65-$B$64)),0) -> 6125.498721 | H65: =IF(AC$147*AE$147*AH$147*EXP(-AE$147*EXP(-AH$147*(B65-2000))-AH$147*(B65-2000))*(1+H$38/27*($B65-$B$64))>=0,AC$147*AE$147*AH$147*EXP(-AE$147*EXP(-AH$147*(B65-2000))-AH$147*(B65-2000))*(1+H$38/27*($B65-$B$64)),0) -> 15005.95512 | I65: 117.8163973 | K65: =IF(AND(G65<>"",R65<>"",G65-R65>0,J64>0.9),G65-R65,0) -> 5425.618183 | L65: =IF(K65<>"",(K65+R65*T65*2/3)*H65/1000,0) -> 85061.23433 | M65: =IF(L65>=0,I65*L65/1000000,0) -> 10.02160818 | O65: =FBE!$L65*(1+Control!$F$4) -> 228.738165 | P65: =O65/D65 -> 0.4472308845 | R65: =IF(AND(O65>D65,$AA$1="YES"),Q64+D65-(+(N64+O64)*F$165+(N63+O63)*F$166+(N62+O62)*F$167+(N61+O61)*F$168+(N60+O60)*F$169+(N59+O59)*F$170+(N58+O58)*F$171+(N57+O57)*F$172+(N56+O56)*F$173+(N55+O55)*F$174+(N54+O54)*F$175+(N53+O53)*F$176+(N52+O52)*F$177+(N51+O51)*F$178+(N50+O50)*F$179+(N49+O49)*F$180+(N48+O48)*F$181+(N47+O47)*F$182+(N46+O46)*F$183+(N45+O45)*F$184+(N44+O44)*F$185+(N43+O43)*F$186+(N42+O42)*F$187+(N41+O41)*F$188),Q64+O65-(+(N64+O64)*F$165+(N63+O63)*F$166+(N62+O62)*F$167+(N61+O61)*F$168+(N60+O60)*F$169+(N59+O59)*F$170+(N58+O58)*F$171+(N57+O57)*F$172+(N56+O56)*F$173+(N55+O55)*F$174+(N54+O54)*F$175+(N53+O53)*F$176+(N52+O52)*F$177+(N51+O51)*F$178+(N50+O50)*F$179+(N49+O49)*F$180+(N48+O48)*F$181+(N47+O47)*F$182+(N46+O46)*F$183+(N45+O45)*F$184+(N44+O44)*F$185+(N43+O43)*F$186+(N42+O42)*F$187+(N41+O41)*F$188)) -> 699.8805379 | S65: =R65/G65 -> 0.114256907 | T65: =IF(Scen=5,IF($F$154*$I$154*$K$154*EXP((-$I$154*EXP(-$K$154*($B65-2000))-$K$154*($B65-2000)))*(1-2.8519/77*($B65-$B$64))>=0,$F$154*$I$154*$K$154*EXP((-$I$154*EXP(-$K$154*($B65-2000))-$K$154*($B65-2000)))*(1-2.8519/77*($B65-$B$64)),0),IF(Scen<>5,IF($F$154*$I$154*$K$154*EXP((-$I$154*EXP(-$K$154*($B65-2000))-$K$154*($B65-2000)))*(1+T$38/27*($B65-$B$64))>=0,$F$154*$I$154*$K$154*EXP((-$I$154*EXP(-$K$154*($B65-2000))-$K$154*($B65-2000)))*(1+T$38/27*($B65-$B$64)),0))) -> 0.5205466889 | U65: =R65*(1-2/3*T65)*H65/1000 -> 6857.724596 | V65: =IF(V$64*0.99^(B65-B$64)*(1+V$38/27*($B65-$B$64))>=0,V$64*0.99^(B65-B$64)*(1+V$38/27*($B65-$B$64)),0) -> 0.2055302034 | W65: =V65*U65 -> 1409.469531 | X65: =IF(OR(Scen=3,Scen=5),IF($V$154*$X$154*$Z$154*EXP((-$X$154*EXP(-$Z$154*($B65-2000))-$Z$154*($B65-2000)))*(1-2.8519/77*($B65-$B$64))>=0,$V$154*$X$154*$Z$154*EXP((-$X$154*EXP(-$Z$154*($B65-2000))-$Z$154*($B65-2000)))*(1-2.8519/77*($B65-$B$64)),0),IF(AND(Scen<>3,Scen<>5),IF($V$154*$X$154*$Z$154*EXP((-$X$154*EXP(-$Z$154*($B65-2000))-$Z$154*($B65-2000)))*(1+X$38/27*($B65-$B$64))>=0,$V$154*$X$154*$Z$154*EXP((-$X$154*EXP(-$Z$154*($B65-2000))-$Z$154*($B65-2000)))*(1+X$38/27*($B65-$B$64)),0))) -> 134.1091011 | Y65: 27.56347083 | Z65: 0.1890226918 | AA65: 10.21063087 | AB65: 111.082969 | AC65: -3.498987531 | AD65: -25.52213657 | AE65: =G65*H65*I65/1000000000 -> 10.82956058 | AF65: 10.21063087 | AG65: 10.21063087 | AH65: 0.6189297135
A66: 25 | B66: 2025 | D66: =IF(FBE!$C66*(1+D$38/27*($B66-$B$64))>=0,FBE!$C66*(1+D$38/27*($B66-$B$64)),0) -> 510.0687741 | E66: =IF(D66<O66,1,0) -> 0 | G66: 6181.421255 | H66: =IF(AC$147*AE$147*AH$147*EXP(-AE$147*EXP(-AH$147*(B66-2000))-AH$147*(B66-2000))*(1+H$38/27*($B66-$B$64))>=0,AC$147*AE$147*AH$147*EXP(-AE$147*EXP(-AH$147*(B66-2000))-AH$147*(B66-2000))*(1+H$38/27*($B66-$B$64)),0) -> 14867.87795 | I66: 116.1537058 | K66: =IF(AND(G66<>"",R66<>"",G66-R66>0,K65>0.9),G66-R66,0) -> 5209.159491 | L66: 81895.60742 | M66: 9.512478288 | O66: =FBE!$U66-FBE!$U65+(N65+O65)*F$165+(N64+O64)*F$166+(N63+O63)*F$167+(N62+O62)*F$168+(N61+O61)*F$169+(N60+O60)*F$170+(N59+O59)*F$171+(N58+O58)*F$172+(N57+O57)*F$173+(N56+O56)*F$174+(N55+O55)*F$175+(N54+O54)*F$176+(N53+O53)*F$177+(N52+O52)*F$178+(N51+O51)*F$179+(N50+O50)*F$180+(N49+O49)*F$181+(N48+O48)*F$182+(N47+O47)*F$183+(N46+O46)*F$184+(N45+O45)*F$185+(N44+O44)*F$186+(N43+O43)*F$187+(N42+O42)*F$188 -> 283.7955888 | P66: =O66/D66 -> 0.5563869095 | R66: =IF(AND(O66>D66,$AA$1="YES"),R65+D66-(+(N65+O65)*F$165+(N64+O64)*F$166+(N63+O63)*F$167+(N62+O62)*F$168+(N61+O61)*F$169+(N60+O60)*F$170+(N59+O59)*F$171+(N58+O58)*F$172+(N57+O57)*F$173+(N56+O56)*F$174+(N55+O55)*F$175+(N54+O54)*F$176+(N53+O53)*F$177+(N52+O52)*F$178+(N51+O51)*F$179+(N50+O50)*F$180+(N49+O49)*F$181+(N48+O48)*F$182+(N47+O47)*F$183+(N46+O46)*F$184+(N45+O45)*F$185+(N44+O44)*F$186+(N43+O43)*F$187+(N42+O42)*F$188+(N41+O41)*F$189),R65+O66-(+(N65+O65)*F$165+(N64+O64)*F$166+(N63+O63)*F$167+(N62+O62)*F$168+(N61+O61)*F$169+(N60+O60)*F$170+(N59+O59)*F$171+(N58+O58)*F$172+(N57+O57)*F$173+(N56+O56)*F$174+(N55+O55)*F$175+(N54+O54)*F$176+(N53+O53)*F$177+(N52+O52)*F$178+(N51+O51)*F$179+(N50+O50)*F$180+(N49+O49)*F$181+(N48+O48)*F$182+(N47+O47)*F$183+(N46+O46)*F$184+(N45+O45)*F$185+(N44+O44)*F$186+(N43+O43)*F$187+(N42+O42)*F$188+(N41+O41)*F$189)) -> 972.2617644 | S66: =R66/G66 -> 0.1572877376 | T66: 0.4613955975 | U66: 10009.00933 | V66: =IF(V$64*0.99^(B66-B$64)*(1+V$38/27*($B66-$B$64))>=0,V$64*0.99^(B66-B$64)*(1+V$38/27*($B66-$B$64)),0) -> 0.2034749014 | W66: =V66*U66 -> 2036.582186 | X66: 129.3150015 | Y66: 26.31235717 | Z66: 0.2633606285 | AA66: 9.775838917 | AB66: 106.3693997 | AC66: -3.933779482 | AD66: -28.69357387 | AE66: 10.67506181 | AF66: 9.775838917 | AG66: 9.775838917 | AH66: 0.8992228964
A67: 26 | B67: 2026 | D67: =IF(FBE!$C67*(1+D$38/27*($B67-$B$64))>=0,FBE!$C67*(1+D$38/27*($B67-$B$64)),0) -> 508.5771147 | E67: 0 | G67: 6236.386124 | H67: 14731.07122 | I67: 114.5141961 | K67: 4943.341733 | L67: 77945.33668 | M67: 8.925847571 | O67: =FBE!$U67-FBE!$U66+(N66+O66)*F$165+(N65+O65)*F$166+(N64+O64)*F$167+(N63+O63)*F$168+(N62+O62)*F$169+(N61+O61)*F$170+(N60+O60)*F$171+(N59+O59)*F$172+(N58+O58)*F$173+(N57+O57)*F$174+(N56+O56)*F$175+(N55+O55)*F$176+(N54+O54)*F$177+(N53+O53)*F$178+(N52+O52)*F$179+(N51+O51)*F$180+(N50+O50)*F$181+(N49+O49)*F$182+(N48+O48)*F$183+(N47+O47)*F$184+(N46+O46)*F$185+(N45+O45)*F$186+(N44+O44)*F$187+(N43+O43)*F$188 -> 338.0730288 | P67: 0.6647429053 | R67: =IF(AND(O67>D67,$AA$1="YES"),R66+D67-(+(N66+O66)*F$165+(N65+O65)*F$166+(N64+O64)*F$167+(N63+O63)*F$168+(N62+O62)*F$169+(N61+O61)*F$170+(N60+O60)*F$171+(N59+O59)*F$172+(N58+O58)*F$173+(N57+O57)*F$174+(N56+O56)*F$175+(N55+O55)*F$176+(N54+O54)*F$177+(N53+O53)*F$178+(N52+O52)*F$179+(N51+O51)*F$180+(N50+O50)*F$181+(N49+O49)*F$182+(N48+O48)*F$183+(N47+O47)*F$184+(N46+O46)*F$185+(N45+O45)*F$186+(N44+O44)*F$187+(N43+O43)*F$188+(N42+O42)*F$189+(N41+O41)*F$190),R66+O67-(+(N66+O66)*F$165+(N65+O65)*F$166+(N64+O64)*F$167+(N63+O63)*F$168+(N62+O62)*F$169+(N61+O61)*F$170+(N60+O60)*F$171+(N59+O59)*F$172+(N58+O58)*F$173+(N57+O57)*F$174+(N56+O56)*F$175+(N55+O55)*F$176+(N54+O54)*F$177+(N53+O53)*F$178+(N52+O52)*F$179+(N51+O51)*F$180+(N50+O50)*F$181+(N49+O49)*F$182+(N48+O48)*F$183+(N47+O47)*F$184+(N46+O46)*F$185+(N45+O45)*F$186+(N44+O44)*F$187+(N43+O43)*F$188+(N42+O42)*F$189+(N41+O41)*F$190)) -> 1293.044391 | S67: 0.207338732 | T67: 0.4035570659 | U67: 13923.31145 | V67: 0.2014401523 | W67: 2804.71398 | X67: 124.6382102 | Y67: 25.10714004 | Z67: 0.3495745305 | AA67: 9.275422102 | AB67: 100.9639555 | AC67: -4.434196298 | AD67: -32.3436887 | AE67: 10.52026439 | AF67: 9.275422102 | AG67: 9.275422102 | AH67: 1.244842288
A68: 27 | B68: 2027 | D68: =IF(FBE!$C68*(1+D$38/27*($B68-$B$64))>=0,FBE!$C68*(1+D$38/27*($B68-$B$64)),0) -> 506.98329 | E68: 0 | G68: 6290.397178 | H68: 14595.52325 | I68: 112.8975531 | K68: 4634.533862 | L68: 73268.5987 | M68: 8.271845514 | O68: =FBE!$U68-FBE!$U67+(N67+O67)*F$165+(N66+O66)*F$166+(N65+O65)*F$167+(N64+O64)*F$168+(N63+O63)*F$169+(N62+O62)*F$170+(N61+O61)*F$171+(N60+O60)*F$172+(N59+O59)*F$173+(N58+O58)*F$174+(N57+O57)*F$175+(N56+O56)*F$176+(N55+O55)*F$177+(N54+O54)*F$178+(N53+O53)*F$179+(N52+O52)*F$180+(N51+O51)*F$181+(N50+O50)*F$182+(N49+O49)*F$183+(N48+O48)*F$184+(N47+O47)*F$185+(N46+O46)*F$186+(N45+O45)*F$187+(N44+O44)*F$188 -> 389.2969349 | P68: 0.7678693609 | R68: =IF(AND(O68>D68,$AA$1="YES"),R67+D68-(+(N67+O67)*F$165+(N66+O66)*F$166+(N65+O65)*F$167+(N64+O64)*F$168+(N63+O63)*F$169+(N62+O62)*F$170+(N61+O61)*F$171+(N60+O60)*F$172+(N59+O59)*F$173+(N58+O58)*F$174+(N57+O57)*F$175+(N56+O56)*F$176+(N55+O55)*F$177+(N54+O54)*F$178+(N53+O53)*F$179+(N52+O52)*F$180+(N51+O51)*F$181+(N50+O50)*F$182+(N49+O49)*F$183+(N48+O48)*F$184+(N47+O47)*F$185+(N46+O46)*F$186+(N45+O45)*F$187+(N44+O44)*F$188+(N43+O43)*F$189+(N42+O42)*F$190+(N41+O41)*F$191),R67+O68-(+(N67+O67)*F$165+(N66+O66)*F$166+(N65+O65)*F$167+(N64+O64)*F$168+(N63+O63)*F$169+(N62+O62)*F$170+(N61+O61)*F$171+(N60+O60)*F$172+(N59+O59)*F$173+(N58+O58)*F$174+(N57+O57)*F$175+(N56+O56)*F$176+(N55+O55)*F$177+(N54+O54)*F$178+(N53+O53)*F$179+(N52+O52)*F$180+(N51+O51)*F$181+(N50+O50)*F$182+(N49+O49)*F$183+(N48+O48)*F$184+(N47+O47)*F$185+(N46+O46)*F$186+(N45+O45)*F$187+(N44+O44)*F$188+(N43+O43)*F$189+(N42+O42)*F$190+(N41+O41)*F$191)) -> 1655.863315 | S68: 0.2632366874 | T68: 0.3491253337 | U68: 18543.03957 | V68: 0.1994257508 | W68: 3697.959588 | X68: 120.0808107 | Y68: 23.94720583 | Z68: 0.4440539853 | AA68: 8.715899499 | AB68: 94.9324036 | AC68: -4.9937189 | AD68: -36.42492996 | AE68: 10.36530931 | AF68: 8.715899499 | AG68: 8.715899499 | AH68: 1.649409809
A69: 28 | B69: 2028 | D69: =IF(FBE!$C69*(1+D$38/27*($B69-$B$64))>=0,FBE!$C69*(1+D$38/27*($B69-$B$64)),0) -> 505.2912 | E69: 0 | G69: 6343.458956 | H69: 14461.22247 | I69: 111.3034657 | K69: 4291.382939 | L69: 67980.45449 | M69: 7.566460182 | O69: =FBE!$U69-FBE!$U68+(N68+O68)*F$165+(N67+O67)*F$166+(N66+O66)*F$167+(N65+O65)*F$168+(N64+O64)*F$169+(N63+O63)*F$170+(N62+O62)*F$171+(N61+O61)*F$172+(N60+O60)*F$173+(N59+O59)*F$174+(N58+O58)*F$175+(N57+O57)*F$176+(N56+O56)*F$177+(N55+O55)*F$178+(N54+O54)*F$179+(N53+O53)*F$180+(N52+O52)*F$181+(N51+O51)*F$182+(N50+O50)*F$183+(N49+O49)*F$184+(N48+O48)*F$185+(N47+O47)*F$186+(N46+O46)*F$187+(N45+O45)*F$188 -> 438.144381 | P69: 0.8671126293 | R69: =IF(AND(O69>D69,$AA$1="YES"),R68+D69-(+(N68+O68)*F$165+(N67+O67)*F$166+(N66+O66)*F$167+(N65+O65)*F$168+(N64+O64)*F$169+(N63+O63)*F$170+(N62+O62)*F$171+(N61+O61)*F$172+(N60+O60)*F$173+(N59+O59)*F$174+(N58+O58)*F$175+(N57+O57)*F$176+(N56+O56)*F$177+(N55+O55)*F$178+(N54+O54)*F$179+(N53+O53)*F$180+(N52+O52)*F$181+(N51+O51)*F$182+(N50+O50)*F$183+(N49+O49)*F$184+(N48+O48)*F$185+(N47+O47)*F$186+(N46+O46)*F$187+(N45+O45)*F$188+(N44+O44)*F$189+(N43+O43)*F$190+(N42+O42)*F$191+(N41+O41)*F$192),R68+O69-(+(N68+O68)*F$165+(N67+O67)*F$166+(N66+O66)*F$167+(N65+O65)*F$168+(N64+O64)*F$169+(N63+O63)*F$170+(N62+O62)*F$171+(N61+O61)*F$172+(N60+O60)*F$173+(N59+O59)*F$174+(N58+O58)*F$175+(N57+O57)*F$176+(N56+O56)*F$177+(N55+O55)*F$178+(N54+O54)*F$179+(N53+O53)*F$180+(N52+O52)*F$181+(N51+O51)*F$182+(N50+O50)*F$183+(N49+O49)*F$184+(N48+O48)*F$185+(N47+O47)*F$186+(N46+O46)*F$187+(N45+O45)*F$188+(N44+O44)*F$189+(N43+O43)*F$190+(N42+O42)*F$191+(N41+O41)*F$192)) -> 2052.076017 | S69: 0.3234948049 | T69: 0.2993280092 | U69: 23753.7167 | V69: 0.1974314933 | W69: 4689.731761 | X69: 115.6442985 | Y69: 22.83182655 | Z69: 0.5423407397 | AA69: 8.108800922 | AB69: 88.39455152 | AC69: -5.600817477 | AD69: -40.85319747 | AE69: 10.21033117 | AF69: 8.108800922 | AG69: 8.108800922 | AH69: 2.101530252
A70: 29 | B70: 2029 | D70: =IF(FBE!$C70*(1+D$38/27*($B70-$B$64))>=0,FBE!$C70*(1+D$38/27*($B70-$B$64)),0) -> 503.504686 | E70: 0 | G70: 6395.576653 | H70: 14328.1574 | I70: 109.7316266 | K70: 3923.802797 | L70: 62235.44528 | M70: 6.829196646 | O70: =FBE!$U70-FBE!$U69+(N69+O69)*F$165+(N68+O68)*F$166+(N67+O67)*F$167+(N66+O66)*F$168+(N65+O65)*F$169+(N64+O64)*F$170+(N63+O63)*F$171+(N62+O62)*F$172+(N61+O61)*F$173+(N60+O60)*F$174+(N59+O59)*F$175+(N58+O58)*F$176+(N57+O57)*F$177+(N56+O56)*F$178+(N55+O55)*F$179+(N54+O54)*F$180+(N53+O53)*F$181+(N52+O52)*F$182+(N51+O51)*F$183+(N50+O50)*F$184+(N49+O49)*F$185+(N48+O48)*F$186+(N47+O47)*F$187+(N46+O46)*F$188 -> 486.2428792 | P70: 0.9657166908 | R70: =IF(AND(O70>D70,$AA$1="YES"),R69+D70-(+(N69+O69)*F$165+(N68+O68)*F$166+(N67+O67)*F$167+(N66+O66)*F$168+(N65+O65)*F$169+(N64+O64)*F$170+(N63+O63)*F$171+(N62+O62)*F$172+(N61+O61)*F$173+(N60+O60)*F$174+(N59+O59)*F$175+(N58+O58)*F$176+(N57+O57)*F$177+(N56+O56)*F$178+(N55+O55)*F$179+(N54+O54)*F$180+(N53+O53)*F$181+(N52+O52)*F$182+(N51+O51)*F$183+(N50+O50)*F$184+(N49+O49)*F$185+(N48+O48)*F$186+(N47+O47)*F$187+(N46+O46)*F$188+(N45+O45)*F$189+(N44+O44)*F$190+(N43+O43)*F$191+(N42+O42)*F$192+(N41+O41)*F$193),R69+O70-(+(N69+O69)*F$165+(N68+O68)*F$166+(N67+O67)*F$167+(N66+O66)*F$168+(N65+O65)*F$169+(N64+O64)*F$170+(N63+O63)*F$171+(N62+O62)*F$172+(N61+O61)*F$173+(N60+O60)*F$174+(N59+O59)*F$175+(N58+O58)*F$176+(N57+O57)*F$177+(N56+O56)*F$178+(N55+O55)*F$179+(N54+O54)*F$180+(N53+O53)*F$181+(N52+O52)*F$182+(N51+O51)*F$183+(N50+O50)*F$184+(N49+O49)*F$185+(N48+O48)*F$186+(N47+O47)*F$187+(N46+O46)*F$188+(N45+O45)*F$189+(N44+O44)*F$190+(N43+O43)*F$191+(N42+O42)*F$192+(N41+O41)*F$193)) -> 2471.773856 | S70: 0.386481781 | T70: 0.2547402522 | U70: 29401.38364 | V70: 0.1954571784 | W70: 5746.711486 | X70: 111.3296333 | Y70: 21.76017599 | Z70: 0.6397792823 | AA70: 7.468975928 | AB70: 81.5062679 | AC70: -6.240642471 | AD70: -45.52017634 | AE70: 10.0554583 | AF70: 7.468975928 | AG70: 7.468975928 | AH70: 2.58648237
A71: 30 | B71: 2030 | D71: =IF(FBE!$C71*(1+D$38/27*($B71-$B$64))>=0,FBE!$C71*(1+D$38/27*($B71-$B$64)),0) -> 501.627528 | E71: 1 | G71: 6446.756074 | H71: 14196.31666 | I71: 108.1817329 | K71: 3542.008624 | L71: 56207.21699 | M71: 6.080594135 | O71: =FBE!$U71-FBE!$U70+(N70+O70)*F$165+(N69+O69)*F$166+(N68+O68)*F$167+(N67+O67)*F$168+(N66+O66)*F$169+(N65+O65)*F$170+(N64+O64)*F$171+(N63+O63)*F$172+(N62+O62)*F$173+(N61+O61)*F$174+(N60+O60)*F$175+(N59+O59)*F$176+(N58+O58)*F$177+(N57+O57)*F$178+(N56+O56)*F$179+(N55+O55)*F$180+(N54+O54)*F$181+(N53+O53)*F$182+(N52+O52)*F$183+(N51+O51)*F$184+(N50+O50)*F$185+(N49+O49)*F$186+(N48+O48)*F$187+(N47+O47)*F$188 -> 534.3810694 | P71: 1.065294545 | R71: =IF(AND(O71>D71,$AA$1="YES"),R70+D71-(+(N70+O70)*F$165+(N69+O69)*F$166+(N68+O68)*F$167+(N67+O67)*F$168+(N66+O66)*F$169+(N65+O65)*F$170+(N64+O64)*F$171+(N63+O63)*F$172+(N62+O62)*F$173+(N61+O61)*F$174+(N60+O60)*F$175+(N59+O59)*F$176+(N58+O58)*F$177+(N57+O57)*F$178+(N56+O56)*F$179+(N55+O55)*F$180+(N54+O54)*F$181+(N53+O53)*F$182+(N52+O52)*F$183+(N51+O51)*F$184+(N50+O50)*F$185+(N49+O49)*F$186+(N48+O48)*F$187+(N47+O47)*F$188+(N46+O46)*F$189+(N45+O45)*F$190+(N44+O44)*F$191+(N43+O43)*F$192+(N42+O42)*F$193+(N41+O41)*F$194),R70+O71-(+(N70+O70)*F$165+(N69+O69)*F$166+(N68+O68)*F$167+(N67+O67)*F$168+(N66+O66)*F$169+(N65+O65)*F$170+(N64+O64)*F$171+(N63+O63)*F$172+(N62+O62)*F$173+(N61+O61)*F$174+(N60+O60)*F$175+(N59+O59)*F$176+(N58+O58)*F$177+(N57+O57)*F$178+(N56+O56)*F$179+(N55+O55)*F$180+(N54+O54)*F$181+(N53+O53)*F$182+(N52+O52)*F$183+(N51+O51)*F$184+(N50+O50)*F$185+(N49+O49)*F$186+(N48+O48)*F$187+(N47+O47)*F$188+(N46+O46)*F$189+(N45+O45)*F$190+(N44+O44)*F$191+(N43+O43)*F$192+(N42+O42)*F$193+(N41+O41)*F$194)) -> 2904.74745 | S71: 0.4505750515 | T71: 0.2154781606 | U71: 35312.97367 | V71: 0.1935026066 | W71: 6833.152452 | X71: 107.1372885 | Y71: 20.73134459 | Z71: 0.7320854255 | AA71: 6.81267956 | AB71: 74.43908837 | AC71: -6.896938839 | AD71: -50.30729987 | AE71: 9.90081282 | AF71: 6.81267956 | AG71: 6.81267956 | AH71: 3.08813326
A72: 31 | B72: 2031 | D72: =IF(FBE!$C72*(1+D$38/27*($B72-$B$64))>=0,FBE!$C72*(1+D$38/27*($B72-$B$64)),0) -> 499.6634418 | E72: 1 | G72: 6497.003597 | H72: 14065.689 | I72: 106.6534852 | K72: 3155.720974 | L72: 50069.59804 | M72: 5.340097133 | O72: =FBE!$U72-FBE!$U71+(N71+O71)*F$165+(N70+O70)*F$166+(N69+O69)*F$167+(N68+O68)*F$168+(N67+O67)*F$169+(N66+O66)*F$170+(N65+O65)*F$171+(N64+O64)*F$172+(N63+O63)*F$173+(N62+O62)*F$174+(N61+O61)*F$175+(N60+O60)*F$176+(N59+O59)*F$177+(N58+O58)*F$178+(N57+O57)*F$179+(N56+O56)*F$180+(N55+O55)*F$181+(N54+O54)*F$182+(N53+O53)*F$183+(N52+O52)*F$184+(N51+O51)*F$185+(N50+O50)*F$186+(N49+O49)*F$187+(N48+O48)*F$188 -> 582.4810611 | P72: 1.165746805 | R72: =IF(AND(O72>D72,$AA$1="YES"),R71+D72-(+(N71+O71)*F$165+(N70+O70)*F$166+(N69+O69)*F$167+(N68+O68)*F$168+(N67+O67)*F$169+(N66+O66)*F$170+(N65+O65)*F$171+(N64+O64)*F$172+(N63+O63)*F$173+(N62+O62)*F$174+(N61+O61)*F$175+(N60+O60)*F$176+(N59+O59)*F$177+(N58+O58)*F$178+(N57+O57)*F$179+(N56+O56)*F$180+(N55+O55)*F$181+(N54+O54)*F$182+(N53+O53)*F$183+(N52+O52)*F$184+(N51+O51)*F$185+(N50+O50)*F$186+(N49+O49)*F$187+(N48+O48)*F$188+(N47+O47)*F$189+(N46+O46)*F$190+(N45+O45)*F$191+(N44+O44)*F$192+(N43+O43)*F$193+(N42+O42)*F$194+(N41+O41)*F$195),R71+O72-(+(N71+O71)*F$165+(N70+O70)*F$166+(N69+O69)*F$167+(N68+O68)*F$168+(N67+O67)*F$169+(N66+O66)*F$170+(N65+O65)*F$171+(N64+O64)*F$172+(N63+O63)*F$173+(N62+O62)*F$174+(N61+O61)*F$175+(N60+O60)*F$176+(N59+O59)*F$177+(N58+O58)*F$178+(N57+O57)*F$179+(N56+O56)*F$180+(N55+O55)*F$181+(N54+O54)*F$182+(N53+O53)*F$183+(N52+O52)*F$184+(N51+O51)*F$185+(N50+O50)*F$186+(N49+O49)*F$187+(N48+O48)*F$188+(N47+O47)*F$189+(N46+O46)*F$190+(N45+O45)*F$191+(N44+O44)*F$192+(N43+O43)*F$193+(N42+O42)*F$194+(N41+O41)*F$195)) -> 3341.282623 | S72: 0.5142805561 | T72: 0.1813569411 | U72: 41315.234 | V72: 0.1915675805 | W72: 7914.659417 | X72: 103.0672985 | Y72: 19.74435302 | Z72: 0.815742565 | AA72: 6.155839698 | AB72: 67.36172252 | AC72: -7.553778701 | AD72: -55.09838772 | AE72: 9.746510831 | AF72: 6.155839698 | AG72: 6.155839698 | AH72: 3.590671133
A73: 32 | B73: 2032 | D73: =IF(FBE!$C73*(1+D$38/27*($B73-$B$64))>=0,FBE!$C73*(1+D$38/27*($B73-$B$64)),0) -> 497.6160766 | E73: 1 | G73: 6546.326141 | H73: 13936.26326 | I73: 105.1465882 | K73: 2773.596604 | L73: 43981.85709 | M73: 4.624542215 | O73: =FBE!$U73-FBE!$U72+(N72+O72)*F$165+(N71+O71)*F$166+(N70+O70)*F$167+(N69+O69)*F$168+(N68+O68)*F$169+(N67+O67)*F$170+(N66+O66)*F$171+(N65+O65)*F$172+(N64+O64)*F$173+(N63+O63)*F$174+(N62+O62)*F$175+(N61+O61)*F$176+(N60+O60)*F$177+(N59+O59)*F$178+(N58+O58)*F$179+(N57+O57)*F$180+(N56+O56)*F$181+(N55+O55)*F$182+(N54+O54)*F$183+(N53+O53)*F$184+(N52+O52)*F$185+(N51+O51)*F$186+(N50+O50)*F$187+(N49+O49)*F$188 -> 629.1632936 | P73: 1.264354838 | R73: =IF(AND(O73>D73,$AA$1="YES"),R72+D73-(+(N72+O72)*F$165+(N71+O71)*F$166+(N70+O70)*F$167+(N69+O69)*F$168+(N68+O68)*F$169+(N67+O67)*F$170+(N66+O66)*F$171+(N65+O65)*F$172+(N64+O64)*F$173+(N63+O63)*F$174+(N62+O62)*F$175+(N61+O61)*F$176+(N60+O60)*F$177+(N59+O59)*F$178+(N58+O58)*F$179+(N57+O57)*F$180+(N56+O56)*F$181+(N55+O55)*F$182+(N54+O54)*F$183+(N53+O53)*F$184+(N52+O52)*F$185+(N51+O51)*F$186+(N50+O50)*F$187+(N49+O49)*F$188+(N48+O48)*F$189+(N47+O47)*F$190+(N46+O46)*F$191+(N45+O45)*F$192+(N44+O44)*F$193+(N43+O43)*F$194+(N42+O42)*F$195+(N41+O41)*F$196),R72+O73-(+(N72+O72)*F$165+(N71+O71)*F$166+(N70+O70)*F$167+(N69+O69)*F$168+(N68+O68)*F$169+(N67+O67)*F$170+(N66+O66)*F$171+(N65+O65)*F$172+(N64+O64)*F$173+(N63+O63)*F$174+(N62+O62)*F$175+(N61+O61)*F$176+(N60+O60)*F$177+(N59+O59)*F$178+(N58+O58)*F$179+(N57+O57)*F$180+(N56+O56)*F$181+(N55+O55)*F$182+(N54+O54)*F$183+(N53+O53)*F$184+(N52+O52)*F$185+(N51+O51)*F$186+(N50+O50)*F$187+(N49+O49)*F$188+(N48+O48)*F$189+(N47+O47)*F$190+(N46+O46)*F$191+(N45+O45)*F$192+(N44+O44)*F$193+(N43+O43)*F$194+(N42+O42)*F$195+(N41+O41)*F$196)) -> 3772.729537 | S73: 0.5763124928 | T73: 0.1520115763 | U73: 47249.46738 | V73: 0.1896519047 | W73: 8960.951486 | X73: 99.11930279 | Y73: 18.79816457 | Z73: 0.8882032637 | AA73: 5.512745478 | AB73: 60.42601607 | AC73: -8.196872921 | AD73: -59.78921282 | AE73: 9.592662503 | AF73: 5.512745478 | AG73: 5.512745478 | AH73: 4.079917025
A74: 33 | B74: 2033 | D74: =IF(FBE!$C74*(1+D$38/27*($B74-$B$64))>=0,FBE!$C74*(1+D$38/27*($B74-$B$64)),0) -> 495.4890127 | E74: 1 | G74: =IF(a*EXP(-b*EXP(-ze*(B74-2000)))*(1+G$38/27*($B74-$B$64))>=0,a*EXP(-b*EXP(-ze*(B74-2000)))*(1+G$38/27*($B74-$B$64)),0) -> 6594.731123 | H74: 13808.02837 | I74: 103.6607503 | K74: 2402.89029 | L74: 38079.14922 | M74: 3.947313181 | O74: =FBE!$U74-FBE!$U73+(N73+O73)*F$165+(N72+O72)*F$166+(N71+O71)*F$167+(N70+O70)*F$168+(N69+O69)*F$169+(N68+O68)*F$170+(N67+O67)*F$171+(N66+O66)*F$172+(N65+O65)*F$173+(N64+O64)*F$174+(N63+O63)*F$175+(N62+O62)*F$176+(N61+O61)*F$177+(N60+O60)*F$178+(N59+O59)*F$179+(N58+O58)*F$180+(N57+O57)*F$181+(N56+O56)*F$182+(N55+O55)*F$183+(N54+O54)*F$184+(N53+O53)*F$185+(N52+O52)*F$186+(N51+O51)*F$187+(N50+O50)*F$188+(N49+O49)*F$189+(N48+O48)*F$190+(N47+O47)*F$191+(N46+O46)*F$192+(N45+O45)*F$193+(N44+O44)*F$194+(N43+O43)*F$195+(N42+O42)*F$196+(N41+O41)*F$197 -> 670.7249647 | P74: 1.353662639 | R74: =IF(AND(O74>D74,$AA$1="YES"),R73+D74-(+(N73+O73)*F$165+(N72+O72)*F$166+(N71+O71)*F$167+(N70+O70)*F$168+(N69+O69)*F$169+(N68+O68)*F$170+(N67+O67)*F$171+(N66+O66)*F$172+(N65+O65)*F$173+(N64+O64)*F$174+(N63+O63)*F$175+(N62+O62)*F$176+(N61+O61)*F$177+(N60+O60)*F$178+(N59+O59)*F$179+(N58+O58)*F$180+(N57+O57)*F$181+(N56+O56)*F$182+(N55+O55)*F$183+(N54+O54)*F$184+(N53+O53)*F$185+(N52+O52)*F$186+(N51+O51)*F$187+(N50+O50)*F$188+(N49+O49)*F$189+(N48+O48)*F$190+(N47+O47)*F$191+(N46+O46)*F$192+(N45+O45)*F$193+(N44+O44)*F$194+(N43+O43)*F$195+(N42+O42)*F$196+(N41+O41)*F$197),R73+O74-(+(N73+O73)*F$165+(N72+O72)*F$166+(N71+O71)*F$167+(N70+O70)*F$168+(N69+O69)*F$169+(N68+O68)*F$170+(N67+O67)*F$171+(N66+O66)*F$172+(N65+O65)*F$173+(N64+O64)*F$174+(N63+O63)*F$175+(N62+O62)*F$176+(N61+O61)*F$177+(N60+O60)*F$178+(N59+O59)*F$179+(N58+O58)*F$180+(N57+O57)*F$181+(N56+O56)*F$182+(N55+O55)*F$183+(N54+O54)*F$184+(N53+O53)*F$185+(N52+O52)*F$186+(N51+O51)*F$187+(N50+O50)*F$188+(N49+O49)*F$189+(N48+O48)*F$190+(N47+O47)*F$191+(N46+O46)*F$192+(N45+O45)*F$193+(N44+O44)*F$194+(N43+O43)*F$195+(N42+O42)*F$196+(N41+O41)*F$197)) -> 4191.840833 | S74: 0.6356348355 | T74: 0.1269838225 | U74: 52981.08522 | V74: 0.1877553857 | W74: 9947.484089 | X74: 95.29258693 | Y74: 17.89169641 | Z74: 0.9479214923 | AA74: 4.895234673 | AB74: 53.75820415 | AC74: -8.814383726 | AD74: -64.29342867 | AE74: 9.439372229 | AF74: 4.895234673 | AG74: 4.895234673 | AH74: 4.544137556
A75: 34 | B75: 2034 | D75: =IF(FBE!$C75*(1+D$38/27*($B75-$B$64))>=0,FBE!$C75*(1+D$38/27*($B75-$B$64)),0) -> 493.2857601 | E75: 1 | G75: 6642.226429 | H75: 13680.97338 | I75: 102.195684 | K75: 2049.317602 | L75: 32467.88869 | M75: 3.318078091 | O75: =FBE!$U75-FBE!$U74*(1-FBE!$F74) -> 687.3514844 | P75: 1.393414406 | R75: =IF(AND(O75>D75,$AA$1="YES"),R74*(1-FBE!$F74)+D75,R74*(1-FBE!$F74)+O75) -> 4592.908827 | S75: 0.6914712824 | T75: 0.1057817247 | U75: 58404.23429 | V75: 0.1858778318 | W75: 10856.05244 | X75: 91.58612178 | Y75: 17.02382974 | Z75: 0.9942637408 | AA75: 4.312341832 | AB75: 47.45505762 | AC75: -9.397276567 | AD75: -68.54513593 | AE75: 9.28673876 | AF75: 4.312341832 | AG75: 4.312341832 | AH75: 4.974396928
A76: 35 | B76: 2035 | D76: =IF(FBE!$C76*(1+D$38/27*($B76-$B$64))>=0,FBE!$C76*(1+D$38/27*($B76-$B$64)),0) -> 491.0097568 | E76: 1 | G76: 6688.820377 | H76: 13555.08744 | I76: 100.751105 | K76: 1717.072227 | L76: 27225.07642 | M76: 2.742956533 | O76: =FBE!$U76-FBE!$U75*(1-FBE!$F75) -> 689.3106489 | P76: 1.403863445 | R76: =IF(AND(O76>D76,$AA$1="YES"),R75*(1-FBE!$F75)+D76,R75*(1-FBE!$F75)+O76) -> 4971.74815 | S76: 0.7432922204 | T76: 0.08791809217 | U76: 63442.46869 | V76: 0.1840190535 | W76: 11674.62304 | X76: 87.9985993 | Y76: 16.19341895 | Z76: 1.027350475 | AA76: 3.770307008 | AB76: 41.58386558 | AC76: -9.939311391 | AD76: -72.49881872 | AE76: 9.134855358 | AF76: 3.770307008 | AG76: 3.770307008 | AH76: 5.36454835
A77: 36 | B77: 2036 | D77: =IF(FBE!$C77*(1+D$38/27*($B77-$B$64))>=0,FBE!$C77*(1+D$38/27*($B77-$B$64)),0) -> 488.6643672 | E77: 1 | G77: 6734.52169 | H77: 13430.35979 | I77: 99.32673321 | K77: 1408.94859 | L77: 22400.3748 | M77: 2.224956051 | O77: =FBE!$U77-FBE!$U76*(1-FBE!$F76) -> 686.4729701 | P77: 1.404794407 | R77: =IF(AND(O77>D77,$AA$1="YES"),R76*(1-FBE!$F76)+D77,R76*(1-FBE!$F76)+O77) -> 5325.5731 | S77: 0.7907871331 | T77: 0.07293364466 | U77: 68046.67453 | V77: 0.182178863 | W77: 12396.6658 | X77: 84.52846611 | Y77: 15.39929984 | Z77: 1.047871145 | AA77: 3.272827196 | AB77: 36.18500792 | AC77: -10.4367912 | AD77: -76.12751062 | AE77: 8.983809939 | AF77: 3.272827196 | AG77: 3.272827196 | AH77: 5.710982743
A78: 37 | B78: 2037 | D78: =IF(FBE!$C78*(1+D$38/27*($B78-$B$64))>=0,FBE!$C78*(1+D$38/27*($B78-$B$64)),0) -> 486.2528813 | E78: 1 | G78: 6779.339456 | H78: 13306.77978 | I78: 97.92229195 | K78: 1126.525635 | L78: 18019.79156 | M78: 1.76453929 | O78: =FBE!$U78-FBE!$U77*(1-FBE!$F77) -> 679.9235552 | P78: 1.398292085 | R78: =IF(AND(O78>D78,$AA$1="YES"),R77*(1-FBE!$F77)+D78,R77*(1-FBE!$F77)+O78) -> 5652.813821 | S78: 0.8338295873 | T78: 0.06040945629 | U78: 72191.38562 | V78: 0.1803570743 | W78: 13020.2271 | X78: 81.17395451 | Y78: 14.64029695 | Z78: 1.056903323 | AA78: 2.821442612 | AB78: 31.275976 | AC78: -10.88817579 | AD78: -79.41997705 | AE78: 8.833685228 | AF78: 2.821442612 | AG78: 2.821442612 | AH78: 6.012242616
A79: 38 | B79: 2038 | D79: =IF(FBE!$C79*(1+D$38/27*($B79-$B$64))>=0,FBE!$C79*(1+D$38/27*($B79-$B$64)),0) -> 483.7785141 | E79: 1 | G79: 6823.283108 | H79: 13184.33683 | I79: 96.53750819 | K79: 870.3768599 | L79: 14090.05964 | M79: 1.360219248 | O79: =FBE!$U79-FBE!$U78*(1-FBE!$F78) -> 670.6236442 | P79: 1.386220398 | R79: =IF(AND(O79>D79,$AA$1="YES"),R78*(1-FBE!$F78)+D79,R78*(1-FBE!$F78)+O79) -> 5952.906248 | S79: 0.8724401661 | T79: 0.04997223507 | U79: 75870.40317 | V79: 0.1785535036 | W79: 13546.92631 | X79: 77.9331112 | Y79: 13.91523005 | Z79: 1.055754114 | AA79: 2.415973362 | AB79: 26.85594634 | AC79: -11.29364504 | AD79: -82.3775302 | AE79: 8.684558916 | AF79: 2.415973362 | AG79: 2.415973362 | AH79: 6.268585554
A80: 39 | B80: 2039 | D80: =IF(FBE!$C80*(1+D$38/27*($B80-$B$64))>=0,FBE!$C80*(1+D$38/27*($B80-$B$64)),0) -> 481.2444044 | E80: 1 | G80: 6866.362388 | H80: 13063.02051 | I80: 95.1721125 | K80: 640.2815068 | L80: 10603.0658 | M80: 1.009116171 | O80: =FBE!$U80-FBE!$U79*(1-FBE!$F79) -> 659.3915669 | P80: 1.370180226 | R80: =IF(AND(O80>D80,$AA$1="YES"),R79*(1-FBE!$F79)+D80,R79*(1-FBE!$F79)+O80) -> 6226.080881 | S80: 0.9067509883 | T80: 0.04129502387 | U80: 79092.36688 | V80: 0.1767679686 | W80: 13980.99702 | X80: 74.80382359 | Y80: 13.22291994 | Z80: 1.045832035 | AA80: 2.054948206 | AB80: 22.91028812 | AC80: -11.65467019 | AD80: -85.0109015 | AE80: 8.536503809 | AF80: 2.054948206 | AG80: 2.054948206 | AH80: 6.481555603
A81: 40 | B81: 2040 | D81: =IF(FBE!$C81*(1+D$38/27*($B81-$B$64))>=0,FBE!$C81*(1+D$38/27*($B81-$B$64)),0) -> 478.6536148 | E81: 1 | G81: 6908.587323 | H81: 12942.82043 | I81: 93.82583895 | K81: 435.420806 | L81: 7539.924404 | M81: 0.7074397328 | O81: =FBE!$U81-FBE!$U80*(1-FBE!$F80) -> 646.9007188 | P81: 1.351500749 | R81: =IF(AND(O81>D81,$AA$1="YES"),R80*(1-FBE!$F80)+D81,R80*(1-FBE!$F80)+O81) -> 6473.166517 | S81: 0.9369739737 | T81: 0.0340951477 | U81: 81876.68071 | V81: 0.1750002889 | W81: =V81*U81 -> 14328.44278 | X81: 71.78384411 | Y81: 12.56219346 | Z81: 1.028550703 | AA81: 1.735990435 | AB81: 19.41463147 | AC81: -11.97362796 | AD81: -87.33742702 | AE81: 8.389587991 | AF81: 1.735990435 | AG81: 1.735990435 | AH81: 6.653597556
A82: 41 | B82: 2041 | D82: =IF(FBE!$C82*(1+D$38/27*($B82-$B$64))>=0,FBE!$C82*(1+D$38/27*($B82-$B$64)),0) -> 476.0091314 | E82: 1 | G82: 6949.968197 | H82: 12823.72632 | I82: 92.49842513 | K82: 254.5503039 | L82: 4874.485803 | M82: 0.4508822601 | O82: =FBE!$U82-FBE!$U81*(1-FBE!$F81) -> 633.6883727 | P82: 1.331252556 | R82: =IF(AND(O82>D82,$AA$1="YES"),R81*(1-FBE!$F81)+D82,R81*(1-FBE!$F81)+O82) -> 6695.417893 | S82: 0.9633738894 | T82: 0.02813065155 | U82: 84250.00431 | V82: 0.173250286 | W82: 14596.33734 | X82: 68.87081238 | Y82: 11.93188794 | Z82: 1.00526161 | AA82: 1.456143871 | AB82: 16.33831362 | AC82: -12.25347453 | AD82: -89.37866957 | AE82: 8.243874976 | AF82: 1.456143871 | AG82: 1.456143871 | AH82: 6.787731105
A83: 42 | B83: 2042 | D83: =IF(FBE!$C83*(1+D$38/27*($B83-$B$64))>=0,FBE!$C83*(1+D$38/27*($B83-$B$64)),0) -> 473.3138636 | E83: 1 | G83: 6990.515526 | H83: 12705.72803 | I83: 91.18961206 | K83: 96.14459944 | L83: 2576.205488 | M83: 0.234923179 | O83: =FBE!$U83-FBE!$U82*(1-FBE!$F82) -> 620.1705243 | P83: 1.310273313 | R83: =IF(AND(O83>D83,$AA$1="YES"),R82*(1-FBE!$F82)+D83,R82*(1-FBE!$F82)+O83) -> 6894.370927 | S83: 0.9862464222 | T83: 0.02319604889 | U83: 86243.38355 | V83: 0.1715177831 | W83: 14792.27396 | X83: 66.06227549 | Y83: 11.33085504 | Z83: 0.9772112771 | AA83: 1.212134456 | AB83: 13.64715227 | AC83: -12.49748394 | AD83: -91.15851061 | AE83: 8.099423867 | AF83: 1.212134456 | AG83: 1.212134456 | AH83: 6.887289411
A84: 43 | B84: 2043 | D84: =IF(FBE!$C84*(1+D$38/27*($B84-$B$64))>=0,FBE!$C84*(1+D$38/27*($B84-$B$64)),0) -> 470.570644 | E84: 1 | G84: 7030.240037 | H84: 12588.81545 | I84: 89.89914417 | K84: 0 | L84: 1127.986634 | M84: 0.101405033 | O84: =FBE!$U84-FBE!$U83*(1-FBE!$F83) -> 565.1737099 | P84: 1.20103903 | R84: =IF(AND(O84>D84,$AA$1="YES"),R83*(1-FBE!$F83)+D84,R83*(1-FBE!$F83)+O84) -> 7030.240081 | S84: 1.000000006 | T84: 0.01911790017 | U84: 87374.4083 | V84: 0.1698026053 | W84: 14836.40217 | X84: 63.35570642 | Y84: 10.75796401 | Z84: 0.93997074 | AA84: 1.041375773 | AB84: 11.76663946 | AC84: -12.66824263 | AD84: -92.4040499 | AE84: 7.956289511 | AF84: 1.041375773 | AG84: 1.041375773 | AH84: 6.914913738
A85: 44 | B85: 2044 | D85: =IF(FBE!$C85*(1+D$38/27*($B85-$B$64))>=0,FBE!$C85*(1+D$38/27*($B85-$B$64)),0) -> 467.7822292 | E85: 1 | G85: 7069.152637 | H85: 12472.9786 | I85: 88.62676925 | K85: 0 | L85: 925.8519608 | M85: 0.08205526809 | O85: =FBE!$U85-FBE!$U84*(1-FBE!$F84) -> 472.2070734 | P85: 1.009459197 | R85: =IF(AND(O85>D85,$AA$1="YES"),R84*(1-FBE!$F84)+D85,R84*(1-FBE!$F84)+O85) -> 7069.152679 | S85: 1.000000006 | T85: 0.01575053357 | U85: 87247.53815 | V85: 0.1681045792 | W85: 14666.71069 | X85: 60.74852083 | Y85: 10.21210453 | Z85: 0.8909809798 | AA85: 0.9730362479 | AB85: 11.03548641 | AC85: -12.73658215 | AD85: -92.90252858 | AE85: 7.814522653 | AF85: 0.9730362479 | AG85: 0.9730362479 | AH85: 6.841486405
A86: 45 | B86: 2045 | D86: =IF(FBE!$C86*(1+D$38/27*($B86-$B$64))>=0,FBE!$C86*(1+D$38/27*($B86-$B$64)),0) -> 464.9512994 | E86: 1 | G86: 7107.264401 | H86: 12358.20759 | I86: 87.37223843 | K86: 0 | L86: 759.5849546 | M86: 0.06636663776 | O86: =FBE!$U86-FBE!$U85*(1-FBE!$F85) -> 469.3551991 | P86: 1.009471744 | R86: =IF(AND(O86>D86,$AA$1="YES"),R85*(1-FBE!$F85)+D86,R85*(1-FBE!$F85)+O86) -> 7107.26444 | S86: 1.000000005 | T86: 0.01297208101 | U86: 87073.46442 | V86: 0.1664235334 | W86: 14491.07362 | X86: 58.23809215 | Y86: 9.692189077 | Z86: 0.8439324807 | AA86: 0.9102991185 | AB86: 10.36397034 | AC86: -12.79931928 | AD86: -93.36014255 | AE86: 7.67417009 | AF86: 0.9102991185 | AG86: 0.9102991185 | AH86: 6.763870972
A87: 46 | B87: 2046 | D87: =IF(FBE!$C87*(1+D$38/27*($B87-$B$64))>=0,FBE!$C87*(1+D$38/27*($B87-$B$64)),0) -> 462.0804594 | E87: 1 | G87: 7144.586542 | H87: 12244.49261 | I87: 86.13530612 | K87: 0 | L87: 622.9238586 | M87: 0.05365573725 | O87: =FBE!$U87-FBE!$U86*(1-FBE!$F86) -> 466.4628871 | P87: 1.009484122 | R87: =IF(AND(O87>D87,$AA$1="YES"),R86*(1-FBE!$F86)+D87,R86*(1-FBE!$F86)+O87) -> 7144.586579 | S87: 1.000000005 | T87: 0.01068091176 | U87: 86858.91373 | V87: 0.1647592981 | W87: 14310.81366 | X87: 55.82176529 | Y87: 9.197154869 | Z87: 0.7988548814 | AA87: 0.8525106186 | AB87: 9.745001272 | AC87: -12.85710778 | AD87: -93.78166048 | AE87: 7.535274822 | AF87: 0.8525106186 | AG87: 0.8525106186 | AH87: 6.682764204
A88: 47 | B88: 2047 | D88: =IF(FBE!$C88*(1+D$38/27*($B88-$B$64))>=0,FBE!$C88*(1+D$38/27*($B88-$B$64)),0) -> 459.1722391 | E88: 1 | G88: 7181.130397 | H88: 12131.82395 | I88: 84.91572998 | K88: 0 | L88: 510.6690117 | M88: 0.04336383191 | O88: =FBE!$U88-FBE!$U87*(1-FBE!$F87) -> 463.5326921 | P88: 1.009496334 | R88: =IF(AND(O88>D88,$AA$1="YES"),R87*(1-FBE!$F87)+D88,R87*(1-FBE!$F87)+O88) -> 7181.130431 | S88: 1.000000005 | T88: 0.008792489325 | U88: 86609.54111 | V88: 0.1631117051 | W88: =V88*U88 -> 14127.02993 | X88: 53.4968689 | Y88: 8.725965505 | Z88: 0.7557518682 | AA88: 0.7991157001 | AB88: 9.172563966 | AC88: -12.9105027 | AD88: -94.17113098 | AE88: 7.397876203 | AF88: 0.7991157001 | AG88: 0.7991157001 | AH88: 6.598760503
A89: 48 | B89: 2048 | D89: =IF(FBE!$C89*(1+D$38/27*($B89-$B$64))>=0,FBE!$C89*(1+D$38/27*($B89-$B$64)),0) -> 456.2290938 | E89: 1 | G89: 7216.907403 | H89: 12020.19197 | I89: 83.71327088 | K89: 0 | L89: 418.5124692 | M89: 0.0350350477 | O89: =FBE!$U89-FBE!$U88*(1-FBE!$F88) -> 460.5670938 | P89: 1.009508381 | R89: =IF(AND(O89>D89,$AA$1="YES"),R88*(1-FBE!$F88)+D89,R88*(1-FBE!$F88)+O89) -> 7216.907436 | S89: 1.000000004 | T89: 0.007236642567 | U89: 86330.10031 | V89: 0.1614805881 | W89: 13940.63537 | X89: 51.26072632 | Y89: 8.277612232 | Z89: 0.7146070943 | AA89: 0.749642142 | AB89: 8.641546165 | AC89: -12.95997626 | AD89: -94.53199848 | AE89: 7.262010087 | AF89: 0.749642142 | AG89: 0.749642142 | AH89: 6.512367945
A90: 49 | B90: 2049 | D90: =IF(FBE!$C90*(1+D$38/27*($B90-$B$64))>=0,FBE!$C90*(1+D$38/27*($B90-$B$64)),0) -> 453.2534056 | E90: 1 | G90: 7251.929086 | H90: 11909.58713 | I90: 82.52769284 | K90: 0 | L90: 342.8917555 | M90: 0.02829806548 | O90: =FBE!$U90-FBE!$U89*(1-FBE!$F89) -> 457.5684978 | P90: 1.009520264 | R90: =IF(AND(O90>D90,$AA$1="YES"),R89*(1-FBE!$F89)+D90,R89*(1-FBE!$F89)+O90) -> 7251.929116 | S90: 1.000000004 | T90: 0.00595522323 | U90: 86024.58994 | V90: 0.1598657822 | W90: =V90*U90 -> 13752.38836 | X90: 49.11066543 | Y90: 7.851114944 | Z90: 0.6753889436 | AA90: 0.7036870091 | AB90: =IF(L90<>0,(M90+Z90)/(L90+U90)*1000000,(M90+Z90)/(0.00000000001+U90)*1000000) -> 8.147592072 | AC90: -13.00593139 | AD90: -94.86720207 | AE90: 7.127708971 | AF90: 0.7036870091 | AG90: 0.7036870091 | AH90: 6.424021962
A91: 50 | B91: 2050 | D91: =IF(FBE!$C91*(1+D$38/27*($B91-$B$64))>=0,FBE!$C91*(1+D$38/27*($B91-$B$64)),0) -> 450.2474837 | E91: 1 | G91: 7286.207035 | H91: 11800 | I91: 81.35876304 | K91: 0 | L91: =(K91+R91*T91*2/3)*H91/1000 -> 280.8654425 | M91: 0.02285086498 | O91: =FBE!$U91-FBE!$U90*(1-FBE!$F90) -> 454.5392366 | P91: 1.009531987 | R91: =IF(AND(O91>D91,$AA$1="YES"),R90*(1-FBE!$F90)+D91,R90*(1-FBE!$F90)+O91) -> 7286.207063 | S91: 1.000000004 | T91: 0.004900112488 | U91: 85696.37791 | V91: 0.1582671244 | W91: 13562.9193 | X91: 47.0440273 | Y91: =V91*X91 -> 7.44552292 | Z91: 0.6380543459 | AA91: 0.6609052109 | AB91: =IF(L91<>0,(M91+Z91)/(L91+U91)*1000000,(M91+Z91)/(0.00000000001+U91)*1000000) -> 7.686978381 | AC91: -13.04871319 | AD91: -95.17925888 | AE91: =IF(H91>=0,G91*H91*I91/1000000000,0) -> 6.99500214 | AF91: 0.6609052109 | AG91: 0.6609052109 | AH91: 6.33409693
A92: 51 | B92: 2051 | D92: =IF(FBE!$C92*(1+D$38/27*($B92-$B$64))>=0,FBE!$C92*(1+D$38/27*($B92-$B$64)),0) -> 447.2135656 | E92: 1 | G92: 7319.752892 | H92: 11691.4212 | I92: 80.20625173 | K92: 0 | L92: =IF(K92<>"",(K92+R92*T92*2/3)*H92/1000,0) -> 230.0080337 | M92: 0.01844808225 | O92: =FBE!$U92-FBE!$U91*(1-FBE!$F91) -> 451.4815703 | P92: 1.009543549 | R92: =IF(AND(O92>D92,$AA$1="YES"),R91*(1-FBE!$F91)+D92,R91*(1-FBE!$F91)+O92) -> 7319.75292 | S92: 1.000000004 | T92: 0.004031535941 | U92: 85348.30644 | V92: 0.1566844531 | W92: 13372.75272 | X92: 45.05817389 | Y92: =V92*X92 -> 7.059915335 | Z92: 0.6025518175 | AA92: 0.6209998997 | AB92: =IF(L92<>0,(M92+Z92)/(L92+U92)*1000000,(M92+Z92)/(0.00000000001+U92)*1000000) -> 7.256510058 | AC92: -13.0886185 | AD92: -95.47033417 | AE92: 6.863915808 | AF92: 0.6209998997 | AG92: 0.6209998997 | AH92: 6.242915908
A93: 52 | B93: 2052 | D93: =IF(FBE!$C93*(1+D$38/27*($B93-$B$64))>=0,FBE!$C93*(1+D$38/27*($B93-$B$64)),0) -> 444.1538181 | E93: 1 | G93: 7352.578337 | H93: 11583.84146 | I93: 79.06993222 | K93: 0 | L93: 188.3216462 | M93: 0.0148905798 | O93: =FBE!$U93-FBE!$U92*(1-FBE!$F92) -> 448.3976876 | P93: 1.009554954 | R93: =IF(AND(O93>D93,$AA$1="YES"),R92*(1-FBE!$F92)+D93,R92*(1-FBE!$F92)+O93) -> 7352.578363 | S93: 1.000000003 | T93: 0.003316646873 | U93: 84982.78044 | V93: 0.1551176086 | W93: 13182.32567 | X93: 43.15049478 | Y93: 6.69340156 | Z93: 0.5688238751 | AA93: 0.5837144549 | AB93: =IF(L93<>0,(M93+Z93)/(L93+U93)*1000000,(M93+Z93)/(0.00000000001+U93)*1000000) -> 6.853433156 | AC93: -13.12590394 | AD93: -95.74229976 | AE93: 6.734473246 | AF93: 0.5837144549 | AG93: 0.5837144549 | AH93: 6.150758791
A94: 53 | B94: 2053 | D94: =IF(FBE!$C94*(1+D$38/27*($B94-$B$64))>=0,FBE!$C94*(1+D$38/27*($B94-$B$64)),0) -> 441.0703384 | E94: 1 | G94: 7384.695068 | H94: 11477.25159 | I94: 77.94958086 | K94: 0 | L94: 154.1621338 | M94: 0.01201687371 | O94: =FBE!$U94-FBE!$U93*(1-FBE!$F93) -> 445.289707 | P94: 1.009566204 | R94: =IF(AND(O94>D94,$AA$1="YES"),R93*(1-FBE!$F93)+D94,R93*(1-FBE!$F93)+O94) -> 7384.695092 | S94: 1.000000003 | T94: 0.002728340073 | U94: 84601.84133 | V94: 0.1535664325 | W94: 12992.00296 | X94: 41.31841306 | Y94: 6.345121291 | Z94: 0.5368089447 | AA94: 0.5488258184 | AB94: 6.475362169 | AC94: -13.16079258 | AD94: -95.99678268 | AE94: 6.606694924 | AF94: 0.5488258184 | AG94: 0.5488258184 | AH94: 6.057869105
A95: 54 | B95: 2054 | D95: =IF(FBE!$C95*(1+D$38/27*($B95-$B$64))>=0,FBE!$C95*(1+D$38/27*($B95-$B$64)),0) -> 437.9651548 | E95: 1 | G95: 7416.114791 | H95: 11371.64247 | I95: 76.84497695 | K95: 0 | L95: 126.1775091 | M95: 0.009696107775 | O95: =FBE!$U95-FBE!$U94*(1-FBE!$F94) -> 442.1596779 | P95: 1.009577299 | R95: =IF(AND(O95>D95,$AA$1="YES"),R94*(1-FBE!$F94)+D95,R94*(1-FBE!$F94)+O95) -> 7416.114814 | S95: 1.000000003 | T95: 0.002244262056 | U95: 84207.22868 | V95: 0.1520307682 | W95: 12802.08966 | X95: 39.55939048 | Y95: 6.014244523 | Z95: 0.5064428639 | AA95: 0.5161389717 | AB95: 6.120219673 | AC95: -13.19347943 | AD95: -96.23520541 | AE95: 6.480598636 | AF95: 0.5161389717 | AG95: 0.5161389717 | AH95: 5.964459664
A96: 55 | B96: 2055 | D96: =IF(FBE!$C96*(1+D$38/27*($B96-$B$64))>=0,FBE!$C96*(1+D$38/27*($B96-$B$64)),0) -> 434.8402287 | E96: 1 | G96: 7446.84921 | H96: 11267.00509 | I96: 75.75590276 | K96: 0 | L96: 103.2567666 | M96: 0.007822309571 | O96: =FBE!$U96-FBE!$U95*(1-FBE!$F95) -> 439.0095818 | P96: 1.009588241 | R96: =IF(AND(O96>D96,$AA$1="YES"),R95*(1-FBE!$F95)+D96,R95*(1-FBE!$F95)+O96) -> 7446.849231 | S96: 1.000000003 | T96: 0.001845987384 | U96: 83800.43144 | V96: 0.1505104605 | W96: 12612.84153 | X96: 37.87093174 | Y96: 5.699971377 | Z96: 0.4776600605 | AA96: 0.4854823701 | AB96: 5.786186287 | AC96: -13.22413603 | AD96: -96.45881923 | AE96: 6.356199626 | AF96: 0.4854823701 | AG96: 0.4854823701 | AH96: 5.870717256
A97: 56 | B97: 2056 | D97: =IF(FBE!$C97*(1+D$38/27*($B97-$B$64))>=0,FBE!$C97*(1+D$38/27*($B97-$B$64)),0) -> 431.6974548 | E97: 1 | G97: =IF(a*EXP(-b*EXP(-ze*(B97-2000)))*(1+G$38/27*($B97-$B$64))>=0,a*EXP(-b*EXP(-ze*(B97-2000)))*(1+G$38/27*($B97-$B$64)),0) -> 7476.910007 | H97: 11163.33051 | I97: 74.68214344 | K97: 0 | L97: 84.48744977 | M97: 0.006309703842 | O97: =FBE!$U97-FBE!$U96*(1-FBE!$F96) -> 435.8413332 | P97: 1.009599034 | R97: =IF(AND(O97>D97,$AA$1="YES"),R96*(1-FBE!$F96)+D97,R96*(1-FBE!$F96)+O97) -> 7476.910027 | S97: 1.000000003 | T97: =IF(Scen=5,IF($F$154*$I$154*$K$154*EXP((-$I$154*EXP(-$K$154*($B97-2000))-$K$154*($B97-2000)))*(1-2.8519/77*($B97-$B$64))>=0,$F$154*$I$154*$K$154*EXP((-$I$154*EXP(-$K$154*($B97-2000))-$K$154*($B97-2000)))*(1-2.8519/77*($B97-$B$64)),0),IF(Scen<>5,IF($F$154*$I$154*$K$154*EXP((-$I$154*EXP(-$K$154*($B97-2000))-$K$154*($B97-2000)))*(1+T$38/27*($B97-$B$64))>=0,$F$154*$I$154*$K$154*EXP((-$I$154*EXP(-$K$154*($B97-2000))-$K$154*($B97-2000)))*(1+T$38/27*($B97-$B$64)),0))) -> 0.001518334719 | U97: 83382.73035 | V97: 0.1490053559 | W97: 12424.47341 | X97: =IF(OR(Scen=3,Scen=5),IF($V$154*$X$154*$Z$154*EXP((-$X$154*EXP(-$Z$154*($B97-2000))-$Z$154*($B97-2000)))*(1-2.8519/77*($B97-$B$64))>=0,$V$154*$X$154*$Z$154*EXP((-$X$154*EXP(-$Z$154*($B97-2000))-$Z$154*($B97-2000)))*(1-2.8519/77*($B97-$B$64)),0),IF(AND(Scen<>3,Scen<>5),IF($V$154*$X$154*$Z$154*EXP((-$X$154*EXP(-$Z$154*($B97-2000))-$Z$154*($B97-2000)))*(1+X$38/27*($B97-$B$64))>=0,$V$154*$X$154*$Z$154*EXP((-$X$154*EXP(-$Z$154*($B97-2000))-$Z$154*($B97-2000)))*(1+X$38/27*($B97-$B$64)),0))) -> 36.25058834 | Y97: 5.401531818 | Z97: 0.450394471 | AA97: 0.4567041749 | AB97: 5.471659256 | AC97: -13.25291422 | AD97: -96.66873168 | AE97: 6.233510715 | AF97: 0.4567041749 | AG97: 0.4567041749 | AH97: 5.776806541
A98: 57 | B98: 2057 | D98: =IF(FBE!$C98*(1+D$38/27*($B98-$B$64))>=0,FBE!$C98*(1+D$38/27*($B98-$B$64)),0) -> 428.5386632 | E98: 1 | G98: 7506.308839 | H98: 11060.60986 | I98: 73.62348703 | K98: 0 | L98: 69.12053668 | M98: 0.005088894936 | O98: =FBE!$U98-FBE!$U97*(1-FBE!$F97) -> 432.6567814 | P98: 1.009609677 | R98: =IF(AND(O98>D98,$AA$1="YES"),R97*(1-FBE!$F97)+D98,R97*(1-FBE!$F97)+O98) -> 7506.308858 | S98: 1.000000003 | T98: 0.001248799904 | U98: 82955.23322 | V98: 0.1475153023 | W98: 12237.16631 | X98: 34.69596163 | Y98: 5.11818527 | Z98: 0.4245802527 | AA98: 0.4296691477 | AB98: 5.175218213 | AC98: -13.27994925 | AD98: -96.8659292 | AE98: 6.112542416 | AF98: 0.4296691477 | AG98: 0.4296691477 | AH98: 5.682873269
A99: 58 | B99: 2058 | D99: =IF(FBE!$C99*(1+D$38/27*($B99-$B$64))>=0,FBE!$C99*(1+D$38/27*($B99-$B$64)),0) -> 425.3656202 | E99: 1 | G99: 7535.057321 | H99: 10958.83437 | I99: 72.57972442 | K99: 0 | L99: 56.54142988 | M99: 0.004103761399 | O99: =FBE!$U99-FBE!$U98*(1-FBE!$F98) -> 429.4577112 | P99: 1.009620173 | R99: =IF(AND(O99>D99,$AA$1="YES"),R98*(1-FBE!$F98)+D99,R98*(1-FBE!$F98)+O99) -> 7535.057339 | S99: 1.000000002 | T99: 0.001027086738 | U99: 82518.90392 | V99: 0.1460401493 | W99: 12051.07305 | X99: 33.20470546 | Y99: 4.849220144 | Z99: 0.4001523311 | AA99: 0.4042560925 | AB99: 4.895596879 | AC99: -13.30536231 | AD99: -97.05129581 | AE99: 5.993303053 | AF99: 0.4042560925 | AG99: 0.4042560925 | AH99: 5.58904696
A100: 59 | B100: 2059 | D100: =IF(FBE!$C100*(1+D$38/27*($B100-$B$64))>=0,FBE!$C100*(1+D$38/27*($B100-$B$64)),0) -> 422.1800297 | E100: 1 | G100: 7563.16702 | H100: 10857.99535 | I100: 71.55064927 | K100: 0 | L100: 46.24602056 | M100: 0.003308932797 | O100: =FBE!$U100-FBE!$U99*(1-FBE!$F99) -> 426.2458448 | P100: 1.009630524 | R100: =IF(AND(O100>D100,$AA$1="YES"),R99*(1-FBE!$F99)+D100,R99*(1-FBE!$F99)+O100) -> 7563.167037 | S100: 1.000000002 | T100: 0.0008447190406 | U100: 82074.58646 | V100: 0.1445797478 | W100: 11866.32301 | X100: 31.77452829 | Y100: 4.593953288 | Z100: 0.3770468164 | AA100: 0.3803557492 | AB100: 4.631659685 | AC100: -13.32926265 | AD100: -97.22562847 | AE100: 5.87579887 | AF100: 0.3803557492 | AG100: 0.3803557492 | AH100: 5.49544312
A101: 60 | B101: 2060 | D101: =IF(FBE!$C101*(1+D$38/27*($B101-$B$64))>=0,FBE!$C101*(1+D$38/27*($B101-$B$64)),0) -> 418.9835345 | E101: 1 | G101: 7590.649443 | H101: 10758.08417 | I101: 70.53605803 | K101: 0 | L101: 37.82096229 | M101: 0.002667741591 | O101: =FBE!$U101-FBE!$U100*(1-FBE!$F100) -> 423.0228423 | P101: 1.009640732 | R101: =IF(AND(O101>D101,$AA$1="YES"),R100*(1-FBE!$F100)+D101,R100*(1-FBE!$F100)+O101) -> 7590.64946 | S101: 1.000000002 | T101: 0.0006947202528 | U101: 81623.02482 | V101: 0.1431339504 | W101: 11683.02598 | X101: 30.40319486 | Y101: 4.351729384 | Z101: 0.3552013155 | AA101: 0.3578690571 | AB101: 4.382382447 | AC101: -13.35174934 | AD101: -97.38964976 | AE101: 5.760034145 | AF101: 0.3578690571 | AG101: 0.3578690571 | AH101: 5.402165088
A102: 61 | B102: 2061 | D102: =IF(FBE!$C102*(1+D$38/27*($B102-$B$64))>=0,FBE!$C102*(1+D$38/27*($B102-$B$64)),0) -> 415.7777176 | E102: 1 | G102: 7617.516031 | H102: 10659.0923 | I102: 69.53574988 | K102: 0 | L102: 30.92742922 | M102: 0.002150561983 | O102: =FBE!$U102-FBE!$U101*(1-FBE!$F101) -> 419.790304 | P102: 1.009650797 | R102: =IF(AND(O102>D102,$AA$1="YES"),R101*(1-FBE!$F101)+D102,R101*(1-FBE!$F101)+O102) -> 7617.516047 | S102: 1.000000002 | T102: 0.000571349011 | U102: 81164.87924 | V102: 0.1417026108 | W102: 11501.2753 | X102: 29.08852748 | Y102: 4.121920289 | Z102: 0.3345551625 | AA102: 0.3367057245 | AB102: 4.146836374 | AC102: -13.37291267 | AD102: -97.54401826 | AE102: 5.646011292 | AF102: 0.3367057245 | AG102: 0.3367057245 | AH102: 5.309305568
A103: 62 | B103: 2062 | D103: =IF(FBE!$C103*(1+D$38/27*($B103-$B$64))>=0,FBE!$C103*(1+D$38/27*($B103-$B$64)),0) -> 412.5641038 | E103: 1 | G103: 7643.778148 | H103: 10561.01129 | I103: 68.54952669 | K103: 0 | L103: 25.28775411 | M103: 0.001733463575 | O103: =FBE!$U103-FBE!$U102*(1-FBE!$F102) -> 416.5497711 | P103: 1.009660722 | R103: =IF(AND(O103>D103,$AA$1="YES"),R102*(1-FBE!$F102)+D103,R102*(1-FBE!$F102)+O103) -> 7643.778163 | S103: 1.000000002 | T103: 0.0004698810576 | U103: 80700.73973 | V103: 0.1402855847 | W103: 11321.15046 | X103: 27.82840693 | Y103: 3.903924339 | Z103: 0.315049582 | AA103: 0.3167830456 | AB103: 3.924174835 | AC103: -13.39283535 | AD103: -97.68933725 | AE103: 5.533730965 | AF103: 0.3167830456 | AG103: 0.3167830456 | AH103: 5.216947919
A104: 63 | B104: 2063 | D104: =IF(FBE!$C104*(1+D$38/27*($B104-$B$64))>=0,FBE!$C104*(1+D$38/27*($B104-$B$64)),0) -> 409.3441608 | E104: 1 | G104: 7669.447075 | H104: 10463.83275 | I104: 67.57719299 | K104: 0 | L104: 20.67444301 | M104: 0.001397120825 | O104: =FBE!$U104-FBE!$U103*(1-FBE!$F103) -> 413.3027272 | P104: 1.009670509 | R104: =IF(AND(O104>D104,$AA$1="YES"),R103*(1-FBE!$F103)+D104,R103*(1-FBE!$F103)+O104) -> 7669.447089 | S104: 1.000000002 | T104: 0.0003864294635 | U104: 80231.13719 | V104: 0.1388827289 | W104: 11142.71928 | X104: 26.62077312 | Y104: 3.697165616 | Z104: 0.2966278017 | AA104: 0.2980249226 | AB104: 3.713622365 | AC104: -13.41159348 | AD104: -97.82616179 | AE104: 5.423192153 | AF104: 0.2980249226 | AG104: 0.2980249226 | AH104: 5.12516723
A105: 64 | B105: 2064 | D105: =IF(FBE!$C105*(1+D$38/27*($B105-$B$64))>=0,FBE!$C105*(1+D$38/27*($B105-$B$64)),0) -> 406.1193003 | E105: 1 | G105: 7694.534004 | H105: 10367.54838 | I105: 66.61855596 | K105: 0 | L105: 16.90114931 | M105: 0.001125930161 | O105: =FBE!$U105-FBE!$U104*(1-FBE!$F104) -> 410.0505996 | P105: 1.009680159 | R105: =IF(AND(O105>D105,$AA$1="YES"),R104*(1-FBE!$F104)+D105,R104*(1-FBE!$F104)+O105) -> 7694.534017 | S105: 1.000000002 | T105: 0.0003177964948 | U105: 79756.55253 | V105: 0.1374939016 | W105: 10966.03959 | X105: 25.46362535 | Y105: 3.501093199 | Z105: 0.2792351236 | AA105: 0.2803610538 | AB105: 3.514465538 | AC105: -13.42925735 | AD105: -97.95500469 | AE105: 5.314392279 | AF105: 0.2803610538 | AG105: 0.2803610538 | AH105: 5.034031225
A106: 65 | B106: 2065 | D106: =IF(FBE!$C106*(1+D$38/27*($B106-$B$64))>=0,FBE!$C106*(1+D$38/27*($B106-$B$64)),0) -> 402.8908801 | E106: 1 | G106: 7719.050028 | H106: 10272.14995 | I106: 65.67342536 | K106: =IF(AND(G106<>"",R106<>"",G106-R106>0,K105>0.9),G106-R106,0) -> 0 | L106: 13.81526137 | M106: 0.0009072955367 | O106: =FBE!$U106-FBE!$U105*(1-FBE!$F105) -> 406.7947611 | P106: 1.009689673 | R106: =IF(AND(O106>D106,$AA$1="YES"),R105*(1-FBE!$F105)+D106,R105*(1-FBE!$F105)+O106) -> 7719.05004 | S106: 1.000000002 | T106: 0.0002613515969 | U106: 79277.42424 | V106: 0.1361189626 | W106: 10791.16074 | X106: 24.35502246 | Y106: 3.315180391 | Z106: 0.2628189623 | AA106: 0.2637262578 | AB106: 3.326045343 | AC106: -13.44589214 | AD106: -98.07634137 | AE106: 5.20732729 | AF106: 0.2637262578 | AG106: 0.2637262578 | AH106: 4.943601033
A107: 66 | B107: 2066 | D107: =IF(FBE!$C107*(1+D$38/27*($B107-$B$64))>=0,FBE!$C107*(1+D$38/27*($B107-$B$64)),0) -> 399.6602047 | E107: 1 | G107: 7743.006139 | H107: 10177.62931 | I107: 64.74161353 | K107: =IF(AND(G107<>"",R107<>"",G107-R107>0,K106>0.9),G107-R107,0) -> 0 | L107: 11.29181807 | M107: 0.0007310505213 | O107: =FBE!$U107-FBE!$U106*(1-FBE!$F106) -> 403.5365308 | P107: 1.009699054 | R107: =IF(AND(O107>D107,$AA$1="YES"),R106*(1-FBE!$F106)+D107,R106*(1-FBE!$F106)+O107) -> 7743.006151 | S107: 1.000000002 | T107: 0.0002149309201 | U107: 78794.15457 | V107: 0.134757773 | W107: 10618.12479 | X107: 23.29308261 | Y107: 3.138923938 | Z107: 0.2473288579 | AA107: 0.2480599085 | AB107: 3.14775082 | AC107: -13.46155849 | AD107: -98.19061405 | AE107: 5.101991746 | AF107: 0.2480599085 | AG107: 0.2480599085 | AH107: 4.853931837
A108: 67 | B108: 2067 | D108: =IF(FBE!$C108*(1+D$38/27*($B108-$B$64))>=0,FBE!$C108*(1+D$38/27*($B108-$B$64)),0) -> 396.4285273 | E108: 1 | G108: 7766.413222 | H108: 10083.97839 | I108: 63.82293532 | K108: 0 | L108: 9.228516132 | M108: 0.0005889909882 | O108: =FBE!$U108-FBE!$U107*(1-FBE!$F107) -> 400.2771758 | P108: 1.009708303 | R108: =IF(AND(O108>D108,$AA$1="YES"),R107*(1-FBE!$F107)+D108,R107*(1-FBE!$F107)+O108) -> 7766.413234 | S108: 1.000000001 | T108: 0.0001767546035 | U108: 78307.11471 | V108: 0.1334101952 | W108: 10446.96746 | X108: 22.27598297 | Y108: 2.971843237 | Z108: 0.2327164693 | AA108: 0.2333054603 | AB108: 2.979013711 | AC108: -13.47631294 | AD108: -98.2982352 | AE108: 4.998378901 | AF108: 0.2333054603 | AG108: 0.2333054603 | AH108: 4.765073441
A109: 68 | B109: 2068 | D109: =IF(FBE!$C109*(1+D$38/27*($B109-$B$64))>=0,FBE!$C109*(1+D$38/27*($B109-$B$64)),0) -> 393.1970506 | E109: 1 | G109: 7789.282048 | H109: 9991.189181 | I109: 62.91720812 | K109: 0 | L109: 7.541614992 | M109: 0.00047449736 | O109: =FBE!$U109-FBE!$U108*(1-FBE!$F108) -> 397.0179123 | P109: 1.009717422 | R109: =IF(AND(O109>D109,$AA$1="YES"),R108*(1-FBE!$F108)+D109,R108*(1-FBE!$F108)+O109) -> 7789.282058 | S109: 1.000000001 | T109: 0.0001453586911 | U109: 77816.64902 | V109: 0.1320760933 | W109: 10277.71899 | X109: 21.30195921 | Y109: 2.813479552 | Z109: 0.2189355508 | AA109: 0.2194100481 | AB109: 2.819303951 | AC109: -13.49020835 | AD109: -98.39959041 | AE109: 4.896480792 | AF109: 0.2194100481 | AG109: 0.2194100481 | AH109: 4.677070743
A110: 69 | B110: 2069 | D110: =IF(FBE!$C110*(1+D$38/27*($B110-$B$64))>=0,FBE!$C110*(1+D$38/27*($B110-$B$64)),0) -> 389.9669283 | E110: 1 | G110: 7811.623269 | H110: 9899.253755 | I110: 62.02425174 | K110: 0 | L110: 6.16257865 | M110: 0.0003822293295 | O110: =FBE!$U110-FBE!$U109*(1-FBE!$F109) -> 393.7599074 | P110: 1.009726412 | R110: =IF(AND(O110>D110,$AA$1="YES"),R109*(1-FBE!$F109)+D110,R109*(1-FBE!$F109)+O110) -> 7811.623279 | S110: 1.000000001 | T110: 0.0001195391012 | U110: 77323.0785 | V110: 0.1307553323 | W110: 10110.40483 | X110: 20.36930481 | Y110: 2.663395221 | Z110: 0.2059419177 | AA110: 0.206324147 | AB110: 2.668125849 | AC110: -13.50329425 | AD110: -98.49504092 | AE110: 4.796288309 | AF110: 0.206324147 | AG110: 0.206324147 | AH110: 4.589964162
A111: 70 | B111: 2070 | D111: =IF(FBE!$C111*(1+D$38/27*($B111-$B$64))>=0,FBE!$C111*(1+D$38/27*($B111-$B$64)),0) -> 386.7392667 | E111: 1 | G111: 7833.447417 | H111: 9808.164259 | I111: 61.14388846 | K111: 0 | L111: 5.035322763 | M111: 0.0003078792134 | O111: =FBE!$U111-FBE!$U110*(1-FBE!$F110) -> 390.5042798 | P111: 1.009735275 | R111: =IF(AND(O111>D111,$AA$1="YES"),R110*(1-FBE!$F110)+D111,R110*(1-FBE!$F110)+O111) -> 7833.447427 | S111: 1.000000001 | T111: 9.830552106e-05 | U111: 76826.70375 | V111: 0.129447779 | W111: 9945.04617 | X111: 19.4763703 | Y111: 2.521172878 | Z111: 0.1936934018 | AA111: =M111+Z111 -> 0.194001281 | AB111: 2.525014836 | AC111: -13.51561712 | AD111: -98.58492574 | AE111: 4.697791279 | AF111: =Z111+M111 -> 0.194001281 | AG111: =AF111 -> 0.194001281 | AH111: 4.503789998
A112: 71 | B112: 2071 | D112: =IF(FBE!$C112*(1+D$38/27*($B112-$B$64))>=0,FBE!$C112*(1+D$38/27*($B112-$B$64)),0) -> 383.5151257 | E112: 1 | G112: 7854.764899 | H112: 9717.912908 | I112: 60.27594297 | K112: 0 | L112: 4.113958409 | M112: 0.0002479727225 | O112: =FBE!$U112-FBE!$U111*(1-FBE!$F111) -> 387.2521019 | P112: 1.009744012 | R112: =IF(AND(O112>D112,$AA$1="YES"),R111*(1-FBE!$F111)+D112,R111*(1-FBE!$F111)+O112) -> 7854.764909 | S112: 1.000000001 | T112: 8.084347295e-05 | U112: 76327.80733 | V112: 0.1281533012 | W112: 9781.660486 | X112: 18.62156229 | Y112: 2.386414682 | Z112: 0.1821498001 | AA112: 0.1823977728 | AB112: 2.389534675 | AC112: =Z112+M112-M$46 -> -13.52722063 | AD112: =(AC112/M$46*100) -> -98.66956346 | AE112: 4.600978529 | AF112: 0.1823977728 | AG112: 0.1823977728 | AH112: 4.418580757
A113: 72 | B113: 2072 | D113: =IF(FBE!$C113*(1+D$38/27*($B113-$B$64))>=0,FBE!$C113*(1+D$38/27*($B113-$B$64)),0) -> 380.2955203 | E113: 1 | G113: 7875.585992 | H113: 9628.491991 | I113: 59.42024232 | K113: 0 | L113: 3.360943342 | M113: 0.0001997080678 | O113: =FBE!$U113-FBE!$U112*(1-FBE!$F112) -> 384.0044002 | P113: 1.009752626 | R113: =IF(AND(O113>D113,$AA$1="YES"),R112*(1-FBE!$F112)+D113,R112*(1-FBE!$F112)+O113) -> 7875.586001 | S113: 1.000000001 | T113: 6.648310563e-05 | U113: 75826.6558 | V113: 0.1268717682 | W113: 9620.261899 | X113: 17.80334255 | Y113: 2.25874155 | Z113: 0.171272818 | AA113: 0.1714725261 | AB113: 2.261275066 | AC113: -13.53814587 | AD113: -98.74925384 | AE113: 4.505837965 | AF113: 0.1714725261 | AG113: 0.1714725261 | AH113: 4.334365438
A114: 73 | B114: 2073 | D114: =IF(FBE!$C114*(1+D$38/27*($B114-$B$64))>=0,FBE!$C114*(1+D$38/27*($B114-$B$64)),0) -> 377.0814218 | E114: 1 | G114: 7895.920843 | H114: 9539.893868 | I114: 58.5766159 | K114: 0 | L114: 2.745567444 | M114: 0.0001608260496 | O114: =FBE!$U114-FBE!$U113*(1-FBE!$F113) -> 380.7621576 | P114: 1.009761117 | R114: =IF(AND(O114>D114,$AA$1="YES"),R113*(1-FBE!$F113)+D114,R113*(1-FBE!$F113)+O114) -> 7895.920851 | S114: 1.000000001 | T114: 5.467352131e-05 | U114: 75323.50135 | V114: 0.1256030505 | W114: 9460.861546 | X114: 17.02022686 | Y114: 2.137792414 | Z114: 0.1610260098 | AA114: 0.1611868359 | AB114: 2.139849554 | AC114: -13.54843156 | AD114: -98.82427919 | AE114: 4.412356628 | AF114: 0.1611868359 | AG114: 0.1611868359 | AH114: 4.251169792
A115: 74 | B115: 2074 | D115: =IF(FBE!$C115*(1+D$38/27*($B115-$B$64))>=0,FBE!$C115*(1+D$38/27*($B115-$B$64)),0) -> 373.873759 | E115: 1 | G115: 7915.779461 | H115: 9452.110969 | I115: 57.74489544 | K115: 0 | L115: 2.242712214 | M115: 0.0001295051823 | O115: =FBE!$U115-FBE!$U114*(1-FBE!$F114) -> 377.5263137 | P115: 1.009769487 | R115: =IF(AND(O115>D115,$AA$1="YES"),R114*(1-FBE!$F114)+D115,R114*(1-FBE!$F114)+O115) -> 7915.77947 | S115: 1.000000001 | T115: 4.496165711e-05 | U115: 74818.58324 | V115: 0.12434702 | W115: 9303.467869 | X115: 16.27078389 | Y115: 2.02322349 | Z115: 0.1513747151 | AA115: 0.1515042203 | AB115: 2.024893716 | AC115: -13.55811418 | AD115: -98.89490564 | AE115: 4.320520767 | AF115: 0.1515042203 | AG115: 0.1515042203 | AH115: 4.169016546
A116: 75 | B116: 2075 | D116: =IF(FBE!$C116*(1+D$38/27*($B116-$B$64))>=0,FBE!$C116*(1+D$38/27*($B116-$B$64)),0) -> 370.6734195 | E116: 1 | G116: 7935.171723 | H116: 9365.135792 | I116: 56.92491493 | K116: 0 | L116: 1.831834879 | M116: 0.0001042770447 | O116: =FBE!$U116-FBE!$U115*(1-FBE!$F115) -> 374.2977669 | P116: 1.009777737 | R116: =IF(AND(O116>D116,$AA$1="YES"),R115*(1-FBE!$F115)+D116,R115*(1-FBE!$F115)+O116) -> 7935.171731 | S116: 1.000000001 | T116: 3.697491413e-05 | U116: 74312.12896 | V116: 0.1231035498 | W116: =V116*U116 -> 9148.08687 | X116: 15.55363399 | Y116: 1.914707557 | Z116: =W116*X116/1000000 -> 0.1422859949 | AA116: 0.1423902719 | AB116: 1.916063555 | AC116: -13.56722813 | AD116: -98.96138413 | AE116: 4.230315892 | AF116: 0.1423902719 | AG116: 0.1423902719 | AH116: 4.08792562
A117: 76 | B117: 2076 | D117: =IF(FBE!$C117*(1+D$38/27*($B117-$B$64))>=0,FBE!$C117*(1+D$38/27*($B117-$B$64)),0) -> 367.4812511 | E117: 1 | G117: 7954.107363 | H117: 9278.960906 | I117: 56.11651064 | K117: 0 | L117: 1.496136598 | M117: 8.395796531e-05 | O117: =FBE!$U117-FBE!$U116*(1-FBE!$F116) -> 371.077375 | P117: 1.00978587 | R117: =IF(AND(O117>D117,$AA$1="YES"),R116*(1-FBE!$F116)+D117,R116*(1-FBE!$F116)+O117) -> 7954.107371 | S117: 1.000000001 | T117: 3.040686959e-05 | U117: 73804.3552 | V117: 0.1218725143 | W117: 8994.722337 | X117: 14.86744795 | Y117: 1.811933263 | Z117: 0.1337285661 | AA117: 0.1338125241 | AB117: 1.813034085 | AC117: -13.57580588 | AD117: -99.0239515 | AE117: 4.141726838 | AF117: 0.1338125241 | AG117: 0.1338125241 | AH117: =AE117-AF117 -> 4.007914314
A118: 77 | B118: 2077 | D118: =IF(FBE!$C118*(1+D$38/27*($B118-$B$64))>=0,FBE!$C118*(1+D$38/27*($B118-$B$64)),0) -> 364.2980628 | E118: 1 | G118: 7972.595977 | H118: 9193.578948 | I118: 55.31952106 | K118: 0 | L118: 1.221881493 | M118: 6.759389898e-05 | O118: =FBE!$U118-FBE!$U117*(1-FBE!$F117) -> 367.8659568 | P118: 1.009793887 | R118: =IF(AND(O118>D118,$AA$1="YES"),R117*(1-FBE!$F117)+D118,R117*(1-FBE!$F117)+O118) -> 7972.595985 | S118: 1.000000001 | T118: 2.500552514e-05 | U118: 73295.46872 | V118: 0.1206537892 | W118: 8843.376032 | X118: 14.21094571 | Y118: 1.714604448 | Z118: 0.1256727367 | AA118: 0.1257403306 | AB118: 1.715498061 | AC118: -13.58387807 | AD118: -99.08283129 | AE118: 4.054737815 | AF118: 0.1257403306 | AG118: 0.1257403306 | AH118: 3.928997485
A119: 78 | B119: 2078 | D119: =IF(FBE!$C119*(1+D$38/27*($B119-$B$64))>=0,FBE!$C119*(1+D$38/27*($B119-$B$64)),0) -> 361.1246261 | E119: 1 | G119: 7990.647019 | H119: 9108.982621 | I119: 54.53378686 | K119: 0 | L119: 0.9978392603 | M119: 5.441595354e-05 | O119: =FBE!$U119-FBE!$U118*(1-FBE!$F118) -> 364.6642933 | P119: 1.009801788 | R119: =IF(AND(O119>D119,$AA$1="YES"),R118*(1-FBE!$F118)+D119,R118*(1-FBE!$F118)+O119) -> 7990.647026 | S119: 1.000000001 | T119: 2.056364161e-05 | U119: 72785.66705 | V119: 0.1194472513 | W119: 8694.047863 | X119: 13.58289507 | Y119: 1.622439481 | Z119: 0.1180903399 | AA119: 0.1181447558 | AB119: 1.623164848 | AC119: -13.59147364 | AD119: -99.13823454 | AE119: 3.969332466 | AF119: 0.1181447558 | AG119: 0.1181447558 | AH119: 3.85118771
A120: 79 | B120: 2079 | D120: =IF(FBE!$C120*(1+D$38/27*($B120-$B$64))>=0,FBE!$C120*(1+D$38/27*($B120-$B$64)),0) -> 357.9616761 | E120: 1 | G120: 8008.269797 | H120: 9025.164699 | I120: 53.75915091 | K120: 0 | L120: 0.8148289749 | M120: 4.380451383e-05 | O120: =FBE!$U120-FBE!$U119*(1-FBE!$F119) -> 361.4731286 | P120: 1.009809577 | R120: =IF(AND(O120>D120,$AA$1="YES"),R119*(1-FBE!$F119)+D120,R119*(1-FBE!$F119)+O120) -> 8008.269804 | S120: 1.000000001 | T120: 1.691078977e-05 | U120: 72275.1391 | V120: 0.1182527788 | W120: 8546.736036 | X120: 12.98211035 | Y120: 1.535170623 | Z120: 0.1109546703 | AA120: 0.1109984748 | AB120: 1.535759389 | AC120: -13.59861992 | AD120: -99.19036058 | AE120: 3.885493911 | AF120: 0.1109984748 | AG120: 0.1109984748 | AH120: 3.774495437
A121: 80 | B121: 2080 | D121: =IF(FBE!$C121*(1+D$38/27*($B121-$B$64))>=0,FBE!$C121*(1+D$38/27*($B121-$B$64)),0) -> 354.8099127 | E121: 1 | G121: 8025.473479 | H121: 8942.118018 | I121: 52.9954582 | K121: 0 | L121: 0.6653457816 | M121: 3.526030456e-05 | O121: =FBE!$U121-FBE!$U120*(1-FBE!$F120) -> 358.2931713 | P121: 1.009817253 | R121: =IF(AND(O121>D121,$AA$1="YES"),R120*(1-FBE!$F120)+D121,R120*(1-FBE!$F120)+O121) -> 8025.473485 | S121: 1.000000001 | T121: 1.390681269e-05 | U121: 71764.06571 | V121: 0.117070251 | W121: 8401.437185 | X121: 12.40745105 | Y121: 1.452543409 | Z121: 0.1042404206 | AA121: 0.1042756809 | AB121: 1.453021274 | AC121: -13.60534272 | AD121: -99.23939764 | AE121: 3.803204802 | AF121: 0.1042756809 | AG121: 0.1042756809 | AH121: 3.698929121
